Workbook

Sheet add (hidden)
A5: كود المعلم
A6: الاسم رباعي
A7: جهة العمل
A8: الرقم القومي
A9: تاريخ الميلاد
A10: النوع
A11: الحالة الاجتماعية
A12: العنوان
A13: رقم التليفون
A14: البريد الالكتروني
A15: الديانة
A16: المؤهل الاصلي
A17: نوع المؤهل
A18: تاريخه
A19: التقدرير
A20: جهة الحصول عليه
A21: المؤهل الاضافي
A22: تاريخه2
A23: التقدير
A24: جهة الحصول علية
A25: المجموعة النوعية
A26: تاريخ التعيين
A27: الموقف من العمل
A28: تاريخ استلام العمل
A29: الوظيفة الحالية
A30: رقم القرار
A31: تاريخ الوظيفة
A32: مادة التدريس
A33: التخصص علي الكادر
A34: الدرجة المالية
A35: تاريخ الدرجة
A36: اصلي / منتدب
A37: كلي / جزئي
A38: الجهة المنتدب اليها
A39: الجهة المنتدب منها
A40: الوظيفة الاشرافية للمعلمين
A41: الوظيفة الاشرافية لغير المعلمين

Sheet الرئيسية
A1: ="قاعدة بيانات" &" "& 'البيانات الاساسية للمدرسة '!F5 -> قاعدة بيانات

Sheet البيانات الاساسية للمدرسة
C2: البيانات الاساسية للمدرسة
C5: اسم المدرسة
C6: المرحلة
C7: المدير
C8: شئون الطلبة
C9: شئون العاملين
C10: العام الدراسي
C11: مسئول المنصة

Sheet bainat
AI1: الكود | AJ1: رقم الصف
B2: بيانات العاملين | D2: عدد العاملين | E2: =COUNT(B8:B297) -> 0 | AB2: ادمودو | AE2: الحساب المدرسي الموحد | AI2: 2930601 | AJ2: =MATCH($AI$2,B:B,0) -> 
A7: م | B7: كود المعلم | C7: الاسم رباعي | D7: الرقم القومي | E7: تاريخ الميلاد | F7: النوع | G7: الحالة الاجتماعية | H7: العنوان | I7: رقم التليفون | J7: الديانة | K7: المؤهل الاصلي | L7: تاريخه | M7: المؤهل الاضافي | N7: تاريخه2 | O7: تاريخ التعيين | P7: تاريخ استلام العمل | Q7: الوظيفة الحالية | R7: رقم القرار | S7: تاريخ الوظيفة | T7: مادة التدريس | U7: التخصص علي الكادر | V7: الدرجة المالية | W7: تاريخ الدرجة | X7: الموقف من العمل | Y7: اصلي / منتدب | Z7: كلي / جزئي | AA7: التقاعد | AB7: البريد الالكتروني | AC7: كلمة المرور | AE7: البريد الالكتروني | AF7: كلمة المرور
A8: =IF(B8="","",ROW(B8)-7) ->  | AD8: =RIGHT(D8,13) ->  | AE8: =IF(B8="","",B8&"@minia2.moe.edu.eg") ->  | AF8: =IF(AD8="","","Emp#"&LEFT(AD8,6)) -> 
AD9: =RIGHT(D9,13) ->  | AE9: =IF(B9="","",B9&"@minia2.moe.edu.eg") ->  | AF9: =IF(AD9="","","Emp#"&LEFT(AD9,6)) -> 
A64: =IF(B64="","",ROW(B64)-7) -> 
AD66: =RIGHT(D66,13) ->  | AE66: =IF(B66="","",B66&"@minia2.moe.edu.eg") ->  | AF66: =IF(AD66="","","Emp#"&LEFT(AD66,6)) -> 
A128: =IF(B128="","",ROW(B128)-7) -> 
AD130: =RIGHT(D130,13) ->  | AE130: =IF(B130="","",B130&"@minia2.moe.edu.eg") ->  | AF130: =IF(AD130="","","Emp#"&LEFT(AD130,6)) -> 
AA141: =IF(E141="","",DATE(YEAR(E141)+60,MONTH(E141),DAY(E141))) -> 
A192: =IF(B192="","",ROW(B192)-7) ->  | AA192: =IF(E192="","",DATE(YEAR(E192)+60,MONTH(E192),DAY(E192))) -> 
AD194: =RIGHT(D194,13) ->  | AE194: =IF(B194="","",B194&"@minia2.moe.edu.eg") ->  | AF194: =IF(AD194="","","Emp#"&LEFT(AD194,6)) -> 
A256: =IF(B256="","",ROW(B256)-7) ->  | AA256: =IF(E256="","",DATE(YEAR(E256)+60,MONTH(E256),DAY(E256))) -> 
AD258: =RIGHT(D258,13) ->  | AE258: =IF(B258="","",B258&"@minia2.moe.edu.eg") ->  | AF258: =IF(AD258="","","Emp#"&LEFT(AD258,6)) -> 

Sheet ورقة2
C7: كود المعلم
C8: الاسم
C9: الرقم القومي
C10: تاريخ الميلاد
C11: النوع
C12: الحالة الاجتماعية
C13: العنوان
C14: تليفون
C15: الديانة
C16: المؤهل الاصلي
C17: تاريخه
C18: المؤهل الاضافي
C19: تاريخه
C20: تاريخ التعيين
C21: تاريخ استلام العمل
C22: الوظيفة الحالية
C23: رقم القرار
C24: تاريخ الوظيفة
C25: مادة التدريس
C26: التخصص علي الكادر
C27: الدرجة المالية | G27: اضغط لتذهب الي اعلي الصفحة
C28: تاريخ الدرجة
C29: الموقف من العمل
C30: اصلي / منتدب
C31: كلي / جزئي

Sheet معلمين (hidden)
D1: بيــــــــــــــــــــــــــــــــــــانـــــــــــــــــــــــــات العــــــــــــــــــــــــــــاملـــــــــــــــــــــــــــــــــــــــــــين
A3: م | B3: كود المعلم | C3: الاسم رباعي | D3: جهة العمل | E3: الرقم القومي | F3: تاريخ الميلاد | G3: النوع | H3: الحالة الاجتماعية | I3: العنوان | J3: رقم التليفون | K3: البريد الالكتروني | L3: الديانة | M3: المؤهل الاصلي | N3: نوع المؤهل | O3: تاريخه | P3: التقدرير | Q3: جهة الحصول عليه | R3: المؤهل الاضافي | S3: تاريخه2 | T3: التقدير | U3: جهة الحصول علية | V3: المجموعة النوعية | W3: تاريخ التعيين | X3: الموقف من العمل | Y3: تاريخ استلام العمل | Z3: الوظيفة الحالية | AA3: رقم القرار | AB3: تاريخ الوظيفة | AC3: مادة التدريس | AD3: التخصص علي الكادر | AE3: الدرجة المالية | AF3: تاريخ الدرجة | AG3: اصلي / منتدب | AH3: كلي / جزئي | AI3: الجهة المنتدب اليها | AJ3: الجهة المنتدب منها | AK3: الوظيفة الاشرافية للمعلمين | AL3: الوظيفة الاشرافية لغير المعلمين
A4: =IF(B4="","",SUBTOTAL(3,$B$4:B4)) -> 
A5: =IF(B5="","",SUBTOTAL(3,$B$4:B5)) -> 
A6: =IF(B6="","",SUBTOTAL(3,$B$4:B6)) -> 
A7: =IF(B7="","",SUBTOTAL(3,$B$4:B7)) -> 
A8: =IF(B8="","",SUBTOTAL(3,$B$4:B8)) -> 
A9: =IF(B9="","",SUBTOTAL(3,$B$4:B9)) -> 
A10: =IF(B10="","",SUBTOTAL(3,$B$4:B10)) -> 
A11: =IF(B11="","",SUBTOTAL(3,$B$4:B11)) -> 
A12: =IF(B12="","",SUBTOTAL(3,$B$4:B12)) -> 
A13: =IF(B13="","",SUBTOTAL(3,$B$4:B13)) -> 
A14: =IF(B14="","",SUBTOTAL(3,$B$4:B14)) -> 
A15: =IF(B15="","",SUBTOTAL(3,$B$4:B15)) -> 
A16: =IF(B16="","",SUBTOTAL(3,$B$4:B16)) -> 
A17: =IF(B17="","",SUBTOTAL(3,$B$4:B17)) -> 
A18: =IF(B18="","",SUBTOTAL(3,$B$4:B18)) -> 
A19: =IF(B19="","",SUBTOTAL(3,$B$4:B19)) -> 
A20: =IF(B20="","",SUBTOTAL(3,$B$4:B20)) -> 
A21: =IF(B21="","",SUBTOTAL(3,$B$4:B21)) -> 
A22: =IF(B22="","",SUBTOTAL(3,$B$4:B22)) -> 
A23: =IF(B23="","",SUBTOTAL(3,$B$4:B23)) -> 
A24: =IF(B24="","",SUBTOTAL(3,$B$4:B24)) -> 
A25: =IF(B25="","",SUBTOTAL(3,$B$4:B25)) -> 
A26: =IF(B26="","",SUBTOTAL(3,$B$4:B26)) -> 
A27: =IF(B27="","",SUBTOTAL(3,$B$4:B27)) -> 
A28: =IF(B28="","",SUBTOTAL(3,$B$4:B28)) -> 
A29: =IF(B29="","",SUBTOTAL(3,$B$4:B29)) -> 
A30: =IF(B30="","",SUBTOTAL(3,$B$4:B30)) -> 
A31: =IF(B31="","",SUBTOTAL(3,$B$4:B31)) -> 
A32: =IF(B32="","",SUBTOTAL(3,$B$4:B32)) -> 
A33: =IF(B33="","",SUBTOTAL(3,$B$4:B33)) -> 
A34: =IF(B34="","",SUBTOTAL(3,$B$4:B34)) -> 
A35: =IF(B35="","",SUBTOTAL(3,$B$4:B35)) -> 
A36: =IF(B36="","",SUBTOTAL(3,$B$4:B36)) -> 
A37: =IF(B37="","",SUBTOTAL(3,$B$4:B37)) -> 
A38: =IF(B38="","",SUBTOTAL(3,$B$4:B38)) -> 
A39: =IF(B39="","",SUBTOTAL(3,$B$4:B39)) -> 
A40: =IF(B40="","",SUBTOTAL(3,$B$4:B40)) -> 
A41: =IF(B41="","",SUBTOTAL(3,$B$4:B41)) -> 
A42: =IF(B42="","",SUBTOTAL(3,$B$4:B42)) -> 
A43: =IF(B43="","",SUBTOTAL(3,$B$4:B43)) -> 
A44: =IF(B44="","",SUBTOTAL(3,$B$4:B44)) -> 
A45: =IF(B45="","",SUBTOTAL(3,$B$4:B45)) -> 
A46: =IF(B46="","",SUBTOTAL(3,$B$4:B46)) -> 
A47: =IF(B47="","",SUBTOTAL(3,$B$4:B47)) -> 
A48: =IF(B48="","",SUBTOTAL(3,$B$4:B48)) -> 
A49: =IF(B49="","",SUBTOTAL(3,$B$4:B49)) -> 
A50: =IF(B50="","",SUBTOTAL(3,$B$4:B50)) -> 
A51: =IF(B51="","",SUBTOTAL(3,$B$4:B51)) -> 
A52: =IF(B52="","",SUBTOTAL(3,$B$4:B52)) -> 
A53: =IF(B53="","",SUBTOTAL(3,$B$4:B53)) -> 
A54: =IF(B54="","",SUBTOTAL(3,$B$4:B54)) -> 
A55: =IF(B55="","",SUBTOTAL(3,$B$4:B55)) -> 
A56: =IF(B56="","",SUBTOTAL(3,$B$4:B56)) -> 
A57: =IF(B57="","",SUBTOTAL(3,$B$4:B57)) -> 
A58: =IF(B58="","",SUBTOTAL(3,$B$4:B58)) -> 
A59: =IF(B59="","",SUBTOTAL(3,$B$4:B59)) -> 
A60: =IF(B60="","",SUBTOTAL(3,$B$4:B60)) -> 
A61: =IF(B61="","",SUBTOTAL(3,$B$4:B61)) -> 
A62: =IF(B62="","",SUBTOTAL(3,$B$4:B62)) -> 
A63: =IF(B63="","",SUBTOTAL(3,$B$4:B63)) -> 
A64: =IF(B64="","",SUBTOTAL(3,$B$4:B64)) -> 
A65: =IF(B65="","",SUBTOTAL(3,$B$4:B65)) -> 
A66: =IF(B66="","",SUBTOTAL(3,$B$4:B66)) -> 
A67: =IF(B67="","",SUBTOTAL(3,$B$4:B67)) -> 
A68: =IF(B68="","",SUBTOTAL(3,$B$4:B68)) -> 
A69: =IF(B69="","",SUBTOTAL(3,$B$4:B69)) -> 
A70: =IF(B70="","",SUBTOTAL(3,$B$4:B70)) -> 
A71: =IF(B71="","",SUBTOTAL(3,$B$4:B71)) -> 
A72: =IF(B72="","",SUBTOTAL(3,$B$4:B72)) -> 
A73: =IF(B73="","",SUBTOTAL(3,$B$4:B73)) -> 
A74: =IF(B74="","",SUBTOTAL(3,$B$4:B74)) -> 
A75: =IF(B75="","",SUBTOTAL(3,$B$4:B75)) -> 
A76: =IF(B76="","",SUBTOTAL(3,$B$4:B76)) -> 
A77: =IF(B77="","",SUBTOTAL(3,$B$4:B77)) -> 
A78: =IF(B78="","",SUBTOTAL(3,$B$4:B78)) -> 
A79: =IF(B79="","",SUBTOTAL(3,$B$4:B79)) -> 
A80: =IF(B80="","",SUBTOTAL(3,$B$4:B80)) -> 
A81: =IF(B81="","",SUBTOTAL(3,$B$4:B81)) -> 
A82: =IF(B82="","",SUBTOTAL(3,$B$4:B82)) -> 
A83: =IF(B83="","",SUBTOTAL(3,$B$4:B83)) -> 
A84: =IF(B84="","",SUBTOTAL(3,$B$4:B84)) -> 
A85: =IF(B85="","",SUBTOTAL(3,$B$4:B85)) -> 
A86: =IF(B86="","",SUBTOTAL(3,$B$4:B86)) -> 
A87: =IF(B87="","",SUBTOTAL(3,$B$4:B87)) -> 
A88: =IF(B88="","",SUBTOTAL(3,$B$4:B88)) -> 
A89: =IF(B89="","",SUBTOTAL(3,$B$4:B89)) -> 
A90: =IF(B90="","",SUBTOTAL(3,$B$4:B90)) -> 
A91: =IF(B91="","",SUBTOTAL(3,$B$4:B91)) -> 
A92: =IF(B92="","",SUBTOTAL(3,$B$4:B92)) -> 
A93: =IF(B93="","",SUBTOTAL(3,$B$4:B93)) -> 
A94: =IF(B94="","",SUBTOTAL(3,$B$4:B94)) -> 
A95: =IF(B95="","",SUBTOTAL(3,$B$4:B95)) -> 
A96: =IF(B96="","",SUBTOTAL(3,$B$4:B96)) -> 
A97: =IF(B97="","",SUBTOTAL(3,$B$4:B97)) -> 
A98: =IF(B98="","",SUBTOTAL(3,$B$4:B98)) -> 
A99: =IF(B99="","",SUBTOTAL(3,$B$4:B99)) -> 
A100: =IF(B100="","",SUBTOTAL(3,$B$4:B100)) -> 
A101: =IF(B101="","",SUBTOTAL(3,$B$4:B101)) -> 
A102: =IF(B102="","",SUBTOTAL(3,$B$4:B102)) -> 
A103: =IF(B103="","",SUBTOTAL(3,$B$4:B103)) -> 
A104: =IF(B104="","",SUBTOTAL(3,$B$4:B104)) -> 
A105: =IF(B105="","",SUBTOTAL(3,$B$4:B105)) -> 
A106: =IF(B106="","",SUBTOTAL(3,$B$4:B106)) -> 
A107: =IF(B107="","",SUBTOTAL(3,$B$4:B107)) -> 
A108: =IF(B108="","",SUBTOTAL(3,$B$4:B108)) -> 
A109: =IF(B109="","",SUBTOTAL(3,$B$4:B109)) -> 
A110: =IF(B110="","",SUBTOTAL(3,$B$4:B110)) -> 
A111: =IF(B111="","",SUBTOTAL(3,$B$4:B111)) -> 
A112: =IF(B112="","",SUBTOTAL(3,$B$4:B112)) -> 
A113: =IF(B113="","",SUBTOTAL(3,$B$4:B113)) -> 
A114: =IF(B114="","",SUBTOTAL(3,$B$4:B114)) -> 
A115: =IF(B115="","",SUBTOTAL(3,$B$4:B115)) -> 
A116: =IF(B116="","",SUBTOTAL(3,$B$4:B116)) -> 
A117: =IF(B117="","",SUBTOTAL(3,$B$4:B117)) -> 
A118: =IF(B118="","",SUBTOTAL(3,$B$4:B118)) -> 
A119: =IF(B119="","",SUBTOTAL(3,$B$4:B119)) -> 
A120: =IF(B120="","",SUBTOTAL(3,$B$4:B120)) -> 
A121: =IF(B121="","",SUBTOTAL(3,$B$4:B121)) -> 
A122: =IF(B122="","",SUBTOTAL(3,$B$4:B122)) -> 
A123: =IF(B123="","",SUBTOTAL(3,$B$4:B123)) -> 
A124: =IF(B124="","",SUBTOTAL(3,$B$4:B124)) -> 
A125: =IF(B125="","",SUBTOTAL(3,$B$4:B125)) -> 
A126: =IF(B126="","",SUBTOTAL(3,$B$4:B126)) -> 
A127: =IF(B127="","",SUBTOTAL(3,$B$4:B127)) -> 
A128: =IF(B128="","",SUBTOTAL(3,$B$4:B128)) -> 
A129: =IF(B129="","",SUBTOTAL(3,$B$4:B129)) -> 
A130: =IF(B130="","",SUBTOTAL(3,$B$4:B130)) -> 
A131: =IF(B131="","",SUBTOTAL(3,$B$4:B131)) -> 
A132: =IF(B132="","",SUBTOTAL(3,$B$4:B132)) -> 
A133: =IF(B133="","",SUBTOTAL(3,$B$4:B133)) -> 
A134: =IF(B134="","",SUBTOTAL(3,$B$4:B134)) -> 
A135: =IF(B135="","",SUBTOTAL(3,$B$4:B135)) -> 
A136: =IF(B136="","",SUBTOTAL(3,$B$4:B136)) -> 
A137: =IF(B137="","",SUBTOTAL(3,$B$4:B137)) -> 
A138: =IF(B138="","",SUBTOTAL(3,$B$4:B138)) -> 
A139: =IF(B139="","",SUBTOTAL(3,$B$4:B139)) -> 
A140: =IF(B140="","",SUBTOTAL(3,$B$4:B140)) -> 
A141: =IF(B141="","",SUBTOTAL(3,$B$4:B141)) -> 
A142: =IF(B142="","",SUBTOTAL(3,$B$4:B142)) -> 
A143: =IF(B143="","",SUBTOTAL(3,$B$4:B143)) -> 
A144: =IF(B144="","",SUBTOTAL(3,$B$4:B144)) -> 
A145: =IF(B145="","",SUBTOTAL(3,$B$4:B145)) -> 
A146: =IF(B146="","",SUBTOTAL(3,$B$4:B146)) -> 
A147: =IF(B147="","",SUBTOTAL(3,$B$4:B147)) -> 
A148: =IF(B148="","",SUBTOTAL(3,$B$4:B148)) -> 
A149: =IF(B149="","",SUBTOTAL(3,$B$4:B149)) -> 
A150: =IF(B150="","",SUBTOTAL(3,$B$4:B150)) -> 
A151: =IF(B151="","",SUBTOTAL(3,$B$4:B151)) -> 
A152: =IF(B152="","",SUBTOTAL(3,$B$4:B152)) -> 
A153: =IF(B153="","",SUBTOTAL(3,$B$4:B153)) -> 
A154: =IF(B154="","",SUBTOTAL(3,$B$4:B154)) -> 
A155: =IF(B155="","",SUBTOTAL(3,$B$4:B155)) -> 
A156: =IF(B156="","",SUBTOTAL(3,$B$4:B156)) -> 
A157: =IF(B157="","",SUBTOTAL(3,$B$4:B157)) -> 
A158: =IF(B158="","",SUBTOTAL(3,$B$4:B158)) -> 
A159: =IF(B159="","",SUBTOTAL(3,$B$4:B159)) -> 
A160: =IF(B160="","",SUBTOTAL(3,$B$4:B160)) -> 
A161: =IF(B161="","",SUBTOTAL(3,$B$4:B161)) -> 
A162: =IF(B162="","",SUBTOTAL(3,$B$4:B162)) -> 
A163: =IF(B163="","",SUBTOTAL(3,$B$4:B163)) -> 
A164: =IF(B164="","",SUBTOTAL(3,$B$4:B164)) -> 
A165: =IF(B165="","",SUBTOTAL(3,$B$4:B165)) -> 
A166: =IF(B166="","",SUBTOTAL(3,$B$4:B166)) -> 
A167: =IF(B167="","",SUBTOTAL(3,$B$4:B167)) -> 
A168: =IF(B168="","",SUBTOTAL(3,$B$4:B168)) -> 
A169: =IF(B169="","",SUBTOTAL(3,$B$4:B169)) -> 
A170: =IF(B170="","",SUBTOTAL(3,$B$4:B170)) -> 
A171: =IF(B171="","",SUBTOTAL(3,$B$4:B171)) -> 
A172: =IF(B172="","",SUBTOTAL(3,$B$4:B172)) -> 
A173: =IF(B173="","",SUBTOTAL(3,$B$4:B173)) -> 
A174: =IF(B174="","",SUBTOTAL(3,$B$4:B174)) -> 
A175: =IF(B175="","",SUBTOTAL(3,$B$4:B175)) -> 
A176: =IF(B176="","",SUBTOTAL(3,$B$4:B176)) -> 
A177: =IF(B177="","",SUBTOTAL(3,$B$4:B177)) -> 
A178: =IF(B178="","",SUBTOTAL(3,$B$4:B178)) -> 
A179: =IF(B179="","",SUBTOTAL(3,$B$4:B179)) -> 
A180: =IF(B180="","",SUBTOTAL(3,$B$4:B180)) -> 
A181: =IF(B181="","",SUBTOTAL(3,$B$4:B181)) -> 
A182: =IF(B182="","",SUBTOTAL(3,$B$4:B182)) -> 
A183: =IF(B183="","",SUBTOTAL(3,$B$4:B183)) -> 
A184: =IF(B184="","",SUBTOTAL(3,$B$4:B184)) -> 
A185: =IF(B185="","",SUBTOTAL(3,$B$4:B185)) -> 
A186: =IF(B186="","",SUBTOTAL(3,$B$4:B186)) -> 
A187: =IF(B187="","",SUBTOTAL(3,$B$4:B187)) -> 
A188: =IF(B188="","",SUBTOTAL(3,$B$4:B188)) -> 
A189: =IF(B189="","",SUBTOTAL(3,$B$4:B189)) -> 
A190: =IF(B190="","",SUBTOTAL(3,$B$4:B190)) -> 
A191: =IF(B191="","",SUBTOTAL(3,$B$4:B191)) -> 
A192: =IF(B192="","",SUBTOTAL(3,$B$4:B192)) -> 
A193: =IF(B193="","",SUBTOTAL(3,$B$4:B193)) -> 
A194: =IF(B194="","",SUBTOTAL(3,$B$4:B194)) -> 
A195: =IF(B195="","",SUBTOTAL(3,$B$4:B195)) -> 
A196: =IF(B196="","",SUBTOTAL(3,$B$4:B196)) -> 
A197: =IF(B197="","",SUBTOTAL(3,$B$4:B197)) -> 
A198: =IF(B198="","",SUBTOTAL(3,$B$4:B198)) -> 
A199: =IF(B199="","",SUBTOTAL(3,$B$4:B199)) -> 
A200: =IF(B200="","",SUBTOTAL(3,$B$4:B200)) -> 
A201: =IF(B201="","",SUBTOTAL(3,$B$4:B201)) -> 
... 2 more rows

Sheet طلبة
B2: قاعدة بيانات الطلبة

Sheet قاعدة معلمين

Sheet 1

Sheet 2

Sheet 3

Sheet 4

Sheet 5

Sheet 6

Sheet حسابات المعلمين
B1: إدارة بني مزار التعليمية | G1: حساب ادمودو والحساب المدرسي الموحد للمعلمين
B2: ='[2]البيانات الاساسية للمدرسة '!$F$5 -> مدرسة ساقولا الإعدادية للبنين
A3: =M6 -> 1 | B3: الاسم: | C3: =IFERROR(VLOOKUP($A$3,ورقة7!$A$3:$H$102,2,0),"") -> 0 | G3: الكود : | H3: =IFERROR(VLOOKUP($A$3,ورقة7!$A$3:$H$102,3,0),"") -> 0
B4: ادمودو | G4: الحساب المدرسي الموحد | N4: =IF($M$2=[2]ورقة1!$AM$1,1000,IF($M$2=[2]ورقة1!$AM$2,2000,IF($M$2=[2]ورقة1!AM3,3000))) -> FALSE
B5: البريد الكتروني : | D5: =IFERROR(VLOOKUP($A$3,ورقة7!$A$3:$H$102,4,0),"") -> 0 | G5: الايميل: | H5: =IFERROR(VLOOKUP($A$3,ورقة7!$A$3:$G$102,6,0),"") ->  | M5: مسلسل
B6: كلمة المرور : | D6: =IFERROR(VLOOKUP($A$3,ورقة7!$A$3:$H$102,5,0),"") -> 0 | G6: كلمة المرور : | I6: =IFERROR(VLOOKUP($A$3,ورقة7!$A$3:$G$102,7,0),"") ->  | M6: 1
C7: مسئول المنصة | I7: مدير المدرسة
C8: ='البيانات الاساسية للمدرسة '!$F$11 -> 0 | I8: ='البيانات الاساسية للمدرسة '!$F$7 -> 0
B9: إدارة بني مزار التعليمية | G9: حساب ادمودو والحساب المدرسي الموحد للمعلمين
B10: ='[2]البيانات الاساسية للمدرسة '!$F$5 -> مدرسة ساقولا الإعدادية للبنين
A11: =A3+1 -> 2 | B11: الاسم: | C11: =IFERROR(VLOOKUP($A$11,ورقة7!$A$3:$H$102,2,0),"") -> 0 | G11: الكود : | H11: =IFERROR(VLOOKUP($A$11,ورقة7!$A$3:$H$102,3,0),"") -> 0
B12: ادمودو | G12: الحساب المدرسي الموحد
B13: البريد الكتروني : | D13: =IFERROR(VLOOKUP($A$11,ورقة7!$A$3:$H$102,4,0),"") -> 0 | G13: الايميل: | H13: =IFERROR(VLOOKUP($A$11,ورقة7!$A$3:$G$102,6,0),"") -> 
B14: كلمة المرور : | D14: =IFERROR(VLOOKUP($A$11,ورقة7!$A$3:$H$102,5,0),"") -> 0 | G14: كلمة المرور : | I14: =IFERROR(VLOOKUP($A$11,ورقة7!$A$3:$G$102,7,0),"") -> 
C15: مسئول المنصة | I15: مدير المدرسة
C16: ='البيانات الاساسية للمدرسة '!$F$11 -> 0 | I16: ='البيانات الاساسية للمدرسة '!$F$7 -> 0
B17: إدارة بني مزار التعليمية | G17: حساب ادمودو والحساب المدرسي الموحد للمعلمين
B18: ='[2]البيانات الاساسية للمدرسة '!$F$5 -> مدرسة ساقولا الإعدادية للبنين
A19: =A11+1 -> 3 | B19: الاسم: | C19: =IFERROR(VLOOKUP($A$19,ورقة7!$A$3:$H$102,2,0),"") -> 0 | G19: الكود : | H19: =IFERROR(VLOOKUP($A$19,ورقة7!$A$3:$H$102,3,0),"") -> 0
B20: ادمودو | G20: الحساب المدرسي الموحد
B21: البريد الكتروني : | D21: =IFERROR(VLOOKUP($A$19,ورقة7!$A$3:$H$102,4,0),"") -> 0 | G21: الايميل: | H21: =IFERROR(VLOOKUP($A$19,ورقة7!$A$3:$G$102,6,0),"") -> 
B22: كلمة المرور : | D22: =IFERROR(VLOOKUP($A$19,ورقة7!$A$3:$H$102,5,0),"") -> 0 | G22: كلمة المرور : | I22: =IFERROR(VLOOKUP($A$19,ورقة7!$A$3:$G$102,7,0),"") -> 
C23: مسئول المنصة | I23: مدير المدرسة
C24: ='البيانات الاساسية للمدرسة '!$F$11 -> 0 | I24: ='البيانات الاساسية للمدرسة '!$F$7 -> 0
B25: إدارة بني مزار التعليمية | G25: حساب ادمودو والحساب المدرسي الموحد للمعلمين
B26: ='[2]البيانات الاساسية للمدرسة '!$F$5 -> مدرسة ساقولا الإعدادية للبنين
A27: =A19+1 -> 4 | B27: الاسم: | C27: =IFERROR(VLOOKUP($A$27,ورقة7!$A$3:$H$102,2,0),"") -> 0 | G27: الكود : | H27: =IFERROR(VLOOKUP($A$27,ورقة7!$A$3:$H$102,3,0),"") -> 0
B28: ادمودو | G28: الحساب المدرسي الموحد
B29: البريد الكتروني : | D29: =IFERROR(VLOOKUP($A$27,ورقة7!$A$3:$H$102,4,0),"") -> 0 | G29: الايميل: | H29: =IFERROR(VLOOKUP($A$27,ورقة7!$A$3:$G$102,6,0),"") -> 
B30: كلمة المرور : | D30: =IFERROR(VLOOKUP($A$27,ورقة7!$A$3:$H$102,5,0),"") -> 0 | G30: كلمة المرور : | I30: =IFERROR(VLOOKUP($A$27,ورقة7!$A$3:$G$102,7,0),"") -> 
C31: مسئول المنصة | I31: مدير المدرسة
C32: ='البيانات الاساسية للمدرسة '!$F$11 -> 0 | I32: ='البيانات الاساسية للمدرسة '!$F$7 -> 0
B33: إدارة بني مزار التعليمية | G33: حساب ادمودو والحساب المدرسي الموحد للمعلمين
B34: ='[2]البيانات الاساسية للمدرسة '!$F$5 -> مدرسة ساقولا الإعدادية للبنين
A35: =A27+1 -> 5 | B35: الاسم: | C35: =IFERROR(VLOOKUP($A$35,ورقة7!$A$3:$H$102,2,0),"") -> 0 | G35: الكود : | H35: =IFERROR(VLOOKUP($A$35,ورقة7!$A$3:$H$102,3,0),"") -> 0
B36: ادمودو | G36: الحساب المدرسي الموحد
B37: البريد الكتروني : | D37: =IFERROR(VLOOKUP($A$35,ورقة7!$A$3:$H$102,4,0),"") -> 0 | G37: الايميل: | H37: =IFERROR(VLOOKUP($A$35,ورقة7!$A$3:$G$102,6,0),"") -> 
B38: كلمة المرور : | D38: =IFERROR(VLOOKUP($A$35,ورقة7!$A$3:$H$102,5,0),"") -> 0 | G38: كلمة المرور : | I38: =IFERROR(VLOOKUP($A$35,ورقة7!$A$3:$G$102,7,0),"") -> 
C39: مسئول المنصة | I39: مدير المدرسة
C40: ='البيانات الاساسية للمدرسة '!$F$11 -> 0 | I40: ='البيانات الاساسية للمدرسة '!$F$7 -> 0

Sheet 22
A1: 1000 | B1: الكود | C1: الاسم | D1: ادمودو | F1: الموحد | H1: الفصل | I1: حالة القيد | J1: الرقم القومي
A2: =A1+1 -> 1001 | B2: ='بيانات ص 1'!C8 -> 0 | C2: ='بيانات ص 1'!D8 -> 0 | D2: ='بيانات ص 1'!AB8 -> 0 | E2: ='بيانات ص 1'!AC8 -> 0 | F2: ='بيانات ص 1'!AF8 ->  | G2: ='بيانات ص 1'!AG8 ->  | H2: ='[2]بيانات ص 1'!Y8 -> 1/1 | I2: ='بيانات ص 1'!K8 -> مستجد | J2: ='بيانات ص 1'!E8 -> 0
A3: =A2+1 -> 1002 | B3: ='بيانات ص 1'!C9 -> 0 | C3: ='بيانات ص 1'!D9 -> 0 | D3: ='بيانات ص 1'!AB9 -> 0 | E3: ='بيانات ص 1'!AC9 -> 0 | F3: ='بيانات ص 1'!AF9 ->  | G3: ='بيانات ص 1'!AG9 ->  | H3: ='[2]بيانات ص 1'!Y9 -> 1/1 | I3: ='بيانات ص 1'!K9 -> مستجد | J3: ='بيانات ص 1'!E9 -> 0
A4: 1003 | B4: ='بيانات ص 1'!C10 -> 0 | C4: ='بيانات ص 1'!D10 -> 0 | D4: ='بيانات ص 1'!AB10 -> 0 | E4: ='بيانات ص 1'!AC10 -> 0 | F4: ='بيانات ص 1'!AF10 ->  | G4: ='بيانات ص 1'!AG10 ->  | H4: ='[2]بيانات ص 1'!Y10 -> 1/1 | I4: ='بيانات ص 1'!K10 -> مستجد | J4: ='بيانات ص 1'!E10 -> 0
A5: 1004 | B5: ='بيانات ص 1'!C11 -> 0 | C5: ='بيانات ص 1'!D11 -> 0 | D5: ='بيانات ص 1'!AB11 -> 0 | E5: ='بيانات ص 1'!AC11 -> 0 | F5: ='بيانات ص 1'!AF11 ->  | G5: ='بيانات ص 1'!AG11 ->  | H5: ='[2]بيانات ص 1'!Y11 -> 1/1 | I5: ='بيانات ص 1'!K11 -> مستجد | J5: ='بيانات ص 1'!E11 -> 0
A6: 1005 | B6: ='بيانات ص 1'!C12 -> 0 | C6: ='بيانات ص 1'!D12 -> 0 | D6: ='بيانات ص 1'!AB12 -> 0 | E6: ='بيانات ص 1'!AC12 -> 0 | F6: ='بيانات ص 1'!AF12 ->  | G6: ='بيانات ص 1'!AG12 ->  | H6: ='[2]بيانات ص 1'!Y12 -> 1/1 | I6: ='بيانات ص 1'!K12 -> مستجد | J6: ='بيانات ص 1'!E12 -> 0
A7: 1006 | B7: ='بيانات ص 1'!C13 -> 0 | C7: ='بيانات ص 1'!D13 -> 0 | D7: ='بيانات ص 1'!AB13 -> 0 | E7: ='بيانات ص 1'!AC13 -> 0 | F7: ='بيانات ص 1'!AF13 ->  | G7: ='بيانات ص 1'!AG13 ->  | H7: ='[2]بيانات ص 1'!Y13 -> 1/1 | I7: ='بيانات ص 1'!K13 -> مستجد | J7: ='بيانات ص 1'!E13 -> 0
A8: 1007 | B8: ='بيانات ص 1'!C14 -> 0 | C8: ='بيانات ص 1'!D14 -> 0 | D8: ='بيانات ص 1'!AB14 -> 0 | E8: ='بيانات ص 1'!AC14 -> 0 | F8: ='بيانات ص 1'!AF14 ->  | G8: ='بيانات ص 1'!AG14 ->  | H8: ='[2]بيانات ص 1'!Y14 -> 1/1 | I8: ='بيانات ص 1'!K14 -> مستجد | J8: ='بيانات ص 1'!E14 -> 0
A9: 1008 | B9: ='بيانات ص 1'!C15 -> 0 | C9: ='بيانات ص 1'!D15 -> 0 | D9: ='بيانات ص 1'!AB15 -> 0 | E9: ='بيانات ص 1'!AC15 -> 0 | F9: ='بيانات ص 1'!AF15 ->  | G9: ='بيانات ص 1'!AG15 ->  | H9: ='[2]بيانات ص 1'!Y15 -> 1/1 | I9: ='بيانات ص 1'!K15 -> مستجد | J9: ='بيانات ص 1'!E15 -> 0
A10: 1009 | B10: ='بيانات ص 1'!C16 -> 0 | C10: ='بيانات ص 1'!D16 -> 0 | D10: ='بيانات ص 1'!AB16 -> 0 | E10: ='بيانات ص 1'!AC16 -> 0 | F10: ='بيانات ص 1'!AF16 ->  | G10: ='بيانات ص 1'!AG16 ->  | H10: ='[2]بيانات ص 1'!Y16 -> 1/1 | I10: ='بيانات ص 1'!K16 -> مستجد | J10: ='بيانات ص 1'!E16 -> 0
A11: 1010 | B11: ='بيانات ص 1'!C17 -> 0 | C11: ='بيانات ص 1'!D17 -> 0 | D11: ='بيانات ص 1'!AB17 -> 0 | E11: ='بيانات ص 1'!AC17 -> 0 | F11: ='بيانات ص 1'!AF17 ->  | G11: ='بيانات ص 1'!AG17 ->  | H11: ='[2]بيانات ص 1'!Y17 -> 1/1 | I11: ='بيانات ص 1'!K17 -> مستجد | J11: ='بيانات ص 1'!E17 -> 0
A12: 1011 | B12: ='بيانات ص 1'!C18 -> 0 | C12: ='بيانات ص 1'!D18 -> 0 | D12: ='بيانات ص 1'!AB18 -> 0 | E12: ='بيانات ص 1'!AC18 -> 0 | F12: ='بيانات ص 1'!AF18 ->  | G12: ='بيانات ص 1'!AG18 ->  | H12: ='[2]بيانات ص 1'!Y18 -> 1/1 | I12: ='بيانات ص 1'!K18 -> مستجد | J12: ='بيانات ص 1'!E18 -> 0
A13: 1012 | B13: ='بيانات ص 1'!C19 -> 0 | C13: ='بيانات ص 1'!D19 -> 0 | D13: ='بيانات ص 1'!AB19 -> 0 | E13: ='بيانات ص 1'!AC19 -> 0 | F13: ='بيانات ص 1'!AF19 ->  | G13: ='بيانات ص 1'!AG19 ->  | H13: ='[2]بيانات ص 1'!Y19 -> 1/1 | I13: ='بيانات ص 1'!K19 -> مستجد | J13: ='بيانات ص 1'!E19 -> 0
A14: 1013 | B14: ='بيانات ص 1'!C20 -> 0 | C14: ='بيانات ص 1'!D20 -> 0 | D14: ='بيانات ص 1'!AB20 -> 0 | E14: ='بيانات ص 1'!AC20 -> 0 | F14: ='بيانات ص 1'!AF20 ->  | G14: ='بيانات ص 1'!AG20 ->  | H14: ='[2]بيانات ص 1'!Y20 -> 1/1 | I14: ='بيانات ص 1'!K20 -> مستجد | J14: ='بيانات ص 1'!E20 -> 0
A15: 1014 | B15: ='بيانات ص 1'!C21 -> 0 | C15: ='بيانات ص 1'!D21 -> 0 | D15: ='بيانات ص 1'!AB21 -> 0 | E15: ='بيانات ص 1'!AC21 -> 0 | F15: ='بيانات ص 1'!AF21 ->  | G15: ='بيانات ص 1'!AG21 ->  | H15: ='[2]بيانات ص 1'!Y21 -> 1/1 | I15: ='بيانات ص 1'!K21 -> مستجد | J15: ='بيانات ص 1'!E21 -> 0
A16: 1015 | B16: ='بيانات ص 1'!C22 -> 0 | C16: ='بيانات ص 1'!D22 -> 0 | D16: ='بيانات ص 1'!AB22 -> 0 | E16: ='بيانات ص 1'!AC22 -> 0 | F16: ='بيانات ص 1'!AF22 ->  | G16: ='بيانات ص 1'!AG22 ->  | H16: ='[2]بيانات ص 1'!Y22 -> 1/1 | I16: ='بيانات ص 1'!K22 -> مستجد | J16: ='بيانات ص 1'!E22 -> 0
A17: 1016 | B17: ='بيانات ص 1'!C23 -> 0 | C17: ='بيانات ص 1'!D23 -> 0 | D17: ='بيانات ص 1'!AB23 -> 0 | E17: ='بيانات ص 1'!AC23 -> 0 | F17: ='بيانات ص 1'!AF23 ->  | G17: ='بيانات ص 1'!AG23 ->  | H17: ='[2]بيانات ص 1'!Y23 -> 1/1 | I17: ='بيانات ص 1'!K23 -> مستجد | J17: ='بيانات ص 1'!E23 -> 0
A18: 1017 | B18: ='بيانات ص 1'!C24 -> 0 | C18: ='بيانات ص 1'!D24 -> 0 | D18: ='بيانات ص 1'!AB24 -> 0 | E18: ='بيانات ص 1'!AC24 -> 0 | F18: ='بيانات ص 1'!AF24 ->  | G18: ='بيانات ص 1'!AG24 ->  | H18: ='[2]بيانات ص 1'!Y24 -> 1/1 | I18: ='بيانات ص 1'!K24 -> مستجد | J18: ='بيانات ص 1'!E24 -> 0
A19: 1018 | B19: ='بيانات ص 1'!C25 -> 0 | C19: ='بيانات ص 1'!D25 -> 0 | D19: ='بيانات ص 1'!AB25 -> 0 | E19: ='بيانات ص 1'!AC25 -> 0 | F19: ='بيانات ص 1'!AF25 ->  | G19: ='بيانات ص 1'!AG25 ->  | H19: ='[2]بيانات ص 1'!Y25 -> 1/1 | I19: ='بيانات ص 1'!K25 -> مستجد | J19: ='بيانات ص 1'!E25 -> 0
A20: 1019 | B20: ='بيانات ص 1'!C26 -> 0 | C20: ='بيانات ص 1'!D26 -> 0 | D20: ='بيانات ص 1'!AB26 -> 0 | E20: ='بيانات ص 1'!AC26 -> 0 | F20: ='بيانات ص 1'!AF26 ->  | G20: ='بيانات ص 1'!AG26 ->  | H20: ='[2]بيانات ص 1'!Y26 -> 2/1 | I20: ='بيانات ص 1'!K26 -> مستجد | J20: ='بيانات ص 1'!E26 -> 0
A21: 1020 | B21: ='بيانات ص 1'!C27 -> 0 | C21: ='بيانات ص 1'!D27 -> 0 | D21: ='بيانات ص 1'!AB27 -> 0 | E21: ='بيانات ص 1'!AC27 -> 0 | F21: ='بيانات ص 1'!AF27 ->  | G21: ='بيانات ص 1'!AG27 ->  | H21: ='[2]بيانات ص 1'!Y27 -> 1/1 | I21: ='بيانات ص 1'!K27 -> مستجد | J21: ='بيانات ص 1'!E27 -> 0
A22: 1021 | B22: ='بيانات ص 1'!C28 -> 0 | C22: ='بيانات ص 1'!D28 -> 0 | D22: ='بيانات ص 1'!AB28 -> 0 | E22: ='بيانات ص 1'!AC28 -> 0 | F22: ='بيانات ص 1'!AF28 ->  | G22: ='بيانات ص 1'!AG28 ->  | H22: ='[2]بيانات ص 1'!Y28 -> 1/1 | I22: ='بيانات ص 1'!K28 -> مستجد | J22: ='بيانات ص 1'!E28 -> 0
A23: 1022 | B23: ='بيانات ص 1'!C29 -> 0 | C23: ='بيانات ص 1'!D29 -> 0 | D23: ='بيانات ص 1'!AB29 -> 0 | E23: ='بيانات ص 1'!AC29 -> 0 | F23: ='بيانات ص 1'!AF29 ->  | G23: ='بيانات ص 1'!AG29 ->  | H23: ='[2]بيانات ص 1'!Y29 -> 1/1 | I23: ='بيانات ص 1'!K29 -> مستجد | J23: ='بيانات ص 1'!E29 -> 0
A24: 1023 | B24: ='بيانات ص 1'!C30 -> 0 | C24: ='بيانات ص 1'!D30 -> 0 | D24: ='بيانات ص 1'!AB30 -> 0 | E24: ='بيانات ص 1'!AC30 -> 0 | F24: ='بيانات ص 1'!AF30 ->  | G24: ='بيانات ص 1'!AG30 ->  | H24: ='[2]بيانات ص 1'!Y30 -> 1/1 | I24: ='بيانات ص 1'!K30 -> مستجد | J24: ='بيانات ص 1'!E30 -> 0
A25: 1024 | B25: ='بيانات ص 1'!C31 -> 0 | C25: ='بيانات ص 1'!D31 -> 0 | D25: ='بيانات ص 1'!AB31 -> 0 | E25: ='بيانات ص 1'!AC31 -> 0 | F25: ='بيانات ص 1'!AF31 ->  | G25: ='بيانات ص 1'!AG31 ->  | H25: ='[2]بيانات ص 1'!Y31 -> 1/1 | I25: ='بيانات ص 1'!K31 -> مستجد | J25: ='بيانات ص 1'!E31 -> 0
A26: 1025 | B26: ='بيانات ص 1'!C32 -> 0 | C26: ='بيانات ص 1'!D32 -> 0 | D26: ='بيانات ص 1'!AB32 -> 0 | E26: ='بيانات ص 1'!AC32 -> 0 | F26: ='بيانات ص 1'!AF32 ->  | G26: ='بيانات ص 1'!AG32 ->  | H26: ='[2]بيانات ص 1'!Y32 -> 1/1 | I26: ='بيانات ص 1'!K32 -> مستجد | J26: ='بيانات ص 1'!E32 -> 0
A27: 1026 | B27: ='بيانات ص 1'!C33 -> 0 | C27: ='بيانات ص 1'!D33 -> 0 | D27: ='بيانات ص 1'!AB33 -> 0 | E27: ='بيانات ص 1'!AC33 -> 0 | F27: ='بيانات ص 1'!AF33 ->  | G27: ='بيانات ص 1'!AG33 ->  | H27: ='[2]بيانات ص 1'!Y33 -> 2/1 | I27: ='بيانات ص 1'!K33 -> مستجد | J27: ='بيانات ص 1'!E33 -> 0
A28: 1027 | B28: ='بيانات ص 1'!C34 -> 0 | C28: ='بيانات ص 1'!D34 -> 0 | D28: ='بيانات ص 1'!AB34 -> 0 | E28: ='بيانات ص 1'!AC34 -> 0 | F28: ='بيانات ص 1'!AF34 ->  | G28: ='بيانات ص 1'!AG34 ->  | H28: ='[2]بيانات ص 1'!Y34 -> 2/1 | I28: ='بيانات ص 1'!K34 -> مستجد | J28: ='بيانات ص 1'!E34 -> 0
A29: 1028 | B29: ='بيانات ص 1'!C35 -> 0 | C29: ='بيانات ص 1'!D35 -> 0 | D29: ='بيانات ص 1'!AB35 -> 0 | E29: ='بيانات ص 1'!AC35 -> 0 | F29: ='بيانات ص 1'!AF35 ->  | G29: ='بيانات ص 1'!AG35 ->  | H29: ='[2]بيانات ص 1'!Y35 -> 2/1 | I29: ='بيانات ص 1'!K35 -> مستجد | J29: ='بيانات ص 1'!E35 -> 0
A30: 1029 | B30: ='بيانات ص 1'!C36 -> 0 | C30: ='بيانات ص 1'!D36 -> 0 | D30: ='بيانات ص 1'!AB36 -> 0 | E30: ='بيانات ص 1'!AC36 -> 0 | F30: ='بيانات ص 1'!AF36 ->  | G30: ='بيانات ص 1'!AG36 ->  | H30: ='[2]بيانات ص 1'!Y36 -> 2/1 | I30: ='بيانات ص 1'!K36 -> مستجد | J30: ='بيانات ص 1'!E36 -> 0
A31: 1030 | B31: ='بيانات ص 1'!C37 -> 0 | C31: ='بيانات ص 1'!D37 -> 0 | D31: ='بيانات ص 1'!AB37 -> 0 | E31: ='بيانات ص 1'!AC37 -> 0 | F31: ='بيانات ص 1'!AF37 ->  | G31: ='بيانات ص 1'!AG37 ->  | H31: ='[2]بيانات ص 1'!Y37 -> 2/1 | I31: ='بيانات ص 1'!K37 -> مستجد | J31: ='بيانات ص 1'!E37 -> 0
A32: 1031 | B32: ='بيانات ص 1'!C38 -> 0 | C32: ='بيانات ص 1'!D38 -> 0 | D32: ='بيانات ص 1'!AB38 -> 0 | E32: ='بيانات ص 1'!AC38 -> 0 | F32: ='بيانات ص 1'!AF38 ->  | G32: ='بيانات ص 1'!AG38 ->  | H32: ='[2]بيانات ص 1'!Y38 -> 2/1 | I32: ='بيانات ص 1'!K38 -> مستجد | J32: ='بيانات ص 1'!E38 -> 0
A33: 1032 | B33: ='بيانات ص 1'!C39 -> 0 | C33: ='بيانات ص 1'!D39 -> 0 | D33: ='بيانات ص 1'!AB39 -> 0 | E33: ='بيانات ص 1'!AC39 -> 0 | F33: ='بيانات ص 1'!AF39 ->  | G33: ='بيانات ص 1'!AG39 ->  | H33: ='[2]بيانات ص 1'!Y39 -> 2/1 | I33: ='بيانات ص 1'!K39 -> مستجد | J33: ='بيانات ص 1'!E39 -> 0
A34: 1033 | B34: ='بيانات ص 1'!C40 -> 0 | C34: ='بيانات ص 1'!D40 -> 0 | D34: ='بيانات ص 1'!AB40 -> 0 | E34: ='بيانات ص 1'!AC40 -> 0 | F34: ='بيانات ص 1'!AF40 ->  | G34: ='بيانات ص 1'!AG40 ->  | H34: ='[2]بيانات ص 1'!Y40 -> 2/1 | I34: ='بيانات ص 1'!K40 -> مستجد | J34: ='بيانات ص 1'!E40 -> 0
A35: 1034 | B35: ='بيانات ص 1'!C41 -> 0 | C35: ='بيانات ص 1'!D41 -> 0 | D35: ='بيانات ص 1'!AB41 -> 0 | E35: ='بيانات ص 1'!AC41 -> 0 | F35: ='بيانات ص 1'!AF41 ->  | G35: ='بيانات ص 1'!AG41 ->  | H35: ='[2]بيانات ص 1'!Y41 -> 2/1 | I35: ='بيانات ص 1'!K41 -> مستجد | J35: ='بيانات ص 1'!E41 -> 0
A36: 1035 | B36: ='بيانات ص 1'!C42 -> 0 | C36: ='بيانات ص 1'!D42 -> 0 | D36: ='بيانات ص 1'!AB42 -> 0 | E36: ='بيانات ص 1'!AC42 -> 0 | F36: ='بيانات ص 1'!AF42 ->  | G36: ='بيانات ص 1'!AG42 ->  | H36: ='[2]بيانات ص 1'!Y42 -> 2/1 | I36: ='بيانات ص 1'!K42 -> مستجد | J36: ='بيانات ص 1'!E42 -> 0
A37: 1036 | B37: ='بيانات ص 1'!C43 -> 0 | C37: ='بيانات ص 1'!D43 -> 0 | D37: ='بيانات ص 1'!AB43 -> 0 | E37: ='بيانات ص 1'!AC43 -> 0 | F37: ='بيانات ص 1'!AF43 ->  | G37: ='بيانات ص 1'!AG43 ->  | H37: ='[2]بيانات ص 1'!Y43 -> 2/1 | I37: ='بيانات ص 1'!K43 -> مستجد | J37: ='بيانات ص 1'!E43 -> 0
A38: 1037 | B38: ='بيانات ص 1'!C44 -> 0 | C38: ='بيانات ص 1'!D44 -> 0 | D38: ='بيانات ص 1'!AB44 -> 0 | E38: ='بيانات ص 1'!AC44 -> 0 | F38: ='بيانات ص 1'!AF44 ->  | G38: ='بيانات ص 1'!AG44 ->  | H38: ='[2]بيانات ص 1'!Y44 -> 3/1 | I38: ='بيانات ص 1'!K44 -> مستجد | J38: ='بيانات ص 1'!E44 -> 0
A39: 1038 | B39: ='بيانات ص 1'!C45 -> 0 | C39: ='بيانات ص 1'!D45 -> 0 | D39: ='بيانات ص 1'!AB45 -> 0 | E39: ='بيانات ص 1'!AC45 -> 0 | F39: ='بيانات ص 1'!AF45 ->  | G39: ='بيانات ص 1'!AG45 ->  | H39: ='[2]بيانات ص 1'!Y45 -> 2/1 | I39: ='بيانات ص 1'!K45 -> مستجد | J39: ='بيانات ص 1'!E45 -> 0
A40: 1039 | B40: ='بيانات ص 1'!C46 -> 0 | C40: ='بيانات ص 1'!D46 -> 0 | D40: ='بيانات ص 1'!AB46 -> 0 | E40: ='بيانات ص 1'!AC46 -> 0 | F40: ='بيانات ص 1'!AF46 ->  | G40: ='بيانات ص 1'!AG46 ->  | H40: ='[2]بيانات ص 1'!Y46 -> 2/1 | I40: ='بيانات ص 1'!K46 -> مستجد | J40: ='بيانات ص 1'!E46 -> 0
A41: 1040 | B41: ='بيانات ص 1'!C47 -> 0 | C41: ='بيانات ص 1'!D47 -> 0 | D41: ='بيانات ص 1'!AB47 -> 0 | E41: ='بيانات ص 1'!AC47 -> 0 | F41: ='بيانات ص 1'!AF47 ->  | G41: ='بيانات ص 1'!AG47 ->  | H41: ='[2]بيانات ص 1'!Y47 -> 2/1 | I41: ='بيانات ص 1'!K47 -> مستجد | J41: ='بيانات ص 1'!E47 -> 0
A42: 1041 | B42: ='بيانات ص 1'!C48 -> 0 | C42: ='بيانات ص 1'!D48 -> 0 | D42: ='بيانات ص 1'!AB48 -> 0 | E42: ='بيانات ص 1'!AC48 -> 0 | F42: ='بيانات ص 1'!AF48 ->  | G42: ='بيانات ص 1'!AG48 ->  | H42: ='[2]بيانات ص 1'!Y48 -> 2/1 | I42: ='بيانات ص 1'!K48 -> مستجد | J42: ='بيانات ص 1'!E48 -> 0
A43: 1042 | B43: ='بيانات ص 1'!C49 -> 0 | C43: ='بيانات ص 1'!D49 -> 0 | D43: ='بيانات ص 1'!AB49 -> 0 | E43: ='بيانات ص 1'!AC49 -> 0 | F43: ='بيانات ص 1'!AF49 ->  | G43: ='بيانات ص 1'!AG49 ->  | H43: ='[2]بيانات ص 1'!Y49 -> 2/1 | I43: ='بيانات ص 1'!K49 -> مستجد | J43: ='بيانات ص 1'!E49 -> 0
A44: 1043 | B44: ='بيانات ص 1'!C50 -> 0 | C44: ='بيانات ص 1'!D50 -> 0 | D44: ='بيانات ص 1'!AB50 -> 0 | E44: ='بيانات ص 1'!AC50 -> 0 | F44: ='بيانات ص 1'!AF50 ->  | G44: ='بيانات ص 1'!AG50 ->  | H44: ='[2]بيانات ص 1'!Y50 -> 2/1 | I44: ='بيانات ص 1'!K50 -> مستجد | J44: ='بيانات ص 1'!E50 -> 0
A45: 1044 | B45: ='بيانات ص 1'!C51 -> 0 | C45: ='بيانات ص 1'!D51 -> 0 | D45: ='بيانات ص 1'!AB51 -> 0 | E45: ='بيانات ص 1'!AC51 -> 0 | F45: ='بيانات ص 1'!AF51 ->  | G45: ='بيانات ص 1'!AG51 ->  | H45: ='[2]بيانات ص 1'!Y51 -> 2/1 | I45: ='بيانات ص 1'!K51 -> مستجد | J45: ='بيانات ص 1'!E51 -> 0
A46: 1045 | B46: ='بيانات ص 1'!C52 -> 0 | C46: ='بيانات ص 1'!D52 -> 0 | D46: ='بيانات ص 1'!AB52 -> 0 | E46: ='بيانات ص 1'!AC52 -> 0 | F46: ='بيانات ص 1'!AF52 ->  | G46: ='بيانات ص 1'!AG52 ->  | H46: ='[2]بيانات ص 1'!Y52 -> 2/1 | I46: ='بيانات ص 1'!K52 -> مستجد | J46: ='بيانات ص 1'!E52 -> 0
A47: 1046 | B47: ='بيانات ص 1'!C53 -> 0 | C47: ='بيانات ص 1'!D53 -> 0 | D47: ='بيانات ص 1'!AB53 -> 0 | E47: ='بيانات ص 1'!AC53 -> 0 | F47: ='بيانات ص 1'!AF53 ->  | G47: ='بيانات ص 1'!AG53 ->  | H47: ='[2]بيانات ص 1'!Y53 -> 2/1 | I47: ='بيانات ص 1'!K53 -> مستجد | J47: ='بيانات ص 1'!E53 -> 0
A48: 1047 | B48: ='بيانات ص 1'!C54 -> 0 | C48: ='بيانات ص 1'!D54 -> 0 | D48: ='بيانات ص 1'!AB54 -> 0 | E48: ='بيانات ص 1'!AC54 -> 0 | F48: ='بيانات ص 1'!AF54 ->  | G48: ='بيانات ص 1'!AG54 ->  | H48: ='[2]بيانات ص 1'!Y54 -> 2/1 | I48: ='بيانات ص 1'!K54 -> مستجد | J48: ='بيانات ص 1'!E54 -> 0
A49: 1048 | B49: ='بيانات ص 1'!C55 -> 0 | C49: ='بيانات ص 1'!D55 -> 0 | D49: ='بيانات ص 1'!AB55 -> 0 | E49: ='بيانات ص 1'!AC55 -> 0 | F49: ='بيانات ص 1'!AF55 ->  | G49: ='بيانات ص 1'!AG55 ->  | H49: ='[2]بيانات ص 1'!Y55 -> 2/1 | I49: ='بيانات ص 1'!K55 -> مستجد | J49: ='بيانات ص 1'!E55 -> 0
A50: 1049 | B50: ='بيانات ص 1'!C56 -> 0 | C50: ='بيانات ص 1'!D56 -> 0 | D50: ='بيانات ص 1'!AB56 -> 0 | E50: ='بيانات ص 1'!AC56 -> 0 | F50: ='بيانات ص 1'!AF56 ->  | G50: ='بيانات ص 1'!AG56 ->  | H50: ='[2]بيانات ص 1'!Y56 -> 1/1 | I50: ='بيانات ص 1'!K56 -> مستجد | J50: ='بيانات ص 1'!E56 -> 0
A51: 1050 | B51: ='بيانات ص 1'!C57 -> 0 | C51: ='بيانات ص 1'!D57 -> 0 | D51: ='بيانات ص 1'!AB57 -> 0 | E51: ='بيانات ص 1'!AC57 -> 0 | F51: ='بيانات ص 1'!AF57 ->  | G51: ='بيانات ص 1'!AG57 ->  | H51: ='[2]بيانات ص 1'!Y57 -> 3/1 | I51: ='بيانات ص 1'!K57 -> مستجد | J51: ='بيانات ص 1'!E57 -> 0
A52: 1051 | B52: ='بيانات ص 1'!C58 -> 0 | C52: ='بيانات ص 1'!D58 -> 0 | D52: ='بيانات ص 1'!AB58 -> 0 | E52: ='بيانات ص 1'!AC58 -> 0 | F52: ='بيانات ص 1'!AF58 ->  | G52: ='بيانات ص 1'!AG58 ->  | H52: ='[2]بيانات ص 1'!Y58 -> 3/1 | I52: ='بيانات ص 1'!K58 -> مستجد | J52: ='بيانات ص 1'!E58 -> 0
A53: 1052 | B53: ='بيانات ص 1'!C59 -> 0 | C53: ='بيانات ص 1'!D59 -> 0 | D53: ='بيانات ص 1'!AB59 -> 0 | E53: ='بيانات ص 1'!AC59 -> 0 | F53: ='بيانات ص 1'!AF59 ->  | G53: ='بيانات ص 1'!AG59 ->  | H53: ='[2]بيانات ص 1'!Y59 -> 3/1 | I53: ='بيانات ص 1'!K59 -> مستجد | J53: ='بيانات ص 1'!E59 -> 0
A54: 1053 | B54: ='بيانات ص 1'!C60 -> 0 | C54: ='بيانات ص 1'!D60 -> 0 | D54: ='بيانات ص 1'!AB60 -> 0 | E54: ='بيانات ص 1'!AC60 -> 0 | F54: ='بيانات ص 1'!AF60 ->  | G54: ='بيانات ص 1'!AG60 ->  | H54: ='[2]بيانات ص 1'!Y60 -> 3/1 | I54: ='بيانات ص 1'!K60 -> مستجد | J54: ='بيانات ص 1'!E60 -> 0
A55: 1054 | B55: ='بيانات ص 1'!C61 -> 0 | C55: ='بيانات ص 1'!D61 -> 0 | D55: ='بيانات ص 1'!AB61 -> 0 | E55: ='بيانات ص 1'!AC61 -> 0 | F55: ='بيانات ص 1'!AF61 ->  | G55: ='بيانات ص 1'!AG61 ->  | H55: ='[2]بيانات ص 1'!Y61 -> 3/1 | I55: ='بيانات ص 1'!K61 -> مستجد | J55: ='بيانات ص 1'!E61 -> 0
A56: 1055 | B56: ='بيانات ص 1'!C62 -> 0 | C56: ='بيانات ص 1'!D62 -> 0 | D56: ='بيانات ص 1'!AB62 -> 0 | E56: ='بيانات ص 1'!AC62 -> 0 | F56: ='بيانات ص 1'!AF62 ->  | G56: ='بيانات ص 1'!AG62 ->  | H56: ='[2]بيانات ص 1'!Y62 -> 3/1 | I56: ='بيانات ص 1'!K62 -> مستجد | J56: ='بيانات ص 1'!E62 -> 0
A57: 1056 | B57: ='بيانات ص 1'!C63 -> 0 | C57: ='بيانات ص 1'!D63 -> 0 | D57: ='بيانات ص 1'!AB63 -> 0 | E57: ='بيانات ص 1'!AC63 -> 0 | F57: ='بيانات ص 1'!AF63 ->  | G57: ='بيانات ص 1'!AG63 ->  | H57: ='[2]بيانات ص 1'!Y63 -> 3/1 | I57: ='بيانات ص 1'!K63 -> مستجد | J57: ='بيانات ص 1'!E63 -> 0
A58: 1057 | B58: ='بيانات ص 1'!C64 -> 0 | C58: ='بيانات ص 1'!D64 -> 0 | D58: ='بيانات ص 1'!AB64 -> 0 | E58: ='بيانات ص 1'!AC64 -> 0 | F58: ='بيانات ص 1'!AF64 ->  | G58: ='بيانات ص 1'!AG64 ->  | H58: ='[2]بيانات ص 1'!Y64 -> 3/1 | I58: ='بيانات ص 1'!K64 -> مستجد | J58: ='بيانات ص 1'!E64 -> 0
A59: 1058 | B59: ='بيانات ص 1'!C65 -> 0 | C59: ='بيانات ص 1'!D65 -> 0 | D59: ='بيانات ص 1'!AB65 -> 0 | E59: ='بيانات ص 1'!AC65 -> 0 | F59: ='بيانات ص 1'!AF65 ->  | G59: ='بيانات ص 1'!AG65 ->  | H59: ='[2]بيانات ص 1'!Y65 -> 4/1 | I59: ='بيانات ص 1'!K65 -> مستجد | J59: ='بيانات ص 1'!E65 -> 0
A60: 1059 | B60: ='بيانات ص 1'!C66 -> 0 | C60: ='بيانات ص 1'!D66 -> 0 | D60: ='بيانات ص 1'!AB66 -> 0 | E60: ='بيانات ص 1'!AC66 -> 0 | F60: ='بيانات ص 1'!AF66 ->  | G60: ='بيانات ص 1'!AG66 ->  | H60: ='[2]بيانات ص 1'!Y66 -> 3/1 | I60: ='بيانات ص 1'!K66 -> مستجد | J60: ='بيانات ص 1'!E66 -> 0
A61: 1060 | B61: ='بيانات ص 1'!C67 -> 0 | C61: ='بيانات ص 1'!D67 -> 0 | D61: ='بيانات ص 1'!AB67 -> 0 | E61: ='بيانات ص 1'!AC67 -> 0 | F61: ='بيانات ص 1'!AF67 ->  | G61: ='بيانات ص 1'!AG67 ->  | H61: ='[2]بيانات ص 1'!Y67 -> 3/1 | I61: ='بيانات ص 1'!K67 -> مستجد | J61: ='بيانات ص 1'!E67 -> 0
A62: 1061 | B62: ='بيانات ص 1'!C68 -> 0 | C62: ='بيانات ص 1'!D68 -> 0 | D62: ='بيانات ص 1'!AB68 -> 0 | E62: ='بيانات ص 1'!AC68 -> 0 | F62: ='بيانات ص 1'!AF68 ->  | G62: ='بيانات ص 1'!AG68 ->  | H62: ='[2]بيانات ص 1'!Y68 -> 3/1 | I62: ='بيانات ص 1'!K68 -> مستجد | J62: ='بيانات ص 1'!E68 -> 0
A63: 1062 | B63: ='بيانات ص 1'!C69 -> 0 | C63: ='بيانات ص 1'!D69 -> 0 | D63: ='بيانات ص 1'!AB69 -> 0 | E63: ='بيانات ص 1'!AC69 -> 0 | F63: ='بيانات ص 1'!AF69 ->  | G63: ='بيانات ص 1'!AG69 ->  | H63: ='[2]بيانات ص 1'!Y69 -> 3/1 | I63: ='بيانات ص 1'!K69 -> مستجد | J63: ='بيانات ص 1'!E69 -> 0
A64: 1063 | B64: ='بيانات ص 1'!C70 -> 0 | C64: ='بيانات ص 1'!D70 -> 0 | D64: ='بيانات ص 1'!AB70 -> 0 | E64: ='بيانات ص 1'!AC70 -> 0 | F64: ='بيانات ص 1'!AF70 ->  | G64: ='بيانات ص 1'!AG70 ->  | H64: ='[2]بيانات ص 1'!Y70 -> 3/1 | I64: ='بيانات ص 1'!K70 -> مستجد | J64: ='بيانات ص 1'!E70 -> 0
A65: 1064 | B65: ='بيانات ص 1'!C71 -> 0 | C65: ='بيانات ص 1'!D71 -> 0 | D65: ='بيانات ص 1'!AB71 -> 0 | E65: ='بيانات ص 1'!AC71 -> 0 | F65: ='بيانات ص 1'!AF71 ->  | G65: ='بيانات ص 1'!AG71 ->  | H65: ='[2]بيانات ص 1'!Y71 -> 3/1 | I65: ='بيانات ص 1'!K71 -> مستجد | J65: ='بيانات ص 1'!E71 -> 0
A66: 1065 | B66: ='بيانات ص 1'!C72 -> 0 | C66: ='بيانات ص 1'!D72 -> 0 | D66: ='بيانات ص 1'!AB72 -> 0 | E66: ='بيانات ص 1'!AC72 -> 0 | F66: ='بيانات ص 1'!AF72 ->  | G66: ='بيانات ص 1'!AG72 ->  | H66: ='[2]بيانات ص 1'!Y72 -> 3/1 | I66: ='بيانات ص 1'!K72 -> مستجد | J66: ='بيانات ص 1'!E72 -> 0
A67: =A66+1 -> 1066 | B67: ='بيانات ص 1'!C73 -> 0 | C67: ='بيانات ص 1'!D73 -> 0 | D67: ='بيانات ص 1'!AB73 -> 0 | E67: ='بيانات ص 1'!AC73 -> 0 | F67: ='بيانات ص 1'!AF73 ->  | G67: ='بيانات ص 1'!AG73 ->  | H67: ='[2]بيانات ص 1'!Y73 -> 3/1 | I67: ='بيانات ص 1'!K73 -> مستجد | J67: ='بيانات ص 1'!E73 -> 0
A68: 1067 | B68: ='بيانات ص 1'!C74 -> 0 | C68: ='بيانات ص 1'!D74 -> 0 | D68: ='بيانات ص 1'!AB74 -> 0 | E68: ='بيانات ص 1'!AC74 -> 0 | F68: ='بيانات ص 1'!AF74 ->  | G68: ='بيانات ص 1'!AG74 ->  | H68: ='[2]بيانات ص 1'!Y74 -> 3/1 | I68: ='بيانات ص 1'!K74 -> مستجد | J68: ='بيانات ص 1'!E74 -> 0
A69: 1068 | B69: ='بيانات ص 1'!C75 -> 0 | C69: ='بيانات ص 1'!D75 -> 0 | D69: ='بيانات ص 1'!AB75 -> 0 | E69: ='بيانات ص 1'!AC75 -> 0 | F69: ='بيانات ص 1'!AF75 ->  | G69: ='بيانات ص 1'!AG75 ->  | H69: ='[2]بيانات ص 1'!Y75 -> 3/1 | I69: ='بيانات ص 1'!K75 -> مستجد | J69: ='بيانات ص 1'!E75 -> 0
A70: 1069 | B70: ='بيانات ص 1'!C76 -> 0 | C70: ='بيانات ص 1'!D76 -> 0 | D70: ='بيانات ص 1'!AB76 -> 0 | E70: ='بيانات ص 1'!AC76 -> 0 | F70: ='بيانات ص 1'!AF76 ->  | G70: ='بيانات ص 1'!AG76 ->  | H70: ='[2]بيانات ص 1'!Y76 -> 3/1 | I70: ='بيانات ص 1'!K76 -> مستجد | J70: ='بيانات ص 1'!E76 -> 0
A71: 1070 | B71: ='بيانات ص 1'!C77 -> 0 | C71: ='بيانات ص 1'!D77 -> 0 | D71: ='بيانات ص 1'!AB77 -> 0 | E71: ='بيانات ص 1'!AC77 -> 0 | F71: ='بيانات ص 1'!AF77 ->  | G71: ='بيانات ص 1'!AG77 ->  | H71: ='[2]بيانات ص 1'!Y77 -> 3/1 | I71: ='بيانات ص 1'!K77 -> مستجد | J71: ='بيانات ص 1'!E77 -> 0
A72: 1071 | B72: ='بيانات ص 1'!C78 -> 0 | C72: ='بيانات ص 1'!D78 -> 0 | D72: ='بيانات ص 1'!AB78 -> 0 | E72: ='بيانات ص 1'!AC78 -> 0 | F72: ='بيانات ص 1'!AF78 ->  | G72: ='بيانات ص 1'!AG78 ->  | H72: ='[2]بيانات ص 1'!Y78 -> 3/1 | I72: ='بيانات ص 1'!K78 -> مستجد | J72: ='بيانات ص 1'!E78 -> 0
A73: 1072 | B73: ='بيانات ص 1'!C79 -> 0 | C73: ='بيانات ص 1'!D79 -> 0 | D73: ='بيانات ص 1'!AB79 -> 0 | E73: ='بيانات ص 1'!AC79 -> 0 | F73: ='بيانات ص 1'!AF79 ->  | G73: ='بيانات ص 1'!AG79 ->  | H73: ='[2]بيانات ص 1'!Y79 -> 3/1 | I73: ='بيانات ص 1'!K79 -> مستجد | J73: ='بيانات ص 1'!E79 -> 0
A74: 1073 | B74: ='بيانات ص 1'!C80 -> 0 | C74: ='بيانات ص 1'!D80 -> 0 | D74: ='بيانات ص 1'!AB80 -> 0 | E74: ='بيانات ص 1'!AC80 -> 0 | F74: ='بيانات ص 1'!AF80 ->  | G74: ='بيانات ص 1'!AG80 ->  | H74: ='[2]بيانات ص 1'!Y80 -> 3/1 | I74: ='بيانات ص 1'!K80 -> مستجد | J74: ='بيانات ص 1'!E80 -> 0
A75: 1074 | B75: ='بيانات ص 1'!C81 -> 0 | C75: ='بيانات ص 1'!D81 -> 0 | D75: ='بيانات ص 1'!AB81 -> 0 | E75: ='بيانات ص 1'!AC81 -> 0 | F75: ='بيانات ص 1'!AF81 ->  | G75: ='بيانات ص 1'!AG81 ->  | H75: ='[2]بيانات ص 1'!Y81 -> 4/1 | I75: ='بيانات ص 1'!K81 -> مستجد | J75: ='بيانات ص 1'!E81 -> 0
A76: 1075 | B76: ='بيانات ص 1'!C82 -> 0 | C76: ='بيانات ص 1'!D82 -> 0 | D76: ='بيانات ص 1'!AB82 -> 0 | E76: ='بيانات ص 1'!AC82 -> 0 | F76: ='بيانات ص 1'!AF82 ->  | G76: ='بيانات ص 1'!AG82 ->  | H76: ='[2]بيانات ص 1'!Y82 -> 4/1 | I76: ='بيانات ص 1'!K82 -> مستجد | J76: ='بيانات ص 1'!E82 -> 0
A77: 1076 | B77: ='بيانات ص 1'!C83 -> 0 | C77: ='بيانات ص 1'!D83 -> 0 | D77: ='بيانات ص 1'!AB83 -> 0 | E77: ='بيانات ص 1'!AC83 -> 0 | F77: ='بيانات ص 1'!AF83 ->  | G77: ='بيانات ص 1'!AG83 ->  | H77: ='[2]بيانات ص 1'!Y83 -> 4/1 | I77: ='بيانات ص 1'!K83 -> مستجد | J77: ='بيانات ص 1'!E83 -> 0
A78: 1077 | B78: ='بيانات ص 1'!C84 -> 0 | C78: ='بيانات ص 1'!D84 -> 0 | D78: ='بيانات ص 1'!AB84 -> 0 | E78: ='بيانات ص 1'!AC84 -> 0 | F78: ='بيانات ص 1'!AF84 ->  | G78: ='بيانات ص 1'!AG84 ->  | H78: ='[2]بيانات ص 1'!Y84 -> 4/1 | I78: ='بيانات ص 1'!K84 -> مستجد | J78: ='بيانات ص 1'!E84 -> 0
A79: 1078 | B79: ='بيانات ص 1'!#REF! ->  | C79: ='بيانات ص 1'!#REF! ->  | D79: ='بيانات ص 1'!#REF! ->  | E79: ='بيانات ص 1'!#REF! ->  | F79: ='بيانات ص 1'!#REF! ->  | G79: ='بيانات ص 1'!#REF! ->  | H79: ='[2]بيانات ص 1'!Y85 -> 2/1 | I79: ='بيانات ص 1'!#REF! ->  | J79: ='بيانات ص 1'!#REF! -> 
A80: 1079 | B80: ='بيانات ص 1'!C85 -> 0 | C80: ='بيانات ص 1'!D85 -> 0 | D80: ='بيانات ص 1'!AB85 -> 0 | E80: ='بيانات ص 1'!AC85 -> 0 | F80: ='بيانات ص 1'!AF85 ->  | G80: ='بيانات ص 1'!AG85 ->  | H80: ='[2]بيانات ص 1'!Y86 -> 3/1 | I80: ='بيانات ص 1'!K85 -> مستجد | J80: ='بيانات ص 1'!E85 -> 0
A81: 1080 | B81: ='بيانات ص 1'!C86 -> 0 | C81: ='بيانات ص 1'!D86 -> 0 | D81: ='بيانات ص 1'!AB86 -> 0 | E81: ='بيانات ص 1'!AC86 -> 0 | F81: ='بيانات ص 1'!AF86 ->  | G81: ='بيانات ص 1'!AG86 ->  | H81: ='[2]بيانات ص 1'!Y87 -> 4/1 | I81: ='بيانات ص 1'!K86 -> مستجد | J81: ='بيانات ص 1'!E86 -> 0
A82: 1081 | B82: ='بيانات ص 1'!C87 -> 0 | C82: ='بيانات ص 1'!D87 -> 0 | D82: ='بيانات ص 1'!AB87 -> 0 | E82: ='بيانات ص 1'!AC87 -> 0 | F82: ='بيانات ص 1'!AF87 ->  | G82: ='بيانات ص 1'!AG87 ->  | H82: ='[2]بيانات ص 1'!Y88 -> 4/1 | I82: ='بيانات ص 1'!K87 -> مستجد | J82: ='بيانات ص 1'!E87 -> 0
A83: 1082 | B83: ='بيانات ص 1'!C88 -> 0 | C83: ='بيانات ص 1'!D88 -> 0 | D83: ='بيانات ص 1'!AB88 -> 0 | E83: ='بيانات ص 1'!AC88 -> 0 | F83: ='بيانات ص 1'!AF88 ->  | G83: ='بيانات ص 1'!AG88 ->  | H83: ='[2]بيانات ص 1'!Y89 -> 4/1 | I83: ='بيانات ص 1'!K88 -> مستجد | J83: ='بيانات ص 1'!E88 -> 0
A84: 1083 | B84: ='بيانات ص 1'!C89 -> 0 | C84: ='بيانات ص 1'!D89 -> 0 | D84: ='بيانات ص 1'!AB89 -> 0 | E84: ='بيانات ص 1'!AC89 -> 0 | F84: ='بيانات ص 1'!AF89 ->  | G84: ='بيانات ص 1'!AG89 ->  | H84: ='[2]بيانات ص 1'!Y90 -> 4/1 | I84: ='بيانات ص 1'!K89 -> مستجد | J84: ='بيانات ص 1'!E89 -> 0
A85: 1084 | B85: ='بيانات ص 1'!C90 -> 0 | C85: ='بيانات ص 1'!D90 -> 0 | D85: ='بيانات ص 1'!AB90 -> 0 | E85: ='بيانات ص 1'!AC90 -> 0 | F85: ='بيانات ص 1'!AF90 ->  | G85: ='بيانات ص 1'!AG90 ->  | H85: ='[2]بيانات ص 1'!Y91 -> 4/1 | I85: ='بيانات ص 1'!K90 -> مستجد | J85: ='بيانات ص 1'!E90 -> 0
A86: 1085 | B86: ='بيانات ص 1'!C91 -> 0 | C86: ='بيانات ص 1'!D91 -> 0 | D86: ='بيانات ص 1'!AB91 -> 0 | E86: ='بيانات ص 1'!AC91 -> 0 | F86: ='بيانات ص 1'!AF91 ->  | G86: ='بيانات ص 1'!AG91 ->  | H86: ='[2]بيانات ص 1'!Y92 -> 4/1 | I86: ='بيانات ص 1'!K91 -> مستجد | J86: ='بيانات ص 1'!E91 -> 0
A87: 1086 | B87: ='بيانات ص 1'!C92 -> 0 | C87: ='بيانات ص 1'!D92 -> 0 | D87: ='بيانات ص 1'!AB92 -> 0 | E87: ='بيانات ص 1'!AC92 -> 0 | F87: ='بيانات ص 1'!AF92 ->  | G87: ='بيانات ص 1'!AG92 ->  | H87: ='[2]بيانات ص 1'!Y93 -> 4/1 | I87: ='بيانات ص 1'!K92 -> مستجد | J87: ='بيانات ص 1'!E92 -> 0
A88: 1087 | B88: ='بيانات ص 1'!C93 -> 0 | C88: ='بيانات ص 1'!D93 -> 0 | D88: ='بيانات ص 1'!AB93 -> 0 | E88: ='بيانات ص 1'!AC93 -> 0 | F88: ='بيانات ص 1'!AF93 ->  | G88: ='بيانات ص 1'!AG93 ->  | H88: ='[2]بيانات ص 1'!Y94 -> 4/1 | I88: ='بيانات ص 1'!K93 -> مستجد | J88: ='بيانات ص 1'!E93 -> 0
A89: 1088 | B89: ='بيانات ص 1'!C94 -> 0 | C89: ='بيانات ص 1'!D94 -> 0 | D89: ='بيانات ص 1'!AB94 -> 0 | E89: ='بيانات ص 1'!AC94 -> 0 | F89: ='بيانات ص 1'!AF94 ->  | G89: ='بيانات ص 1'!AG94 ->  | H89: ='[2]بيانات ص 1'!Y95 -> 4/1 | I89: ='بيانات ص 1'!K94 -> مستجد | J89: ='بيانات ص 1'!E94 -> 0
A90: 1089 | B90: ='بيانات ص 1'!C95 -> 0 | C90: ='بيانات ص 1'!D95 -> 0 | D90: ='بيانات ص 1'!AB95 -> 0 | E90: ='بيانات ص 1'!AC95 -> 0 | F90: ='بيانات ص 1'!AF95 ->  | G90: ='بيانات ص 1'!AG95 ->  | H90: ='[2]بيانات ص 1'!Y96 -> 4/1 | I90: ='بيانات ص 1'!K95 -> مستجد | J90: ='بيانات ص 1'!E95 -> 0
A91: 1090 | B91: ='بيانات ص 1'!C96 -> 0 | C91: ='بيانات ص 1'!D96 -> 0 | D91: ='بيانات ص 1'!AB96 -> 0 | E91: ='بيانات ص 1'!AC96 -> 0 | F91: ='بيانات ص 1'!AF96 ->  | G91: ='بيانات ص 1'!AG96 ->  | H91: ='[2]بيانات ص 1'!Y97 -> 4/1 | I91: ='بيانات ص 1'!K96 -> مستجد | J91: ='بيانات ص 1'!E96 -> 0
A92: 1091 | B92: ='بيانات ص 1'!C97 -> 0 | C92: ='بيانات ص 1'!D97 -> 0 | D92: ='بيانات ص 1'!AB97 -> 0 | E92: ='بيانات ص 1'!AC97 -> 0 | F92: ='بيانات ص 1'!AF97 ->  | G92: ='بيانات ص 1'!AG97 ->  | H92: ='[2]بيانات ص 1'!Y98 -> 4/1 | I92: ='بيانات ص 1'!K97 -> مستجد | J92: ='بيانات ص 1'!E97 -> 0
A93: 1092 | B93: ='بيانات ص 1'!C98 -> 0 | C93: ='بيانات ص 1'!D98 -> 0 | D93: ='بيانات ص 1'!AB98 -> 0 | E93: ='بيانات ص 1'!AC98 -> 0 | F93: ='بيانات ص 1'!AF98 ->  | G93: ='بيانات ص 1'!AG98 ->  | H93: ='[2]بيانات ص 1'!Y99 -> 4/1 | I93: ='بيانات ص 1'!K98 -> مستجد | J93: ='بيانات ص 1'!E98 -> 0
A94: 1093 | B94: ='بيانات ص 1'!C99 -> 0 | C94: ='بيانات ص 1'!D99 -> 0 | D94: ='بيانات ص 1'!AB99 -> 0 | E94: ='بيانات ص 1'!AC99 -> 0 | F94: ='بيانات ص 1'!AF99 ->  | G94: ='بيانات ص 1'!AG99 ->  | H94: ='[2]بيانات ص 1'!Y100 -> 4/1 | I94: ='بيانات ص 1'!K99 -> مستجد | J94: ='بيانات ص 1'!E99 -> 0
A95: 1094 | B95: ='بيانات ص 1'!C100 -> 0 | C95: ='بيانات ص 1'!D100 -> 0 | D95: ='بيانات ص 1'!AB100 -> 0 | E95: ='بيانات ص 1'!AC100 -> 0 | F95: ='بيانات ص 1'!AF100 ->  | G95: ='بيانات ص 1'!AG100 ->  | H95: ='[2]بيانات ص 1'!Y101 -> 4/1 | I95: ='بيانات ص 1'!K100 -> مستجد | J95: ='بيانات ص 1'!E100 -> 0
A96: 1095 | B96: ='بيانات ص 1'!C101 -> 0 | C96: ='بيانات ص 1'!D101 -> 0 | D96: ='بيانات ص 1'!AB101 -> 0 | E96: ='بيانات ص 1'!AC101 -> 0 | F96: ='بيانات ص 1'!AF101 ->  | G96: ='بيانات ص 1'!AG101 ->  | H96: ='[2]بيانات ص 1'!Y102 -> 4/1 | I96: ='بيانات ص 1'!K101 -> مستجد | J96: ='بيانات ص 1'!E101 -> 0
A97: 1096 | B97: ='بيانات ص 1'!C102 -> 0 | C97: ='بيانات ص 1'!D102 -> 0 | D97: ='بيانات ص 1'!AB102 -> 0 | E97: ='بيانات ص 1'!AC102 -> 0 | F97: ='بيانات ص 1'!AF102 ->  | G97: ='بيانات ص 1'!AG102 ->  | H97: ='[2]بيانات ص 1'!Y103 -> 4/1 | I97: ='بيانات ص 1'!K102 -> مستجد | J97: ='بيانات ص 1'!E102 -> 0
A98: 1097 | B98: ='بيانات ص 1'!C103 -> 0 | C98: ='بيانات ص 1'!D103 -> 0 | D98: ='بيانات ص 1'!AB103 -> 0 | E98: ='بيانات ص 1'!AC103 -> 0 | F98: ='بيانات ص 1'!AF103 ->  | G98: ='بيانات ص 1'!AG103 ->  | H98: ='[2]بيانات ص 1'!Y104 -> 4/1 | I98: ='بيانات ص 1'!K103 -> مستجد | J98: ='بيانات ص 1'!E103 -> 0
A99: 1098 | B99: ='بيانات ص 1'!C104 -> 0 | C99: ='بيانات ص 1'!D104 -> 0 | D99: ='بيانات ص 1'!AB104 -> 0 | E99: ='بيانات ص 1'!AC104 -> 0 | F99: ='بيانات ص 1'!AF104 ->  | G99: ='بيانات ص 1'!AG104 ->  | H99: ='[2]بيانات ص 1'!Y105 -> 4/1 | I99: ='بيانات ص 1'!K104 -> مستجد | J99: ='بيانات ص 1'!E104 -> 0
A100: 1099 | B100: ='بيانات ص 1'!C105 -> 0 | C100: ='بيانات ص 1'!D105 -> 0 | D100: ='بيانات ص 1'!AB105 -> 0 | E100: ='بيانات ص 1'!AC105 -> 0 | F100: ='بيانات ص 1'!AF105 ->  | G100: ='بيانات ص 1'!AG105 ->  | H100: ='[2]بيانات ص 1'!Y106 -> 4/1 | I100: ='بيانات ص 1'!K105 -> مستجد | J100: ='بيانات ص 1'!E105 -> 0
A101: 1100 | B101: ='بيانات ص 1'!#REF! ->  | C101: ='بيانات ص 1'!#REF! ->  | D101: ='بيانات ص 1'!#REF! ->  | E101: ='بيانات ص 1'!#REF! ->  | F101: ='بيانات ص 1'!#REF! ->  | G101: ='بيانات ص 1'!#REF! ->  | H101: ='[2]بيانات ص 1'!Y107 ->  | I101: ='بيانات ص 1'!#REF! ->  | J101: ='بيانات ص 1'!#REF! -> 
A102: 1101 | B102: ='بيانات ص 1'!#REF! ->  | C102: ='بيانات ص 1'!#REF! ->  | D102: ='بيانات ص 1'!#REF! ->  | E102: ='بيانات ص 1'!#REF! ->  | F102: ='بيانات ص 1'!#REF! ->  | G102: ='بيانات ص 1'!#REF! ->  | H102: ='[2]بيانات ص 1'!Y108 ->  | I102: ='بيانات ص 1'!#REF! ->  | J102: ='بيانات ص 1'!#REF! -> 
A103: 1102 | B103: ='بيانات ص 1'!#REF! ->  | C103: ='بيانات ص 1'!#REF! ->  | D103: ='بيانات ص 1'!#REF! ->  | E103: ='بيانات ص 1'!#REF! ->  | F103: ='بيانات ص 1'!#REF! ->  | G103: ='بيانات ص 1'!#REF! ->  | H103: ='[2]بيانات ص 1'!Y109 ->  | I103: ='بيانات ص 1'!#REF! ->  | J103: ='بيانات ص 1'!#REF! -> 
A104: 1103 | B104: ='بيانات ص 1'!C106 -> 0 | C104: ='بيانات ص 1'!D106 -> 0 | D104: ='بيانات ص 1'!AB106 -> 0 | E104: ='بيانات ص 1'!AC106 -> 0 | F104: ='بيانات ص 1'!AF106 ->  | G104: ='بيانات ص 1'!AG106 ->  | H104: ='[2]بيانات ص 1'!Y110 ->  | I104: ='بيانات ص 1'!K106 -> 0 | J104: ='بيانات ص 1'!E106 -> 0
A105: 1104 | B105: ='بيانات ص 1'!C107 -> 0 | C105: ='بيانات ص 1'!D107 -> 0 | D105: ='بيانات ص 1'!AB107 -> 0 | E105: ='بيانات ص 1'!AC107 -> 0 | F105: ='بيانات ص 1'!AF107 ->  | G105: ='بيانات ص 1'!AG107 ->  | H105: ='[2]بيانات ص 1'!Y111 ->  | I105: ='بيانات ص 1'!K107 -> 0 | J105: ='بيانات ص 1'!E107 -> 0
A106: 1105 | B106: ='بيانات ص 1'!C108 -> 0 | C106: ='بيانات ص 1'!D108 -> 0 | D106: ='بيانات ص 1'!AB108 -> 0 | E106: ='بيانات ص 1'!AC108 -> 0 | F106: ='بيانات ص 1'!AF108 ->  | G106: ='بيانات ص 1'!AG108 ->  | H106: ='[2]بيانات ص 1'!Y112 ->  | I106: ='بيانات ص 1'!K108 -> 0 | J106: ='بيانات ص 1'!E108 -> 0
A107: 1106 | B107: ='بيانات ص 1'!C109 -> 0 | C107: ='بيانات ص 1'!D109 -> 0 | D107: ='بيانات ص 1'!AB109 -> 0 | E107: ='بيانات ص 1'!AC109 -> 0 | F107: ='بيانات ص 1'!AF109 ->  | G107: ='بيانات ص 1'!AG109 ->  | H107: ='[2]بيانات ص 1'!Y113 ->  | I107: ='بيانات ص 1'!K109 -> 0 | J107: ='بيانات ص 1'!E109 -> 0
A108: 1107 | B108: ='بيانات ص 1'!C110 -> 0 | C108: ='بيانات ص 1'!D110 -> 0 | D108: ='بيانات ص 1'!AB110 -> 0 | E108: ='بيانات ص 1'!AC110 -> 0 | F108: ='بيانات ص 1'!AF110 ->  | G108: ='بيانات ص 1'!AG110 ->  | H108: ='[2]بيانات ص 1'!Y114 ->  | I108: ='بيانات ص 1'!K110 -> 0 | J108: ='بيانات ص 1'!E110 -> 0
A109: 1108 | B109: ='بيانات ص 1'!C111 -> 0 | C109: ='بيانات ص 1'!D111 -> 0 | D109: ='بيانات ص 1'!AB111 -> 0 | E109: ='بيانات ص 1'!AC111 -> 0 | F109: ='بيانات ص 1'!AF111 ->  | G109: ='بيانات ص 1'!AG111 ->  | H109: ='[2]بيانات ص 1'!Y115 ->  | I109: ='بيانات ص 1'!K111 -> 0 | J109: ='بيانات ص 1'!E111 -> 0
A110: 1109 | B110: ='بيانات ص 1'!C112 -> 0 | C110: ='بيانات ص 1'!D112 -> 0 | D110: ='بيانات ص 1'!AB112 -> 0 | E110: ='بيانات ص 1'!AC112 -> 0 | F110: ='بيانات ص 1'!AF112 ->  | G110: ='بيانات ص 1'!AG112 ->  | H110: ='[2]بيانات ص 1'!Y116 ->  | I110: ='بيانات ص 1'!K112 -> 0 | J110: ='بيانات ص 1'!E112 -> 0
A111: 1110 | B111: ='بيانات ص 1'!C113 -> 0 | C111: ='بيانات ص 1'!D113 -> 0 | D111: ='بيانات ص 1'!AB113 -> 0 | E111: ='بيانات ص 1'!AC113 -> 0 | F111: ='بيانات ص 1'!AF113 ->  | G111: ='بيانات ص 1'!AG113 ->  | H111: ='[2]بيانات ص 1'!Y117 ->  | I111: ='بيانات ص 1'!K113 -> 0 | J111: ='بيانات ص 1'!E113 -> 0
A112: 1111 | B112: ='بيانات ص 1'!C114 -> 0 | C112: ='بيانات ص 1'!D114 -> 0 | D112: ='بيانات ص 1'!AB114 -> 0 | E112: ='بيانات ص 1'!AC114 -> 0 | F112: ='بيانات ص 1'!AF114 ->  | G112: ='بيانات ص 1'!AG114 ->  | H112: ='[2]بيانات ص 1'!Y118 ->  | I112: ='بيانات ص 1'!K114 -> 0 | J112: ='بيانات ص 1'!E114 -> 0
A113: 1112 | B113: ='بيانات ص 1'!C115 -> 0 | C113: ='بيانات ص 1'!D115 -> 0 | D113: ='بيانات ص 1'!AB115 -> 0 | E113: ='بيانات ص 1'!AC115 -> 0 | F113: ='بيانات ص 1'!AF115 ->  | G113: ='بيانات ص 1'!AG115 ->  | H113: ='[2]بيانات ص 1'!Y119 ->  | I113: ='بيانات ص 1'!K115 -> 0 | J113: ='بيانات ص 1'!E115 -> 0
A114: 1113 | B114: ='بيانات ص 1'!C116 -> 0 | C114: ='بيانات ص 1'!D116 -> 0 | D114: ='بيانات ص 1'!AB116 -> 0 | E114: ='بيانات ص 1'!AC116 -> 0 | F114: ='بيانات ص 1'!AF116 ->  | G114: ='بيانات ص 1'!AG116 ->  | H114: ='[2]بيانات ص 1'!Y120 ->  | I114: ='بيانات ص 1'!K116 -> 0 | J114: ='بيانات ص 1'!E116 -> 0
A115: 1114 | B115: ='بيانات ص 1'!C117 -> 0 | C115: ='بيانات ص 1'!D117 -> 0 | D115: ='بيانات ص 1'!AB117 -> 0 | E115: ='بيانات ص 1'!AC117 -> 0 | F115: ='بيانات ص 1'!AF117 ->  | G115: ='بيانات ص 1'!AG117 ->  | H115: ='[2]بيانات ص 1'!Y121 ->  | I115: ='بيانات ص 1'!K117 -> 0 | J115: ='بيانات ص 1'!E117 -> 0
A116: 1115 | B116: ='بيانات ص 1'!C118 -> 0 | C116: ='بيانات ص 1'!D118 -> 0 | D116: ='بيانات ص 1'!AB118 -> 0 | E116: ='بيانات ص 1'!AC118 -> 0 | F116: ='بيانات ص 1'!AF118 ->  | G116: ='بيانات ص 1'!AG118 ->  | H116: ='[2]بيانات ص 1'!Y122 ->  | I116: ='بيانات ص 1'!K118 -> 0 | J116: ='بيانات ص 1'!E118 -> 0
A117: 1116 | B117: ='بيانات ص 1'!C119 -> 0 | C117: ='بيانات ص 1'!D119 -> 0 | D117: ='بيانات ص 1'!AB119 -> 0 | E117: ='بيانات ص 1'!AC119 -> 0 | F117: ='بيانات ص 1'!AF119 ->  | G117: ='بيانات ص 1'!AG119 ->  | H117: ='[2]بيانات ص 1'!Y123 ->  | I117: ='بيانات ص 1'!K119 -> 0 | J117: ='بيانات ص 1'!E119 -> 0
A118: 1117 | B118: ='بيانات ص 1'!C120 -> 0 | C118: ='بيانات ص 1'!D120 -> 0 | D118: ='بيانات ص 1'!AB120 -> 0 | E118: ='بيانات ص 1'!AC120 -> 0 | F118: ='بيانات ص 1'!AF120 ->  | G118: ='بيانات ص 1'!AG120 ->  | H118: ='[2]بيانات ص 1'!Y124 ->  | I118: ='بيانات ص 1'!K120 -> 0 | J118: ='بيانات ص 1'!E120 -> 0
A119: 1118 | B119: ='بيانات ص 1'!C121 -> 0 | C119: ='بيانات ص 1'!D121 -> 0 | D119: ='بيانات ص 1'!AB121 -> 0 | E119: ='بيانات ص 1'!AC121 -> 0 | F119: ='بيانات ص 1'!AF121 ->  | G119: ='بيانات ص 1'!AG121 ->  | H119: ='[2]بيانات ص 1'!Y125 ->  | I119: ='بيانات ص 1'!K121 -> 0 | J119: ='بيانات ص 1'!E121 -> 0
A120: 1119 | B120: ='بيانات ص 1'!C122 -> 0 | C120: ='بيانات ص 1'!D122 -> 0 | D120: ='بيانات ص 1'!AB122 -> 0 | E120: ='بيانات ص 1'!AC122 -> 0 | F120: ='بيانات ص 1'!AF122 ->  | G120: ='بيانات ص 1'!AG122 ->  | H120: ='[2]بيانات ص 1'!Y126 ->  | I120: ='بيانات ص 1'!K122 -> 0 | J120: ='بيانات ص 1'!E122 -> 0
A121: 1120 | B121: ='بيانات ص 1'!C123 -> 0 | C121: ='بيانات ص 1'!D123 -> 0 | D121: ='بيانات ص 1'!AB123 -> 0 | E121: ='بيانات ص 1'!AC123 -> 0 | F121: ='بيانات ص 1'!AF123 ->  | G121: ='بيانات ص 1'!AG123 ->  | H121: ='[2]بيانات ص 1'!Y127 ->  | I121: ='بيانات ص 1'!K123 -> 0 | J121: ='بيانات ص 1'!E123 -> 0
A122: 1121 | B122: ='بيانات ص 1'!C124 -> 0 | C122: ='بيانات ص 1'!D124 -> 0 | D122: ='بيانات ص 1'!AB124 -> 0 | E122: ='بيانات ص 1'!AC124 -> 0 | F122: ='بيانات ص 1'!AF124 ->  | G122: ='بيانات ص 1'!AG124 ->  | H122: ='[2]بيانات ص 1'!Y128 ->  | I122: ='بيانات ص 1'!K124 -> 0 | J122: ='بيانات ص 1'!E124 -> 0
A123: 1122 | B123: ='بيانات ص 1'!C125 -> 0 | C123: ='بيانات ص 1'!D125 -> 0 | D123: ='بيانات ص 1'!AB125 -> 0 | E123: ='بيانات ص 1'!AC125 -> 0 | F123: ='بيانات ص 1'!AF125 ->  | G123: ='بيانات ص 1'!AG125 ->  | H123: ='[2]بيانات ص 1'!Y129 ->  | I123: ='بيانات ص 1'!K125 -> 0 | J123: ='بيانات ص 1'!E125 -> 0
A124: 1123 | B124: ='بيانات ص 1'!C126 -> 0 | C124: ='بيانات ص 1'!D126 -> 0 | D124: ='بيانات ص 1'!AB126 -> 0 | E124: ='بيانات ص 1'!AC126 -> 0 | F124: ='بيانات ص 1'!AF126 ->  | G124: ='بيانات ص 1'!AG126 ->  | H124: ='[2]بيانات ص 1'!Y130 ->  | I124: ='بيانات ص 1'!K126 -> 0 | J124: ='بيانات ص 1'!E126 -> 0
A125: 1124 | B125: ='بيانات ص 1'!C127 -> 0 | C125: ='بيانات ص 1'!D127 -> 0 | D125: ='بيانات ص 1'!AB127 -> 0 | E125: ='بيانات ص 1'!AC127 -> 0 | F125: ='بيانات ص 1'!AF127 ->  | G125: ='بيانات ص 1'!AG127 ->  | H125: ='[2]بيانات ص 1'!Y131 ->  | I125: ='بيانات ص 1'!K127 -> 0 | J125: ='بيانات ص 1'!E127 -> 0
A126: 1125 | B126: ='بيانات ص 1'!C128 -> 0 | C126: ='بيانات ص 1'!D128 -> 0 | D126: ='بيانات ص 1'!AB128 -> 0 | E126: ='بيانات ص 1'!AC128 -> 0 | F126: ='بيانات ص 1'!AF128 ->  | G126: ='بيانات ص 1'!AG128 ->  | H126: ='[2]بيانات ص 1'!Y132 ->  | I126: ='بيانات ص 1'!K128 -> 0 | J126: ='بيانات ص 1'!E128 -> 0
A127: 1126 | B127: ='بيانات ص 1'!C129 -> 0 | C127: ='بيانات ص 1'!D129 -> 0 | D127: ='بيانات ص 1'!AB129 -> 0 | E127: ='بيانات ص 1'!AC129 -> 0 | F127: ='بيانات ص 1'!AF129 ->  | G127: ='بيانات ص 1'!AG129 ->  | H127: ='[2]بيانات ص 1'!Y133 ->  | I127: ='بيانات ص 1'!K129 -> 0 | J127: ='بيانات ص 1'!E129 -> 0
A128: 1127 | B128: ='بيانات ص 1'!C130 -> 0 | C128: ='بيانات ص 1'!D130 -> 0 | D128: ='بيانات ص 1'!AB130 -> 0 | E128: ='بيانات ص 1'!AC130 -> 0 | F128: ='بيانات ص 1'!AF130 ->  | G128: ='بيانات ص 1'!AG130 ->  | H128: ='[2]بيانات ص 1'!Y134 ->  | I128: ='بيانات ص 1'!K130 -> 0 | J128: ='بيانات ص 1'!E130 -> 0
A129: 1128 | B129: ='بيانات ص 1'!C131 -> 0 | C129: ='بيانات ص 1'!D131 -> 0 | D129: ='بيانات ص 1'!AB131 -> 0 | E129: ='بيانات ص 1'!AC131 -> 0 | F129: ='بيانات ص 1'!AF131 ->  | G129: ='بيانات ص 1'!AG131 ->  | H129: ='[2]بيانات ص 1'!Y135 ->  | I129: ='بيانات ص 1'!K131 -> 0 | J129: ='بيانات ص 1'!E131 -> 0
A130: 1129 | B130: ='بيانات ص 1'!C132 -> 0 | C130: ='بيانات ص 1'!D132 -> 0 | D130: ='بيانات ص 1'!AB132 -> 0 | E130: ='بيانات ص 1'!AC132 -> 0 | F130: ='بيانات ص 1'!AF132 ->  | G130: ='بيانات ص 1'!AG132 ->  | H130: ='[2]بيانات ص 1'!Y136 ->  | I130: ='بيانات ص 1'!K132 -> 0 | J130: ='بيانات ص 1'!E132 -> 0
A131: =A130+1 -> 1130 | B131: ='بيانات ص 1'!C133 -> 0 | C131: ='بيانات ص 1'!D133 -> 0 | D131: ='بيانات ص 1'!AB133 -> 0 | E131: ='بيانات ص 1'!AC133 -> 0 | F131: ='بيانات ص 1'!AF133 ->  | G131: ='بيانات ص 1'!AG133 ->  | H131: ='[2]بيانات ص 1'!Y137 ->  | I131: ='بيانات ص 1'!K133 -> 0 | J131: ='بيانات ص 1'!E133 -> 0
A132: 1131 | B132: ='بيانات ص 1'!C134 -> 0 | C132: ='بيانات ص 1'!D134 -> 0 | D132: ='بيانات ص 1'!AB134 -> 0 | E132: ='بيانات ص 1'!AC134 -> 0 | F132: ='بيانات ص 1'!AF134 ->  | G132: ='بيانات ص 1'!AG134 ->  | H132: ='[2]بيانات ص 1'!Y138 ->  | I132: ='بيانات ص 1'!K134 -> 0 | J132: ='بيانات ص 1'!E134 -> 0
A133: 1132 | B133: ='بيانات ص 1'!C135 -> 0 | C133: ='بيانات ص 1'!D135 -> 0 | D133: ='بيانات ص 1'!AB135 -> 0 | E133: ='بيانات ص 1'!AC135 -> 0 | F133: ='بيانات ص 1'!AF135 ->  | G133: ='بيانات ص 1'!AG135 ->  | H133: ='[2]بيانات ص 1'!Y139 ->  | I133: ='بيانات ص 1'!K135 -> 0 | J133: ='بيانات ص 1'!E135 -> 0
A134: 1133 | B134: ='بيانات ص 1'!C136 -> 0 | C134: ='بيانات ص 1'!D136 -> 0 | D134: ='بيانات ص 1'!AB136 -> 0 | E134: ='بيانات ص 1'!AC136 -> 0 | F134: ='بيانات ص 1'!AF136 ->  | G134: ='بيانات ص 1'!AG136 ->  | H134: ='[2]بيانات ص 1'!Y140 ->  | I134: ='بيانات ص 1'!K136 -> 0 | J134: ='بيانات ص 1'!E136 -> 0
A135: 1134 | B135: ='بيانات ص 1'!C137 -> 0 | C135: ='بيانات ص 1'!D137 -> 0 | D135: ='بيانات ص 1'!AB137 -> 0 | E135: ='بيانات ص 1'!AC137 -> 0 | F135: ='بيانات ص 1'!AF137 ->  | G135: ='بيانات ص 1'!AG137 ->  | H135: ='[2]بيانات ص 1'!Y141 ->  | I135: ='بيانات ص 1'!K137 -> 0 | J135: ='بيانات ص 1'!E137 -> 0
A136: 1135 | B136: ='بيانات ص 1'!C138 -> 0 | C136: ='بيانات ص 1'!D138 -> 0 | D136: ='بيانات ص 1'!AB138 -> 0 | E136: ='بيانات ص 1'!AC138 -> 0 | F136: ='بيانات ص 1'!AF138 ->  | G136: ='بيانات ص 1'!AG138 ->  | H136: ='[2]بيانات ص 1'!Y142 ->  | I136: ='بيانات ص 1'!K138 -> 0 | J136: ='بيانات ص 1'!E138 -> 0
A137: 1136 | B137: ='بيانات ص 1'!C139 -> 0 | C137: ='بيانات ص 1'!D139 -> 0 | D137: ='بيانات ص 1'!AB139 -> 0 | E137: ='بيانات ص 1'!AC139 -> 0 | F137: ='بيانات ص 1'!AF139 ->  | G137: ='بيانات ص 1'!AG139 ->  | H137: ='[2]بيانات ص 1'!Y143 ->  | I137: ='بيانات ص 1'!K139 -> 0 | J137: ='بيانات ص 1'!E139 -> 0
A138: 1137 | B138: ='بيانات ص 1'!C140 -> 0 | C138: ='بيانات ص 1'!D140 -> 0 | D138: ='بيانات ص 1'!AB140 -> 0 | E138: ='بيانات ص 1'!AC140 -> 0 | F138: ='بيانات ص 1'!AF140 ->  | G138: ='بيانات ص 1'!AG140 ->  | H138: ='[2]بيانات ص 1'!Y144 ->  | I138: ='بيانات ص 1'!K140 -> 0 | J138: ='بيانات ص 1'!E140 -> 0
A139: 1138 | B139: ='بيانات ص 1'!C141 -> 0 | C139: ='بيانات ص 1'!D141 -> 0 | D139: ='بيانات ص 1'!AB141 -> 0 | E139: ='بيانات ص 1'!AC141 -> 0 | F139: ='بيانات ص 1'!AF141 ->  | G139: ='بيانات ص 1'!AG141 ->  | H139: ='[2]بيانات ص 1'!Y145 ->  | I139: ='بيانات ص 1'!K141 -> 0 | J139: ='بيانات ص 1'!E141 -> 0
A140: 1139 | B140: ='بيانات ص 1'!C142 -> 0 | C140: ='بيانات ص 1'!D142 -> 0 | D140: ='بيانات ص 1'!AB142 -> 0 | E140: ='بيانات ص 1'!AC142 -> 0 | F140: ='بيانات ص 1'!AF142 ->  | G140: ='بيانات ص 1'!AG142 ->  | H140: ='[2]بيانات ص 1'!Y146 ->  | I140: ='بيانات ص 1'!K142 -> 0 | J140: ='بيانات ص 1'!E142 -> 0
A141: 1140 | B141: ='بيانات ص 1'!C143 -> 0 | C141: ='بيانات ص 1'!D143 -> 0 | D141: ='بيانات ص 1'!AB143 -> 0 | E141: ='بيانات ص 1'!AC143 -> 0 | F141: ='بيانات ص 1'!AF143 ->  | G141: ='بيانات ص 1'!AG143 ->  | H141: ='[2]بيانات ص 1'!Y147 ->  | I141: ='بيانات ص 1'!K143 -> 0 | J141: ='بيانات ص 1'!E143 -> 0
A142: 1141 | B142: ='بيانات ص 1'!C144 -> 0 | C142: ='بيانات ص 1'!D144 -> 0 | D142: ='بيانات ص 1'!AB144 -> 0 | E142: ='بيانات ص 1'!AC144 -> 0 | F142: ='بيانات ص 1'!AF144 ->  | G142: ='بيانات ص 1'!AG144 ->  | H142: ='[2]بيانات ص 1'!Y148 ->  | I142: ='بيانات ص 1'!K144 -> 0 | J142: ='بيانات ص 1'!E144 -> 0
A143: 1142 | B143: ='بيانات ص 1'!C145 -> 0 | C143: ='بيانات ص 1'!D145 -> 0 | D143: ='بيانات ص 1'!AB145 -> 0 | E143: ='بيانات ص 1'!AC145 -> 0 | F143: ='بيانات ص 1'!AF145 ->  | G143: ='بيانات ص 1'!AG145 ->  | H143: ='[2]بيانات ص 1'!Y149 ->  | I143: ='بيانات ص 1'!K145 -> 0 | J143: ='بيانات ص 1'!E145 -> 0
A144: 1143 | B144: ='بيانات ص 1'!C146 -> 0 | C144: ='بيانات ص 1'!D146 -> 0 | D144: ='بيانات ص 1'!AB146 -> 0 | E144: ='بيانات ص 1'!AC146 -> 0 | F144: ='بيانات ص 1'!AF146 ->  | G144: ='بيانات ص 1'!AG146 ->  | H144: ='[2]بيانات ص 1'!Y150 ->  | I144: ='بيانات ص 1'!K146 -> 0 | J144: ='بيانات ص 1'!E146 -> 0
A145: 1144 | B145: ='بيانات ص 1'!C147 -> 0 | C145: ='بيانات ص 1'!D147 -> 0 | D145: ='بيانات ص 1'!AB147 -> 0 | E145: ='بيانات ص 1'!AC147 -> 0 | F145: ='بيانات ص 1'!AF147 ->  | G145: ='بيانات ص 1'!AG147 ->  | H145: ='[2]بيانات ص 1'!Y151 ->  | I145: ='بيانات ص 1'!K147 -> 0 | J145: ='بيانات ص 1'!E147 -> 0
A146: 1145 | B146: ='بيانات ص 1'!C148 -> 0 | C146: ='بيانات ص 1'!D148 -> 0 | D146: ='بيانات ص 1'!AB148 -> 0 | E146: ='بيانات ص 1'!AC148 -> 0 | F146: ='بيانات ص 1'!AF148 ->  | G146: ='بيانات ص 1'!AG148 ->  | H146: ='[2]بيانات ص 1'!Y152 ->  | I146: ='بيانات ص 1'!K148 -> 0 | J146: ='بيانات ص 1'!E148 -> 0
A147: 1146 | B147: ='بيانات ص 1'!C149 -> 0 | C147: ='بيانات ص 1'!D149 -> 0 | D147: ='بيانات ص 1'!AB149 -> 0 | E147: ='بيانات ص 1'!AC149 -> 0 | F147: ='بيانات ص 1'!AF149 ->  | G147: ='بيانات ص 1'!AG149 ->  | H147: ='[2]بيانات ص 1'!Y153 ->  | I147: ='بيانات ص 1'!K149 -> 0 | J147: ='بيانات ص 1'!E149 -> 0
A148: 1147 | B148: ='بيانات ص 1'!C150 -> 0 | C148: ='بيانات ص 1'!D150 -> 0 | D148: ='بيانات ص 1'!AB150 -> 0 | E148: ='بيانات ص 1'!AC150 -> 0 | F148: ='بيانات ص 1'!AF150 ->  | G148: ='بيانات ص 1'!AG150 ->  | H148: ='[2]بيانات ص 1'!Y154 ->  | I148: ='بيانات ص 1'!K150 -> 0 | J148: ='بيانات ص 1'!E150 -> 0
A149: 1148 | B149: ='بيانات ص 1'!C151 -> 0 | C149: ='بيانات ص 1'!D151 -> 0 | D149: ='بيانات ص 1'!AB151 -> 0 | E149: ='بيانات ص 1'!AC151 -> 0 | F149: ='بيانات ص 1'!AF151 ->  | G149: ='بيانات ص 1'!AG151 ->  | H149: ='[2]بيانات ص 1'!Y155 ->  | I149: ='بيانات ص 1'!K151 -> 0 | J149: ='بيانات ص 1'!E151 -> 0
A150: 1149 | B150: ='بيانات ص 1'!C152 -> 0 | C150: ='بيانات ص 1'!D152 -> 0 | D150: ='بيانات ص 1'!AB152 -> 0 | E150: ='بيانات ص 1'!AC152 -> 0 | F150: ='بيانات ص 1'!AF152 ->  | G150: ='بيانات ص 1'!AG152 ->  | H150: ='[2]بيانات ص 1'!Y156 ->  | I150: ='بيانات ص 1'!K152 -> 0 | J150: ='بيانات ص 1'!E152 -> 0
A151: 1150 | B151: ='بيانات ص 1'!C153 -> 0 | C151: ='بيانات ص 1'!D153 -> 0 | D151: ='بيانات ص 1'!AB153 -> 0 | E151: ='بيانات ص 1'!AC153 -> 0 | F151: ='بيانات ص 1'!AF153 ->  | G151: ='بيانات ص 1'!AG153 ->  | H151: ='[2]بيانات ص 1'!Y157 ->  | I151: ='بيانات ص 1'!K153 -> 0 | J151: ='بيانات ص 1'!E153 -> 0
A152: 1151 | B152: ='بيانات ص 1'!C154 -> 0 | C152: ='بيانات ص 1'!D154 -> 0 | D152: ='بيانات ص 1'!AB154 -> 0 | E152: ='بيانات ص 1'!AC154 -> 0 | F152: ='بيانات ص 1'!AF154 ->  | G152: ='بيانات ص 1'!AG154 ->  | H152: ='[2]بيانات ص 1'!Y158 ->  | I152: ='بيانات ص 1'!K154 -> 0 | J152: ='بيانات ص 1'!E154 -> 0
A153: 1152 | B153: ='بيانات ص 1'!C155 -> 0 | C153: ='بيانات ص 1'!D155 -> 0 | D153: ='بيانات ص 1'!AB155 -> 0 | E153: ='بيانات ص 1'!AC155 -> 0 | F153: ='بيانات ص 1'!AF155 ->  | G153: ='بيانات ص 1'!AG155 ->  | H153: ='[2]بيانات ص 1'!Y159 ->  | I153: ='بيانات ص 1'!K155 -> 0 | J153: ='بيانات ص 1'!E155 -> 0
A154: 1153 | B154: ='بيانات ص 1'!C156 -> 0 | C154: ='بيانات ص 1'!D156 -> 0 | D154: ='بيانات ص 1'!AB156 -> 0 | E154: ='بيانات ص 1'!AC156 -> 0 | F154: ='بيانات ص 1'!AF156 ->  | G154: ='بيانات ص 1'!AG156 ->  | H154: ='[2]بيانات ص 1'!Y160 ->  | I154: ='بيانات ص 1'!K156 -> 0 | J154: ='بيانات ص 1'!E156 -> 0
A155: 1154 | B155: ='بيانات ص 1'!C157 -> 0 | C155: ='بيانات ص 1'!D157 -> 0 | D155: ='بيانات ص 1'!AB157 -> 0 | E155: ='بيانات ص 1'!AC157 -> 0 | F155: ='بيانات ص 1'!AF157 ->  | G155: ='بيانات ص 1'!AG157 ->  | H155: ='[2]بيانات ص 1'!Y161 ->  | I155: ='بيانات ص 1'!K157 -> 0 | J155: ='بيانات ص 1'!E157 -> 0
A156: 1155 | B156: ='بيانات ص 1'!C158 -> 0 | C156: ='بيانات ص 1'!D158 -> 0 | D156: ='بيانات ص 1'!AB158 -> 0 | E156: ='بيانات ص 1'!AC158 -> 0 | F156: ='بيانات ص 1'!AF158 ->  | G156: ='بيانات ص 1'!AG158 ->  | H156: ='[2]بيانات ص 1'!Y162 ->  | I156: ='بيانات ص 1'!K158 -> 0 | J156: ='بيانات ص 1'!E158 -> 0
A157: 1156 | B157: ='بيانات ص 1'!C159 -> 0 | C157: ='بيانات ص 1'!D159 -> 0 | D157: ='بيانات ص 1'!AB159 -> 0 | E157: ='بيانات ص 1'!AC159 -> 0 | F157: ='بيانات ص 1'!AF159 ->  | G157: ='بيانات ص 1'!AG159 ->  | H157: ='[2]بيانات ص 1'!Y163 ->  | I157: ='بيانات ص 1'!K159 -> 0 | J157: ='بيانات ص 1'!E159 -> 0
A158: 1157 | B158: ='بيانات ص 1'!C160 -> 0 | C158: ='بيانات ص 1'!D160 -> 0 | D158: ='بيانات ص 1'!AB160 -> 0 | E158: ='بيانات ص 1'!AC160 -> 0 | F158: ='بيانات ص 1'!AF160 ->  | G158: ='بيانات ص 1'!AG160 ->  | H158: ='[2]بيانات ص 1'!Y164 ->  | I158: ='بيانات ص 1'!K160 -> 0 | J158: ='بيانات ص 1'!E160 -> 0
A159: 1158 | B159: ='بيانات ص 1'!C161 -> 0 | C159: ='بيانات ص 1'!D161 -> 0 | D159: ='بيانات ص 1'!AB161 -> 0 | E159: ='بيانات ص 1'!AC161 -> 0 | F159: ='بيانات ص 1'!AF161 ->  | G159: ='بيانات ص 1'!AG161 ->  | H159: ='[2]بيانات ص 1'!Y165 ->  | I159: ='بيانات ص 1'!K161 -> 0 | J159: ='بيانات ص 1'!E161 -> 0
A160: 1159 | B160: ='بيانات ص 1'!C162 -> 0 | C160: ='بيانات ص 1'!D162 -> 0 | D160: ='بيانات ص 1'!AB162 -> 0 | E160: ='بيانات ص 1'!AC162 -> 0 | F160: ='بيانات ص 1'!AF162 ->  | G160: ='بيانات ص 1'!AG162 ->  | H160: ='[2]بيانات ص 1'!Y166 ->  | I160: ='بيانات ص 1'!K162 -> 0 | J160: ='بيانات ص 1'!E162 -> 0
A161: 1160 | B161: ='بيانات ص 1'!C163 -> 0 | C161: ='بيانات ص 1'!D163 -> 0 | D161: ='بيانات ص 1'!AB163 -> 0 | E161: ='بيانات ص 1'!AC163 -> 0 | F161: ='بيانات ص 1'!AF163 ->  | G161: ='بيانات ص 1'!AG163 ->  | H161: ='[2]بيانات ص 1'!Y167 ->  | I161: ='بيانات ص 1'!K163 -> 0 | J161: ='بيانات ص 1'!E163 -> 0
A162: 1161 | B162: ='بيانات ص 1'!C164 -> 0 | C162: ='بيانات ص 1'!D164 -> 0 | D162: ='بيانات ص 1'!AB164 -> 0 | E162: ='بيانات ص 1'!AC164 -> 0 | F162: ='بيانات ص 1'!AF164 ->  | G162: ='بيانات ص 1'!AG164 ->  | H162: ='[2]بيانات ص 1'!Y168 ->  | I162: ='بيانات ص 1'!K164 -> 0 | J162: ='بيانات ص 1'!E164 -> 0
A163: 1162 | B163: ='بيانات ص 1'!C165 -> 0 | C163: ='بيانات ص 1'!D165 -> 0 | D163: ='بيانات ص 1'!AB165 -> 0 | E163: ='بيانات ص 1'!AC165 -> 0 | F163: ='بيانات ص 1'!AF165 ->  | G163: ='بيانات ص 1'!AG165 ->  | H163: ='[2]بيانات ص 1'!Y169 ->  | I163: ='بيانات ص 1'!K165 -> 0 | J163: ='بيانات ص 1'!E165 -> 0
A164: 1163 | B164: ='بيانات ص 1'!C166 -> 0 | C164: ='بيانات ص 1'!D166 -> 0 | D164: ='بيانات ص 1'!AB166 -> 0 | E164: ='بيانات ص 1'!AC166 -> 0 | F164: ='بيانات ص 1'!AF166 ->  | G164: ='بيانات ص 1'!AG166 ->  | H164: ='[2]بيانات ص 1'!Y170 ->  | I164: ='بيانات ص 1'!K166 -> 0 | J164: ='بيانات ص 1'!E166 -> 0
A165: 1164 | B165: ='بيانات ص 1'!C167 -> 0 | C165: ='بيانات ص 1'!D167 -> 0 | D165: ='بيانات ص 1'!AB167 -> 0 | E165: ='بيانات ص 1'!AC167 -> 0 | F165: ='بيانات ص 1'!AF167 ->  | G165: ='بيانات ص 1'!AG167 ->  | H165: ='[2]بيانات ص 1'!Y171 ->  | I165: ='بيانات ص 1'!K167 -> 0 | J165: ='بيانات ص 1'!E167 -> 0
A166: 1165 | B166: ='بيانات ص 1'!C168 -> 0 | C166: ='بيانات ص 1'!D168 -> 0 | D166: ='بيانات ص 1'!AB168 -> 0 | E166: ='بيانات ص 1'!AC168 -> 0 | F166: ='بيانات ص 1'!AF168 ->  | G166: ='بيانات ص 1'!AG168 ->  | H166: ='[2]بيانات ص 1'!Y172 ->  | I166: ='بيانات ص 1'!K168 -> 0 | J166: ='بيانات ص 1'!E168 -> 0
A167: 1166 | B167: ='بيانات ص 1'!C169 -> 0 | C167: ='بيانات ص 1'!D169 -> 0 | D167: ='بيانات ص 1'!AB169 -> 0 | E167: ='بيانات ص 1'!AC169 -> 0 | F167: ='بيانات ص 1'!AF169 ->  | G167: ='بيانات ص 1'!AG169 ->  | H167: ='[2]بيانات ص 1'!Y173 ->  | I167: ='بيانات ص 1'!K169 -> 0 | J167: ='بيانات ص 1'!E169 -> 0
A168: 1167 | B168: ='بيانات ص 1'!C170 -> 0 | C168: ='بيانات ص 1'!D170 -> 0 | D168: ='بيانات ص 1'!AB170 -> 0 | E168: ='بيانات ص 1'!AC170 -> 0 | F168: ='بيانات ص 1'!AF170 ->  | G168: ='بيانات ص 1'!AG170 ->  | H168: ='[2]بيانات ص 1'!Y174 ->  | I168: ='بيانات ص 1'!K170 -> 0 | J168: ='بيانات ص 1'!E170 -> 0
A169: 1168 | B169: ='بيانات ص 1'!C171 -> 0 | C169: ='بيانات ص 1'!D171 -> 0 | D169: ='بيانات ص 1'!AB171 -> 0 | E169: ='بيانات ص 1'!AC171 -> 0 | F169: ='بيانات ص 1'!AF171 ->  | G169: ='بيانات ص 1'!AG171 ->  | H169: ='[2]بيانات ص 1'!Y175 ->  | I169: ='بيانات ص 1'!K171 -> 0 | J169: ='بيانات ص 1'!E171 -> 0
A170: 1169 | B170: ='بيانات ص 1'!C172 -> 0 | C170: ='بيانات ص 1'!D172 -> 0 | D170: ='بيانات ص 1'!AB172 -> 0 | E170: ='بيانات ص 1'!AC172 -> 0 | F170: ='بيانات ص 1'!AF172 ->  | G170: ='بيانات ص 1'!AG172 ->  | H170: ='[2]بيانات ص 1'!Y176 ->  | I170: ='بيانات ص 1'!K172 -> 0 | J170: ='بيانات ص 1'!E172 -> 0
A171: 1170 | B171: ='بيانات ص 1'!C173 -> 0 | C171: ='بيانات ص 1'!D173 -> 0 | D171: ='بيانات ص 1'!AB173 -> 0 | E171: ='بيانات ص 1'!AC173 -> 0 | F171: ='بيانات ص 1'!AF173 ->  | G171: ='بيانات ص 1'!AG173 ->  | H171: ='[2]بيانات ص 1'!Y177 ->  | I171: ='بيانات ص 1'!K173 -> 0 | J171: ='بيانات ص 1'!E173 -> 0
A172: 1171 | B172: ='بيانات ص 1'!C174 -> 0 | C172: ='بيانات ص 1'!D174 -> 0 | D172: ='بيانات ص 1'!AB174 -> 0 | E172: ='بيانات ص 1'!AC174 -> 0 | F172: ='بيانات ص 1'!AF174 ->  | G172: ='بيانات ص 1'!AG174 ->  | H172: ='[2]بيانات ص 1'!Y178 ->  | I172: ='بيانات ص 1'!K174 -> 0 | J172: ='بيانات ص 1'!E174 -> 0
A173: 1172 | B173: ='بيانات ص 1'!C175 -> 0 | C173: ='بيانات ص 1'!D175 -> 0 | D173: ='بيانات ص 1'!AB175 -> 0 | E173: ='بيانات ص 1'!AC175 -> 0 | F173: ='بيانات ص 1'!AF175 ->  | G173: ='بيانات ص 1'!AG175 ->  | H173: ='[2]بيانات ص 1'!Y179 ->  | I173: ='بيانات ص 1'!K175 -> 0 | J173: ='بيانات ص 1'!E175 -> 0
A174: 1173 | B174: ='بيانات ص 1'!C176 -> 0 | C174: ='بيانات ص 1'!D176 -> 0 | D174: ='بيانات ص 1'!AB176 -> 0 | E174: ='بيانات ص 1'!AC176 -> 0 | F174: ='بيانات ص 1'!AF176 ->  | G174: ='بيانات ص 1'!AG176 ->  | H174: ='[2]بيانات ص 1'!Y180 ->  | I174: ='بيانات ص 1'!K176 -> 0 | J174: ='بيانات ص 1'!E176 -> 0
A175: 1174 | B175: ='بيانات ص 1'!C177 -> 0 | C175: ='بيانات ص 1'!D177 -> 0 | D175: ='بيانات ص 1'!AB177 -> 0 | E175: ='بيانات ص 1'!AC177 -> 0 | F175: ='بيانات ص 1'!AF177 ->  | G175: ='بيانات ص 1'!AG177 ->  | H175: ='[2]بيانات ص 1'!Y181 ->  | I175: ='بيانات ص 1'!K177 -> 0 | J175: ='بيانات ص 1'!E177 -> 0
A176: 1175 | B176: ='بيانات ص 1'!C178 -> 0 | C176: ='بيانات ص 1'!D178 -> 0 | D176: ='بيانات ص 1'!AB178 -> 0 | E176: ='بيانات ص 1'!AC178 -> 0 | F176: ='بيانات ص 1'!AF178 ->  | G176: ='بيانات ص 1'!AG178 ->  | H176: ='[2]بيانات ص 1'!Y182 ->  | I176: ='بيانات ص 1'!K178 -> 0 | J176: ='بيانات ص 1'!E178 -> 0
A177: 1176 | B177: ='بيانات ص 1'!C179 -> 0 | C177: ='بيانات ص 1'!D179 -> 0 | D177: ='بيانات ص 1'!AB179 -> 0 | E177: ='بيانات ص 1'!AC179 -> 0 | F177: ='بيانات ص 1'!AF179 ->  | G177: ='بيانات ص 1'!AG179 ->  | H177: ='[2]بيانات ص 1'!Y183 ->  | I177: ='بيانات ص 1'!K179 -> 0 | J177: ='بيانات ص 1'!E179 -> 0
A178: 1177 | B178: ='بيانات ص 1'!C180 -> 0 | C178: ='بيانات ص 1'!D180 -> 0 | D178: ='بيانات ص 1'!AB180 -> 0 | E178: ='بيانات ص 1'!AC180 -> 0 | F178: ='بيانات ص 1'!AF180 ->  | G178: ='بيانات ص 1'!AG180 ->  | H178: ='[2]بيانات ص 1'!Y184 ->  | I178: ='بيانات ص 1'!K180 -> 0 | J178: ='بيانات ص 1'!E180 -> 0
A179: 1178 | B179: ='بيانات ص 1'!C181 -> 0 | C179: ='بيانات ص 1'!D181 -> 0 | D179: ='بيانات ص 1'!AB181 -> 0 | E179: ='بيانات ص 1'!AC181 -> 0 | F179: ='بيانات ص 1'!AF181 ->  | G179: ='بيانات ص 1'!AG181 ->  | H179: ='[2]بيانات ص 1'!Y185 ->  | I179: ='بيانات ص 1'!K181 -> 0 | J179: ='بيانات ص 1'!E181 -> 0
A180: 1179 | B180: ='بيانات ص 1'!C182 -> 0 | C180: ='بيانات ص 1'!D182 -> 0 | D180: ='بيانات ص 1'!AB182 -> 0 | E180: ='بيانات ص 1'!AC182 -> 0 | F180: ='بيانات ص 1'!AF182 ->  | G180: ='بيانات ص 1'!AG182 ->  | H180: ='[2]بيانات ص 1'!Y186 ->  | I180: ='بيانات ص 1'!K182 -> 0 | J180: ='بيانات ص 1'!E182 -> 0
A181: 1180 | B181: ='بيانات ص 1'!C183 -> 0 | C181: ='بيانات ص 1'!D183 -> 0 | D181: ='بيانات ص 1'!AB183 -> 0 | E181: ='بيانات ص 1'!AC183 -> 0 | F181: ='بيانات ص 1'!AF183 ->  | G181: ='بيانات ص 1'!AG183 ->  | H181: ='[2]بيانات ص 1'!Y187 ->  | I181: ='بيانات ص 1'!K183 -> 0 | J181: ='بيانات ص 1'!E183 -> 0
A182: 1181 | B182: ='بيانات ص 1'!C184 -> 0 | C182: ='بيانات ص 1'!D184 -> 0 | D182: ='بيانات ص 1'!AB184 -> 0 | E182: ='بيانات ص 1'!AC184 -> 0 | F182: ='بيانات ص 1'!AF184 ->  | G182: ='بيانات ص 1'!AG184 ->  | H182: ='[2]بيانات ص 1'!Y188 ->  | I182: ='بيانات ص 1'!K184 -> 0 | J182: ='بيانات ص 1'!E184 -> 0
A183: 1182 | B183: ='بيانات ص 1'!C185 -> 0 | C183: ='بيانات ص 1'!D185 -> 0 | D183: ='بيانات ص 1'!AB185 -> 0 | E183: ='بيانات ص 1'!AC185 -> 0 | F183: ='بيانات ص 1'!AF185 ->  | G183: ='بيانات ص 1'!AG185 ->  | H183: ='[2]بيانات ص 1'!Y189 ->  | I183: ='بيانات ص 1'!K185 -> 0 | J183: ='بيانات ص 1'!E185 -> 0
A184: 1183 | B184: ='بيانات ص 1'!C186 -> 0 | C184: ='بيانات ص 1'!D186 -> 0 | D184: ='بيانات ص 1'!AB186 -> 0 | E184: ='بيانات ص 1'!AC186 -> 0 | F184: ='بيانات ص 1'!AF186 ->  | G184: ='بيانات ص 1'!AG186 ->  | H184: ='[2]بيانات ص 1'!Y190 ->  | I184: ='بيانات ص 1'!K186 -> 0 | J184: ='بيانات ص 1'!E186 -> 0
A185: 1184 | B185: ='بيانات ص 1'!C187 -> 0 | C185: ='بيانات ص 1'!D187 -> 0 | D185: ='بيانات ص 1'!AB187 -> 0 | E185: ='بيانات ص 1'!AC187 -> 0 | F185: ='بيانات ص 1'!AF187 ->  | G185: ='بيانات ص 1'!AG187 ->  | H185: ='[2]بيانات ص 1'!Y191 ->  | I185: ='بيانات ص 1'!K187 -> 0 | J185: ='بيانات ص 1'!E187 -> 0
A186: 1185 | B186: ='بيانات ص 1'!C188 -> 0 | C186: ='بيانات ص 1'!D188 -> 0 | D186: ='بيانات ص 1'!AB188 -> 0 | E186: ='بيانات ص 1'!AC188 -> 0 | F186: ='بيانات ص 1'!AF188 ->  | G186: ='بيانات ص 1'!AG188 ->  | H186: ='[2]بيانات ص 1'!Y192 ->  | I186: ='بيانات ص 1'!K188 -> 0 | J186: ='بيانات ص 1'!E188 -> 0
A187: 1186 | B187: ='بيانات ص 1'!C189 -> 0 | C187: ='بيانات ص 1'!D189 -> 0 | D187: ='بيانات ص 1'!AB189 -> 0 | E187: ='بيانات ص 1'!AC189 -> 0 | F187: ='بيانات ص 1'!AF189 ->  | G187: ='بيانات ص 1'!AG189 ->  | H187: ='[2]بيانات ص 1'!Y193 ->  | I187: ='بيانات ص 1'!K189 -> 0 | J187: ='بيانات ص 1'!E189 -> 0
A188: 1187 | B188: ='بيانات ص 1'!C190 -> 0 | C188: ='بيانات ص 1'!D190 -> 0 | D188: ='بيانات ص 1'!AB190 -> 0 | E188: ='بيانات ص 1'!AC190 -> 0 | F188: ='بيانات ص 1'!AF190 ->  | G188: ='بيانات ص 1'!AG190 ->  | H188: ='[2]بيانات ص 1'!Y194 ->  | I188: ='بيانات ص 1'!K190 -> 0 | J188: ='بيانات ص 1'!E190 -> 0
A189: 1188 | B189: ='بيانات ص 1'!C191 -> 0 | C189: ='بيانات ص 1'!D191 -> 0 | D189: ='بيانات ص 1'!AB191 -> 0 | E189: ='بيانات ص 1'!AC191 -> 0 | F189: ='بيانات ص 1'!AF191 ->  | G189: ='بيانات ص 1'!AG191 ->  | H189: ='[2]بيانات ص 1'!Y195 ->  | I189: ='بيانات ص 1'!K191 -> 0 | J189: ='بيانات ص 1'!E191 -> 0
A190: 1189 | B190: ='بيانات ص 1'!C192 -> 0 | C190: ='بيانات ص 1'!D192 -> 0 | D190: ='بيانات ص 1'!AB192 -> 0 | E190: ='بيانات ص 1'!AC192 -> 0 | F190: ='بيانات ص 1'!AF192 ->  | G190: ='بيانات ص 1'!AG192 ->  | H190: ='[2]بيانات ص 1'!Y196 ->  | I190: ='بيانات ص 1'!K192 -> 0 | J190: ='بيانات ص 1'!E192 -> 0
A191: 1190 | B191: ='بيانات ص 1'!C193 -> 0 | C191: ='بيانات ص 1'!D193 -> 0 | D191: ='بيانات ص 1'!AB193 -> 0 | E191: ='بيانات ص 1'!AC193 -> 0 | F191: ='بيانات ص 1'!AF193 ->  | G191: ='بيانات ص 1'!AG193 ->  | H191: ='[2]بيانات ص 1'!Y197 ->  | I191: ='بيانات ص 1'!K193 -> 0 | J191: ='بيانات ص 1'!E193 -> 0
A192: 1191 | B192: ='بيانات ص 1'!C194 -> 0 | C192: ='بيانات ص 1'!D194 -> 0 | D192: ='بيانات ص 1'!AB194 -> 0 | E192: ='بيانات ص 1'!AC194 -> 0 | F192: ='بيانات ص 1'!AF194 ->  | G192: ='بيانات ص 1'!AG194 ->  | H192: ='[2]بيانات ص 1'!Y198 ->  | I192: ='بيانات ص 1'!K194 -> 0 | J192: ='بيانات ص 1'!E194 -> 0
A193: 1192 | B193: ='بيانات ص 1'!C195 -> 0 | C193: ='بيانات ص 1'!D195 -> 0 | D193: ='بيانات ص 1'!AB195 -> 0 | E193: ='بيانات ص 1'!AC195 -> 0 | F193: ='بيانات ص 1'!AF195 ->  | G193: ='بيانات ص 1'!AG195 ->  | H193: ='[2]بيانات ص 1'!Y199 ->  | I193: ='بيانات ص 1'!K195 -> 0 | J193: ='بيانات ص 1'!E195 -> 0
A194: 1193 | B194: ='بيانات ص 1'!C196 -> 0 | C194: ='بيانات ص 1'!D196 -> 0 | D194: ='بيانات ص 1'!AB196 -> 0 | E194: ='بيانات ص 1'!AC196 -> 0 | F194: ='بيانات ص 1'!AF196 ->  | G194: ='بيانات ص 1'!AG196 ->  | H194: ='[2]بيانات ص 1'!Y200 ->  | I194: ='بيانات ص 1'!K196 -> 0 | J194: ='بيانات ص 1'!E196 -> 0
A195: =A194+1 -> 1194 | B195: ='بيانات ص 1'!C197 -> 0 | C195: ='بيانات ص 1'!D197 -> 0 | D195: ='بيانات ص 1'!AB197 -> 0 | E195: ='بيانات ص 1'!AC197 -> 0 | F195: ='بيانات ص 1'!AF197 ->  | G195: ='بيانات ص 1'!AG197 ->  | H195: ='[2]بيانات ص 1'!Y201 ->  | I195: ='بيانات ص 1'!K197 -> 0 | J195: ='بيانات ص 1'!E197 -> 0
A196: 1195 | B196: ='بيانات ص 1'!C198 -> 0 | C196: ='بيانات ص 1'!D198 -> 0 | D196: ='بيانات ص 1'!AB198 -> 0 | E196: ='بيانات ص 1'!AC198 -> 0 | F196: ='بيانات ص 1'!AF198 ->  | G196: ='بيانات ص 1'!AG198 ->  | H196: ='[2]بيانات ص 1'!Y202 ->  | I196: ='بيانات ص 1'!K198 -> 0 | J196: ='بيانات ص 1'!E198 -> 0
A197: 1196 | B197: ='بيانات ص 1'!C199 -> 0 | C197: ='بيانات ص 1'!D199 -> 0 | D197: ='بيانات ص 1'!AB199 -> 0 | E197: ='بيانات ص 1'!AC199 -> 0 | F197: ='بيانات ص 1'!AF199 ->  | G197: ='بيانات ص 1'!AG199 ->  | H197: ='[2]بيانات ص 1'!Y203 ->  | I197: ='بيانات ص 1'!K199 -> 0 | J197: ='بيانات ص 1'!E199 -> 0
A198: 1197 | B198: ='بيانات ص 1'!C200 -> 0 | C198: ='بيانات ص 1'!D200 -> 0 | D198: ='بيانات ص 1'!AB200 -> 0 | E198: ='بيانات ص 1'!AC200 -> 0 | F198: ='بيانات ص 1'!AF200 ->  | G198: ='بيانات ص 1'!AG200 ->  | H198: ='[2]بيانات ص 1'!Y204 ->  | I198: ='بيانات ص 1'!K200 -> 0 | J198: ='بيانات ص 1'!E200 -> 0
A199: 1198 | B199: ='بيانات ص 1'!C201 -> 0 | C199: ='بيانات ص 1'!D201 -> 0 | D199: ='بيانات ص 1'!AB201 -> 0 | E199: ='بيانات ص 1'!AC201 -> 0 | F199: ='بيانات ص 1'!AF201 ->  | G199: ='بيانات ص 1'!AG201 ->  | H199: ='[2]بيانات ص 1'!Y205 ->  | I199: ='بيانات ص 1'!K201 -> 0 | J199: ='بيانات ص 1'!E201 -> 0
A200: 1199 | B200: ='بيانات ص 1'!C202 -> 0 | C200: ='بيانات ص 1'!D202 -> 0 | D200: ='بيانات ص 1'!AB202 -> 0 | E200: ='بيانات ص 1'!AC202 -> 0 | F200: ='بيانات ص 1'!AF202 ->  | G200: ='بيانات ص 1'!AG202 ->  | H200: ='[2]بيانات ص 1'!Y206 ->  | I200: ='بيانات ص 1'!K202 -> 0 | J200: ='بيانات ص 1'!E202 -> 0
... 1008 more rows

Sheet ورقة7
D1: ادمودو | F1: الحساب المدرسي الموحد
A2: الكود | B2: الاسم | C2: كود المعلم | D2: البريد الالكتروني | E2: كلمة المرور | F2: البريد الالكتروني | G2: كلمة المرور
A3: 1 | B3: =bainat!C8 -> 0 | C3: =bainat!B8 -> 0 | D3: =bainat!AB8 -> 0 | E3: =bainat!AC8 -> 0 | F3: =bainat!AE8 ->  | G3: =bainat!AF8 -> 
A4: 2 | B4: =bainat!C9 -> 0 | C4: =bainat!B9 -> 0 | D4: =bainat!AB9 -> 0 | E4: =bainat!AC9 -> 0 | F4: =bainat!AE9 ->  | G4: =bainat!AF9 -> 
A5: 3 | B5: =bainat!C10 -> 0 | C5: =bainat!B10 -> 0 | D5: =bainat!AB10 -> 0 | E5: =bainat!AC10 -> 0 | F5: =bainat!AE10 ->  | G5: =bainat!AF10 -> 
A6: 4 | B6: =bainat!C11 -> 0 | C6: =bainat!B11 -> 0 | D6: =bainat!AB11 -> 0 | E6: =bainat!AC11 -> 0 | F6: =bainat!AE11 ->  | G6: =bainat!AF11 -> 
A7: 5 | B7: =bainat!C12 -> 0 | C7: =bainat!B12 -> 0 | D7: =bainat!AB12 -> 0 | E7: =bainat!AC12 -> 0 | F7: =bainat!AE12 ->  | G7: =bainat!AF12 -> 
A8: 6 | B8: =bainat!C13 -> 0 | C8: =bainat!B13 -> 0 | D8: =bainat!AB13 -> 0 | E8: =bainat!AC13 -> 0 | F8: =bainat!AE13 ->  | G8: =bainat!AF13 -> 
A9: 7 | B9: =bainat!C14 -> 0 | C9: =bainat!B14 -> 0 | D9: =bainat!AB14 -> 0 | E9: =bainat!AC14 -> 0 | F9: =bainat!AE14 ->  | G9: =bainat!AF14 -> 
A10: 8 | B10: =bainat!C15 -> 0 | C10: =bainat!B15 -> 0 | D10: =bainat!AB15 -> 0 | E10: =bainat!AC15 -> 0 | F10: =bainat!AE15 ->  | G10: =bainat!AF15 -> 
A11: 9 | B11: =bainat!C16 -> 0 | C11: =bainat!B16 -> 0 | D11: =bainat!AB16 -> 0 | E11: =bainat!AC16 -> 0 | F11: =bainat!AE16 ->  | G11: =bainat!AF16 -> 
A12: 10 | B12: =bainat!C17 -> 0 | C12: =bainat!B17 -> 0 | D12: =bainat!AB17 -> 0 | E12: =bainat!AC17 -> 0 | F12: =bainat!AE17 ->  | G12: =bainat!AF17 -> 
A13: 11 | B13: =bainat!C18 -> 0 | C13: =bainat!B18 -> 0 | D13: =bainat!AB18 -> 0 | E13: =bainat!AC18 -> 0 | F13: =bainat!AE18 ->  | G13: =bainat!AF18 -> 
A14: 12 | B14: =bainat!C19 -> 0 | C14: =bainat!B19 -> 0 | D14: =bainat!AB19 -> 0 | E14: =bainat!AC19 -> 0 | F14: =bainat!AE19 ->  | G14: =bainat!AF19 -> 
A15: 13 | B15: =bainat!C20 -> 0 | C15: =bainat!B20 -> 0 | D15: =bainat!AB20 -> 0 | E15: =bainat!AC20 -> 0 | F15: =bainat!AE20 ->  | G15: =bainat!AF20 -> 
A16: 14 | B16: =bainat!C21 -> 0 | C16: =bainat!B21 -> 0 | D16: =bainat!AB21 -> 0 | E16: =bainat!AC21 -> 0 | F16: =bainat!AE21 ->  | G16: =bainat!AF21 -> 
A17: 15 | B17: =bainat!C22 -> 0 | C17: =bainat!B22 -> 0 | D17: =bainat!AB22 -> 0 | E17: =bainat!AC22 -> 0 | F17: =bainat!AE22 ->  | G17: =bainat!AF22 -> 
A18: 16 | B18: =bainat!C23 -> 0 | C18: =bainat!B23 -> 0 | D18: =bainat!AB23 -> 0 | E18: =bainat!AC23 -> 0 | F18: =bainat!AE23 ->  | G18: =bainat!AF23 -> 
A19: 17 | B19: =bainat!C24 -> 0 | C19: =bainat!B24 -> 0 | D19: =bainat!AB24 -> 0 | E19: =bainat!AC24 -> 0 | F19: =bainat!AE24 ->  | G19: =bainat!AF24 -> 
A20: 18 | B20: =bainat!C25 -> 0 | C20: =bainat!B25 -> 0 | D20: =bainat!AB25 -> 0 | E20: =bainat!AC25 -> 0 | F20: =bainat!AE25 ->  | G20: =bainat!AF25 -> 
A21: 19 | B21: =bainat!C26 -> 0 | C21: =bainat!B26 -> 0 | D21: =bainat!AB26 -> 0 | E21: =bainat!AC26 -> 0 | F21: =bainat!AE26 ->  | G21: =bainat!AF26 -> 
A22: 20 | B22: =bainat!C27 -> 0 | C22: =bainat!B27 -> 0 | D22: =bainat!AB27 -> 0 | E22: =bainat!AC27 -> 0 | F22: =bainat!AE27 ->  | G22: =bainat!AF27 -> 
A23: 21 | B23: =bainat!C28 -> 0 | C23: =bainat!B28 -> 0 | D23: =bainat!AB28 -> 0 | E23: =bainat!AC28 -> 0 | F23: =bainat!AE28 ->  | G23: =bainat!AF28 -> 
A24: 22 | B24: =bainat!C29 -> 0 | C24: =bainat!B29 -> 0 | D24: =bainat!AB29 -> 0 | E24: =bainat!AC29 -> 0 | F24: =bainat!AE29 ->  | G24: =bainat!AF29 -> 
A25: 23 | B25: =bainat!C30 -> 0 | C25: =bainat!B30 -> 0 | D25: =bainat!AB30 -> 0 | E25: =bainat!AC30 -> 0 | F25: =bainat!AE30 ->  | G25: =bainat!AF30 -> 
A26: 24 | B26: =bainat!C31 -> 0 | C26: =bainat!B31 -> 0 | D26: =bainat!AB31 -> 0 | E26: =bainat!AC31 -> 0 | F26: =bainat!AE31 ->  | G26: =bainat!AF31 -> 
A27: 25 | B27: =bainat!C32 -> 0 | C27: =bainat!B32 -> 0 | D27: =bainat!AB32 -> 0 | E27: =bainat!AC32 -> 0 | F27: =bainat!AE32 ->  | G27: =bainat!AF32 -> 
A28: 26 | B28: =bainat!C33 -> 0 | C28: =bainat!B33 -> 0 | D28: =bainat!AB33 -> 0 | E28: =bainat!AC33 -> 0 | F28: =bainat!AE33 ->  | G28: =bainat!AF33 -> 
A29: 27 | B29: =bainat!C34 -> 0 | C29: =bainat!B34 -> 0 | D29: =bainat!AB34 -> 0 | E29: =bainat!AC34 -> 0 | F29: =bainat!AE34 ->  | G29: =bainat!AF34 -> 
A30: 28 | B30: =bainat!C35 -> 0 | C30: =bainat!B35 -> 0 | D30: =bainat!AB35 -> 0 | E30: =bainat!AC35 -> 0 | F30: =bainat!AE35 ->  | G30: =bainat!AF35 -> 
A31: 29 | B31: =bainat!C36 -> 0 | C31: =bainat!B36 -> 0 | D31: =bainat!AB36 -> 0 | E31: =bainat!AC36 -> 0 | F31: =bainat!AE36 ->  | G31: =bainat!AF36 -> 
A32: 30 | B32: =bainat!C37 -> 0 | C32: =bainat!B37 -> 0 | D32: =bainat!AB37 -> 0 | E32: =bainat!AC37 -> 0 | F32: =bainat!AE37 ->  | G32: =bainat!AF37 -> 
A33: 31 | B33: =bainat!C38 -> 0 | C33: =bainat!B38 -> 0 | D33: =bainat!AB38 -> 0 | E33: =bainat!AC38 -> 0 | F33: =bainat!AE38 ->  | G33: =bainat!AF38 -> 
A34: 32 | B34: =bainat!C39 -> 0 | C34: =bainat!B39 -> 0 | D34: =bainat!AB39 -> 0 | E34: =bainat!AC39 -> 0 | F34: =bainat!AE39 ->  | G34: =bainat!AF39 -> 
A35: 33 | B35: =bainat!C40 -> 0 | C35: =bainat!B40 -> 0 | D35: =bainat!AB40 -> 0 | E35: =bainat!AC40 -> 0 | F35: =bainat!AE40 ->  | G35: =bainat!AF40 -> 
A36: 34 | B36: =bainat!C41 -> 0 | C36: =bainat!B41 -> 0 | D36: =bainat!AB41 -> 0 | E36: =bainat!AC41 -> 0 | F36: =bainat!AE41 ->  | G36: =bainat!AF41 -> 
A37: 35 | B37: =bainat!#REF! ->  | C37: =bainat!#REF! ->  | D37: =bainat!#REF! ->  | E37: =bainat!#REF! ->  | F37: =bainat!#REF! ->  | G37: =bainat!#REF! -> 
A38: 36 | B38: =bainat!C42 -> 0 | C38: =bainat!B42 -> 0 | D38: =bainat!AB42 -> 0 | E38: =bainat!AC42 -> 0 | F38: =bainat!AE42 ->  | G38: =bainat!AF42 -> 
A39: 37 | B39: =bainat!C43 -> 0 | C39: =bainat!B43 -> 0 | D39: =bainat!AB43 -> 0 | E39: =bainat!AC43 -> 0 | F39: =bainat!AE43 ->  | G39: =bainat!AF43 -> 
A40: 38 | B40: =bainat!C44 -> 0 | C40: =bainat!B44 -> 0 | D40: =bainat!AB44 -> 0 | E40: =bainat!AC44 -> 0 | F40: =bainat!AE44 ->  | G40: =bainat!AF44 -> 
A41: 39 | B41: =bainat!C45 -> 0 | C41: =bainat!B45 -> 0 | D41: =bainat!AB45 -> 0 | E41: =bainat!AC45 -> 0 | F41: =bainat!AE45 ->  | G41: =bainat!AF45 -> 
A42: 40 | B42: =bainat!C46 -> 0 | C42: =bainat!B46 -> 0 | D42: =bainat!AB46 -> 0 | E42: =bainat!AC46 -> 0 | F42: =bainat!AE46 ->  | G42: =bainat!AF46 -> 
A43: 41 | B43: =bainat!C47 -> 0 | C43: =bainat!B47 -> 0 | D43: =bainat!AB47 -> 0 | E43: =bainat!AC47 -> 0 | F43: =bainat!AE47 ->  | G43: =bainat!AF47 -> 
A44: 42 | B44: =bainat!C48 -> 0 | C44: =bainat!B48 -> 0 | D44: =bainat!AB48 -> 0 | E44: =bainat!AC48 -> 0 | F44: =bainat!AE48 ->  | G44: =bainat!AF48 -> 
A45: 43 | B45: =bainat!C49 -> 0 | C45: =bainat!B49 -> 0 | D45: =bainat!AB49 -> 0 | E45: =bainat!AC49 -> 0 | F45: =bainat!AE49 ->  | G45: =bainat!AF49 -> 
A46: 44 | B46: =bainat!C50 -> 0 | C46: =bainat!B50 -> 0 | D46: =bainat!AB50 -> 0 | E46: =bainat!AC50 -> 0 | F46: =bainat!AE50 ->  | G46: =bainat!AF50 -> 
A47: 45 | B47: =bainat!C51 -> 0 | C47: =bainat!B51 -> 0 | D47: =bainat!AB51 -> 0 | E47: =bainat!AC51 -> 0 | F47: =bainat!AE51 ->  | G47: =bainat!AF51 -> 
A48: 46 | B48: =bainat!C52 -> 0 | C48: =bainat!B52 -> 0 | D48: =bainat!AB52 -> 0 | E48: =bainat!AC52 -> 0 | F48: =bainat!AE52 ->  | G48: =bainat!AF52 -> 
A49: 47 | B49: =bainat!C53 -> 0 | C49: =bainat!B53 -> 0 | D49: =bainat!AB53 -> 0 | E49: =bainat!AC53 -> 0 | F49: =bainat!AE53 ->  | G49: =bainat!AF53 -> 
A50: 48 | B50: =bainat!C54 -> 0 | C50: =bainat!B54 -> 0 | D50: =bainat!AB54 -> 0 | E50: =bainat!AC54 -> 0 | F50: =bainat!AE54 ->  | G50: =bainat!AF54 -> 
A51: 49 | B51: =bainat!C55 -> 0 | C51: =bainat!B55 -> 0 | D51: =bainat!AB55 -> 0 | E51: =bainat!AC55 -> 0 | F51: =bainat!AE55 ->  | G51: =bainat!AF55 -> 
A52: 50 | B52: =bainat!C56 -> 0 | C52: =bainat!B56 -> 0 | D52: =bainat!AB56 -> 0 | E52: =bainat!AC56 -> 0 | F52: =bainat!AE56 ->  | G52: =bainat!AF56 -> 
A53: 51 | B53: =bainat!C57 -> 0 | C53: =bainat!B57 -> 0 | D53: =bainat!AB57 -> 0 | E53: =bainat!AC57 -> 0 | F53: =bainat!AE57 ->  | G53: =bainat!AF57 -> 
A54: 52 | B54: =bainat!C58 -> 0 | C54: =bainat!B58 -> 0 | D54: =bainat!AB58 -> 0 | E54: =bainat!AC58 -> 0 | F54: =bainat!AE58 ->  | G54: =bainat!AF58 -> 
A55: 53 | B55: =bainat!C59 -> 0 | C55: =bainat!B59 -> 0 | D55: =bainat!AB59 -> 0 | E55: =bainat!AC59 -> 0 | F55: =bainat!AE59 ->  | G55: =bainat!AF59 -> 
A56: 54 | B56: =bainat!C60 -> 0 | C56: =bainat!B60 -> 0 | D56: =bainat!AB60 -> 0 | E56: =bainat!AC60 -> 0 | F56: =bainat!AE60 ->  | G56: =bainat!AF60 -> 
A57: 55 | B57: =bainat!C61 -> 0 | C57: =bainat!B61 -> 0 | D57: =bainat!AB61 -> 0 | E57: =bainat!AC61 -> 0 | F57: =bainat!AE61 ->  | G57: =bainat!AF61 -> 
A58: 56 | B58: =bainat!C62 -> 0 | C58: =bainat!B62 -> 0 | D58: =bainat!AB62 -> 0 | E58: =bainat!AC62 -> 0 | F58: =bainat!AE62 ->  | G58: =bainat!AF62 -> 
A59: 57 | B59: =bainat!C63 -> 0 | C59: =bainat!B63 -> 0 | D59: =bainat!AB63 -> 0 | E59: =bainat!AC63 -> 0 | F59: =bainat!AE63 ->  | G59: =bainat!AF63 -> 
A60: 58 | B60: =bainat!C64 -> 0 | C60: =bainat!B64 -> 0 | D60: =bainat!AB64 -> 0 | E60: =bainat!AC64 -> 0 | F60: =bainat!AE64 ->  | G60: =bainat!AF64 -> 
A61: 59 | B61: =bainat!C65 -> 0 | C61: =bainat!B65 -> 0 | D61: =bainat!AB65 -> 0 | E61: =bainat!AC65 -> 0 | F61: =bainat!AE65 ->  | G61: =bainat!AF65 -> 
A62: 60 | B62: =bainat!C66 -> 0 | C62: =bainat!B66 -> 0 | D62: =bainat!AB66 -> 0 | E62: =bainat!AC66 -> 0 | F62: =bainat!AE66 ->  | G62: =bainat!AF66 -> 
A63: 61 | B63: =bainat!C67 -> 0 | C63: =bainat!B67 -> 0 | D63: =bainat!AB67 -> 0 | E63: =bainat!AC67 -> 0 | F63: =bainat!AE67 ->  | G63: =bainat!AF67 -> 
A64: 62 | B64: =bainat!C68 -> 0 | C64: =bainat!B68 -> 0 | D64: =bainat!AB68 -> 0 | E64: =bainat!AC68 -> 0 | F64: =bainat!AE68 ->  | G64: =bainat!AF68 -> 
A65: 63 | B65: =bainat!C69 -> 0 | C65: =bainat!B69 -> 0 | D65: =bainat!AB69 -> 0 | E65: =bainat!AC69 -> 0 | F65: =bainat!AE69 ->  | G65: =bainat!AF69 -> 
A66: 64 | B66: =bainat!C70 -> 0 | C66: =bainat!B70 -> 0 | D66: =bainat!AB70 -> 0 | E66: =bainat!AC70 -> 0 | F66: =bainat!AE70 ->  | G66: =bainat!AF70 -> 
A67: 65 | B67: =bainat!C71 -> 0 | C67: =bainat!B71 -> 0 | D67: =bainat!AB71 -> 0 | E67: =bainat!AC71 -> 0 | F67: =bainat!AE71 ->  | G67: =bainat!AF71 -> 
A68: 66 | B68: =bainat!C72 -> 0 | C68: =bainat!B72 -> 0 | D68: =bainat!AB72 -> 0 | E68: =bainat!AC72 -> 0 | F68: =bainat!AE72 ->  | G68: =bainat!AF72 -> 
A69: 67 | B69: =bainat!C73 -> 0 | C69: =bainat!B73 -> 0 | D69: =bainat!AB73 -> 0 | E69: =bainat!AC73 -> 0 | F69: =bainat!AE73 ->  | G69: =bainat!AF73 -> 
A70: 68 | B70: =bainat!C74 -> 0 | C70: =bainat!B74 -> 0 | D70: =bainat!AB74 -> 0 | E70: =bainat!AC74 -> 0 | F70: =bainat!AE74 ->  | G70: =bainat!AF74 -> 
A71: 69 | B71: =bainat!C75 -> 0 | C71: =bainat!B75 -> 0 | D71: =bainat!AB75 -> 0 | E71: =bainat!AC75 -> 0 | F71: =bainat!AE75 ->  | G71: =bainat!AF75 -> 
A72: 70 | B72: =bainat!C76 -> 0 | C72: =bainat!B76 -> 0 | D72: =bainat!AB76 -> 0 | E72: =bainat!AC76 -> 0 | F72: =bainat!AE76 ->  | G72: =bainat!AF76 -> 
A73: 71 | B73: =bainat!C77 -> 0 | C73: =bainat!B77 -> 0 | D73: =bainat!AB77 -> 0 | E73: =bainat!AC77 -> 0 | F73: =bainat!AE77 ->  | G73: =bainat!AF77 -> 
A74: 72 | B74: =bainat!C78 -> 0 | C74: =bainat!B78 -> 0 | D74: =bainat!AB78 -> 0 | E74: =bainat!AC78 -> 0 | F74: =bainat!AE78 ->  | G74: =bainat!AF78 -> 
A75: 73 | B75: =bainat!C79 -> 0 | C75: =bainat!B79 -> 0 | D75: =bainat!AB79 -> 0 | E75: =bainat!AC79 -> 0 | F75: =bainat!AE79 ->  | G75: =bainat!AF79 -> 
A76: 74 | B76: =bainat!C80 -> 0 | C76: =bainat!B80 -> 0 | D76: =bainat!AB80 -> 0 | E76: =bainat!AC80 -> 0 | F76: =bainat!AE80 ->  | G76: =bainat!AF80 -> 
A77: 75 | B77: =bainat!C81 -> 0 | C77: =bainat!B81 -> 0 | D77: =bainat!AB81 -> 0 | E77: =bainat!AC81 -> 0 | F77: =bainat!AE81 ->  | G77: =bainat!AF81 -> 
A78: 76 | B78: =bainat!C82 -> 0 | C78: =bainat!B82 -> 0 | D78: =bainat!AB82 -> 0 | E78: =bainat!AC82 -> 0 | F78: =bainat!AE82 ->  | G78: =bainat!AF82 -> 
A79: 77 | B79: =bainat!C83 -> 0 | C79: =bainat!B83 -> 0 | D79: =bainat!AB83 -> 0 | E79: =bainat!AC83 -> 0 | F79: =bainat!AE83 ->  | G79: =bainat!AF83 -> 
A80: 78 | B80: =bainat!C84 -> 0 | C80: =bainat!B84 -> 0 | D80: =bainat!AB84 -> 0 | E80: =bainat!AC84 -> 0 | F80: =bainat!AE84 ->  | G80: =bainat!AF84 -> 
A81: 79 | B81: =bainat!C85 -> 0 | C81: =bainat!B85 -> 0 | D81: =bainat!AB85 -> 0 | E81: =bainat!AC85 -> 0 | F81: =bainat!AE85 ->  | G81: =bainat!AF85 -> 
A82: 80 | B82: =bainat!C86 -> 0 | C82: =bainat!B86 -> 0 | D82: =bainat!AB86 -> 0 | E82: =bainat!AC86 -> 0 | F82: =bainat!AE86 ->  | G82: =bainat!AF86 -> 
A83: 81 | B83: =bainat!C87 -> 0 | C83: =bainat!B87 -> 0 | D83: =bainat!AB87 -> 0 | E83: =bainat!AC87 -> 0 | F83: =bainat!AE87 ->  | G83: =bainat!AF87 -> 
A84: 82 | B84: =bainat!C88 -> 0 | C84: =bainat!B88 -> 0 | D84: =bainat!AB88 -> 0 | E84: =bainat!AC88 -> 0 | F84: =bainat!AE88 ->  | G84: =bainat!AF88 -> 
A85: 83 | B85: =bainat!C89 -> 0 | C85: =bainat!B89 -> 0 | D85: =bainat!AB89 -> 0 | E85: =bainat!AC89 -> 0 | F85: =bainat!AE89 ->  | G85: =bainat!AF89 -> 
A86: 84 | B86: =bainat!C90 -> 0 | C86: =bainat!B90 -> 0 | D86: =bainat!AB90 -> 0 | E86: =bainat!AC90 -> 0 | F86: =bainat!AE90 ->  | G86: =bainat!AF90 -> 
A87: 85 | B87: =bainat!C91 -> 0 | C87: =bainat!B91 -> 0 | D87: =bainat!AB91 -> 0 | E87: =bainat!AC91 -> 0 | F87: =bainat!AE91 ->  | G87: =bainat!AF91 -> 
A88: 86 | B88: =bainat!C92 -> 0 | C88: =bainat!B92 -> 0 | D88: =bainat!AB92 -> 0 | E88: =bainat!AC92 -> 0 | F88: =bainat!AE92 ->  | G88: =bainat!AF92 -> 
A89: 87 | B89: =bainat!C93 -> 0 | C89: =bainat!B93 -> 0 | D89: =bainat!AB93 -> 0 | E89: =bainat!AC93 -> 0 | F89: =bainat!AE93 ->  | G89: =bainat!AF93 -> 
A90: 88 | B90: =bainat!C94 -> 0 | C90: =bainat!B94 -> 0 | D90: =bainat!AB94 -> 0 | E90: =bainat!AC94 -> 0 | F90: =bainat!AE94 ->  | G90: =bainat!AF94 -> 
A91: 89 | B91: =bainat!C95 -> 0 | C91: =bainat!B95 -> 0 | D91: =bainat!AB95 -> 0 | E91: =bainat!AC95 -> 0 | F91: =bainat!AE95 ->  | G91: =bainat!AF95 -> 
A92: 90 | B92: =bainat!C96 -> 0 | C92: =bainat!B96 -> 0 | D92: =bainat!AB96 -> 0 | E92: =bainat!AC96 -> 0 | F92: =bainat!AE96 ->  | G92: =bainat!AF96 -> 
A93: 91 | B93: =bainat!C97 -> 0 | C93: =bainat!B97 -> 0 | D93: =bainat!AB97 -> 0 | E93: =bainat!AC97 -> 0 | F93: =bainat!AE97 ->  | G93: =bainat!AF97 -> 
A94: 92 | B94: =bainat!C98 -> 0 | C94: =bainat!B98 -> 0 | D94: =bainat!AB98 -> 0 | E94: =bainat!AC98 -> 0 | F94: =bainat!AE98 ->  | G94: =bainat!AF98 -> 
A95: 93 | B95: =bainat!C99 -> 0 | C95: =bainat!B99 -> 0 | D95: =bainat!AB99 -> 0 | E95: =bainat!AC99 -> 0 | F95: =bainat!AE99 ->  | G95: =bainat!AF99 -> 
A96: 94 | B96: =bainat!C100 -> 0 | C96: =bainat!B100 -> 0 | D96: =bainat!AB100 -> 0 | E96: =bainat!AC100 -> 0 | F96: =bainat!AE100 ->  | G96: =bainat!AF100 -> 
A97: 95 | B97: =bainat!C101 -> 0 | C97: =bainat!B101 -> 0 | D97: =bainat!AB101 -> 0 | E97: =bainat!AC101 -> 0 | F97: =bainat!AE101 ->  | G97: =bainat!AF101 -> 
A98: 96 | B98: =bainat!C102 -> 0 | C98: =bainat!B102 -> 0 | D98: =bainat!AB102 -> 0 | E98: =bainat!AC102 -> 0 | F98: =bainat!AE102 ->  | G98: =bainat!AF102 -> 
A99: 97 | B99: =bainat!C103 -> 0 | C99: =bainat!B103 -> 0 | D99: =bainat!AB103 -> 0 | E99: =bainat!AC103 -> 0 | F99: =bainat!AE103 ->  | G99: =bainat!AF103 -> 
A100: 98 | B100: =bainat!C104 -> 0 | C100: =bainat!B104 -> 0 | D100: =bainat!AB104 -> 0 | E100: =bainat!AC104 -> 0 | F100: =bainat!AE104 ->  | G100: =bainat!AF104 -> 
A101: 99 | B101: =bainat!C105 -> 0 | C101: =bainat!B105 -> 0 | D101: =bainat!AB105 -> 0 | E101: =bainat!AC105 -> 0 | F101: =bainat!AE105 ->  | G101: =bainat!AF105 -> 
A102: 100 | B102: =bainat!C106 -> 0 | C102: =bainat!B106 -> 0 | D102: =bainat!AB106 -> 0 | E102: =bainat!AC106 -> 0 | F102: =bainat!AE106 ->  | G102: =bainat!AF106 -> 

Sheet حسابات الطلاب (2)
B1: إدارة بني مزار التعليمية | G1: حساب ادمودو والحساب المدرسي الموحد للطلاب | M1: مسلسل الطلاب
B2: ='[2]البيانات الاساسية للمدرسة '!$F$5 -> مدرسة ساقولا الإعدادية للبنين | M2: م الطالب الأول | N2: 66
A3: =$O$4+$N$2 -> 1066 | B3: الاسم: | C3: =IFERROR(VLOOKUP($A$3,'22'!$A$2:$J$1208,3,0),"") -> 0 | G3: الصـــف : | H3: =$M$10 -> الأول | I3: الكود : | J3: =IFERROR(VLOOKUP($A$3,'22'!$A$2:$J$1208,2,0),"") -> 0 | M3: م الطالب الثاني | N3: 55
B4: ادمودو | G4: الحساب المدرسي الموحد | M4: م الطالب الثالث | N4: 3 | O4: =IF($M$10=ورقة1!$AG$1,1000,IF($M$10=ورقة1!$AG$2,2000,IF($M$10=ورقة1!$AG$3,3000,IF($M$10=ورقة1!$AG$4,4000,IF($M$10=ورقة1!$AG$5,5000,IF($M$10=ورقة1!$AG$6,6000)))))) -> 1000
B5: البريد الكتروني : | D5: =IFERROR(VLOOKUP($A$3,'22'!$A$2:$J$1208,4,0),"") -> 0 | G5: الايميل: | H5: =IFERROR(VLOOKUP($A$3,'22'!$A$2:$J$1208,6,0),"") ->  | M5: م الطالب الرابع | N5: 4
B6: كلمة المرور : | D6: =IFERROR(VLOOKUP($A$3,'22'!$A$2:$J$1208,5,0),"") -> 0 | G6: كلمة المرور : | I6: =IFERROR(VLOOKUP($A$3,'22'!$A$2:$J$1208,7,0),"") ->  | M6: م الطالب الخامس | N6: 5
C7: مسئول المنصة | I7: مدير المدرسة
C8: ='البيانات الاساسية للمدرسة '!$F$11 -> 0 | I8: ='البيانات الاساسية للمدرسة '!$F$7 -> 0
B9: إدارة بني مزار التعليمية | G9: حساب ادمودو والحساب المدرسي الموحد للطلاب | M9: اختار الصف
B10: ='[2]البيانات الاساسية للمدرسة '!$F$5 -> مدرسة ساقولا الإعدادية للبنين | M10: الأول
A11: =$O$4+$N$3 -> 1055 | B11: الاسم: | C11: =IFERROR(VLOOKUP($A$11,'22'!$A$2:$J$1208,3,0),"") -> 0 | G11: الصـــف : | H11: =$M$10 -> الأول | I11: الكود : | J11: =IFERROR(VLOOKUP($A$11,'22'!$A$2:$J$1208,2,0),"") -> 0
B12: ادمودو | G12: الحساب المدرسي الموحد
B13: البريد الكتروني : | D13: =IFERROR(VLOOKUP($A$11,'22'!$A$2:$J$1208,4,0),"") -> 0 | G13: الايميل: | H13: =IFERROR(VLOOKUP($A$11,'22'!$A$2:$J$1208,6,0),"") -> 
B14: كلمة المرور : | D14: =IFERROR(VLOOKUP($A$11,'22'!$A$2:$J$1208,5,0),"") -> 0 | G14: كلمة المرور : | I14: =IFERROR(VLOOKUP($A$11,'22'!$A$2:$J$1208,7,0),"") -> 
C15: مسئول المنصة | I15: مدير المدرسة
C16: ='البيانات الاساسية للمدرسة '!$F$11 -> 0 | I16: ='البيانات الاساسية للمدرسة '!$F$7 -> 0
B17: إدارة بني مزار التعليمية | G17: حساب ادمودو والحساب المدرسي الموحد للطلاب
B18: ='[2]البيانات الاساسية للمدرسة '!$F$5 -> مدرسة ساقولا الإعدادية للبنين
A19: =$N$4+$O$4 -> 1003 | B19: الاسم: | C19: =IFERROR(VLOOKUP($A$19,'22'!$A$2:$J$1208,3,0),"") -> 0 | G19: الصـــف : | H19: =$M$10 -> الأول | I19: الكود : | J19: =IFERROR(VLOOKUP($A$19,'22'!$A$2:$J$1208,2,0),"") -> 0
B20: ادمودو | G20: الحساب المدرسي الموحد
B21: البريد الكتروني : | D21: =IFERROR(VLOOKUP($A$19,'22'!$A$2:$J$1208,4,0),"") -> 0 | G21: الايميل: | H21: =IFERROR(VLOOKUP($A$19,'22'!$A$2:$J$1208,6,0),"") -> 
B22: كلمة المرور : | D22: =IFERROR(VLOOKUP($A$19,'22'!$A$2:$J$1208,5,0),"") -> 0 | G22: كلمة المرور : | I22: =IFERROR(VLOOKUP($A$19,'22'!$A$2:$J$1208,7,0),"") -> 
C23: مسئول المنصة | I23: مدير المدرسة
C24: ='البيانات الاساسية للمدرسة '!$F$11 -> 0 | I24: ='البيانات الاساسية للمدرسة '!$F$7 -> 0
B25: إدارة بني مزار التعليمية | G25: حساب ادمودو والحساب المدرسي الموحد للطلاب
B26: ='[2]البيانات الاساسية للمدرسة '!$F$5 -> مدرسة ساقولا الإعدادية للبنين
A27: =$N$5+$O$4 -> 1004 | B27: الاسم: | C27: =IFERROR(VLOOKUP($A$27,'22'!$A$2:$J$1208,3,0),"") -> 0 | G27: الصـــف : | H27: =$M$10 -> الأول | I27: الكود : | J27: =IFERROR(VLOOKUP($A$27,'22'!$A$2:$J$1208,2,0),"") -> 0
B28: ادمودو | G28: الحساب المدرسي الموحد
B29: البريد الكتروني : | D29: =IFERROR(VLOOKUP($A$27,'22'!$A$2:$J$1208,4,0),"") -> 0 | G29: الايميل: | H29: =IFERROR(VLOOKUP($A$27,'22'!$A$2:$J$1208,6,0),"") -> 
B30: كلمة المرور : | D30: =IFERROR(VLOOKUP($A$27,'22'!$A$2:$J$1208,5,0),"") -> 0 | G30: كلمة المرور : | I30: =IFERROR(VLOOKUP($A$27,'22'!$A$2:$J$1208,7,0),"") -> 
C31: مسئول المنصة | I31: مدير المدرسة
C32: ='البيانات الاساسية للمدرسة '!$F$11 -> 0 | I32: ='البيانات الاساسية للمدرسة '!$F$7 -> 0
B33: إدارة بني مزار التعليمية | G33: حساب ادمودو والحساب المدرسي الموحد للطلاب
B34: ='[2]البيانات الاساسية للمدرسة '!$F$5 -> مدرسة ساقولا الإعدادية للبنين
A35: =$N$6+$O$4 -> 1005 | B35: الاسم: | C35: =IFERROR(VLOOKUP($A$35,'22'!$A$2:$J$1208,3,0),"") -> 0 | G35: الصـــف : | H35: =$M$10 -> الأول | I35: الكود : | J35: =IFERROR(VLOOKUP($A$35,'22'!$A$2:$J$1208,2,0),"") -> 0
B36: ادمودو | G36: الحساب المدرسي الموحد
B37: البريد الكتروني : | D37: =IFERROR(VLOOKUP($A$35,'22'!$A$2:$J$1208,4,0),"") -> 0 | G37: الايميل: | H37: =IFERROR(VLOOKUP($A$35,'22'!$A$2:$J$1208,6,0),"") -> 
B38: كلمة المرور : | D38: =IFERROR(VLOOKUP($A$35,'22'!$A$2:$J$1208,5,0),"") -> 0 | G38: كلمة المرور : | I38: =IFERROR(VLOOKUP($A$35,'22'!$A$2:$J$1208,7,0),"") -> 
C39: مسئول المنصة | I39: مدير المدرسة
C40: ='البيانات الاساسية للمدرسة '!$F$11 -> 0 | I40: ='البيانات الاساسية للمدرسة '!$F$7 -> 0

Sheet حسابات الطلاب
B1: إدارة بني مزار التعليمية | G1: حساب ادمودو والحساب المدرسي الموحد للطلاب | M1: اختار الصف
B2: ='[2]البيانات الاساسية للمدرسة '!$F$5 -> مدرسة ساقولا الإعدادية للبنين | M2: السادس
A3: =$M$4+$M$6 -> 6066 | B3: الاسم: | C3: =IFERROR(VLOOKUP($A$3,'22'!$A$2:$J$1208,3,0),"") -> 0 | G3: الصـــف : | H3: =$M$2 -> السادس | I3: الكود : | J3: =IFERROR(VLOOKUP($A$3,'22'!$A$2:$J$1208,2,0),"") -> 0
B4: ادمودو | G4: الحساب المدرسي الموحد | M4: =IF($M$2=ورقة1!$AG$1,1000,IF($M$2=ورقة1!$AG$2,2000,IF($M$2=ورقة1!$AG$3,3000,IF($M$2=ورقة1!$AG$4,4000,IF($M$2=ورقة1!$AG$5,5000,IF($M$2=ورقة1!$AG$6,6000)))))) -> 6000
B5: البريد الكتروني : | D5: =IFERROR(VLOOKUP($A$3,'22'!$A$2:$J$1208,4,0),"") -> 0 | G5: الايميل: | H5: =IFERROR(VLOOKUP($A$3,'22'!$A$2:$J$1208,6,0),"") ->  | M5: مسلسل
B6: كلمة المرور : | D6: =IFERROR(VLOOKUP($A$3,'22'!$A$2:$J$1208,5,0),"") -> 0 | G6: كلمة المرور : | I6: =IFERROR(VLOOKUP($A$3,'22'!$A$2:$J$1208,7,0),"") ->  | M6: 66
C7: مسئول المنصة | I7: مدير المدرسة
C8: ='البيانات الاساسية للمدرسة '!$F$11 -> 0 | I8: ='البيانات الاساسية للمدرسة '!$F$7 -> 0
B9: إدارة بني مزار التعليمية | G9: حساب ادمودو والحساب المدرسي الموحد للطلاب
B10: ='[2]البيانات الاساسية للمدرسة '!$F$5 -> مدرسة ساقولا الإعدادية للبنين
A11: =A3+1 -> 6067 | B11: الاسم: | C11: =IFERROR(VLOOKUP($A$11,'22'!$A$2:$J$1208,3,0),"") -> 0 | G11: الصـــف : | H11: =$M$2 -> السادس | I11: الكود : | J11: =IFERROR(VLOOKUP($A$11,'22'!$A$2:$J$1208,2,0),"") -> 0
B12: ادمودو | G12: الحساب المدرسي الموحد
B13: البريد الكتروني : | D13: =IFERROR(VLOOKUP($A$11,'22'!$A$2:$J$1208,4,0),"") -> 0 | G13: الايميل: | H13: =IFERROR(VLOOKUP($A$11,'22'!$A$2:$J$1208,6,0),"") -> 
B14: كلمة المرور : | D14: =IFERROR(VLOOKUP($A$11,'22'!$A$2:$J$1208,5,0),"") -> 0 | G14: كلمة المرور : | I14: =IFERROR(VLOOKUP($A$11,'22'!$A$2:$J$1208,7,0),"") -> 
C15: مسئول المنصة | I15: مدير المدرسة
C16: ='البيانات الاساسية للمدرسة '!$F$11 -> 0 | I16: ='البيانات الاساسية للمدرسة '!$F$7 -> 0
B17: إدارة بني مزار التعليمية | G17: حساب ادمودو والحساب المدرسي الموحد للطلاب
B18: ='[2]البيانات الاساسية للمدرسة '!$F$5 -> مدرسة ساقولا الإعدادية للبنين
A19: =A11+1 -> 6068 | B19: الاسم: | C19: =IFERROR(VLOOKUP($A$19,'22'!$A$2:$J$1208,3,0),"") -> 0 | G19: الصـــف : | H19: =$M$2 -> السادس | I19: الكود : | J19: =IFERROR(VLOOKUP($A$19,'22'!$A$2:$J$1208,2,0),"") -> 0
B20: ادمودو | G20: الحساب المدرسي الموحد
B21: البريد الكتروني : | D21: =IFERROR(VLOOKUP($A$19,'22'!$A$2:$J$1208,4,0),"") -> 0 | G21: الايميل: | H21: =IFERROR(VLOOKUP($A$19,'22'!$A$2:$J$1208,6,0),"") -> 
B22: كلمة المرور : | D22: =IFERROR(VLOOKUP($A$19,'22'!$A$2:$J$1208,5,0),"") -> 0 | G22: كلمة المرور : | I22: =IFERROR(VLOOKUP($A$19,'22'!$A$2:$J$1208,7,0),"") -> 
C23: مسئول المنصة | I23: مدير المدرسة
C24: ='البيانات الاساسية للمدرسة '!$F$11 -> 0 | I24: ='البيانات الاساسية للمدرسة '!$F$7 -> 0
B25: إدارة بني مزار التعليمية | G25: حساب ادمودو والحساب المدرسي الموحد للطلاب
B26: ='[2]البيانات الاساسية للمدرسة '!$F$5 -> مدرسة ساقولا الإعدادية للبنين
A27: =A19+1 -> 6069 | B27: الاسم: | C27: =IFERROR(VLOOKUP($A$27,'22'!$A$2:$J$1208,3,0),"") -> 0 | G27: الصـــف : | H27: =$M$2 -> السادس | I27: الكود : | J27: =IFERROR(VLOOKUP($A$27,'22'!$A$2:$J$1208,2,0),"") -> 0
B28: ادمودو | G28: الحساب المدرسي الموحد
B29: البريد الكتروني : | D29: =IFERROR(VLOOKUP($A$27,'22'!$A$2:$J$1208,4,0),"") -> 0 | G29: الايميل: | H29: =IFERROR(VLOOKUP($A$27,'22'!$A$2:$J$1208,6,0),"") -> 
B30: كلمة المرور : | D30: =IFERROR(VLOOKUP($A$27,'22'!$A$2:$J$1208,5,0),"") -> 0 | G30: كلمة المرور : | I30: =IFERROR(VLOOKUP($A$27,'22'!$A$2:$J$1208,7,0),"") -> 
C31: مسئول المنصة | I31: مدير المدرسة
C32: ='البيانات الاساسية للمدرسة '!$F$11 -> 0 | I32: ='البيانات الاساسية للمدرسة '!$F$7 -> 0
B33: إدارة بني مزار التعليمية | G33: حساب ادمودو والحساب المدرسي الموحد للطلاب
B34: ='[2]البيانات الاساسية للمدرسة '!$F$5 -> مدرسة ساقولا الإعدادية للبنين
A35: =A27+1 -> 6070 | B35: الاسم: | C35: =IFERROR(VLOOKUP($A$35,'22'!$A$2:$J$1208,3,0),"") -> 0 | G35: الصـــف : | H35: =$M$2 -> السادس | I35: الكود : | J35: =IFERROR(VLOOKUP($A$35,'22'!$A$2:$J$1208,2,0),"") -> 0
B36: ادمودو | G36: الحساب المدرسي الموحد
B37: البريد الكتروني : | D37: =IFERROR(VLOOKUP($A$35,'22'!$A$2:$J$1208,4,0),"") -> 0 | G37: الايميل: | H37: =IFERROR(VLOOKUP($A$35,'22'!$A$2:$J$1208,6,0),"") -> 
B38: كلمة المرور : | D38: =IFERROR(VLOOKUP($A$35,'22'!$A$2:$J$1208,5,0),"") -> 0 | G38: كلمة المرور : | I38: =IFERROR(VLOOKUP($A$35,'22'!$A$2:$J$1208,7,0),"") -> 
C39: مسئول المنصة | I39: مدير المدرسة
C40: ='البيانات الاساسية للمدرسة '!$F$11 -> 0 | I40: ='البيانات الاساسية للمدرسة '!$F$7 -> 0

Sheet بيانات ص 1
AQ1: كود الطالب | AR1: رقم الصف
C2: ادارة بني مزار التعليمية | AB2: حساب ادمود | AE2: الحساب المدرسي الموحد | AQ2: 2930601 | AR2: =MATCH($AQ$2,C:C,0) -> 302
C3: ='البيانات الاساسية للمدرسة '!F5 -> 0
C5: بيانات تلاميذ الصف الاول | E5: اجمالي التلاميذ | F5: =COUNT(C8:C301) -> 0 | O5: السن اول اكتوبر
L6: تاريخ ميلاد الطالب | O6: 2020-10-01
A7: م | C7: كود الطالب | D7: اسم الطالب | E7: الرقم القومي | F7: اسم الام رباعيا | G7: تاريخ الميلاد | H7: الجنسية | I7: الديانة | J7: النوع | K7: حالة القيد | L7: يوم | M7: شهر | N7: سنة | O7: يوم | P7: شهر | Q7: سنة | R7: المحافظة | S7: الفصل | U7: بعد التقسيم | Z7: اسم ولي الامر | AB7: اسم المستخدم | AC7: كلمة السر | AD7: الفصل | AF7: اسم المستخدم | AG7: كلمة السر
A8: =IF('بيانات ص 1'!C8="","",SUBTOTAL(3,'بيانات ص 1'!$C$8:C8)) ->  | B8: ='بيانات ص 1'!T8 -> 0 | G8: =IFERROR(DATE(IF(LEFT($E8,1)*1=3,20,19)&MID($E8,2,2),MID($E8,4,2),MID($E8,6,2)),"") ->  | H8: =IF(J8="","",IF(J8="ذكر","مصري","مصرية")) ->  | I8: مسلم | J8: =IFERROR(IF(ISODD(MID(E8,13,1)),"ذكر","انثي"),"") ->  | K8: مستجد | L8: =IF(E8="","",RIGHT(LEFT(E8,7),2)) ->  | M8: =IF(E8="","",RIGHT(LEFT(E8,5),2)) ->  | N8: =IF(E8="","",RIGHT(LEFT(E8,3),2)+2000) ->  | O8: =IFERROR(IF($G8="","",DATEDIF($G8,'بيانات ص 1'!$O$6,"md")),"") ->  | P8: =IFERROR(IF($G8="","",DATEDIF($G8,'بيانات ص 1'!$O$6,"ym")),"") ->  | Q8: =IFERROR(IF($G8="","",DATEDIF($G8,'بيانات ص 1'!$O$6,"y")),"") ->  | R8: =IFERROR(VLOOKUP(MID($E8,8,2)*1,[3]ورقة1!$A$2:$B$29,2,0),"") ->  | S8: 1 | T8: =IF(ISNUMBER(SEARCH('قوائم 1'!$C$1,$S$8:$S$105)),MAX($T$8:T8)+1,0) -> 0 | U8: 1 | V8: =IF($D8="","",Salim_Split_Name($D8,COLUMNS($D8:E8))) ->  | W8: =IF($D8="","",Salim_Split_Name($D8,COLUMNS($D8:F8))) ->  | X8: =IF($D8="","",Salim_Split_Name($D8,COLUMNS($D8:G8))) ->  | Y8: =IF($D8="","",Salim_Split_Name($D8,COLUMNS($D8:H8))) ->  | Z8: =V8&" "&W8&" "&X8&" "&Y8 ->  | AA8: =RIGHT(E8,4) ->  | AB8: =C8 -> 0 | AC8: =AB8&AA8 -> 0 | AD8: =IFERROR(VLOOKUP(S8,ورقة1!$AT$1:$AV$8,3),"") -> 1/1أ | AE8: =RIGHT(E8,13) ->  | AF8: =IF(C8="","",C8&"@minia2.moe.edu.eg") ->  | AG8: =IF(AE8="","","Std#"&LEFT(AE8,6)) -> 
A9: =IF('بيانات ص 1'!C9="","",SUBTOTAL(3,'بيانات ص 1'!$C$8:C9)) ->  | B9: ='بيانات ص 1'!T9 -> 0 | I9: مسلم | K9: مستجد | O9: =IFERROR(IF($G9="","",DATEDIF($G9,'بيانات ص 1'!$O$6,"md")),"") ->  | P9: =IFERROR(IF($G9="","",DATEDIF($G9,'بيانات ص 1'!$O$6,"ym")),"") ->  | Q9: =IFERROR(IF($G9="","",DATEDIF($G9,'بيانات ص 1'!$O$6,"y")),"") ->  | R9: =IFERROR(VLOOKUP(MID($E9,8,2)*1,[3]ورقة1!$A$2:$B$29,2,0),"") ->  | S9: 1 | T9: =IF(ISNUMBER(SEARCH('قوائم 1'!$C$1,$S$8:$S$105)),MAX('بيانات ص 1'!$T$7:T7)+1,0) -> 0 | U9: 1 | V9: =IF($D9="","",Salim_Split_Name($D9,COLUMNS($D9:E9))) ->  | W9: =IF($D9="","",Salim_Split_Name($D9,COLUMNS($D9:F9))) ->  | X9: =IF($D9="","",Salim_Split_Name($D9,COLUMNS($D9:G9))) ->  | Y9: =IF($D9="","",Salim_Split_Name($D9,COLUMNS($D9:H9))) ->  | AA9: =RIGHT(E9,4) ->  | AB9: =C9 -> 0 | AC9: =AB9&AA9 -> 0 | AD9: =IFERROR(VLOOKUP(S9,ورقة1!$AT$1:$AV$8,3),"") -> 1/1أ | AE9: =RIGHT(E9,13) ->  | AF9: =IF(C9="","",C9&"@minia2.moe.edu.eg") ->  | AG9: =IF(AE9="","","Std#"&LEFT(AE9,6)) -> 
A10: =IF('بيانات ص 1'!C10="","",SUBTOTAL(3,'بيانات ص 1'!$C$8:C10)) ->  | B10: ='بيانات ص 1'!T10 -> 1 | I10: مسلم | K10: مستجد | O10: =IFERROR(IF($G10="","",DATEDIF($G10,'بيانات ص 1'!$O$6,"md")),"") ->  | P10: =IFERROR(IF($G10="","",DATEDIF($G10,'بيانات ص 1'!$O$6,"ym")),"") ->  | Q10: =IFERROR(IF($G10="","",DATEDIF($G10,'بيانات ص 1'!$O$6,"y")),"") ->  | R10: =IFERROR(VLOOKUP(MID($E10,8,2)*1,[3]ورقة1!$A$2:$B$29,2,0),"") ->  | S10: 2 | T10: =IF(ISNUMBER(SEARCH('قوائم 1'!$C$1,$S$8:$S$105)),MAX($T$8:T9)+1,0) -> 1 | U10: 2 | V10: =IF($D10="","",Salim_Split_Name($D10,COLUMNS($D10:E10))) ->  | W10: =IF($D10="","",Salim_Split_Name($D10,COLUMNS($D10:F10))) ->  | X10: =IF($D10="","",Salim_Split_Name($D10,COLUMNS($D10:G10))) ->  | Y10: =IF($D10="","",Salim_Split_Name($D10,COLUMNS($D10:H10))) ->  | AB10: 0 | AC10: 0 | AD10: =IFERROR(VLOOKUP(S10,ورقة1!$AT$1:$AV$8,3),"") -> 2/1أ
A11: =IF('بيانات ص 1'!C11="","",SUBTOTAL(3,'بيانات ص 1'!$C$8:C11)) ->  | B11: ='بيانات ص 1'!T11 -> 0 | I11: مسلم | K11: مستجد | O11: =IFERROR(IF($G11="","",DATEDIF($G11,'بيانات ص 1'!$O$6,"md")),"") ->  | P11: =IFERROR(IF($G11="","",DATEDIF($G11,'بيانات ص 1'!$O$6,"ym")),"") ->  | Q11: =IFERROR(IF($G11="","",DATEDIF($G11,'بيانات ص 1'!$O$6,"y")),"") ->  | R11: =IFERROR(VLOOKUP(MID($E11,8,2)*1,[3]ورقة1!$A$2:$B$29,2,0),"") ->  | S11: 3 | T11: =IF(ISNUMBER(SEARCH('قوائم 1'!$C$1,$S$8:$S$105)),MAX($T$8:T10)+1,0) -> 0 | U11: 3 | V11: =IF($D11="","",Salim_Split_Name($D11,COLUMNS($D11:E11))) ->  | W11: =IF($D11="","",Salim_Split_Name($D11,COLUMNS($D11:F11))) ->  | X11: =IF($D11="","",Salim_Split_Name($D11,COLUMNS($D11:G11))) ->  | Y11: =IF($D11="","",Salim_Split_Name($D11,COLUMNS($D11:H11))) ->  | AB11: 0 | AC11: 0 | AD11: =IFERROR(VLOOKUP(S11,ورقة1!$AT$1:$AV$8,3),"") -> 1/1ب | AL11: =26+22+25+25 -> 98
A12: =IF('بيانات ص 1'!C12="","",SUBTOTAL(3,'بيانات ص 1'!$C$8:C12)) ->  | B12: ='بيانات ص 1'!T12 -> 0 | I12: مسلم | K12: مستجد | O12: =IFERROR(IF($G12="","",DATEDIF($G12,'بيانات ص 1'!$O$6,"md")),"") ->  | P12: =IFERROR(IF($G12="","",DATEDIF($G12,'بيانات ص 1'!$O$6,"ym")),"") ->  | Q12: =IFERROR(IF($G12="","",DATEDIF($G12,'بيانات ص 1'!$O$6,"y")),"") ->  | R12: =IFERROR(VLOOKUP(MID($E12,8,2)*1,[3]ورقة1!$A$2:$B$29,2,0),"") ->  | S12: 3 | T12: =IF(ISNUMBER(SEARCH('قوائم 1'!$C$1,$S$8:$S$105)),MAX($T$8:T11)+1,0) -> 0 | U12: 2 | V12: =IF($D12="","",Salim_Split_Name($D12,COLUMNS($D12:E12))) ->  | W12: =IF($D12="","",Salim_Split_Name($D12,COLUMNS($D12:F12))) ->  | X12: =IF($D12="","",Salim_Split_Name($D12,COLUMNS($D12:G12))) ->  | Y12: =IF($D12="","",Salim_Split_Name($D12,COLUMNS($D12:H12))) ->  | AB12: 0 | AC12: 0 | AD12: =IFERROR(VLOOKUP(S12,ورقة1!$AT$1:$AV$8,3),"") -> 1/1ب
A13: =IF('بيانات ص 1'!C13="","",SUBTOTAL(3,'بيانات ص 1'!$C$8:C13)) ->  | B13: ='بيانات ص 1'!T13 -> 0 | I13: مسلم | K13: مستجد | O13: =IFERROR(IF($G13="","",DATEDIF($G13,'بيانات ص 1'!$O$6,"md")),"") ->  | P13: =IFERROR(IF($G13="","",DATEDIF($G13,'بيانات ص 1'!$O$6,"ym")),"") ->  | Q13: =IFERROR(IF($G13="","",DATEDIF($G13,'بيانات ص 1'!$O$6,"y")),"") ->  | R13: =IFERROR(VLOOKUP(MID($E13,8,2)*1,[3]ورقة1!$A$2:$B$29,2,0),"") ->  | S13: 4 | T13: =IF(ISNUMBER(SEARCH('قوائم 1'!$C$1,$S$8:$S$105)),MAX($T$8:T12)+1,0) -> 0 | U13: 4 | V13: =IF($D13="","",Salim_Split_Name($D13,COLUMNS($D13:E13))) ->  | W13: =IF($D13="","",Salim_Split_Name($D13,COLUMNS($D13:F13))) ->  | X13: =IF($D13="","",Salim_Split_Name($D13,COLUMNS($D13:G13))) ->  | Y13: =IF($D13="","",Salim_Split_Name($D13,COLUMNS($D13:H13))) ->  | AB13: 0 | AC13: 0 | AD13: =IFERROR(VLOOKUP(S13,ورقة1!$AT$1:$AV$8,3),"") -> 2/1ب
A14: =IF('بيانات ص 1'!C14="","",SUBTOTAL(3,'بيانات ص 1'!$C$8:C14)) ->  | B14: ='بيانات ص 1'!T14 -> 0 | I14: مسلم | K14: مستجد | O14: =IFERROR(IF($G14="","",DATEDIF($G14,'بيانات ص 1'!$O$6,"md")),"") ->  | P14: =IFERROR(IF($G14="","",DATEDIF($G14,'بيانات ص 1'!$O$6,"ym")),"") ->  | Q14: =IFERROR(IF($G14="","",DATEDIF($G14,'بيانات ص 1'!$O$6,"y")),"") ->  | R14: =IFERROR(VLOOKUP(MID($E14,8,2)*1,[3]ورقة1!$A$2:$B$29,2,0),"") ->  | S14: 1 | T14: =IF(ISNUMBER(SEARCH('قوائم 1'!$C$1,$S$8:$S$105)),MAX($T$8:T13)+1,0) -> 0 | U14: 1 | V14: =IF($D14="","",Salim_Split_Name($D14,COLUMNS($D14:E14))) ->  | W14: =IF($D14="","",Salim_Split_Name($D14,COLUMNS($D14:F14))) ->  | X14: =IF($D14="","",Salim_Split_Name($D14,COLUMNS($D14:G14))) ->  | Y14: =IF($D14="","",Salim_Split_Name($D14,COLUMNS($D14:H14))) ->  | AB14: 0 | AC14: 0 | AD14: =IFERROR(VLOOKUP(S14,ورقة1!$AT$1:$AV$8,3),"") -> 1/1أ
A15: =IF('بيانات ص 1'!C15="","",SUBTOTAL(3,'بيانات ص 1'!$C$8:C15)) ->  | B15: ='بيانات ص 1'!T15 -> 2 | I15: مسلم | K15: مستجد | O15: =IFERROR(IF($G15="","",DATEDIF($G15,'بيانات ص 1'!$O$6,"md")),"") ->  | P15: =IFERROR(IF($G15="","",DATEDIF($G15,'بيانات ص 1'!$O$6,"ym")),"") ->  | Q15: =IFERROR(IF($G15="","",DATEDIF($G15,'بيانات ص 1'!$O$6,"y")),"") ->  | R15: =IFERROR(VLOOKUP(MID($E15,8,2)*1,[3]ورقة1!$A$2:$B$29,2,0),"") ->  | S15: 2 | T15: =IF(ISNUMBER(SEARCH('قوائم 1'!$C$1,$S$8:$S$105)),MAX($T$8:T14)+1,0) -> 2 | U15: 2 | V15: =IF($D15="","",Salim_Split_Name($D15,COLUMNS($D15:E15))) ->  | W15: =IF($D15="","",Salim_Split_Name($D15,COLUMNS($D15:F15))) ->  | X15: =IF($D15="","",Salim_Split_Name($D15,COLUMNS($D15:G15))) ->  | Y15: =IF($D15="","",Salim_Split_Name($D15,COLUMNS($D15:H15))) ->  | AB15: 0 | AC15: 0 | AD15: =IFERROR(VLOOKUP(S15,ورقة1!$AT$1:$AV$8,3),"") -> 2/1أ
A16: =IF('بيانات ص 1'!C16="","",SUBTOTAL(3,'بيانات ص 1'!$C$8:C16)) ->  | B16: ='بيانات ص 1'!T16 -> 0 | I16: مسلم | K16: مستجد | O16: =IFERROR(IF($G16="","",DATEDIF($G16,'بيانات ص 1'!$O$6,"md")),"") ->  | P16: =IFERROR(IF($G16="","",DATEDIF($G16,'بيانات ص 1'!$O$6,"ym")),"") ->  | Q16: =IFERROR(IF($G16="","",DATEDIF($G16,'بيانات ص 1'!$O$6,"y")),"") ->  | R16: =IFERROR(VLOOKUP(MID($E16,8,2)*1,[3]ورقة1!$A$2:$B$29,2,0),"") ->  | S16: 3 | T16: =IF(ISNUMBER(SEARCH('قوائم 1'!$C$1,$S$8:$S$105)),MAX($T$8:T15)+1,0) -> 0 | U16: 3 | V16: =IF($D16="","",Salim_Split_Name($D16,COLUMNS($D16:E16))) ->  | W16: =IF($D16="","",Salim_Split_Name($D16,COLUMNS($D16:F16))) ->  | X16: =IF($D16="","",Salim_Split_Name($D16,COLUMNS($D16:G16))) ->  | Y16: =IF($D16="","",Salim_Split_Name($D16,COLUMNS($D16:H16))) ->  | AB16: 0 | AC16: 0 | AD16: =IFERROR(VLOOKUP(S16,ورقة1!$AT$1:$AV$8,3),"") -> 1/1ب
A17: =IF('بيانات ص 1'!C17="","",SUBTOTAL(3,'بيانات ص 1'!$C$8:C17)) ->  | B17: ='بيانات ص 1'!T17 -> 0 | I17: مسلم | K17: مستجد | O17: =IFERROR(IF($G17="","",DATEDIF($G17,'بيانات ص 1'!$O$6,"md")),"") ->  | P17: =IFERROR(IF($G17="","",DATEDIF($G17,'بيانات ص 1'!$O$6,"ym")),"") ->  | Q17: =IFERROR(IF($G17="","",DATEDIF($G17,'بيانات ص 1'!$O$6,"y")),"") ->  | R17: =IFERROR(VLOOKUP(MID($E17,8,2)*1,[3]ورقة1!$A$2:$B$29,2,0),"") ->  | S17: 4 | T17: =IF(ISNUMBER(SEARCH('قوائم 1'!$C$1,$S$8:$S$105)),MAX($T$8:T16)+1,0) -> 0 | U17: 4 | V17: =IF($D17="","",Salim_Split_Name($D17,COLUMNS($D17:E17))) ->  | W17: =IF($D17="","",Salim_Split_Name($D17,COLUMNS($D17:F17))) ->  | X17: =IF($D17="","",Salim_Split_Name($D17,COLUMNS($D17:G17))) ->  | Y17: =IF($D17="","",Salim_Split_Name($D17,COLUMNS($D17:H17))) ->  | AB17: 0 | AC17: 0 | AD17: =IFERROR(VLOOKUP(S17,ورقة1!$AT$1:$AV$8,3),"") -> 2/1ب
A18: =IF('بيانات ص 1'!C18="","",SUBTOTAL(3,'بيانات ص 1'!$C$8:C18)) ->  | B18: ='بيانات ص 1'!T18 -> 0 | I18: مسلم | K18: مستجد | O18: =IFERROR(IF($G18="","",DATEDIF($G18,'بيانات ص 1'!$O$6,"md")),"") ->  | P18: =IFERROR(IF($G18="","",DATEDIF($G18,'بيانات ص 1'!$O$6,"ym")),"") ->  | Q18: =IFERROR(IF($G18="","",DATEDIF($G18,'بيانات ص 1'!$O$6,"y")),"") ->  | R18: =IFERROR(VLOOKUP(MID($E18,8,2)*1,[3]ورقة1!$A$2:$B$29,2,0),"") ->  | S18: 1 | T18: =IF(ISNUMBER(SEARCH('قوائم 1'!$C$1,$S$8:$S$105)),MAX($T$8:T17)+1,0) -> 0 | U18: 1 | V18: =IF($D18="","",Salim_Split_Name($D18,COLUMNS($D18:E18))) ->  | W18: =IF($D18="","",Salim_Split_Name($D18,COLUMNS($D18:F18))) ->  | X18: =IF($D18="","",Salim_Split_Name($D18,COLUMNS($D18:G18))) ->  | Y18: =IF($D18="","",Salim_Split_Name($D18,COLUMNS($D18:H18))) ->  | AB18: 0 | AC18: 0 | AD18: =IFERROR(VLOOKUP(S18,ورقة1!$AT$1:$AV$8,3),"") -> 1/1أ
A19: =IF('بيانات ص 1'!C19="","",SUBTOTAL(3,'بيانات ص 1'!$C$8:C19)) ->  | B19: ='بيانات ص 1'!T19 -> 3 | I19: مسلم | K19: مستجد | O19: =IFERROR(IF($G19="","",DATEDIF($G19,'بيانات ص 1'!$O$6,"md")),"") ->  | P19: =IFERROR(IF($G19="","",DATEDIF($G19,'بيانات ص 1'!$O$6,"ym")),"") ->  | Q19: =IFERROR(IF($G19="","",DATEDIF($G19,'بيانات ص 1'!$O$6,"y")),"") ->  | R19: =IFERROR(VLOOKUP(MID($E19,8,2)*1,[3]ورقة1!$A$2:$B$29,2,0),"") ->  | S19: 2 | T19: =IF(ISNUMBER(SEARCH('قوائم 1'!$C$1,$S$8:$S$105)),MAX($T$8:T18)+1,0) -> 3 | U19: 2 | V19: =IF($D19="","",Salim_Split_Name($D19,COLUMNS($D19:E19))) ->  | W19: =IF($D19="","",Salim_Split_Name($D19,COLUMNS($D19:F19))) ->  | X19: =IF($D19="","",Salim_Split_Name($D19,COLUMNS($D19:G19))) ->  | Y19: =IF($D19="","",Salim_Split_Name($D19,COLUMNS($D19:H19))) ->  | AB19: 0 | AC19: 0 | AD19: =IFERROR(VLOOKUP(S19,ورقة1!$AT$1:$AV$8,3),"") -> 2/1أ
A20: =IF('بيانات ص 1'!C20="","",SUBTOTAL(3,'بيانات ص 1'!$C$8:C20)) ->  | B20: ='بيانات ص 1'!T20 -> 0 | I20: مسلم | K20: مستجد | O20: =IFERROR(IF($G20="","",DATEDIF($G20,'بيانات ص 1'!$O$6,"md")),"") ->  | P20: =IFERROR(IF($G20="","",DATEDIF($G20,'بيانات ص 1'!$O$6,"ym")),"") ->  | Q20: =IFERROR(IF($G20="","",DATEDIF($G20,'بيانات ص 1'!$O$6,"y")),"") ->  | R20: =IFERROR(VLOOKUP(MID($E20,8,2)*1,[3]ورقة1!$A$2:$B$29,2,0),"") ->  | S20: 3 | T20: =IF(ISNUMBER(SEARCH('قوائم 1'!$C$1,$S$8:$S$105)),MAX($T$8:T19)+1,0) -> 0 | U20: 3 | V20: =IF($D20="","",Salim_Split_Name($D20,COLUMNS($D20:E20))) ->  | W20: =IF($D20="","",Salim_Split_Name($D20,COLUMNS($D20:F20))) ->  | X20: =IF($D20="","",Salim_Split_Name($D20,COLUMNS($D20:G20))) ->  | Y20: =IF($D20="","",Salim_Split_Name($D20,COLUMNS($D20:H20))) ->  | AB20: 0 | AC20: 0 | AD20: =IFERROR(VLOOKUP(S20,ورقة1!$AT$1:$AV$8,3),"") -> 1/1ب
A21: =IF('بيانات ص 1'!C21="","",SUBTOTAL(3,'بيانات ص 1'!$C$8:C21)) ->  | B21: ='بيانات ص 1'!T21 -> 0 | I21: مسلم | K21: مستجد | O21: =IFERROR(IF($G21="","",DATEDIF($G21,'بيانات ص 1'!$O$6,"md")),"") ->  | P21: =IFERROR(IF($G21="","",DATEDIF($G21,'بيانات ص 1'!$O$6,"ym")),"") ->  | Q21: =IFERROR(IF($G21="","",DATEDIF($G21,'بيانات ص 1'!$O$6,"y")),"") ->  | R21: =IFERROR(VLOOKUP(MID($E21,8,2)*1,[3]ورقة1!$A$2:$B$29,2,0),"") ->  | S21: 4 | T21: =IF(ISNUMBER(SEARCH('قوائم 1'!$C$1,$S$8:$S$105)),MAX($T$8:T20)+1,0) -> 0 | U21: 4 | V21: =IF($D21="","",Salim_Split_Name($D21,COLUMNS($D21:E21))) ->  | W21: =IF($D21="","",Salim_Split_Name($D21,COLUMNS($D21:F21))) ->  | X21: =IF($D21="","",Salim_Split_Name($D21,COLUMNS($D21:G21))) ->  | Y21: =IF($D21="","",Salim_Split_Name($D21,COLUMNS($D21:H21))) ->  | AB21: 0 | AC21: 0 | AD21: =IFERROR(VLOOKUP(S21,ورقة1!$AT$1:$AV$8,3),"") -> 2/1ب
A22: =IF('بيانات ص 1'!C22="","",SUBTOTAL(3,'بيانات ص 1'!$C$8:C22)) ->  | B22: ='بيانات ص 1'!T22 -> 0 | I22: مسلم | K22: مستجد | O22: =IFERROR(IF($G22="","",DATEDIF($G22,'بيانات ص 1'!$O$6,"md")),"") ->  | P22: =IFERROR(IF($G22="","",DATEDIF($G22,'بيانات ص 1'!$O$6,"ym")),"") ->  | Q22: =IFERROR(IF($G22="","",DATEDIF($G22,'بيانات ص 1'!$O$6,"y")),"") ->  | R22: =IFERROR(VLOOKUP(MID($E22,8,2)*1,[3]ورقة1!$A$2:$B$29,2,0),"") ->  | S22: 1 | T22: =IF(ISNUMBER(SEARCH('قوائم 1'!$C$1,$S$8:$S$105)),MAX($T$8:T21)+1,0) -> 0 | U22: 1 | V22: =IF($D22="","",Salim_Split_Name($D22,COLUMNS($D22:E22))) ->  | W22: =IF($D22="","",Salim_Split_Name($D22,COLUMNS($D22:F22))) ->  | X22: =IF($D22="","",Salim_Split_Name($D22,COLUMNS($D22:G22))) ->  | Y22: =IF($D22="","",Salim_Split_Name($D22,COLUMNS($D22:H22))) ->  | AB22: 0 | AC22: 0 | AD22: =IFERROR(VLOOKUP(S22,ورقة1!$AT$1:$AV$8,3),"") -> 1/1أ
A23: =IF('بيانات ص 1'!C23="","",SUBTOTAL(3,'بيانات ص 1'!$C$8:C23)) ->  | B23: ='بيانات ص 1'!T23 -> 4 | I23: مسلم | K23: مستجد | O23: =IFERROR(IF($G23="","",DATEDIF($G23,'بيانات ص 1'!$O$6,"md")),"") ->  | P23: =IFERROR(IF($G23="","",DATEDIF($G23,'بيانات ص 1'!$O$6,"ym")),"") ->  | Q23: =IFERROR(IF($G23="","",DATEDIF($G23,'بيانات ص 1'!$O$6,"y")),"") ->  | R23: =IFERROR(VLOOKUP(MID($E23,8,2)*1,[3]ورقة1!$A$2:$B$29,2,0),"") ->  | S23: 2 | T23: =IF(ISNUMBER(SEARCH('قوائم 1'!$C$1,$S$8:$S$105)),MAX($T$8:T22)+1,0) -> 4 | U23: 2 | V23: =IF($D23="","",Salim_Split_Name($D23,COLUMNS($D23:E23))) ->  | W23: =IF($D23="","",Salim_Split_Name($D23,COLUMNS($D23:F23))) ->  | X23: =IF($D23="","",Salim_Split_Name($D23,COLUMNS($D23:G23))) ->  | Y23: =IF($D23="","",Salim_Split_Name($D23,COLUMNS($D23:H23))) ->  | AB23: 0 | AC23: 0 | AD23: =IFERROR(VLOOKUP(S23,ورقة1!$AT$1:$AV$8,3),"") -> 2/1أ
A24: =IF('بيانات ص 1'!C24="","",SUBTOTAL(3,'بيانات ص 1'!$C$8:C24)) ->  | B24: ='بيانات ص 1'!T24 -> 0 | I24: مسلم | K24: مستجد | O24: =IFERROR(IF($G24="","",DATEDIF($G24,'بيانات ص 1'!$O$6,"md")),"") ->  | P24: =IFERROR(IF($G24="","",DATEDIF($G24,'بيانات ص 1'!$O$6,"ym")),"") ->  | Q24: =IFERROR(IF($G24="","",DATEDIF($G24,'بيانات ص 1'!$O$6,"y")),"") ->  | R24: =IFERROR(VLOOKUP(MID($E24,8,2)*1,[3]ورقة1!$A$2:$B$29,2,0),"") ->  | S24: 3 | T24: =IF(ISNUMBER(SEARCH('قوائم 1'!$C$1,$S$8:$S$105)),MAX($T$8:T23)+1,0) -> 0 | U24: 3 | V24: =IF($D24="","",Salim_Split_Name($D24,COLUMNS($D24:E24))) ->  | W24: =IF($D24="","",Salim_Split_Name($D24,COLUMNS($D24:F24))) ->  | X24: =IF($D24="","",Salim_Split_Name($D24,COLUMNS($D24:G24))) ->  | Y24: =IF($D24="","",Salim_Split_Name($D24,COLUMNS($D24:H24))) ->  | AB24: 0 | AC24: 0 | AD24: =IFERROR(VLOOKUP(S24,ورقة1!$AT$1:$AV$8,3),"") -> 1/1ب
A25: =IF('بيانات ص 1'!C25="","",SUBTOTAL(3,'بيانات ص 1'!$C$8:C25)) ->  | B25: ='بيانات ص 1'!T25 -> 0 | I25: مسلم | K25: مستجد | O25: =IFERROR(IF($G25="","",DATEDIF($G25,'بيانات ص 1'!$O$6,"md")),"") ->  | P25: =IFERROR(IF($G25="","",DATEDIF($G25,'بيانات ص 1'!$O$6,"ym")),"") ->  | Q25: =IFERROR(IF($G25="","",DATEDIF($G25,'بيانات ص 1'!$O$6,"y")),"") ->  | R25: =IFERROR(VLOOKUP(MID($E25,8,2)*1,[3]ورقة1!$A$2:$B$29,2,0),"") ->  | S25: 4 | T25: =IF(ISNUMBER(SEARCH('قوائم 1'!$C$1,$S$8:$S$105)),MAX($T$8:T24)+1,0) -> 0 | U25: 4 | V25: =IF($D25="","",Salim_Split_Name($D25,COLUMNS($D25:E25))) ->  | W25: =IF($D25="","",Salim_Split_Name($D25,COLUMNS($D25:F25))) ->  | X25: =IF($D25="","",Salim_Split_Name($D25,COLUMNS($D25:G25))) ->  | Y25: =IF($D25="","",Salim_Split_Name($D25,COLUMNS($D25:H25))) ->  | AB25: 0 | AC25: 0 | AD25: =IFERROR(VLOOKUP(S25,ورقة1!$AT$1:$AV$8,3),"") -> 2/1ب
A26: =IF('بيانات ص 1'!C26="","",SUBTOTAL(3,'بيانات ص 1'!$C$8:C26)) ->  | B26: ='بيانات ص 1'!T26 -> 0 | I26: مسلم | K26: مستجد | O26: =IFERROR(IF($G26="","",DATEDIF($G26,'بيانات ص 1'!$O$6,"md")),"") ->  | P26: =IFERROR(IF($G26="","",DATEDIF($G26,'بيانات ص 1'!$O$6,"ym")),"") ->  | Q26: =IFERROR(IF($G26="","",DATEDIF($G26,'بيانات ص 1'!$O$6,"y")),"") ->  | R26: =IFERROR(VLOOKUP(MID($E26,8,2)*1,[3]ورقة1!$A$2:$B$29,2,0),"") ->  | S26: 1 | T26: =IF(ISNUMBER(SEARCH('قوائم 1'!$C$1,$S$8:$S$105)),MAX($T$8:T25)+1,0) -> 0 | U26: 1 | V26: =IF($D26="","",Salim_Split_Name($D26,COLUMNS($D26:E26))) ->  | W26: =IF($D26="","",Salim_Split_Name($D26,COLUMNS($D26:F26))) ->  | X26: =IF($D26="","",Salim_Split_Name($D26,COLUMNS($D26:G26))) ->  | Y26: =IF($D26="","",Salim_Split_Name($D26,COLUMNS($D26:H26))) ->  | AB26: 0 | AC26: 0 | AD26: =IFERROR(VLOOKUP(S26,ورقة1!$AT$1:$AV$8,3),"") -> 1/1أ
A27: =IF('بيانات ص 1'!C27="","",SUBTOTAL(3,'بيانات ص 1'!$C$8:C27)) ->  | B27: ='بيانات ص 1'!T27 -> 5 | I27: مسلم | K27: مستجد | O27: =IFERROR(IF($G27="","",DATEDIF($G27,'بيانات ص 1'!$O$6,"md")),"") ->  | P27: =IFERROR(IF($G27="","",DATEDIF($G27,'بيانات ص 1'!$O$6,"ym")),"") ->  | Q27: =IFERROR(IF($G27="","",DATEDIF($G27,'بيانات ص 1'!$O$6,"y")),"") ->  | R27: =IFERROR(VLOOKUP(MID($E27,8,2)*1,[3]ورقة1!$A$2:$B$29,2,0),"") ->  | S27: 2 | T27: =IF(ISNUMBER(SEARCH('قوائم 1'!$C$1,$S$8:$S$105)),MAX($T$8:T26)+1,0) -> 5 | U27: 2 | V27: =IF($D27="","",Salim_Split_Name($D27,COLUMNS($D27:E27))) ->  | W27: =IF($D27="","",Salim_Split_Name($D27,COLUMNS($D27:F27))) ->  | X27: =IF($D27="","",Salim_Split_Name($D27,COLUMNS($D27:G27))) ->  | Y27: =IF($D27="","",Salim_Split_Name($D27,COLUMNS($D27:H27))) ->  | AB27: 0 | AC27: 0 | AD27: =IFERROR(VLOOKUP(S27,ورقة1!$AT$1:$AV$8,3),"") -> 2/1أ
A28: =IF('بيانات ص 1'!C28="","",SUBTOTAL(3,'بيانات ص 1'!$C$8:C28)) ->  | B28: ='بيانات ص 1'!T28 -> 0 | I28: مسلم | K28: مستجد | O28: =IFERROR(IF($G28="","",DATEDIF($G28,'بيانات ص 1'!$O$6,"md")),"") ->  | P28: =IFERROR(IF($G28="","",DATEDIF($G28,'بيانات ص 1'!$O$6,"ym")),"") ->  | Q28: =IFERROR(IF($G28="","",DATEDIF($G28,'بيانات ص 1'!$O$6,"y")),"") ->  | R28: =IFERROR(VLOOKUP(MID($E28,8,2)*1,[3]ورقة1!$A$2:$B$29,2,0),"") ->  | S28: 4 | T28: =IF(ISNUMBER(SEARCH('قوائم 1'!$C$1,$S$8:$S$105)),MAX($T$8:T27)+1,0) -> 0 | U28: 4 | V28: =IF($D28="","",Salim_Split_Name($D28,COLUMNS($D28:E28))) ->  | W28: =IF($D28="","",Salim_Split_Name($D28,COLUMNS($D28:F28))) ->  | X28: =IF($D28="","",Salim_Split_Name($D28,COLUMNS($D28:G28))) ->  | Y28: =IF($D28="","",Salim_Split_Name($D28,COLUMNS($D28:H28))) ->  | AB28: 0 | AC28: 0 | AD28: =IFERROR(VLOOKUP(S28,ورقة1!$AT$1:$AV$8,3),"") -> 2/1ب
A29: =IF('بيانات ص 1'!C29="","",SUBTOTAL(3,'بيانات ص 1'!$C$8:C29)) ->  | B29: ='بيانات ص 1'!T29 -> 0 | I29: مسلم | K29: مستجد | O29: =IFERROR(IF($G29="","",DATEDIF($G29,'بيانات ص 1'!$O$6,"md")),"") ->  | P29: =IFERROR(IF($G29="","",DATEDIF($G29,'بيانات ص 1'!$O$6,"ym")),"") ->  | Q29: =IFERROR(IF($G29="","",DATEDIF($G29,'بيانات ص 1'!$O$6,"y")),"") ->  | R29: =IFERROR(VLOOKUP(MID($E29,8,2)*1,[3]ورقة1!$A$2:$B$29,2,0),"") ->  | S29: 1 | T29: =IF(ISNUMBER(SEARCH('قوائم 1'!$C$1,$S$8:$S$105)),MAX($T$8:T28)+1,0) -> 0 | U29: 1 | V29: =IF($D29="","",Salim_Split_Name($D29,COLUMNS($D29:E29))) ->  | W29: =IF($D29="","",Salim_Split_Name($D29,COLUMNS($D29:F29))) ->  | X29: =IF($D29="","",Salim_Split_Name($D29,COLUMNS($D29:G29))) ->  | Y29: =IF($D29="","",Salim_Split_Name($D29,COLUMNS($D29:H29))) ->  | AB29: 0 | AC29: 0 | AD29: =IFERROR(VLOOKUP(S29,ورقة1!$AT$1:$AV$8,3),"") -> 1/1أ
A30: =IF('بيانات ص 1'!C30="","",SUBTOTAL(3,'بيانات ص 1'!$C$8:C30)) ->  | B30: ='بيانات ص 1'!T30 -> 6 | I30: مسلم | K30: مستجد | O30: =IFERROR(IF($G30="","",DATEDIF($G30,'بيانات ص 1'!$O$6,"md")),"") ->  | P30: =IFERROR(IF($G30="","",DATEDIF($G30,'بيانات ص 1'!$O$6,"ym")),"") ->  | Q30: =IFERROR(IF($G30="","",DATEDIF($G30,'بيانات ص 1'!$O$6,"y")),"") ->  | R30: =IFERROR(VLOOKUP(MID($E30,8,2)*1,[3]ورقة1!$A$2:$B$29,2,0),"") ->  | S30: 2 | T30: =IF(ISNUMBER(SEARCH('قوائم 1'!$C$1,$S$8:$S$105)),MAX($T$8:T29)+1,0) -> 6 | U30: 2 | V30: =IF($D30="","",Salim_Split_Name($D30,COLUMNS($D30:E30))) ->  | W30: =IF($D30="","",Salim_Split_Name($D30,COLUMNS($D30:F30))) ->  | X30: =IF($D30="","",Salim_Split_Name($D30,COLUMNS($D30:G30))) ->  | Y30: =IF($D30="","",Salim_Split_Name($D30,COLUMNS($D30:H30))) ->  | AB30: 0 | AC30: 0 | AD30: =IFERROR(VLOOKUP(S30,ورقة1!$AT$1:$AV$8,3),"") -> 2/1أ
A31: =IF('بيانات ص 1'!C31="","",SUBTOTAL(3,'بيانات ص 1'!$C$8:C31)) ->  | B31: ='بيانات ص 1'!T31 -> 0 | I31: مسلم | K31: مستجد | O31: =IFERROR(IF($G31="","",DATEDIF($G31,'بيانات ص 1'!$O$6,"md")),"") ->  | P31: =IFERROR(IF($G31="","",DATEDIF($G31,'بيانات ص 1'!$O$6,"ym")),"") ->  | Q31: =IFERROR(IF($G31="","",DATEDIF($G31,'بيانات ص 1'!$O$6,"y")),"") ->  | R31: =IFERROR(VLOOKUP(MID($E31,8,2)*1,[3]ورقة1!$A$2:$B$29,2,0),"") ->  | S31: 3 | T31: =IF(ISNUMBER(SEARCH('قوائم 1'!$C$1,$S$8:$S$105)),MAX($T$8:T30)+1,0) -> 0 | U31: 3 | V31: =IF($D31="","",Salim_Split_Name($D31,COLUMNS($D31:E31))) ->  | W31: =IF($D31="","",Salim_Split_Name($D31,COLUMNS($D31:F31))) ->  | X31: =IF($D31="","",Salim_Split_Name($D31,COLUMNS($D31:G31))) ->  | Y31: =IF($D31="","",Salim_Split_Name($D31,COLUMNS($D31:H31))) ->  | AB31: 0 | AC31: 0 | AD31: =IFERROR(VLOOKUP(S31,ورقة1!$AT$1:$AV$8,3),"") -> 1/1ب
A32: =IF('بيانات ص 1'!C32="","",SUBTOTAL(3,'بيانات ص 1'!$C$8:C32)) ->  | B32: ='بيانات ص 1'!T32 -> 0 | I32: مسلم | K32: مستجد | O32: =IFERROR(IF($G32="","",DATEDIF($G32,'بيانات ص 1'!$O$6,"md")),"") ->  | P32: =IFERROR(IF($G32="","",DATEDIF($G32,'بيانات ص 1'!$O$6,"ym")),"") ->  | Q32: =IFERROR(IF($G32="","",DATEDIF($G32,'بيانات ص 1'!$O$6,"y")),"") ->  | R32: =IFERROR(VLOOKUP(MID($E32,8,2)*1,[3]ورقة1!$A$2:$B$29,2,0),"") ->  | S32: 4 | T32: =IF(ISNUMBER(SEARCH('قوائم 1'!$C$1,$S$8:$S$105)),MAX($T$8:T31)+1,0) -> 0 | U32: 4 | V32: =IF($D32="","",Salim_Split_Name($D32,COLUMNS($D32:E32))) ->  | W32: =IF($D32="","",Salim_Split_Name($D32,COLUMNS($D32:F32))) ->  | X32: =IF($D32="","",Salim_Split_Name($D32,COLUMNS($D32:G32))) ->  | Y32: =IF($D32="","",Salim_Split_Name($D32,COLUMNS($D32:H32))) ->  | AB32: 0 | AC32: 0 | AD32: =IFERROR(VLOOKUP(S32,ورقة1!$AT$1:$AV$8,3),"") -> 2/1ب
A33: =IF('بيانات ص 1'!C33="","",SUBTOTAL(3,'بيانات ص 1'!$C$8:C33)) ->  | B33: ='بيانات ص 1'!T33 -> 0 | I33: مسلم | K33: مستجد | O33: =IFERROR(IF($G33="","",DATEDIF($G33,'بيانات ص 1'!$O$6,"md")),"") ->  | P33: =IFERROR(IF($G33="","",DATEDIF($G33,'بيانات ص 1'!$O$6,"ym")),"") ->  | Q33: =IFERROR(IF($G33="","",DATEDIF($G33,'بيانات ص 1'!$O$6,"y")),"") ->  | R33: =IFERROR(VLOOKUP(MID($E33,8,2)*1,[3]ورقة1!$A$2:$B$29,2,0),"") ->  | S33: 1 | T33: =IF(ISNUMBER(SEARCH('قوائم 1'!$C$1,$S$8:$S$105)),MAX($T$8:T32)+1,0) -> 0 | U33: 1 | V33: =IF($D33="","",Salim_Split_Name($D33,COLUMNS($D33:E33))) ->  | W33: =IF($D33="","",Salim_Split_Name($D33,COLUMNS($D33:F33))) ->  | X33: =IF($D33="","",Salim_Split_Name($D33,COLUMNS($D33:G33))) ->  | Y33: =IF($D33="","",Salim_Split_Name($D33,COLUMNS($D33:H33))) ->  | AB33: 0 | AC33: 0 | AD33: =IFERROR(VLOOKUP(S33,ورقة1!$AT$1:$AV$8,3),"") -> 1/1أ
A34: =IF('بيانات ص 1'!C34="","",SUBTOTAL(3,'بيانات ص 1'!$C$8:C34)) ->  | B34: ='بيانات ص 1'!T34 -> 7 | I34: مسلم | K34: مستجد | O34: =IFERROR(IF($G34="","",DATEDIF($G34,'بيانات ص 1'!$O$6,"md")),"") ->  | P34: =IFERROR(IF($G34="","",DATEDIF($G34,'بيانات ص 1'!$O$6,"ym")),"") ->  | Q34: =IFERROR(IF($G34="","",DATEDIF($G34,'بيانات ص 1'!$O$6,"y")),"") ->  | R34: =IFERROR(VLOOKUP(MID($E34,8,2)*1,[3]ورقة1!$A$2:$B$29,2,0),"") ->  | S34: 2 | T34: =IF(ISNUMBER(SEARCH('قوائم 1'!$C$1,$S$8:$S$105)),MAX($T$8:T33)+1,0) -> 7 | U34: 2 | V34: =IF($D34="","",Salim_Split_Name($D34,COLUMNS($D34:E34))) ->  | W34: =IF($D34="","",Salim_Split_Name($D34,COLUMNS($D34:F34))) ->  | X34: =IF($D34="","",Salim_Split_Name($D34,COLUMNS($D34:G34))) ->  | Y34: =IF($D34="","",Salim_Split_Name($D34,COLUMNS($D34:H34))) ->  | AB34: 0 | AC34: 0 | AD34: =IFERROR(VLOOKUP(S34,ورقة1!$AT$1:$AV$8,3),"") -> 2/1أ
A35: =IF('بيانات ص 1'!C35="","",SUBTOTAL(3,'بيانات ص 1'!$C$8:C35)) ->  | B35: ='بيانات ص 1'!T35 -> 0 | I35: مسلم | K35: مستجد | O35: =IFERROR(IF($G35="","",DATEDIF($G35,'بيانات ص 1'!$O$6,"md")),"") ->  | P35: =IFERROR(IF($G35="","",DATEDIF($G35,'بيانات ص 1'!$O$6,"ym")),"") ->  | Q35: =IFERROR(IF($G35="","",DATEDIF($G35,'بيانات ص 1'!$O$6,"y")),"") ->  | R35: =IFERROR(VLOOKUP(MID($E35,8,2)*1,[3]ورقة1!$A$2:$B$29,2,0),"") ->  | S35: 3 | T35: =IF(ISNUMBER(SEARCH('قوائم 1'!$C$1,$S$8:$S$105)),MAX($T$8:T34)+1,0) -> 0 | U35: 3 | V35: =IF($D35="","",Salim_Split_Name($D35,COLUMNS($D35:E35))) ->  | W35: =IF($D35="","",Salim_Split_Name($D35,COLUMNS($D35:F35))) ->  | X35: =IF($D35="","",Salim_Split_Name($D35,COLUMNS($D35:G35))) ->  | Y35: =IF($D35="","",Salim_Split_Name($D35,COLUMNS($D35:H35))) ->  | AB35: 0 | AC35: 0 | AD35: =IFERROR(VLOOKUP(S35,ورقة1!$AT$1:$AV$8,3),"") -> 1/1ب
A36: =IF('بيانات ص 1'!C36="","",SUBTOTAL(3,'بيانات ص 1'!$C$8:C36)) ->  | B36: ='بيانات ص 1'!T36 -> 0 | I36: مسلم | K36: مستجد | O36: =IFERROR(IF($G36="","",DATEDIF($G36,'بيانات ص 1'!$O$6,"md")),"") ->  | P36: =IFERROR(IF($G36="","",DATEDIF($G36,'بيانات ص 1'!$O$6,"ym")),"") ->  | Q36: =IFERROR(IF($G36="","",DATEDIF($G36,'بيانات ص 1'!$O$6,"y")),"") ->  | R36: =IFERROR(VLOOKUP(MID($E36,8,2)*1,[3]ورقة1!$A$2:$B$29,2,0),"") ->  | S36: 4 | T36: =IF(ISNUMBER(SEARCH('قوائم 1'!$C$1,$S$8:$S$105)),MAX($T$8:T35)+1,0) -> 0 | U36: 4 | V36: =IF($D36="","",Salim_Split_Name($D36,COLUMNS($D36:E36))) ->  | W36: =IF($D36="","",Salim_Split_Name($D36,COLUMNS($D36:F36))) ->  | X36: =IF($D36="","",Salim_Split_Name($D36,COLUMNS($D36:G36))) ->  | Y36: =IF($D36="","",Salim_Split_Name($D36,COLUMNS($D36:H36))) ->  | AB36: 0 | AC36: 0 | AD36: =IFERROR(VLOOKUP(S36,ورقة1!$AT$1:$AV$8,3),"") -> 2/1ب
A37: =IF('بيانات ص 1'!C37="","",SUBTOTAL(3,'بيانات ص 1'!$C$8:C37)) ->  | B37: ='بيانات ص 1'!T37 -> 0 | I37: مسلم | K37: مستجد | O37: =IFERROR(IF($G37="","",DATEDIF($G37,'بيانات ص 1'!$O$6,"md")),"") ->  | P37: =IFERROR(IF($G37="","",DATEDIF($G37,'بيانات ص 1'!$O$6,"ym")),"") ->  | Q37: =IFERROR(IF($G37="","",DATEDIF($G37,'بيانات ص 1'!$O$6,"y")),"") ->  | R37: =IFERROR(VLOOKUP(MID($E37,8,2)*1,[3]ورقة1!$A$2:$B$29,2,0),"") ->  | S37: 1 | T37: =IF(ISNUMBER(SEARCH('قوائم 1'!$C$1,$S$8:$S$105)),MAX($T$8:T36)+1,0) -> 0 | U37: 1 | V37: =IF($D37="","",Salim_Split_Name($D37,COLUMNS($D37:E37))) ->  | W37: =IF($D37="","",Salim_Split_Name($D37,COLUMNS($D37:F37))) ->  | X37: =IF($D37="","",Salim_Split_Name($D37,COLUMNS($D37:G37))) ->  | Y37: =IF($D37="","",Salim_Split_Name($D37,COLUMNS($D37:H37))) ->  | AB37: 0 | AC37: 0 | AD37: =IFERROR(VLOOKUP(S37,ورقة1!$AT$1:$AV$8,3),"") -> 1/1أ
A38: =IF('بيانات ص 1'!C38="","",SUBTOTAL(3,'بيانات ص 1'!$C$8:C38)) ->  | B38: ='بيانات ص 1'!T38 -> 8 | I38: مسلم | K38: مستجد | O38: =IFERROR(IF($G38="","",DATEDIF($G38,'بيانات ص 1'!$O$6,"md")),"") ->  | P38: =IFERROR(IF($G38="","",DATEDIF($G38,'بيانات ص 1'!$O$6,"ym")),"") ->  | Q38: =IFERROR(IF($G38="","",DATEDIF($G38,'بيانات ص 1'!$O$6,"y")),"") ->  | R38: =IFERROR(VLOOKUP(MID($E38,8,2)*1,[3]ورقة1!$A$2:$B$29,2,0),"") ->  | S38: 2 | T38: =IF(ISNUMBER(SEARCH('قوائم 1'!$C$1,$S$8:$S$105)),MAX($T$8:T37)+1,0) -> 8 | U38: 2 | V38: =IF($D38="","",Salim_Split_Name($D38,COLUMNS($D38:E38))) ->  | W38: =IF($D38="","",Salim_Split_Name($D38,COLUMNS($D38:F38))) ->  | X38: =IF($D38="","",Salim_Split_Name($D38,COLUMNS($D38:G38))) ->  | Y38: =IF($D38="","",Salim_Split_Name($D38,COLUMNS($D38:H38))) ->  | AB38: 0 | AC38: 0 | AD38: =IFERROR(VLOOKUP(S38,ورقة1!$AT$1:$AV$8,3),"") -> 2/1أ
A39: =IF('بيانات ص 1'!C39="","",SUBTOTAL(3,'بيانات ص 1'!$C$8:C39)) ->  | B39: ='بيانات ص 1'!T39 -> 0 | G39: =IFERROR(DATE(IF(LEFT($E39,1)*1=3,20,19)&MID($E39,2,2),MID($E39,4,2),MID($E39,6,2)),"") ->  | H39: =IF(J39="","",IF(J39="ذكر","مصري","مصرية")) ->  | I39: مسلم | J39: =IFERROR(IF(ISODD(MID(E39,13,1)),"ذكر","انثي"),"") ->  | K39: مستجد | L39: =IF(E39="","",RIGHT(LEFT(E39,7),2)) ->  | M39: =IF(E39="","",RIGHT(LEFT(E39,5),2)) ->  | N39: =IF(E39="","",RIGHT(LEFT(E39,3),2)+2000) ->  | O39: =IFERROR(IF($G39="","",DATEDIF($G39,'بيانات ص 1'!$O$6,"md")),"") ->  | P39: =IFERROR(IF($G39="","",DATEDIF($G39,'بيانات ص 1'!$O$6,"ym")),"") ->  | Q39: =IFERROR(IF($G39="","",DATEDIF($G39,'بيانات ص 1'!$O$6,"y")),"") ->  | R39: =IFERROR(VLOOKUP(MID($E39,8,2)*1,[3]ورقة1!$A$2:$B$29,2,0),"") ->  | S39: 3 | T39: =IF(ISNUMBER(SEARCH('قوائم 1'!$C$1,$S$8:$S$105)),MAX($T$8:T38)+1,0) -> 0 | U39: 3 | V39: =IF($D39="","",Salim_Split_Name($D39,COLUMNS($D39:E39))) ->  | W39: =IF($D39="","",Salim_Split_Name($D39,COLUMNS($D39:F39))) ->  | X39: =IF($D39="","",Salim_Split_Name($D39,COLUMNS($D39:G39))) ->  | Y39: =IF($D39="","",Salim_Split_Name($D39,COLUMNS($D39:H39))) ->  | Z39: =V39&" "&W39&" "&X39&" "&Y39 ->  | AB39: 0 | AC39: 0 | AD39: =IFERROR(VLOOKUP(S39,ورقة1!$AT$1:$AV$8,3),"") -> 1/1ب
A40: =IF('بيانات ص 1'!C40="","",SUBTOTAL(3,'بيانات ص 1'!$C$8:C40)) ->  | B40: ='بيانات ص 1'!T40 -> 0 | I40: مسلم | K40: مستجد | O40: =IFERROR(IF($G40="","",DATEDIF($G40,'بيانات ص 1'!$O$6,"md")),"") ->  | P40: =IFERROR(IF($G40="","",DATEDIF($G40,'بيانات ص 1'!$O$6,"ym")),"") ->  | Q40: =IFERROR(IF($G40="","",DATEDIF($G40,'بيانات ص 1'!$O$6,"y")),"") ->  | R40: =IFERROR(VLOOKUP(MID($E40,8,2)*1,[3]ورقة1!$A$2:$B$29,2,0),"") ->  | S40: 4 | T40: =IF(ISNUMBER(SEARCH('قوائم 1'!$C$1,$S$8:$S$105)),MAX($T$8:T39)+1,0) -> 0 | U40: 4 | V40: =IF($D40="","",Salim_Split_Name($D40,COLUMNS($D40:E40))) ->  | W40: =IF($D40="","",Salim_Split_Name($D40,COLUMNS($D40:F40))) ->  | X40: =IF($D40="","",Salim_Split_Name($D40,COLUMNS($D40:G40))) ->  | Y40: =IF($D40="","",Salim_Split_Name($D40,COLUMNS($D40:H40))) ->  | AB40: 0 | AC40: 0 | AD40: =IFERROR(VLOOKUP(S40,ورقة1!$AT$1:$AV$8,3),"") -> 2/1ب
A41: =IF('بيانات ص 1'!C41="","",SUBTOTAL(3,'بيانات ص 1'!$C$8:C41)) ->  | B41: ='بيانات ص 1'!T41 -> 0 | I41: مسلم | K41: مستجد | O41: =IFERROR(IF($G41="","",DATEDIF($G41,'بيانات ص 1'!$O$6,"md")),"") ->  | P41: =IFERROR(IF($G41="","",DATEDIF($G41,'بيانات ص 1'!$O$6,"ym")),"") ->  | Q41: =IFERROR(IF($G41="","",DATEDIF($G41,'بيانات ص 1'!$O$6,"y")),"") ->  | R41: =IFERROR(VLOOKUP(MID($E41,8,2)*1,[3]ورقة1!$A$2:$B$29,2,0),"") ->  | S41: 1 | T41: =IF(ISNUMBER(SEARCH('قوائم 1'!$C$1,$S$8:$S$105)),MAX($T$8:T40)+1,0) -> 0 | U41: 1 | V41: =IF($D41="","",Salim_Split_Name($D41,COLUMNS($D41:E41))) ->  | W41: =IF($D41="","",Salim_Split_Name($D41,COLUMNS($D41:F41))) ->  | X41: =IF($D41="","",Salim_Split_Name($D41,COLUMNS($D41:G41))) ->  | Y41: =IF($D41="","",Salim_Split_Name($D41,COLUMNS($D41:H41))) ->  | AB41: 0 | AC41: 0 | AD41: =IFERROR(VLOOKUP(S41,ورقة1!$AT$1:$AV$8,3),"") -> 1/1أ
A42: =IF('بيانات ص 1'!C42="","",SUBTOTAL(3,'بيانات ص 1'!$C$8:C42)) ->  | B42: ='بيانات ص 1'!T42 -> 9 | I42: مسلم | K42: مستجد | O42: =IFERROR(IF($G42="","",DATEDIF($G42,'بيانات ص 1'!$O$6,"md")),"") ->  | P42: =IFERROR(IF($G42="","",DATEDIF($G42,'بيانات ص 1'!$O$6,"ym")),"") ->  | Q42: =IFERROR(IF($G42="","",DATEDIF($G42,'بيانات ص 1'!$O$6,"y")),"") ->  | R42: =IFERROR(VLOOKUP(MID($E42,8,2)*1,[3]ورقة1!$A$2:$B$29,2,0),"") ->  | S42: 2 | T42: =IF(ISNUMBER(SEARCH('قوائم 1'!$C$1,$S$8:$S$105)),MAX($T$8:T41)+1,0) -> 9 | U42: 2 | V42: =IF($D42="","",Salim_Split_Name($D42,COLUMNS($D42:E42))) ->  | W42: =IF($D42="","",Salim_Split_Name($D42,COLUMNS($D42:F42))) ->  | X42: =IF($D42="","",Salim_Split_Name($D42,COLUMNS($D42:G42))) ->  | Y42: =IF($D42="","",Salim_Split_Name($D42,COLUMNS($D42:H42))) ->  | AB42: 0 | AC42: 0 | AD42: =IFERROR(VLOOKUP(S42,ورقة1!$AT$1:$AV$8,3),"") -> 2/1أ
A43: =IF('بيانات ص 1'!C43="","",SUBTOTAL(3,'بيانات ص 1'!$C$8:C43)) ->  | B43: ='بيانات ص 1'!T43 -> 0 | I43: مسلم | K43: مستجد | O43: =IFERROR(IF($G43="","",DATEDIF($G43,'بيانات ص 1'!$O$6,"md")),"") ->  | P43: =IFERROR(IF($G43="","",DATEDIF($G43,'بيانات ص 1'!$O$6,"ym")),"") ->  | Q43: =IFERROR(IF($G43="","",DATEDIF($G43,'بيانات ص 1'!$O$6,"y")),"") ->  | R43: =IFERROR(VLOOKUP(MID($E43,8,2)*1,[3]ورقة1!$A$2:$B$29,2,0),"") ->  | S43: 3 | T43: =IF(ISNUMBER(SEARCH('قوائم 1'!$C$1,$S$8:$S$105)),MAX($T$8:T42)+1,0) -> 0 | U43: 3 | V43: =IF($D43="","",Salim_Split_Name($D43,COLUMNS($D43:E43))) ->  | W43: =IF($D43="","",Salim_Split_Name($D43,COLUMNS($D43:F43))) ->  | X43: =IF($D43="","",Salim_Split_Name($D43,COLUMNS($D43:G43))) ->  | Y43: =IF($D43="","",Salim_Split_Name($D43,COLUMNS($D43:H43))) ->  | AB43: 0 | AC43: 0 | AD43: =IFERROR(VLOOKUP(S43,ورقة1!$AT$1:$AV$8,3),"") -> 1/1ب
A44: =IF('بيانات ص 1'!C44="","",SUBTOTAL(3,'بيانات ص 1'!$C$8:C44)) ->  | B44: ='بيانات ص 1'!T44 -> 0 | I44: مسلم | K44: مستجد | O44: =IFERROR(IF($G44="","",DATEDIF($G44,'بيانات ص 1'!$O$6,"md")),"") ->  | P44: =IFERROR(IF($G44="","",DATEDIF($G44,'بيانات ص 1'!$O$6,"ym")),"") ->  | Q44: =IFERROR(IF($G44="","",DATEDIF($G44,'بيانات ص 1'!$O$6,"y")),"") ->  | R44: =IFERROR(VLOOKUP(MID($E44,8,2)*1,[3]ورقة1!$A$2:$B$29,2,0),"") ->  | S44: 1 | T44: =IF(ISNUMBER(SEARCH('قوائم 1'!$C$1,$S$8:$S$105)),MAX($T$8:T43)+1,0) -> 0 | U44: 1 | V44: =IF($D44="","",Salim_Split_Name($D44,COLUMNS($D44:E44))) ->  | W44: =IF($D44="","",Salim_Split_Name($D44,COLUMNS($D44:F44))) ->  | X44: =IF($D44="","",Salim_Split_Name($D44,COLUMNS($D44:G44))) ->  | Y44: =IF($D44="","",Salim_Split_Name($D44,COLUMNS($D44:H44))) ->  | AB44: 0 | AC44: 0 | AD44: =IFERROR(VLOOKUP(S44,ورقة1!$AT$1:$AV$8,3),"") -> 1/1أ
A45: =IF('بيانات ص 1'!C45="","",SUBTOTAL(3,'بيانات ص 1'!$C$8:C45)) ->  | B45: ='بيانات ص 1'!T45 -> 10 | I45: مسلم | K45: مستجد | O45: =IFERROR(IF($G45="","",DATEDIF($G45,'بيانات ص 1'!$O$6,"md")),"") ->  | P45: =IFERROR(IF($G45="","",DATEDIF($G45,'بيانات ص 1'!$O$6,"ym")),"") ->  | Q45: =IFERROR(IF($G45="","",DATEDIF($G45,'بيانات ص 1'!$O$6,"y")),"") ->  | R45: =IFERROR(VLOOKUP(MID($E45,8,2)*1,[3]ورقة1!$A$2:$B$29,2,0),"") ->  | S45: 2 | T45: =IF(ISNUMBER(SEARCH('قوائم 1'!$C$1,$S$8:$S$105)),MAX($T$8:T44)+1,0) -> 10 | U45: 2 | V45: =IF($D45="","",Salim_Split_Name($D45,COLUMNS($D45:E45))) ->  | W45: =IF($D45="","",Salim_Split_Name($D45,COLUMNS($D45:F45))) ->  | X45: =IF($D45="","",Salim_Split_Name($D45,COLUMNS($D45:G45))) ->  | Y45: =IF($D45="","",Salim_Split_Name($D45,COLUMNS($D45:H45))) ->  | AB45: 0 | AC45: 0 | AD45: =IFERROR(VLOOKUP(S45,ورقة1!$AT$1:$AV$8,3),"") -> 2/1أ
A46: =IF('بيانات ص 1'!C46="","",SUBTOTAL(3,'بيانات ص 1'!$C$8:C46)) ->  | B46: ='بيانات ص 1'!T46 -> 0 | I46: مسلم | K46: مستجد | O46: =IFERROR(IF($G46="","",DATEDIF($G46,'بيانات ص 1'!$O$6,"md")),"") ->  | P46: =IFERROR(IF($G46="","",DATEDIF($G46,'بيانات ص 1'!$O$6,"ym")),"") ->  | Q46: =IFERROR(IF($G46="","",DATEDIF($G46,'بيانات ص 1'!$O$6,"y")),"") ->  | R46: =IFERROR(VLOOKUP(MID($E46,8,2)*1,[3]ورقة1!$A$2:$B$29,2,0),"") ->  | S46: 3 | T46: =IF(ISNUMBER(SEARCH('قوائم 1'!$C$1,$S$8:$S$105)),MAX($T$8:T45)+1,0) -> 0 | U46: 3 | V46: =IF($D46="","",Salim_Split_Name($D46,COLUMNS($D46:E46))) ->  | W46: =IF($D46="","",Salim_Split_Name($D46,COLUMNS($D46:F46))) ->  | X46: =IF($D46="","",Salim_Split_Name($D46,COLUMNS($D46:G46))) ->  | Y46: =IF($D46="","",Salim_Split_Name($D46,COLUMNS($D46:H46))) ->  | AB46: 0 | AC46: 0 | AD46: =IFERROR(VLOOKUP(S46,ورقة1!$AT$1:$AV$8,3),"") -> 1/1ب
A47: =IF('بيانات ص 1'!C47="","",SUBTOTAL(3,'بيانات ص 1'!$C$8:C47)) ->  | B47: ='بيانات ص 1'!T47 -> 0 | I47: مسلم | K47: مستجد | O47: =IFERROR(IF($G47="","",DATEDIF($G47,'بيانات ص 1'!$O$6,"md")),"") ->  | P47: =IFERROR(IF($G47="","",DATEDIF($G47,'بيانات ص 1'!$O$6,"ym")),"") ->  | Q47: =IFERROR(IF($G47="","",DATEDIF($G47,'بيانات ص 1'!$O$6,"y")),"") ->  | R47: =IFERROR(VLOOKUP(MID($E47,8,2)*1,[3]ورقة1!$A$2:$B$29,2,0),"") ->  | S47: 1 | T47: =IF(ISNUMBER(SEARCH('قوائم 1'!$C$1,$S$8:$S$105)),MAX($T$8:T46)+1,0) -> 0 | U47: 1 | V47: =IF($D47="","",Salim_Split_Name($D47,COLUMNS($D47:E47))) ->  | W47: =IF($D47="","",Salim_Split_Name($D47,COLUMNS($D47:F47))) ->  | X47: =IF($D47="","",Salim_Split_Name($D47,COLUMNS($D47:G47))) ->  | Y47: =IF($D47="","",Salim_Split_Name($D47,COLUMNS($D47:H47))) ->  | AB47: 0 | AC47: 0 | AD47: =IFERROR(VLOOKUP(S47,ورقة1!$AT$1:$AV$8,3),"") -> 1/1أ
A48: =IF('بيانات ص 1'!C48="","",SUBTOTAL(3,'بيانات ص 1'!$C$8:C48)) ->  | B48: ='بيانات ص 1'!T48 -> 11 | I48: مسلم | K48: مستجد | O48: =IFERROR(IF($G48="","",DATEDIF($G48,'بيانات ص 1'!$O$6,"md")),"") ->  | P48: =IFERROR(IF($G48="","",DATEDIF($G48,'بيانات ص 1'!$O$6,"ym")),"") ->  | Q48: =IFERROR(IF($G48="","",DATEDIF($G48,'بيانات ص 1'!$O$6,"y")),"") ->  | R48: =IFERROR(VLOOKUP(MID($E48,8,2)*1,[3]ورقة1!$A$2:$B$29,2,0),"") ->  | S48: 2 | T48: =IF(ISNUMBER(SEARCH('قوائم 1'!$C$1,$S$8:$S$105)),MAX($T$8:T47)+1,0) -> 11 | U48: 2 | V48: =IF($D48="","",Salim_Split_Name($D48,COLUMNS($D48:E48))) ->  | W48: =IF($D48="","",Salim_Split_Name($D48,COLUMNS($D48:F48))) ->  | X48: =IF($D48="","",Salim_Split_Name($D48,COLUMNS($D48:G48))) ->  | Y48: =IF($D48="","",Salim_Split_Name($D48,COLUMNS($D48:H48))) ->  | AB48: 0 | AC48: 0 | AD48: =IFERROR(VLOOKUP(S48,ورقة1!$AT$1:$AV$8,3),"") -> 2/1أ
A49: =IF('بيانات ص 1'!C49="","",SUBTOTAL(3,'بيانات ص 1'!$C$8:C49)) ->  | B49: ='بيانات ص 1'!T49 -> 12 | I49: مسلم | K49: مستجد | O49: =IFERROR(IF($G49="","",DATEDIF($G49,'بيانات ص 1'!$O$6,"md")),"") ->  | P49: =IFERROR(IF($G49="","",DATEDIF($G49,'بيانات ص 1'!$O$6,"ym")),"") ->  | Q49: =IFERROR(IF($G49="","",DATEDIF($G49,'بيانات ص 1'!$O$6,"y")),"") ->  | R49: =IFERROR(VLOOKUP(MID($E49,8,2)*1,[3]ورقة1!$A$2:$B$29,2,0),"") ->  | S49: 2 | T49: =IF(ISNUMBER(SEARCH('قوائم 1'!$C$1,$S$8:$S$105)),MAX($T$8:T48)+1,0) -> 12 | U49: 3 | V49: =IF($D49="","",Salim_Split_Name($D49,COLUMNS($D49:E49))) ->  | W49: =IF($D49="","",Salim_Split_Name($D49,COLUMNS($D49:F49))) ->  | X49: =IF($D49="","",Salim_Split_Name($D49,COLUMNS($D49:G49))) ->  | Y49: =IF($D49="","",Salim_Split_Name($D49,COLUMNS($D49:H49))) ->  | AB49: 0 | AC49: 0 | AD49: =IFERROR(VLOOKUP(S49,ورقة1!$AT$1:$AV$8,3),"") -> 2/1أ
A50: =IF('بيانات ص 1'!C50="","",SUBTOTAL(3,'بيانات ص 1'!$C$8:C50)) ->  | B50: ='بيانات ص 1'!T50 -> 0 | I50: مسلم | K50: مستجد | O50: =IFERROR(IF($G50="","",DATEDIF($G50,'بيانات ص 1'!$O$6,"md")),"") ->  | P50: =IFERROR(IF($G50="","",DATEDIF($G50,'بيانات ص 1'!$O$6,"ym")),"") ->  | Q50: =IFERROR(IF($G50="","",DATEDIF($G50,'بيانات ص 1'!$O$6,"y")),"") ->  | R50: =IFERROR(VLOOKUP(MID($E50,8,2)*1,[3]ورقة1!$A$2:$B$29,2,0),"") ->  | S50: 3 | T50: =IF(ISNUMBER(SEARCH('قوائم 1'!$C$1,$S$8:$S$105)),MAX($T$8:T49)+1,0) -> 0 | U50: 3 | V50: =IF($D50="","",Salim_Split_Name($D50,COLUMNS($D50:E50))) ->  | W50: =IF($D50="","",Salim_Split_Name($D50,COLUMNS($D50:F50))) ->  | X50: =IF($D50="","",Salim_Split_Name($D50,COLUMNS($D50:G50))) ->  | Y50: =IF($D50="","",Salim_Split_Name($D50,COLUMNS($D50:H50))) ->  | AB50: 0 | AC50: 0 | AD50: =IFERROR(VLOOKUP(S50,ورقة1!$AT$1:$AV$8,3),"") -> 1/1ب
A51: =IF('بيانات ص 1'!C51="","",SUBTOTAL(3,'بيانات ص 1'!$C$8:C51)) ->  | B51: ='بيانات ص 1'!T51 -> 0 | I51: مسلم | K51: مستجد | O51: =IFERROR(IF($G51="","",DATEDIF($G51,'بيانات ص 1'!$O$6,"md")),"") ->  | P51: =IFERROR(IF($G51="","",DATEDIF($G51,'بيانات ص 1'!$O$6,"ym")),"") ->  | Q51: =IFERROR(IF($G51="","",DATEDIF($G51,'بيانات ص 1'!$O$6,"y")),"") ->  | R51: =IFERROR(VLOOKUP(MID($E51,8,2)*1,[3]ورقة1!$A$2:$B$29,2,0),"") ->  | S51: 4 | T51: =IF(ISNUMBER(SEARCH('قوائم 1'!$C$1,$S$8:$S$105)),MAX($T$8:T50)+1,0) -> 0 | U51: 4 | V51: =IF($D51="","",Salim_Split_Name($D51,COLUMNS($D51:E51))) ->  | W51: =IF($D51="","",Salim_Split_Name($D51,COLUMNS($D51:F51))) ->  | X51: =IF($D51="","",Salim_Split_Name($D51,COLUMNS($D51:G51))) ->  | Y51: =IF($D51="","",Salim_Split_Name($D51,COLUMNS($D51:H51))) ->  | AB51: 0 | AC51: 0 | AD51: =IFERROR(VLOOKUP(S51,ورقة1!$AT$1:$AV$8,3),"") -> 2/1ب
A52: =IF('بيانات ص 1'!C52="","",SUBTOTAL(3,'بيانات ص 1'!$C$8:C52)) ->  | B52: ='بيانات ص 1'!T52 -> 0 | I52: مسلم | K52: مستجد | O52: =IFERROR(IF($G52="","",DATEDIF($G52,'بيانات ص 1'!$O$6,"md")),"") ->  | P52: =IFERROR(IF($G52="","",DATEDIF($G52,'بيانات ص 1'!$O$6,"ym")),"") ->  | Q52: =IFERROR(IF($G52="","",DATEDIF($G52,'بيانات ص 1'!$O$6,"y")),"") ->  | R52: =IFERROR(VLOOKUP(MID($E52,8,2)*1,[3]ورقة1!$A$2:$B$29,2,0),"") ->  | S52: 1 | T52: =IF(ISNUMBER(SEARCH('قوائم 1'!$C$1,$S$8:$S$105)),MAX($T$8:T51)+1,0) -> 0 | U52: 1 | V52: =IF($D52="","",Salim_Split_Name($D52,COLUMNS($D52:E52))) ->  | W52: =IF($D52="","",Salim_Split_Name($D52,COLUMNS($D52:F52))) ->  | X52: =IF($D52="","",Salim_Split_Name($D52,COLUMNS($D52:G52))) ->  | Y52: =IF($D52="","",Salim_Split_Name($D52,COLUMNS($D52:H52))) ->  | AB52: 0 | AC52: 0 | AD52: =IFERROR(VLOOKUP(S52,ورقة1!$AT$1:$AV$8,3),"") -> 1/1أ
A53: =IF('بيانات ص 1'!C53="","",SUBTOTAL(3,'بيانات ص 1'!$C$8:C53)) ->  | B53: ='بيانات ص 1'!T53 -> 13 | I53: مسلم | K53: مستجد | O53: =IFERROR(IF($G53="","",DATEDIF($G53,'بيانات ص 1'!$O$6,"md")),"") ->  | P53: =IFERROR(IF($G53="","",DATEDIF($G53,'بيانات ص 1'!$O$6,"ym")),"") ->  | Q53: =IFERROR(IF($G53="","",DATEDIF($G53,'بيانات ص 1'!$O$6,"y")),"") ->  | R53: =IFERROR(VLOOKUP(MID($E53,8,2)*1,[3]ورقة1!$A$2:$B$29,2,0),"") ->  | S53: 2 | T53: =IF(ISNUMBER(SEARCH('قوائم 1'!$C$1,$S$8:$S$105)),MAX($T$8:T52)+1,0) -> 13 | U53: 2 | V53: =IF($D53="","",Salim_Split_Name($D53,COLUMNS($D53:E53))) ->  | W53: =IF($D53="","",Salim_Split_Name($D53,COLUMNS($D53:F53))) ->  | X53: =IF($D53="","",Salim_Split_Name($D53,COLUMNS($D53:G53))) ->  | Y53: =IF($D53="","",Salim_Split_Name($D53,COLUMNS($D53:H53))) ->  | AB53: 0 | AC53: 0 | AD53: =IFERROR(VLOOKUP(S53,ورقة1!$AT$1:$AV$8,3),"") -> 2/1أ
A54: =IF('بيانات ص 1'!C54="","",SUBTOTAL(3,'بيانات ص 1'!$C$8:C54)) ->  | B54: ='بيانات ص 1'!T54 -> 0 | I54: مسلم | K54: مستجد | O54: =IFERROR(IF($G54="","",DATEDIF($G54,'بيانات ص 1'!$O$6,"md")),"") ->  | P54: =IFERROR(IF($G54="","",DATEDIF($G54,'بيانات ص 1'!$O$6,"ym")),"") ->  | Q54: =IFERROR(IF($G54="","",DATEDIF($G54,'بيانات ص 1'!$O$6,"y")),"") ->  | R54: =IFERROR(VLOOKUP(MID($E54,8,2)*1,[3]ورقة1!$A$2:$B$29,2,0),"") ->  | S54: 3 | T54: =IF(ISNUMBER(SEARCH('قوائم 1'!$C$1,$S$8:$S$105)),MAX($T$8:T53)+1,0) -> 0 | U54: 3 | V54: =IF($D54="","",Salim_Split_Name($D54,COLUMNS($D54:E54))) ->  | W54: =IF($D54="","",Salim_Split_Name($D54,COLUMNS($D54:F54))) ->  | X54: =IF($D54="","",Salim_Split_Name($D54,COLUMNS($D54:G54))) ->  | Y54: =IF($D54="","",Salim_Split_Name($D54,COLUMNS($D54:H54))) ->  | AB54: 0 | AC54: 0 | AD54: =IFERROR(VLOOKUP(S54,ورقة1!$AT$1:$AV$8,3),"") -> 1/1ب
A55: =IF('بيانات ص 1'!C55="","",SUBTOTAL(3,'بيانات ص 1'!$C$8:C55)) ->  | B55: ='بيانات ص 1'!T55 -> 0 | I55: مسلم | K55: مستجد | O55: =IFERROR(IF($G55="","",DATEDIF($G55,'بيانات ص 1'!$O$6,"md")),"") ->  | P55: =IFERROR(IF($G55="","",DATEDIF($G55,'بيانات ص 1'!$O$6,"ym")),"") ->  | Q55: =IFERROR(IF($G55="","",DATEDIF($G55,'بيانات ص 1'!$O$6,"y")),"") ->  | R55: =IFERROR(VLOOKUP(MID($E55,8,2)*1,[3]ورقة1!$A$2:$B$29,2,0),"") ->  | S55: 4 | T55: =IF(ISNUMBER(SEARCH('قوائم 1'!$C$1,$S$8:$S$105)),MAX($T$8:T54)+1,0) -> 0 | U55: 4 | V55: =IF($D55="","",Salim_Split_Name($D55,COLUMNS($D55:E55))) ->  | W55: =IF($D55="","",Salim_Split_Name($D55,COLUMNS($D55:F55))) ->  | X55: =IF($D55="","",Salim_Split_Name($D55,COLUMNS($D55:G55))) ->  | Y55: =IF($D55="","",Salim_Split_Name($D55,COLUMNS($D55:H55))) ->  | AB55: 0 | AC55: 0 | AD55: =IFERROR(VLOOKUP(S55,ورقة1!$AT$1:$AV$8,3),"") -> 2/1ب
A56: =IF('بيانات ص 1'!C56="","",SUBTOTAL(3,'بيانات ص 1'!$C$8:C56)) ->  | B56: ='بيانات ص 1'!T56 -> 0 | I56: مسلم | K56: مستجد | O56: =IFERROR(IF($G56="","",DATEDIF($G56,'بيانات ص 1'!$O$6,"md")),"") ->  | P56: =IFERROR(IF($G56="","",DATEDIF($G56,'بيانات ص 1'!$O$6,"ym")),"") ->  | Q56: =IFERROR(IF($G56="","",DATEDIF($G56,'بيانات ص 1'!$O$6,"y")),"") ->  | R56: =IFERROR(VLOOKUP(MID($E56,8,2)*1,[3]ورقة1!$A$2:$B$29,2,0),"") ->  | S56: 1 | T56: =IF(ISNUMBER(SEARCH('قوائم 1'!$C$1,$S$8:$S$105)),MAX($T$8:T55)+1,0) -> 0 | U56: 1 | V56: =IF($D56="","",Salim_Split_Name($D56,COLUMNS($D56:E56))) ->  | W56: =IF($D56="","",Salim_Split_Name($D56,COLUMNS($D56:F56))) ->  | X56: =IF($D56="","",Salim_Split_Name($D56,COLUMNS($D56:G56))) ->  | Y56: =IF($D56="","",Salim_Split_Name($D56,COLUMNS($D56:H56))) ->  | AB56: 0 | AC56: 0 | AD56: =IFERROR(VLOOKUP(S56,ورقة1!$AT$1:$AV$8,3),"") -> 1/1أ
A57: =IF('بيانات ص 1'!C57="","",SUBTOTAL(3,'بيانات ص 1'!$C$8:C57)) ->  | B57: ='بيانات ص 1'!T57 -> 14 | I57: مسلم | K57: مستجد | O57: =IFERROR(IF($G57="","",DATEDIF($G57,'بيانات ص 1'!$O$6,"md")),"") ->  | P57: =IFERROR(IF($G57="","",DATEDIF($G57,'بيانات ص 1'!$O$6,"ym")),"") ->  | Q57: =IFERROR(IF($G57="","",DATEDIF($G57,'بيانات ص 1'!$O$6,"y")),"") ->  | R57: =IFERROR(VLOOKUP(MID($E57,8,2)*1,[3]ورقة1!$A$2:$B$29,2,0),"") ->  | S57: 2 | T57: =IF(ISNUMBER(SEARCH('قوائم 1'!$C$1,$S$8:$S$105)),MAX($T$8:T56)+1,0) -> 14 | U57: 2 | V57: =IF($D57="","",Salim_Split_Name($D57,COLUMNS($D57:E57))) ->  | W57: =IF($D57="","",Salim_Split_Name($D57,COLUMNS($D57:F57))) ->  | X57: =IF($D57="","",Salim_Split_Name($D57,COLUMNS($D57:G57))) ->  | Y57: =IF($D57="","",Salim_Split_Name($D57,COLUMNS($D57:H57))) ->  | AB57: 0 | AC57: 0 | AD57: =IFERROR(VLOOKUP(S57,ورقة1!$AT$1:$AV$8,3),"") -> 2/1أ
A58: =IF('بيانات ص 1'!C58="","",SUBTOTAL(3,'بيانات ص 1'!$C$8:C58)) ->  | B58: ='بيانات ص 1'!T58 -> 0 | I58: مسلم | K58: مستجد | O58: =IFERROR(IF($G58="","",DATEDIF($G58,'بيانات ص 1'!$O$6,"md")),"") ->  | P58: =IFERROR(IF($G58="","",DATEDIF($G58,'بيانات ص 1'!$O$6,"ym")),"") ->  | Q58: =IFERROR(IF($G58="","",DATEDIF($G58,'بيانات ص 1'!$O$6,"y")),"") ->  | R58: =IFERROR(VLOOKUP(MID($E58,8,2)*1,[3]ورقة1!$A$2:$B$29,2,0),"") ->  | S58: 3 | T58: =IF(ISNUMBER(SEARCH('قوائم 1'!$C$1,$S$8:$S$105)),MAX($T$8:T57)+1,0) -> 0 | U58: 3 | V58: =IF($D58="","",Salim_Split_Name($D58,COLUMNS($D58:E58))) ->  | W58: =IF($D58="","",Salim_Split_Name($D58,COLUMNS($D58:F58))) ->  | X58: =IF($D58="","",Salim_Split_Name($D58,COLUMNS($D58:G58))) ->  | Y58: =IF($D58="","",Salim_Split_Name($D58,COLUMNS($D58:H58))) ->  | AB58: 0 | AC58: 0 | AD58: =IFERROR(VLOOKUP(S58,ورقة1!$AT$1:$AV$8,3),"") -> 1/1ب
A59: =IF('بيانات ص 1'!C59="","",SUBTOTAL(3,'بيانات ص 1'!$C$8:C59)) ->  | B59: ='بيانات ص 1'!T59 -> 0 | I59: مسلم | K59: مستجد | O59: =IFERROR(IF($G59="","",DATEDIF($G59,'بيانات ص 1'!$O$6,"md")),"") ->  | P59: =IFERROR(IF($G59="","",DATEDIF($G59,'بيانات ص 1'!$O$6,"ym")),"") ->  | Q59: =IFERROR(IF($G59="","",DATEDIF($G59,'بيانات ص 1'!$O$6,"y")),"") ->  | R59: =IFERROR(VLOOKUP(MID($E59,8,2)*1,[3]ورقة1!$A$2:$B$29,2,0),"") ->  | S59: 4 | T59: =IF(ISNUMBER(SEARCH('قوائم 1'!$C$1,$S$8:$S$105)),MAX($T$8:T58)+1,0) -> 0 | U59: 4 | V59: =IF($D59="","",Salim_Split_Name($D59,COLUMNS($D59:E59))) ->  | W59: =IF($D59="","",Salim_Split_Name($D59,COLUMNS($D59:F59))) ->  | X59: =IF($D59="","",Salim_Split_Name($D59,COLUMNS($D59:G59))) ->  | Y59: =IF($D59="","",Salim_Split_Name($D59,COLUMNS($D59:H59))) ->  | AB59: 0 | AC59: 0 | AD59: =IFERROR(VLOOKUP(S59,ورقة1!$AT$1:$AV$8,3),"") -> 2/1ب
A60: =IF('بيانات ص 1'!C60="","",SUBTOTAL(3,'بيانات ص 1'!$C$8:C60)) ->  | B60: ='بيانات ص 1'!T60 -> 0 | I60: مسلم | K60: مستجد | O60: =IFERROR(IF($G60="","",DATEDIF($G60,'بيانات ص 1'!$O$6,"md")),"") ->  | P60: =IFERROR(IF($G60="","",DATEDIF($G60,'بيانات ص 1'!$O$6,"ym")),"") ->  | Q60: =IFERROR(IF($G60="","",DATEDIF($G60,'بيانات ص 1'!$O$6,"y")),"") ->  | R60: =IFERROR(VLOOKUP(MID($E60,8,2)*1,[3]ورقة1!$A$2:$B$29,2,0),"") ->  | S60: 1 | T60: =IF(ISNUMBER(SEARCH('قوائم 1'!$C$1,$S$8:$S$105)),MAX($T$8:T59)+1,0) -> 0 | U60: 1 | V60: =IF($D60="","",Salim_Split_Name($D60,COLUMNS($D60:E60))) ->  | W60: =IF($D60="","",Salim_Split_Name($D60,COLUMNS($D60:F60))) ->  | X60: =IF($D60="","",Salim_Split_Name($D60,COLUMNS($D60:G60))) ->  | Y60: =IF($D60="","",Salim_Split_Name($D60,COLUMNS($D60:H60))) ->  | AB60: 0 | AC60: 0 | AD60: =IFERROR(VLOOKUP(S60,ورقة1!$AT$1:$AV$8,3),"") -> 1/1أ
A61: =IF('بيانات ص 1'!C61="","",SUBTOTAL(3,'بيانات ص 1'!$C$8:C61)) ->  | B61: ='بيانات ص 1'!T61 -> 15 | I61: مسلم | K61: مستجد | O61: =IFERROR(IF($G61="","",DATEDIF($G61,'بيانات ص 1'!$O$6,"md")),"") ->  | P61: =IFERROR(IF($G61="","",DATEDIF($G61,'بيانات ص 1'!$O$6,"ym")),"") ->  | Q61: =IFERROR(IF($G61="","",DATEDIF($G61,'بيانات ص 1'!$O$6,"y")),"") ->  | R61: =IFERROR(VLOOKUP(MID($E61,8,2)*1,[3]ورقة1!$A$2:$B$29,2,0),"") ->  | S61: 2 | T61: =IF(ISNUMBER(SEARCH('قوائم 1'!$C$1,$S$8:$S$105)),MAX($T$8:T60)+1,0) -> 15 | U61: 2 | V61: =IF($D61="","",Salim_Split_Name($D61,COLUMNS($D61:E61))) ->  | W61: =IF($D61="","",Salim_Split_Name($D61,COLUMNS($D61:F61))) ->  | X61: =IF($D61="","",Salim_Split_Name($D61,COLUMNS($D61:G61))) ->  | Y61: =IF($D61="","",Salim_Split_Name($D61,COLUMNS($D61:H61))) ->  | AB61: 0 | AC61: 0 | AD61: =IFERROR(VLOOKUP(S61,ورقة1!$AT$1:$AV$8,3),"") -> 2/1أ
A62: =IF('بيانات ص 1'!C62="","",SUBTOTAL(3,'بيانات ص 1'!$C$8:C62)) ->  | B62: ='بيانات ص 1'!T62 -> 0 | I62: مسلم | K62: مستجد | O62: =IFERROR(IF($G62="","",DATEDIF($G62,'بيانات ص 1'!$O$6,"md")),"") ->  | P62: =IFERROR(IF($G62="","",DATEDIF($G62,'بيانات ص 1'!$O$6,"ym")),"") ->  | Q62: =IFERROR(IF($G62="","",DATEDIF($G62,'بيانات ص 1'!$O$6,"y")),"") ->  | R62: =IFERROR(VLOOKUP(MID($E62,8,2)*1,[3]ورقة1!$A$2:$B$29,2,0),"") ->  | S62: 3 | T62: =IF(ISNUMBER(SEARCH('قوائم 1'!$C$1,$S$8:$S$105)),MAX($T$8:T61)+1,0) -> 0 | U62: 3 | V62: =IF($D62="","",Salim_Split_Name($D62,COLUMNS($D62:E62))) ->  | W62: =IF($D62="","",Salim_Split_Name($D62,COLUMNS($D62:F62))) ->  | X62: =IF($D62="","",Salim_Split_Name($D62,COLUMNS($D62:G62))) ->  | Y62: =IF($D62="","",Salim_Split_Name($D62,COLUMNS($D62:H62))) ->  | AB62: 0 | AC62: 0 | AD62: =IFERROR(VLOOKUP(S62,ورقة1!$AT$1:$AV$8,3),"") -> 1/1ب
A63: =IF('بيانات ص 1'!C63="","",SUBTOTAL(3,'بيانات ص 1'!$C$8:C63)) ->  | B63: ='بيانات ص 1'!T63 -> 0 | I63: مسلم | K63: مستجد | O63: =IFERROR(IF($G63="","",DATEDIF($G63,'بيانات ص 1'!$O$6,"md")),"") ->  | P63: =IFERROR(IF($G63="","",DATEDIF($G63,'بيانات ص 1'!$O$6,"ym")),"") ->  | Q63: =IFERROR(IF($G63="","",DATEDIF($G63,'بيانات ص 1'!$O$6,"y")),"") ->  | R63: =IFERROR(VLOOKUP(MID($E63,8,2)*1,[3]ورقة1!$A$2:$B$29,2,0),"") ->  | S63: 4 | T63: =IF(ISNUMBER(SEARCH('قوائم 1'!$C$1,$S$8:$S$105)),MAX($T$8:T62)+1,0) -> 0 | U63: 4 | V63: =IF($D63="","",Salim_Split_Name($D63,COLUMNS($D63:E63))) ->  | W63: =IF($D63="","",Salim_Split_Name($D63,COLUMNS($D63:F63))) ->  | X63: =IF($D63="","",Salim_Split_Name($D63,COLUMNS($D63:G63))) ->  | Y63: =IF($D63="","",Salim_Split_Name($D63,COLUMNS($D63:H63))) ->  | AB63: 0 | AC63: 0 | AD63: =IFERROR(VLOOKUP(S63,ورقة1!$AT$1:$AV$8,3),"") -> 2/1ب
A64: =IF('بيانات ص 1'!C64="","",SUBTOTAL(3,'بيانات ص 1'!$C$8:C64)) ->  | B64: ='بيانات ص 1'!T64 -> 0 | I64: مسلم | K64: مستجد | O64: =IFERROR(IF($G64="","",DATEDIF($G64,'بيانات ص 1'!$O$6,"md")),"") ->  | P64: =IFERROR(IF($G64="","",DATEDIF($G64,'بيانات ص 1'!$O$6,"ym")),"") ->  | Q64: =IFERROR(IF($G64="","",DATEDIF($G64,'بيانات ص 1'!$O$6,"y")),"") ->  | R64: =IFERROR(VLOOKUP(MID($E64,8,2)*1,[3]ورقة1!$A$2:$B$29,2,0),"") ->  | S64: 1 | T64: =IF(ISNUMBER(SEARCH('قوائم 1'!$C$1,$S$8:$S$105)),MAX($T$8:T63)+1,0) -> 0 | U64: 1 | V64: =IF($D64="","",Salim_Split_Name($D64,COLUMNS($D64:E64))) ->  | W64: =IF($D64="","",Salim_Split_Name($D64,COLUMNS($D64:F64))) ->  | X64: =IF($D64="","",Salim_Split_Name($D64,COLUMNS($D64:G64))) ->  | Y64: =IF($D64="","",Salim_Split_Name($D64,COLUMNS($D64:H64))) ->  | AB64: 0 | AC64: 0 | AD64: =IFERROR(VLOOKUP(S64,ورقة1!$AT$1:$AV$8,3),"") -> 1/1أ
A65: =IF('بيانات ص 1'!C65="","",SUBTOTAL(3,'بيانات ص 1'!$C$8:C65)) ->  | B65: ='بيانات ص 1'!T65 -> 16 | I65: مسلم | K65: مستجد | O65: =IFERROR(IF($G65="","",DATEDIF($G65,'بيانات ص 1'!$O$6,"md")),"") ->  | P65: =IFERROR(IF($G65="","",DATEDIF($G65,'بيانات ص 1'!$O$6,"ym")),"") ->  | Q65: =IFERROR(IF($G65="","",DATEDIF($G65,'بيانات ص 1'!$O$6,"y")),"") ->  | R65: =IFERROR(VLOOKUP(MID($E65,8,2)*1,[3]ورقة1!$A$2:$B$29,2,0),"") ->  | S65: 2 | T65: =IF(ISNUMBER(SEARCH('قوائم 1'!$C$1,$S$8:$S$105)),MAX($T$8:T64)+1,0) -> 16 | U65: 2 | V65: =IF($D65="","",Salim_Split_Name($D65,COLUMNS($D65:E65))) ->  | W65: =IF($D65="","",Salim_Split_Name($D65,COLUMNS($D65:F65))) ->  | X65: =IF($D65="","",Salim_Split_Name($D65,COLUMNS($D65:G65))) ->  | Y65: =IF($D65="","",Salim_Split_Name($D65,COLUMNS($D65:H65))) ->  | AB65: 0 | AC65: 0 | AD65: =IFERROR(VLOOKUP(S65,ورقة1!$AT$1:$AV$8,3),"") -> 2/1أ
A66: =IF('بيانات ص 1'!C66="","",SUBTOTAL(3,'بيانات ص 1'!$C$8:C66)) ->  | B66: ='بيانات ص 1'!T66 -> 0 | I66: مسلم | K66: مستجد | O66: =IFERROR(IF($G66="","",DATEDIF($G66,'بيانات ص 1'!$O$6,"md")),"") ->  | P66: =IFERROR(IF($G66="","",DATEDIF($G66,'بيانات ص 1'!$O$6,"ym")),"") ->  | Q66: =IFERROR(IF($G66="","",DATEDIF($G66,'بيانات ص 1'!$O$6,"y")),"") ->  | R66: =IFERROR(VLOOKUP(MID($E66,8,2)*1,[3]ورقة1!$A$2:$B$29,2,0),"") ->  | S66: 3 | T66: =IF(ISNUMBER(SEARCH('قوائم 1'!$C$1,$S$8:$S$105)),MAX($T$8:T65)+1,0) -> 0 | U66: 3 | V66: =IF($D66="","",Salim_Split_Name($D66,COLUMNS($D66:E66))) ->  | W66: =IF($D66="","",Salim_Split_Name($D66,COLUMNS($D66:F66))) ->  | X66: =IF($D66="","",Salim_Split_Name($D66,COLUMNS($D66:G66))) ->  | Y66: =IF($D66="","",Salim_Split_Name($D66,COLUMNS($D66:H66))) ->  | AB66: 0 | AC66: 0 | AD66: =IFERROR(VLOOKUP(S66,ورقة1!$AT$1:$AV$8,3),"") -> 1/1ب
A67: =IF('بيانات ص 1'!C67="","",SUBTOTAL(3,'بيانات ص 1'!$C$8:C67)) ->  | B67: ='بيانات ص 1'!T67 -> 0 | I67: مسلم | K67: مستجد | O67: =IFERROR(IF($G67="","",DATEDIF($G67,'بيانات ص 1'!$O$6,"md")),"") ->  | P67: =IFERROR(IF($G67="","",DATEDIF($G67,'بيانات ص 1'!$O$6,"ym")),"") ->  | Q67: =IFERROR(IF($G67="","",DATEDIF($G67,'بيانات ص 1'!$O$6,"y")),"") ->  | R67: =IFERROR(VLOOKUP(MID($E67,8,2)*1,[3]ورقة1!$A$2:$B$29,2,0),"") ->  | S67: 4 | T67: =IF(ISNUMBER(SEARCH('قوائم 1'!$C$1,$S$8:$S$105)),MAX($T$8:T66)+1,0) -> 0 | U67: 4 | V67: =IF($D67="","",Salim_Split_Name($D67,COLUMNS($D67:E67))) ->  | W67: =IF($D67="","",Salim_Split_Name($D67,COLUMNS($D67:F67))) ->  | X67: =IF($D67="","",Salim_Split_Name($D67,COLUMNS($D67:G67))) ->  | Y67: =IF($D67="","",Salim_Split_Name($D67,COLUMNS($D67:H67))) ->  | AB67: 0 | AC67: 0 | AD67: =IFERROR(VLOOKUP(S67,ورقة1!$AT$1:$AV$8,3),"") -> 2/1ب
A68: =IF('بيانات ص 1'!C68="","",SUBTOTAL(3,'بيانات ص 1'!$C$8:C68)) ->  | B68: ='بيانات ص 1'!T68 -> 0 | I68: مسلم | K68: مستجد | O68: =IFERROR(IF($G68="","",DATEDIF($G68,'بيانات ص 1'!$O$6,"md")),"") ->  | P68: =IFERROR(IF($G68="","",DATEDIF($G68,'بيانات ص 1'!$O$6,"ym")),"") ->  | Q68: =IFERROR(IF($G68="","",DATEDIF($G68,'بيانات ص 1'!$O$6,"y")),"") ->  | R68: =IFERROR(VLOOKUP(MID($E68,8,2)*1,[3]ورقة1!$A$2:$B$29,2,0),"") ->  | S68: 1 | T68: =IF(ISNUMBER(SEARCH('قوائم 1'!$C$1,$S$8:$S$105)),MAX($T$8:T67)+1,0) -> 0 | U68: 1 | V68: =IF($D68="","",Salim_Split_Name($D68,COLUMNS($D68:E68))) ->  | W68: =IF($D68="","",Salim_Split_Name($D68,COLUMNS($D68:F68))) ->  | X68: =IF($D68="","",Salim_Split_Name($D68,COLUMNS($D68:G68))) ->  | Y68: =IF($D68="","",Salim_Split_Name($D68,COLUMNS($D68:H68))) ->  | AB68: 0 | AC68: 0 | AD68: =IFERROR(VLOOKUP(S68,ورقة1!$AT$1:$AV$8,3),"") -> 1/1أ
A69: =IF('بيانات ص 1'!C69="","",SUBTOTAL(3,'بيانات ص 1'!$C$8:C69)) ->  | B69: ='بيانات ص 1'!T69 -> 17 | G69: =IFERROR(DATE(IF(LEFT($E69,1)*1=3,20,19)&MID($E69,2,2),MID($E69,4,2),MID($E69,6,2)),"") ->  | H69: =IF(J69="","",IF(J69="ذكر","مصري","مصرية")) ->  | I69: مسلم | J69: =IFERROR(IF(ISODD(MID(E69,13,1)),"ذكر","انثي"),"") ->  | K69: مستجد | L69: =IF(E69="","",RIGHT(LEFT(E69,7),2)) ->  | M69: =IF(E69="","",RIGHT(LEFT(E69,5),2)) ->  | N69: =IF(E69="","",RIGHT(LEFT(E69,3),2)+2000) ->  | O69: =IFERROR(IF($G69="","",DATEDIF($G69,'بيانات ص 1'!$O$6,"md")),"") ->  | P69: =IFERROR(IF($G69="","",DATEDIF($G69,'بيانات ص 1'!$O$6,"ym")),"") ->  | Q69: =IFERROR(IF($G69="","",DATEDIF($G69,'بيانات ص 1'!$O$6,"y")),"") ->  | R69: =IFERROR(VLOOKUP(MID($E69,8,2)*1,[3]ورقة1!$A$2:$B$29,2,0),"") ->  | S69: 2 | T69: =IF(ISNUMBER(SEARCH('قوائم 1'!$C$1,$S$8:$S$105)),MAX($T$8:T68)+1,0) -> 17 | U69: 2 | V69: =IF($D69="","",Salim_Split_Name($D69,COLUMNS($D69:E69))) ->  | W69: =IF($D69="","",Salim_Split_Name($D69,COLUMNS($D69:F69))) ->  | X69: =IF($D69="","",Salim_Split_Name($D69,COLUMNS($D69:G69))) ->  | Y69: =IF($D69="","",Salim_Split_Name($D69,COLUMNS($D69:H69))) ->  | Z69: =V69&" "&W69&" "&X69&" "&Y69 ->  | AB69: 0 | AC69: 0 | AD69: =IFERROR(VLOOKUP(S69,ورقة1!$AT$1:$AV$8,3),"") -> 2/1أ
A70: =IF('بيانات ص 1'!C70="","",SUBTOTAL(3,'بيانات ص 1'!$C$8:C70)) ->  | B70: ='بيانات ص 1'!T70 -> 0 | I70: مسلم | K70: مستجد | O70: =IFERROR(IF($G70="","",DATEDIF($G70,'بيانات ص 1'!$O$6,"md")),"") ->  | P70: =IFERROR(IF($G70="","",DATEDIF($G70,'بيانات ص 1'!$O$6,"ym")),"") ->  | Q70: =IFERROR(IF($G70="","",DATEDIF($G70,'بيانات ص 1'!$O$6,"y")),"") ->  | R70: =IFERROR(VLOOKUP(MID($E70,8,2)*1,[3]ورقة1!$A$2:$B$29,2,0),"") ->  | S70: 3 | T70: =IF(ISNUMBER(SEARCH('قوائم 1'!$C$1,$S$8:$S$105)),MAX($T$8:T69)+1,0) -> 0 | U70: 3 | V70: =IF($D70="","",Salim_Split_Name($D70,COLUMNS($D70:E70))) ->  | W70: =IF($D70="","",Salim_Split_Name($D70,COLUMNS($D70:F70))) ->  | X70: =IF($D70="","",Salim_Split_Name($D70,COLUMNS($D70:G70))) ->  | Y70: =IF($D70="","",Salim_Split_Name($D70,COLUMNS($D70:H70))) ->  | AA70: =RIGHT(E70,4) ->  | AB70: =C70 -> 0 | AC70: =AB70&AA70 -> 0 | AD70: =IFERROR(VLOOKUP(S70,ورقة1!$AT$1:$AV$8,3),"") -> 1/1ب
A71: =IF('بيانات ص 1'!C71="","",SUBTOTAL(3,'بيانات ص 1'!$C$8:C71)) ->  | B71: ='بيانات ص 1'!T71 -> 0 | I71: مسلم | K71: مستجد | O71: =IFERROR(IF($G71="","",DATEDIF($G71,'بيانات ص 1'!$O$6,"md")),"") ->  | P71: =IFERROR(IF($G71="","",DATEDIF($G71,'بيانات ص 1'!$O$6,"ym")),"") ->  | Q71: =IFERROR(IF($G71="","",DATEDIF($G71,'بيانات ص 1'!$O$6,"y")),"") ->  | R71: =IFERROR(VLOOKUP(MID($E71,8,2)*1,[3]ورقة1!$A$2:$B$29,2,0),"") ->  | S71: 4 | T71: =IF(ISNUMBER(SEARCH('قوائم 1'!$C$1,$S$8:$S$105)),MAX($T$8:T70)+1,0) -> 0 | U71: 4 | V71: =IF($D71="","",Salim_Split_Name($D71,COLUMNS($D71:E71))) ->  | W71: =IF($D71="","",Salim_Split_Name($D71,COLUMNS($D71:F71))) ->  | X71: =IF($D71="","",Salim_Split_Name($D71,COLUMNS($D71:G71))) ->  | Y71: =IF($D71="","",Salim_Split_Name($D71,COLUMNS($D71:H71))) ->  | AB71: 0 | AC71: 0 | AD71: =IFERROR(VLOOKUP(S71,ورقة1!$AT$1:$AV$8,3),"") -> 2/1ب | AE71: =RIGHT(E71,13) ->  | AF71: =IF(C71="","",C71&"@minia2.moe.edu.eg") ->  | AG71: =IF(AE71="","","Std#"&LEFT(AE71,6)) -> 
A72: =IF('بيانات ص 1'!C72="","",SUBTOTAL(3,'بيانات ص 1'!$C$8:C72)) ->  | B72: ='بيانات ص 1'!T72 -> 0 | I72: مسلم | K72: مستجد | O72: =IFERROR(IF($G72="","",DATEDIF($G72,'بيانات ص 1'!$O$6,"md")),"") ->  | P72: =IFERROR(IF($G72="","",DATEDIF($G72,'بيانات ص 1'!$O$6,"ym")),"") ->  | Q72: =IFERROR(IF($G72="","",DATEDIF($G72,'بيانات ص 1'!$O$6,"y")),"") ->  | R72: =IFERROR(VLOOKUP(MID($E72,8,2)*1,[3]ورقة1!$A$2:$B$29,2,0),"") ->  | S72: 1 | T72: =IF(ISNUMBER(SEARCH('قوائم 1'!$C$1,$S$8:$S$105)),MAX($T$8:T71)+1,0) -> 0 | U72: 1 | V72: =IF($D72="","",Salim_Split_Name($D72,COLUMNS($D72:E72))) ->  | W72: =IF($D72="","",Salim_Split_Name($D72,COLUMNS($D72:F72))) ->  | X72: =IF($D72="","",Salim_Split_Name($D72,COLUMNS($D72:G72))) ->  | Y72: =IF($D72="","",Salim_Split_Name($D72,COLUMNS($D72:H72))) ->  | AB72: 0 | AC72: 0 | AD72: =IFERROR(VLOOKUP(S72,ورقة1!$AT$1:$AV$8,3),"") -> 1/1أ
A73: =IF('بيانات ص 1'!C73="","",SUBTOTAL(3,'بيانات ص 1'!$C$8:C73)) ->  | B73: ='بيانات ص 1'!T73 -> 18 | I73: مسلم | K73: مستجد | O73: =IFERROR(IF($G73="","",DATEDIF($G73,'بيانات ص 1'!$O$6,"md")),"") ->  | P73: =IFERROR(IF($G73="","",DATEDIF($G73,'بيانات ص 1'!$O$6,"ym")),"") ->  | Q73: =IFERROR(IF($G73="","",DATEDIF($G73,'بيانات ص 1'!$O$6,"y")),"") ->  | R73: =IFERROR(VLOOKUP(MID($E73,8,2)*1,[3]ورقة1!$A$2:$B$29,2,0),"") ->  | S73: 2 | T73: =IF(ISNUMBER(SEARCH('قوائم 1'!$C$1,$S$8:$S$105)),MAX($T$8:T72)+1,0) -> 18 | U73: 2 | V73: =IF($D73="","",Salim_Split_Name($D73,COLUMNS($D73:E73))) ->  | W73: =IF($D73="","",Salim_Split_Name($D73,COLUMNS($D73:F73))) ->  | X73: =IF($D73="","",Salim_Split_Name($D73,COLUMNS($D73:G73))) ->  | Y73: =IF($D73="","",Salim_Split_Name($D73,COLUMNS($D73:H73))) ->  | AB73: 0 | AC73: 0 | AD73: =IFERROR(VLOOKUP(S73,ورقة1!$AT$1:$AV$8,3),"") -> 2/1أ
A74: =IF('بيانات ص 1'!C74="","",SUBTOTAL(3,'بيانات ص 1'!$C$8:C74)) ->  | B74: ='بيانات ص 1'!T74 -> 0 | I74: مسلم | K74: مستجد | O74: =IFERROR(IF($G74="","",DATEDIF($G74,'بيانات ص 1'!$O$6,"md")),"") ->  | P74: =IFERROR(IF($G74="","",DATEDIF($G74,'بيانات ص 1'!$O$6,"ym")),"") ->  | Q74: =IFERROR(IF($G74="","",DATEDIF($G74,'بيانات ص 1'!$O$6,"y")),"") ->  | R74: =IFERROR(VLOOKUP(MID($E74,8,2)*1,[3]ورقة1!$A$2:$B$29,2,0),"") ->  | S74: 3 | T74: =IF(ISNUMBER(SEARCH('قوائم 1'!$C$1,$S$8:$S$105)),MAX($T$8:T73)+1,0) -> 0 | U74: 3 | V74: =IF($D74="","",Salim_Split_Name($D74,COLUMNS($D74:E74))) ->  | W74: =IF($D74="","",Salim_Split_Name($D74,COLUMNS($D74:F74))) ->  | X74: =IF($D74="","",Salim_Split_Name($D74,COLUMNS($D74:G74))) ->  | Y74: =IF($D74="","",Salim_Split_Name($D74,COLUMNS($D74:H74))) ->  | AB74: 0 | AC74: 0 | AD74: =IFERROR(VLOOKUP(S74,ورقة1!$AT$1:$AV$8,3),"") -> 1/1ب
A75: =IF('بيانات ص 1'!C75="","",SUBTOTAL(3,'بيانات ص 1'!$C$8:C75)) ->  | B75: ='بيانات ص 1'!T75 -> 0 | I75: مسلم | K75: مستجد | O75: =IFERROR(IF($G75="","",DATEDIF($G75,'بيانات ص 1'!$O$6,"md")),"") ->  | P75: =IFERROR(IF($G75="","",DATEDIF($G75,'بيانات ص 1'!$O$6,"ym")),"") ->  | Q75: =IFERROR(IF($G75="","",DATEDIF($G75,'بيانات ص 1'!$O$6,"y")),"") ->  | R75: =IFERROR(VLOOKUP(MID($E75,8,2)*1,[3]ورقة1!$A$2:$B$29,2,0),"") ->  | S75: 4 | T75: =IF(ISNUMBER(SEARCH('قوائم 1'!$C$1,$S$8:$S$105)),MAX($T$8:T74)+1,0) -> 0 | U75: 4 | V75: =IF($D75="","",Salim_Split_Name($D75,COLUMNS($D75:E75))) ->  | W75: =IF($D75="","",Salim_Split_Name($D75,COLUMNS($D75:F75))) ->  | X75: =IF($D75="","",Salim_Split_Name($D75,COLUMNS($D75:G75))) ->  | Y75: =IF($D75="","",Salim_Split_Name($D75,COLUMNS($D75:H75))) ->  | AB75: 0 | AC75: 0 | AD75: =IFERROR(VLOOKUP(S75,ورقة1!$AT$1:$AV$8,3),"") -> 2/1ب
A76: =IF('بيانات ص 1'!C76="","",SUBTOTAL(3,'بيانات ص 1'!$C$8:C76)) ->  | B76: ='بيانات ص 1'!T76 -> 0 | I76: مسلم | K76: مستجد | O76: =IFERROR(IF($G76="","",DATEDIF($G76,'بيانات ص 1'!$O$6,"md")),"") ->  | P76: =IFERROR(IF($G76="","",DATEDIF($G76,'بيانات ص 1'!$O$6,"ym")),"") ->  | Q76: =IFERROR(IF($G76="","",DATEDIF($G76,'بيانات ص 1'!$O$6,"y")),"") ->  | R76: =IFERROR(VLOOKUP(MID($E76,8,2)*1,[3]ورقة1!$A$2:$B$29,2,0),"") ->  | S76: 1 | T76: =IF(ISNUMBER(SEARCH('قوائم 1'!$C$1,$S$8:$S$105)),MAX($T$8:T75)+1,0) -> 0 | U76: 1 | V76: =IF($D76="","",Salim_Split_Name($D76,COLUMNS($D76:E76))) ->  | W76: =IF($D76="","",Salim_Split_Name($D76,COLUMNS($D76:F76))) ->  | X76: =IF($D76="","",Salim_Split_Name($D76,COLUMNS($D76:G76))) ->  | Y76: =IF($D76="","",Salim_Split_Name($D76,COLUMNS($D76:H76))) ->  | AB76: 0 | AC76: 0 | AD76: =IFERROR(VLOOKUP(S76,ورقة1!$AT$1:$AV$8,3),"") -> 1/1أ
A77: =IF('بيانات ص 1'!C77="","",SUBTOTAL(3,'بيانات ص 1'!$C$8:C77)) ->  | B77: ='بيانات ص 1'!T77 -> 19 | I77: مسلم | K77: مستجد | O77: =IFERROR(IF($G77="","",DATEDIF($G77,'بيانات ص 1'!$O$6,"md")),"") ->  | P77: =IFERROR(IF($G77="","",DATEDIF($G77,'بيانات ص 1'!$O$6,"ym")),"") ->  | Q77: =IFERROR(IF($G77="","",DATEDIF($G77,'بيانات ص 1'!$O$6,"y")),"") ->  | R77: =IFERROR(VLOOKUP(MID($E77,8,2)*1,[3]ورقة1!$A$2:$B$29,2,0),"") ->  | S77: 2 | T77: =IF(ISNUMBER(SEARCH('قوائم 1'!$C$1,$S$8:$S$105)),MAX($T$8:T76)+1,0) -> 19 | U77: 2 | V77: =IF($D77="","",Salim_Split_Name($D77,COLUMNS($D77:E77))) ->  | W77: =IF($D77="","",Salim_Split_Name($D77,COLUMNS($D77:F77))) ->  | X77: =IF($D77="","",Salim_Split_Name($D77,COLUMNS($D77:G77))) ->  | Y77: =IF($D77="","",Salim_Split_Name($D77,COLUMNS($D77:H77))) ->  | AB77: 0 | AC77: 0 | AD77: =IFERROR(VLOOKUP(S77,ورقة1!$AT$1:$AV$8,3),"") -> 2/1أ
A78: =IF('بيانات ص 1'!C78="","",SUBTOTAL(3,'بيانات ص 1'!$C$8:C78)) ->  | B78: ='بيانات ص 1'!T78 -> 20 | I78: مسلم | K78: مستجد | O78: =IFERROR(IF($G78="","",DATEDIF($G78,'بيانات ص 1'!$O$6,"md")),"") ->  | P78: =IFERROR(IF($G78="","",DATEDIF($G78,'بيانات ص 1'!$O$6,"ym")),"") ->  | Q78: =IFERROR(IF($G78="","",DATEDIF($G78,'بيانات ص 1'!$O$6,"y")),"") ->  | R78: =IFERROR(VLOOKUP(MID($E78,8,2)*1,[3]ورقة1!$A$2:$B$29,2,0),"") ->  | S78: 2 | T78: =IF(ISNUMBER(SEARCH('قوائم 1'!$C$1,$S$8:$S$105)),MAX($T$8:T77)+1,0) -> 20 | U78: 3 | V78: =IF($D78="","",Salim_Split_Name($D78,COLUMNS($D78:E78))) ->  | W78: =IF($D78="","",Salim_Split_Name($D78,COLUMNS($D78:F78))) ->  | X78: =IF($D78="","",Salim_Split_Name($D78,COLUMNS($D78:G78))) ->  | Y78: =IF($D78="","",Salim_Split_Name($D78,COLUMNS($D78:H78))) ->  | AB78: 0 | AC78: 0 | AD78: =IFERROR(VLOOKUP(S78,ورقة1!$AT$1:$AV$8,3),"") -> 2/1أ
A79: =IF('بيانات ص 1'!C79="","",SUBTOTAL(3,'بيانات ص 1'!$C$8:C79)) ->  | B79: ='بيانات ص 1'!T79 -> 0 | I79: مسلم | K79: مستجد | O79: =IFERROR(IF($G79="","",DATEDIF($G79,'بيانات ص 1'!$O$6,"md")),"") ->  | P79: =IFERROR(IF($G79="","",DATEDIF($G79,'بيانات ص 1'!$O$6,"ym")),"") ->  | Q79: =IFERROR(IF($G79="","",DATEDIF($G79,'بيانات ص 1'!$O$6,"y")),"") ->  | R79: =IFERROR(VLOOKUP(MID($E79,8,2)*1,[3]ورقة1!$A$2:$B$29,2,0),"") ->  | S79: 4 | T79: =IF(ISNUMBER(SEARCH('قوائم 1'!$C$1,$S$8:$S$105)),MAX($T$8:T78)+1,0) -> 0 | U79: 4 | V79: =IF($D79="","",Salim_Split_Name($D79,COLUMNS($D79:E79))) ->  | W79: =IF($D79="","",Salim_Split_Name($D79,COLUMNS($D79:F79))) ->  | X79: =IF($D79="","",Salim_Split_Name($D79,COLUMNS($D79:G79))) ->  | Y79: =IF($D79="","",Salim_Split_Name($D79,COLUMNS($D79:H79))) ->  | AB79: 0 | AC79: 0 | AD79: =IFERROR(VLOOKUP(S79,ورقة1!$AT$1:$AV$8,3),"") -> 2/1ب
A80: =IF('بيانات ص 1'!C80="","",SUBTOTAL(3,'بيانات ص 1'!$C$8:C80)) ->  | B80: ='بيانات ص 1'!T80 -> 0 | I80: مسلم | K80: مستجد | O80: =IFERROR(IF($G80="","",DATEDIF($G80,'بيانات ص 1'!$O$6,"md")),"") ->  | P80: =IFERROR(IF($G80="","",DATEDIF($G80,'بيانات ص 1'!$O$6,"ym")),"") ->  | Q80: =IFERROR(IF($G80="","",DATEDIF($G80,'بيانات ص 1'!$O$6,"y")),"") ->  | R80: =IFERROR(VLOOKUP(MID($E80,8,2)*1,[3]ورقة1!$A$2:$B$29,2,0),"") ->  | S80: 1 | T80: =IF(ISNUMBER(SEARCH('قوائم 1'!$C$1,$S$8:$S$105)),MAX($T$8:T79)+1,0) -> 0 | U80: 1 | V80: =IF($D80="","",Salim_Split_Name($D80,COLUMNS($D80:E80))) ->  | W80: =IF($D80="","",Salim_Split_Name($D80,COLUMNS($D80:F80))) ->  | X80: =IF($D80="","",Salim_Split_Name($D80,COLUMNS($D80:G80))) ->  | Y80: =IF($D80="","",Salim_Split_Name($D80,COLUMNS($D80:H80))) ->  | AB80: 0 | AC80: 0 | AD80: =IFERROR(VLOOKUP(S80,ورقة1!$AT$1:$AV$8,3),"") -> 1/1أ
A81: =IF('بيانات ص 1'!C81="","",SUBTOTAL(3,'بيانات ص 1'!$C$8:C81)) ->  | B81: ='بيانات ص 1'!T81 -> 21 | I81: مسلم | K81: مستجد | O81: =IFERROR(IF($G81="","",DATEDIF($G81,'بيانات ص 1'!$O$6,"md")),"") ->  | P81: =IFERROR(IF($G81="","",DATEDIF($G81,'بيانات ص 1'!$O$6,"ym")),"") ->  | Q81: =IFERROR(IF($G81="","",DATEDIF($G81,'بيانات ص 1'!$O$6,"y")),"") ->  | R81: =IFERROR(VLOOKUP(MID($E81,8,2)*1,[3]ورقة1!$A$2:$B$29,2,0),"") ->  | S81: 2 | T81: =IF(ISNUMBER(SEARCH('قوائم 1'!$C$1,$S$8:$S$105)),MAX($T$8:T80)+1,0) -> 21 | U81: 2 | V81: =IF($D81="","",Salim_Split_Name($D81,COLUMNS($D81:E81))) ->  | W81: =IF($D81="","",Salim_Split_Name($D81,COLUMNS($D81:F81))) ->  | X81: =IF($D81="","",Salim_Split_Name($D81,COLUMNS($D81:G81))) ->  | Y81: =IF($D81="","",Salim_Split_Name($D81,COLUMNS($D81:H81))) ->  | AB81: 0 | AC81: 0 | AD81: =IFERROR(VLOOKUP(S81,ورقة1!$AT$1:$AV$8,3),"") -> 2/1أ
A82: =IF('بيانات ص 1'!C82="","",SUBTOTAL(3,'بيانات ص 1'!$C$8:C82)) ->  | B82: ='بيانات ص 1'!T82 -> 22 | I82: مسلم | K82: مستجد | O82: =IFERROR(IF($G82="","",DATEDIF($G82,'بيانات ص 1'!$O$6,"md")),"") ->  | P82: =IFERROR(IF($G82="","",DATEDIF($G82,'بيانات ص 1'!$O$6,"ym")),"") ->  | Q82: =IFERROR(IF($G82="","",DATEDIF($G82,'بيانات ص 1'!$O$6,"y")),"") ->  | R82: =IFERROR(VLOOKUP(MID($E82,8,2)*1,[3]ورقة1!$A$2:$B$29,2,0),"") ->  | S82: 2 | T82: =IF(ISNUMBER(SEARCH('قوائم 1'!$C$1,$S$8:$S$105)),MAX($T$8:T81)+1,0) -> 22 | U82: 3 | V82: =IF($D82="","",Salim_Split_Name($D82,COLUMNS($D82:E82))) ->  | W82: =IF($D82="","",Salim_Split_Name($D82,COLUMNS($D82:F82))) ->  | X82: =IF($D82="","",Salim_Split_Name($D82,COLUMNS($D82:G82))) ->  | Y82: =IF($D82="","",Salim_Split_Name($D82,COLUMNS($D82:H82))) ->  | AB82: 0 | AC82: 0 | AD82: =IFERROR(VLOOKUP(S82,ورقة1!$AT$1:$AV$8,3),"") -> 2/1أ
A83: =IF('بيانات ص 1'!C83="","",SUBTOTAL(3,'بيانات ص 1'!$C$8:C83)) ->  | B83: ='بيانات ص 1'!T83 -> 0 | I83: مسلم | K83: مستجد | O83: =IFERROR(IF($G83="","",DATEDIF($G83,'بيانات ص 1'!$O$6,"md")),"") ->  | P83: =IFERROR(IF($G83="","",DATEDIF($G83,'بيانات ص 1'!$O$6,"ym")),"") ->  | Q83: =IFERROR(IF($G83="","",DATEDIF($G83,'بيانات ص 1'!$O$6,"y")),"") ->  | R83: =IFERROR(VLOOKUP(MID($E83,8,2)*1,[3]ورقة1!$A$2:$B$29,2,0),"") ->  | S83: 1 | T83: =IF(ISNUMBER(SEARCH('قوائم 1'!$C$1,$S$8:$S$105)),MAX($T$8:T82)+1,0) -> 0 | U83: 4 | V83: =IF($D83="","",Salim_Split_Name($D83,COLUMNS($D83:E83))) ->  | W83: =IF($D83="","",Salim_Split_Name($D83,COLUMNS($D83:F83))) ->  | X83: =IF($D83="","",Salim_Split_Name($D83,COLUMNS($D83:G83))) ->  | Y83: =IF($D83="","",Salim_Split_Name($D83,COLUMNS($D83:H83))) ->  | AB83: 0 | AC83: 0 | AD83: =IFERROR(VLOOKUP(S83,ورقة1!$AT$1:$AV$8,3),"") -> 1/1أ
A84: =IF('بيانات ص 1'!C84="","",SUBTOTAL(3,'بيانات ص 1'!$C$8:C84)) ->  | B84: ='بيانات ص 1'!T84 -> 0 | I84: مسلم | K84: مستجد | O84: =IFERROR(IF($G84="","",DATEDIF($G84,'بيانات ص 1'!$O$6,"md")),"") ->  | P84: =IFERROR(IF($G84="","",DATEDIF($G84,'بيانات ص 1'!$O$6,"ym")),"") ->  | Q84: =IFERROR(IF($G84="","",DATEDIF($G84,'بيانات ص 1'!$O$6,"y")),"") ->  | R84: =IFERROR(VLOOKUP(MID($E84,8,2)*1,[3]ورقة1!$A$2:$B$29,2,0),"") ->  | S84: 1 | T84: =IF(ISNUMBER(SEARCH('قوائم 1'!$C$1,$S$8:$S$105)),MAX($T$8:T83)+1,0) -> 0 | U84: 1 | V84: =IF($D84="","",Salim_Split_Name($D84,COLUMNS($D84:E84))) ->  | W84: =IF($D84="","",Salim_Split_Name($D84,COLUMNS($D84:F84))) ->  | X84: =IF($D84="","",Salim_Split_Name($D84,COLUMNS($D84:G84))) ->  | Y84: =IF($D84="","",Salim_Split_Name($D84,COLUMNS($D84:H84))) ->  | AB84: 0 | AC84: 0 | AD84: =IFERROR(VLOOKUP(S84,ورقة1!$AT$1:$AV$8,3),"") -> 1/1أ
A85: =IF('بيانات ص 1'!C85="","",SUBTOTAL(3,'بيانات ص 1'!$C$8:C85)) ->  | B85: ='بيانات ص 1'!T85 -> 0 | I85: مسلم | K85: مستجد | O85: =IFERROR(IF($G85="","",DATEDIF($G85,'بيانات ص 1'!$O$6,"md")),"") ->  | P85: =IFERROR(IF($G85="","",DATEDIF($G85,'بيانات ص 1'!$O$6,"ym")),"") ->  | Q85: =IFERROR(IF($G85="","",DATEDIF($G85,'بيانات ص 1'!$O$6,"y")),"") ->  | R85: =IFERROR(VLOOKUP(MID($E85,8,2)*1,[3]ورقة1!$A$2:$B$29,2,0),"") ->  | S85: 1 | T85: =IF(ISNUMBER(SEARCH('قوائم 1'!$C$1,$S$8:$S$105)),MAX($T$8:T84)+1,0) -> 0 | V85: =IF($D85="","",Salim_Split_Name($D85,COLUMNS($D85:E85))) ->  | W85: =IF($D85="","",Salim_Split_Name($D85,COLUMNS($D85:F85))) ->  | X85: =IF($D85="","",Salim_Split_Name($D85,COLUMNS($D85:G85))) ->  | Y85: =IF($D85="","",Salim_Split_Name($D85,COLUMNS($D85:H85))) ->  | AB85: 0 | AC85: 0 | AD85: =IFERROR(VLOOKUP(S85,ورقة1!$AT$1:$AV$8,3),"") -> 1/1أ
A86: =IF('بيانات ص 1'!C86="","",SUBTOTAL(3,'بيانات ص 1'!$C$8:C86)) ->  | B86: ='بيانات ص 1'!T86 -> 23 | I86: مسلم | K86: مستجد | O86: =IFERROR(IF($G86="","",DATEDIF($G86,'بيانات ص 1'!$O$6,"md")),"") ->  | P86: =IFERROR(IF($G86="","",DATEDIF($G86,'بيانات ص 1'!$O$6,"ym")),"") ->  | Q86: =IFERROR(IF($G86="","",DATEDIF($G86,'بيانات ص 1'!$O$6,"y")),"") ->  | R86: =IFERROR(VLOOKUP(MID($E86,8,2)*1,[3]ورقة1!$A$2:$B$29,2,0),"") ->  | S86: 2 | T86: =IF(ISNUMBER(SEARCH('قوائم 1'!$C$1,$S$8:$S$105)),MAX($T$8:T85)+1,0) -> 23 | U86: 2 | V86: =IF($D86="","",Salim_Split_Name($D86,COLUMNS($D86:E86))) ->  | W86: =IF($D86="","",Salim_Split_Name($D86,COLUMNS($D86:F86))) ->  | X86: =IF($D86="","",Salim_Split_Name($D86,COLUMNS($D86:G86))) ->  | Y86: =IF($D86="","",Salim_Split_Name($D86,COLUMNS($D86:H86))) ->  | AB86: 0 | AC86: 0 | AD86: =IFERROR(VLOOKUP(S86,ورقة1!$AT$1:$AV$8,3),"") -> 2/1أ
A87: =IF('بيانات ص 1'!C87="","",SUBTOTAL(3,'بيانات ص 1'!$C$8:C87)) ->  | B87: ='بيانات ص 1'!T87 -> 0 | I87: مسلم | K87: مستجد | O87: =IFERROR(IF($G87="","",DATEDIF($G87,'بيانات ص 1'!$O$6,"md")),"") ->  | P87: =IFERROR(IF($G87="","",DATEDIF($G87,'بيانات ص 1'!$O$6,"ym")),"") ->  | Q87: =IFERROR(IF($G87="","",DATEDIF($G87,'بيانات ص 1'!$O$6,"y")),"") ->  | R87: =IFERROR(VLOOKUP(MID($E87,8,2)*1,[3]ورقة1!$A$2:$B$29,2,0),"") ->  | S87: 3 | T87: =IF(ISNUMBER(SEARCH('قوائم 1'!$C$1,$S$8:$S$105)),MAX($T$8:T86)+1,0) -> 0 | U87: 3 | V87: =IF($D87="","",Salim_Split_Name($D87,COLUMNS($D87:E87))) ->  | W87: =IF($D87="","",Salim_Split_Name($D87,COLUMNS($D87:F87))) ->  | X87: =IF($D87="","",Salim_Split_Name($D87,COLUMNS($D87:G87))) ->  | Y87: =IF($D87="","",Salim_Split_Name($D87,COLUMNS($D87:H87))) ->  | AB87: 0 | AC87: 0 | AD87: =IFERROR(VLOOKUP(S87,ورقة1!$AT$1:$AV$8,3),"") -> 1/1ب
A88: =IF('بيانات ص 1'!C88="","",SUBTOTAL(3,'بيانات ص 1'!$C$8:C88)) ->  | B88: ='بيانات ص 1'!T88 -> 0 | I88: مسلم | K88: مستجد | O88: =IFERROR(IF($G88="","",DATEDIF($G88,'بيانات ص 1'!$O$6,"md")),"") ->  | P88: =IFERROR(IF($G88="","",DATEDIF($G88,'بيانات ص 1'!$O$6,"ym")),"") ->  | Q88: =IFERROR(IF($G88="","",DATEDIF($G88,'بيانات ص 1'!$O$6,"y")),"") ->  | R88: =IFERROR(VLOOKUP(MID($E88,8,2)*1,[3]ورقة1!$A$2:$B$29,2,0),"") ->  | S88: 4 | T88: =IF(ISNUMBER(SEARCH('قوائم 1'!$C$1,$S$8:$S$105)),MAX($T$8:T87)+1,0) -> 0 | U88: 4 | V88: =IF($D88="","",Salim_Split_Name($D88,COLUMNS($D88:E88))) ->  | W88: =IF($D88="","",Salim_Split_Name($D88,COLUMNS($D88:F88))) ->  | X88: =IF($D88="","",Salim_Split_Name($D88,COLUMNS($D88:G88))) ->  | Y88: =IF($D88="","",Salim_Split_Name($D88,COLUMNS($D88:H88))) ->  | AB88: 0 | AC88: 0 | AD88: =IFERROR(VLOOKUP(S88,ورقة1!$AT$1:$AV$8,3),"") -> 2/1ب
A89: =IF('بيانات ص 1'!C89="","",SUBTOTAL(3,'بيانات ص 1'!$C$8:C89)) ->  | B89: ='بيانات ص 1'!T89 -> 0 | I89: مسلم | K89: مستجد | O89: =IFERROR(IF($G89="","",DATEDIF($G89,'بيانات ص 1'!$O$6,"md")),"") ->  | P89: =IFERROR(IF($G89="","",DATEDIF($G89,'بيانات ص 1'!$O$6,"ym")),"") ->  | Q89: =IFERROR(IF($G89="","",DATEDIF($G89,'بيانات ص 1'!$O$6,"y")),"") ->  | R89: =IFERROR(VLOOKUP(MID($E89,8,2)*1,[3]ورقة1!$A$2:$B$29,2,0),"") ->  | S89: 1 | T89: =IF(ISNUMBER(SEARCH('قوائم 1'!$C$1,$S$8:$S$105)),MAX($T$8:T88)+1,0) -> 0 | U89: 1 | V89: =IF($D89="","",Salim_Split_Name($D89,COLUMNS($D89:E89))) ->  | W89: =IF($D89="","",Salim_Split_Name($D89,COLUMNS($D89:F89))) ->  | X89: =IF($D89="","",Salim_Split_Name($D89,COLUMNS($D89:G89))) ->  | Y89: =IF($D89="","",Salim_Split_Name($D89,COLUMNS($D89:H89))) ->  | AB89: 0 | AC89: 0 | AD89: =IFERROR(VLOOKUP(S89,ورقة1!$AT$1:$AV$8,3),"") -> 1/1أ
A90: =IF('بيانات ص 1'!C90="","",SUBTOTAL(3,'بيانات ص 1'!$C$8:C90)) ->  | B90: ='بيانات ص 1'!T90 -> 0 | I90: مسلمة | K90: مستجد | O90: =IFERROR(IF($G90="","",DATEDIF($G90,'بيانات ص 1'!$O$6,"md")),"") ->  | P90: =IFERROR(IF($G90="","",DATEDIF($G90,'بيانات ص 1'!$O$6,"ym")),"") ->  | Q90: =IFERROR(IF($G90="","",DATEDIF($G90,'بيانات ص 1'!$O$6,"y")),"") ->  | R90: =IFERROR(VLOOKUP(MID($E90,8,2)*1,[3]ورقة1!$A$2:$B$29,2,0),"") ->  | S90: 3 | T90: =IF(ISNUMBER(SEARCH('قوائم 1'!$C$1,$S$8:$S$105)),MAX($T$8:T89)+1,0) -> 0 | U90: 2 | V90: =IF($D90="","",Salim_Split_Name($D90,COLUMNS($D90:E90))) ->  | W90: =IF($D90="","",Salim_Split_Name($D90,COLUMNS($D90:F90))) ->  | X90: =IF($D90="","",Salim_Split_Name($D90,COLUMNS($D90:G90))) ->  | Y90: =IF($D90="","",Salim_Split_Name($D90,COLUMNS($D90:H90))) ->  | AB90: 0 | AC90: 0 | AD90: =IFERROR(VLOOKUP(S90,ورقة1!$AT$1:$AV$8,3),"") -> 1/1ب
A91: =IF('بيانات ص 1'!C91="","",SUBTOTAL(3,'بيانات ص 1'!$C$8:C91)) ->  | B91: ='بيانات ص 1'!T91 -> 0 | I91: مسلم | K91: مستجد | O91: =IFERROR(IF($G91="","",DATEDIF($G91,'بيانات ص 1'!$O$6,"md")),"") ->  | P91: =IFERROR(IF($G91="","",DATEDIF($G91,'بيانات ص 1'!$O$6,"ym")),"") ->  | Q91: =IFERROR(IF($G91="","",DATEDIF($G91,'بيانات ص 1'!$O$6,"y")),"") ->  | R91: =IFERROR(VLOOKUP(MID($E91,8,2)*1,[3]ورقة1!$A$2:$B$29,2,0),"") ->  | S91: 3 | T91: =IF(ISNUMBER(SEARCH('قوائم 1'!$C$1,$S$8:$S$105)),MAX($T$8:T90)+1,0) -> 0 | U91: 3 | V91: =IF($D91="","",Salim_Split_Name($D91,COLUMNS($D91:E91))) ->  | W91: =IF($D91="","",Salim_Split_Name($D91,COLUMNS($D91:F91))) ->  | X91: =IF($D91="","",Salim_Split_Name($D91,COLUMNS($D91:G91))) ->  | Y91: =IF($D91="","",Salim_Split_Name($D91,COLUMNS($D91:H91))) ->  | AB91: 0 | AC91: 0 | AD91: =IFERROR(VLOOKUP(S91,ورقة1!$AT$1:$AV$8,3),"") -> 1/1ب
A92: =IF('بيانات ص 1'!C92="","",SUBTOTAL(3,'بيانات ص 1'!$C$8:C92)) ->  | B92: ='بيانات ص 1'!T92 -> 0 | I92: مسلم | K92: مستجد | O92: =IFERROR(IF($G92="","",DATEDIF($G92,'بيانات ص 1'!$O$6,"md")),"") ->  | P92: =IFERROR(IF($G92="","",DATEDIF($G92,'بيانات ص 1'!$O$6,"ym")),"") ->  | Q92: =IFERROR(IF($G92="","",DATEDIF($G92,'بيانات ص 1'!$O$6,"y")),"") ->  | R92: =IFERROR(VLOOKUP(MID($E92,8,2)*1,[3]ورقة1!$A$2:$B$29,2,0),"") ->  | S92: 4 | T92: =IF(ISNUMBER(SEARCH('قوائم 1'!$C$1,$S$8:$S$105)),MAX($T$8:T91)+1,0) -> 0 | U92: 4 | V92: =IF($D92="","",Salim_Split_Name($D92,COLUMNS($D92:E92))) ->  | W92: =IF($D92="","",Salim_Split_Name($D92,COLUMNS($D92:F92))) ->  | X92: =IF($D92="","",Salim_Split_Name($D92,COLUMNS($D92:G92))) ->  | Y92: =IF($D92="","",Salim_Split_Name($D92,COLUMNS($D92:H92))) ->  | AB92: 0 | AC92: 0 | AD92: =IFERROR(VLOOKUP(S92,ورقة1!$AT$1:$AV$8,3),"") -> 2/1ب
A93: =IF('بيانات ص 1'!C93="","",SUBTOTAL(3,'بيانات ص 1'!$C$8:C93)) ->  | B93: ='بيانات ص 1'!T93 -> 0 | I93: مسلم | K93: مستجد | O93: =IFERROR(IF($G93="","",DATEDIF($G93,'بيانات ص 1'!$O$6,"md")),"") ->  | P93: =IFERROR(IF($G93="","",DATEDIF($G93,'بيانات ص 1'!$O$6,"ym")),"") ->  | Q93: =IFERROR(IF($G93="","",DATEDIF($G93,'بيانات ص 1'!$O$6,"y")),"") ->  | R93: =IFERROR(VLOOKUP(MID($E93,8,2)*1,[3]ورقة1!$A$2:$B$29,2,0),"") ->  | S93: 1 | T93: =IF(ISNUMBER(SEARCH('قوائم 1'!$C$1,$S$8:$S$105)),MAX($T$8:T92)+1,0) -> 0 | U93: 1 | V93: =IF($D93="","",Salim_Split_Name($D93,COLUMNS($D93:E93))) ->  | W93: =IF($D93="","",Salim_Split_Name($D93,COLUMNS($D93:F93))) ->  | X93: =IF($D93="","",Salim_Split_Name($D93,COLUMNS($D93:G93))) ->  | Y93: =IF($D93="","",Salim_Split_Name($D93,COLUMNS($D93:H93))) ->  | AB93: 0 | AC93: 0 | AD93: =IFERROR(VLOOKUP(S93,ورقة1!$AT$1:$AV$8,3),"") -> 1/1أ
A94: =IF('بيانات ص 1'!C94="","",SUBTOTAL(3,'بيانات ص 1'!$C$8:C94)) ->  | B94: ='بيانات ص 1'!T94 -> 24 | I94: مسلم | K94: مستجد | O94: =IFERROR(IF($G94="","",DATEDIF($G94,'بيانات ص 1'!$O$6,"md")),"") ->  | P94: =IFERROR(IF($G94="","",DATEDIF($G94,'بيانات ص 1'!$O$6,"ym")),"") ->  | Q94: =IFERROR(IF($G94="","",DATEDIF($G94,'بيانات ص 1'!$O$6,"y")),"") ->  | R94: =IFERROR(VLOOKUP(MID($E94,8,2)*1,[3]ورقة1!$A$2:$B$29,2,0),"") ->  | S94: 2 | T94: =IF(ISNUMBER(SEARCH('قوائم 1'!$C$1,$S$8:$S$105)),MAX($T$8:T93)+1,0) -> 24 | U94: 2 | V94: =IF($D94="","",Salim_Split_Name($D94,COLUMNS($D94:E94))) ->  | W94: =IF($D94="","",Salim_Split_Name($D94,COLUMNS($D94:F94))) ->  | X94: =IF($D94="","",Salim_Split_Name($D94,COLUMNS($D94:G94))) ->  | Y94: =IF($D94="","",Salim_Split_Name($D94,COLUMNS($D94:H94))) ->  | AB94: 0 | AC94: 0 | AD94: =IFERROR(VLOOKUP(S94,ورقة1!$AT$1:$AV$8,3),"") -> 2/1أ
A95: =IF('بيانات ص 1'!C95="","",SUBTOTAL(3,'بيانات ص 1'!$C$8:C95)) ->  | B95: ='بيانات ص 1'!T95 -> 0 | I95: مسلم | K95: مستجد | O95: =IFERROR(IF($G95="","",DATEDIF($G95,'بيانات ص 1'!$O$6,"md")),"") ->  | P95: =IFERROR(IF($G95="","",DATEDIF($G95,'بيانات ص 1'!$O$6,"ym")),"") ->  | Q95: =IFERROR(IF($G95="","",DATEDIF($G95,'بيانات ص 1'!$O$6,"y")),"") ->  | R95: =IFERROR(VLOOKUP(MID($E95,8,2)*1,[3]ورقة1!$A$2:$B$29,2,0),"") ->  | S95: 3 | T95: =IF(ISNUMBER(SEARCH('قوائم 1'!$C$1,$S$8:$S$105)),MAX($T$8:T94)+1,0) -> 0 | U95: 3 | V95: =IF($D95="","",Salim_Split_Name($D95,COLUMNS($D95:E95))) ->  | W95: =IF($D95="","",Salim_Split_Name($D95,COLUMNS($D95:F95))) ->  | X95: =IF($D95="","",Salim_Split_Name($D95,COLUMNS($D95:G95))) ->  | Y95: =IF($D95="","",Salim_Split_Name($D95,COLUMNS($D95:H95))) ->  | AB95: 0 | AC95: 0 | AD95: =IFERROR(VLOOKUP(S95,ورقة1!$AT$1:$AV$8,3),"") -> 1/1ب
A96: =IF('بيانات ص 1'!C96="","",SUBTOTAL(3,'بيانات ص 1'!$C$8:C96)) ->  | B96: ='بيانات ص 1'!T96 -> 0 | I96: مسلم | K96: مستجد | O96: =IFERROR(IF($G96="","",DATEDIF($G96,'بيانات ص 1'!$O$6,"md")),"") ->  | P96: =IFERROR(IF($G96="","",DATEDIF($G96,'بيانات ص 1'!$O$6,"ym")),"") ->  | Q96: =IFERROR(IF($G96="","",DATEDIF($G96,'بيانات ص 1'!$O$6,"y")),"") ->  | R96: =IFERROR(VLOOKUP(MID($E96,8,2)*1,[3]ورقة1!$A$2:$B$29,2,0),"") ->  | S96: 4 | T96: =IF(ISNUMBER(SEARCH('قوائم 1'!$C$1,$S$8:$S$105)),MAX($T$8:T95)+1,0) -> 0 | U96: 4 | V96: =IF($D96="","",Salim_Split_Name($D96,COLUMNS($D96:E96))) ->  | W96: =IF($D96="","",Salim_Split_Name($D96,COLUMNS($D96:F96))) ->  | X96: =IF($D96="","",Salim_Split_Name($D96,COLUMNS($D96:G96))) ->  | Y96: =IF($D96="","",Salim_Split_Name($D96,COLUMNS($D96:H96))) ->  | AB96: 0 | AC96: 0 | AD96: =IFERROR(VLOOKUP(S96,ورقة1!$AT$1:$AV$8,3),"") -> 2/1ب
A97: =IF('بيانات ص 1'!C97="","",SUBTOTAL(3,'بيانات ص 1'!$C$8:C97)) ->  | B97: ='بيانات ص 1'!T97 -> 0 | I97: مسلم | K97: مستجد | O97: =IFERROR(IF($G97="","",DATEDIF($G97,'بيانات ص 1'!$O$6,"md")),"") ->  | P97: =IFERROR(IF($G97="","",DATEDIF($G97,'بيانات ص 1'!$O$6,"ym")),"") ->  | Q97: =IFERROR(IF($G97="","",DATEDIF($G97,'بيانات ص 1'!$O$6,"y")),"") ->  | R97: =IFERROR(VLOOKUP(MID($E97,8,2)*1,[3]ورقة1!$A$2:$B$29,2,0),"") ->  | S97: 1 | T97: =IF(ISNUMBER(SEARCH('قوائم 1'!$C$1,$S$8:$S$105)),MAX($T$8:T96)+1,0) -> 0 | U97: 1 | V97: =IF($D97="","",Salim_Split_Name($D97,COLUMNS($D97:E97))) ->  | W97: =IF($D97="","",Salim_Split_Name($D97,COLUMNS($D97:F97))) ->  | X97: =IF($D97="","",Salim_Split_Name($D97,COLUMNS($D97:G97))) ->  | Y97: =IF($D97="","",Salim_Split_Name($D97,COLUMNS($D97:H97))) ->  | AB97: 0 | AC97: 0 | AD97: =IFERROR(VLOOKUP(S97,ورقة1!$AT$1:$AV$8,3),"") -> 1/1أ
A98: =IF('بيانات ص 1'!C98="","",SUBTOTAL(3,'بيانات ص 1'!$C$8:C98)) ->  | B98: ='بيانات ص 1'!T98 -> 25 | I98: مسلم | K98: مستجد | O98: =IFERROR(IF($G98="","",DATEDIF($G98,'بيانات ص 1'!$O$6,"md")),"") ->  | P98: =IFERROR(IF($G98="","",DATEDIF($G98,'بيانات ص 1'!$O$6,"ym")),"") ->  | Q98: =IFERROR(IF($G98="","",DATEDIF($G98,'بيانات ص 1'!$O$6,"y")),"") ->  | R98: =IFERROR(VLOOKUP(MID($E98,8,2)*1,[3]ورقة1!$A$2:$B$29,2,0),"") ->  | S98: 2 | T98: =IF(ISNUMBER(SEARCH('قوائم 1'!$C$1,$S$8:$S$105)),MAX($T$8:T97)+1,0) -> 25 | U98: 2 | V98: =IF($D98="","",Salim_Split_Name($D98,COLUMNS($D98:E98))) ->  | W98: =IF($D98="","",Salim_Split_Name($D98,COLUMNS($D98:F98))) ->  | X98: =IF($D98="","",Salim_Split_Name($D98,COLUMNS($D98:G98))) ->  | Y98: =IF($D98="","",Salim_Split_Name($D98,COLUMNS($D98:H98))) ->  | AB98: 0 | AC98: 0 | AD98: =IFERROR(VLOOKUP(S98,ورقة1!$AT$1:$AV$8,3),"") -> 2/1أ
A99: =IF('بيانات ص 1'!C99="","",SUBTOTAL(3,'بيانات ص 1'!$C$8:C99)) ->  | B99: ='بيانات ص 1'!T99 -> 0 | I99: مسلم | K99: مستجد | O99: =IFERROR(IF($G99="","",DATEDIF($G99,'بيانات ص 1'!$O$6,"md")),"") ->  | P99: =IFERROR(IF($G99="","",DATEDIF($G99,'بيانات ص 1'!$O$6,"ym")),"") ->  | Q99: =IFERROR(IF($G99="","",DATEDIF($G99,'بيانات ص 1'!$O$6,"y")),"") ->  | R99: =IFERROR(VLOOKUP(MID($E99,8,2)*1,[3]ورقة1!$A$2:$B$29,2,0),"") ->  | S99: 4 | T99: =IF(ISNUMBER(SEARCH('قوائم 1'!$C$1,$S$8:$S$105)),MAX($T$8:T98)+1,0) -> 0 | U99: 1 | V99: =IF($D99="","",Salim_Split_Name($D99,COLUMNS($D99:E99))) ->  | W99: =IF($D99="","",Salim_Split_Name($D99,COLUMNS($D99:F99))) ->  | X99: =IF($D99="","",Salim_Split_Name($D99,COLUMNS($D99:G99))) ->  | Y99: =IF($D99="","",Salim_Split_Name($D99,COLUMNS($D99:H99))) ->  | AB99: 0 | AC99: 0 | AD99: =IFERROR(VLOOKUP(S99,ورقة1!$AT$1:$AV$8,3),"") -> 2/1ب
A100: =IF('بيانات ص 1'!C100="","",SUBTOTAL(3,'بيانات ص 1'!$C$8:C100)) ->  | B100: ='بيانات ص 1'!T100 -> 0 | G100: =IFERROR(DATE(IF(LEFT($E100,1)*1=3,20,19)&MID($E100,2,2),MID($E100,4,2),MID($E100,6,2)),"") ->  | H100: =IF(J100="","",IF(J100="ذكر","مصري","مصرية")) ->  | I100: مسلم | J100: =IFERROR(IF(ISODD(MID(E100,13,1)),"ذكر","انثي"),"") ->  | K100: مستجد | L100: =IF(E100="","",RIGHT(LEFT(E100,7),2)) ->  | M100: =IF(E100="","",RIGHT(LEFT(E100,5),2)) ->  | N100: =IF(E100="","",RIGHT(LEFT(E100,3),2)+2000) ->  | O100: =IFERROR(IF($G100="","",DATEDIF($G100,'بيانات ص 1'!$O$6,"md")),"") ->  | P100: =IFERROR(IF($G100="","",DATEDIF($G100,'بيانات ص 1'!$O$6,"ym")),"") ->  | Q100: =IFERROR(IF($G100="","",DATEDIF($G100,'بيانات ص 1'!$O$6,"y")),"") ->  | R100: =IFERROR(VLOOKUP(MID($E100,8,2)*1,[3]ورقة1!$A$2:$B$29,2,0),"") ->  | S100: 3 | T100: =IF(ISNUMBER(SEARCH('قوائم 1'!$C$1,$S$8:$S$105)),MAX($T$8:T99)+1,0) -> 0 | U100: 3 | V100: =IF($D100="","",Salim_Split_Name($D100,COLUMNS($D100:E100))) ->  | W100: =IF($D100="","",Salim_Split_Name($D100,COLUMNS($D100:F100))) ->  | X100: =IF($D100="","",Salim_Split_Name($D100,COLUMNS($D100:G100))) ->  | Y100: =IF($D100="","",Salim_Split_Name($D100,COLUMNS($D100:H100))) ->  | Z100: =V100&" "&W100&" "&X100&" "&Y100 ->  | AB100: 0 | AC100: 0 | AD100: =IFERROR(VLOOKUP(S100,ورقة1!$AT$1:$AV$8,3),"") -> 1/1ب
A101: =IF('بيانات ص 1'!C101="","",SUBTOTAL(3,'بيانات ص 1'!$C$8:C101)) ->  | B101: ='بيانات ص 1'!T101 -> 0 | I101: مسلم | K101: مستجد | O101: =IFERROR(IF($G101="","",DATEDIF($G101,'بيانات ص 1'!$O$6,"md")),"") ->  | P101: =IFERROR(IF($G101="","",DATEDIF($G101,'بيانات ص 1'!$O$6,"ym")),"") ->  | Q101: =IFERROR(IF($G101="","",DATEDIF($G101,'بيانات ص 1'!$O$6,"y")),"") ->  | R101: =IFERROR(VLOOKUP(MID($E101,8,2)*1,[3]ورقة1!$A$2:$B$29,2,0),"") ->  | S101: 4 | T101: =IF(ISNUMBER(SEARCH('قوائم 1'!$C$1,$S$8:$S$105)),MAX($T$8:T100)+1,0) -> 0 | U101: 4 | V101: =IF($D101="","",Salim_Split_Name($D101,COLUMNS($D101:E101))) ->  | W101: =IF($D101="","",Salim_Split_Name($D101,COLUMNS($D101:F101))) ->  | X101: =IF($D101="","",Salim_Split_Name($D101,COLUMNS($D101:G101))) ->  | Y101: =IF($D101="","",Salim_Split_Name($D101,COLUMNS($D101:H101))) ->  | AB101: 0 | AC101: 0 | AD101: =IFERROR(VLOOKUP(S101,ورقة1!$AT$1:$AV$8,3),"") -> 2/1ب
A102: =IF('بيانات ص 1'!C102="","",SUBTOTAL(3,'بيانات ص 1'!$C$8:C102)) ->  | B102: ='بيانات ص 1'!T102 -> 0 | I102: مسلم | K102: مستجد | O102: =IFERROR(IF($G102="","",DATEDIF($G102,'بيانات ص 1'!$O$6,"md")),"") ->  | P102: =IFERROR(IF($G102="","",DATEDIF($G102,'بيانات ص 1'!$O$6,"ym")),"") ->  | Q102: =IFERROR(IF($G102="","",DATEDIF($G102,'بيانات ص 1'!$O$6,"y")),"") ->  | R102: =IFERROR(VLOOKUP(MID($E102,8,2)*1,[3]ورقة1!$A$2:$B$29,2,0),"") ->  | S102: 1 | T102: =IF(ISNUMBER(SEARCH('قوائم 1'!$C$1,$S$8:$S$105)),MAX($T$8:T101)+1,0) -> 0 | U102: 1 | V102: =IF($D102="","",Salim_Split_Name($D102,COLUMNS($D102:E102))) ->  | W102: =IF($D102="","",Salim_Split_Name($D102,COLUMNS($D102:F102))) ->  | X102: =IF($D102="","",Salim_Split_Name($D102,COLUMNS($D102:G102))) ->  | Y102: =IF($D102="","",Salim_Split_Name($D102,COLUMNS($D102:H102))) ->  | AB102: 0 | AC102: 0 | AD102: =IFERROR(VLOOKUP(S102,ورقة1!$AT$1:$AV$8,3),"") -> 1/1أ
A103: =IF('بيانات ص 1'!C103="","",SUBTOTAL(3,'بيانات ص 1'!$C$8:C103)) ->  | B103: ='بيانات ص 1'!T103 -> 26 | I103: مسلم | K103: مستجد | O103: =IFERROR(IF($G103="","",DATEDIF($G103,'بيانات ص 1'!$O$6,"md")),"") ->  | P103: =IFERROR(IF($G103="","",DATEDIF($G103,'بيانات ص 1'!$O$6,"ym")),"") ->  | Q103: =IFERROR(IF($G103="","",DATEDIF($G103,'بيانات ص 1'!$O$6,"y")),"") ->  | R103: =IFERROR(VLOOKUP(MID($E103,8,2)*1,[3]ورقة1!$A$2:$B$29,2,0),"") ->  | S103: 2 | T103: =IF(ISNUMBER(SEARCH('قوائم 1'!$C$1,$S$8:$S$105)),MAX($T$8:T102)+1,0) -> 26 | U103: 2 | V103: =IF($D103="","",Salim_Split_Name($D103,COLUMNS($D103:E103))) ->  | W103: =IF($D103="","",Salim_Split_Name($D103,COLUMNS($D103:F103))) ->  | X103: =IF($D103="","",Salim_Split_Name($D103,COLUMNS($D103:G103))) ->  | Y103: =IF($D103="","",Salim_Split_Name($D103,COLUMNS($D103:H103))) ->  | AB103: 0 | AC103: 0 | AD103: =IFERROR(VLOOKUP(S103,ورقة1!$AT$1:$AV$8,3),"") -> 2/1أ
A104: =IF('بيانات ص 1'!C104="","",SUBTOTAL(3,'بيانات ص 1'!$C$8:C104)) ->  | B104: ='بيانات ص 1'!T104 -> 0 | I104: مسلم | K104: مستجد | O104: =IFERROR(IF($G104="","",DATEDIF($G104,'بيانات ص 1'!$O$6,"md")),"") ->  | P104: =IFERROR(IF($G104="","",DATEDIF($G104,'بيانات ص 1'!$O$6,"ym")),"") ->  | Q104: =IFERROR(IF($G104="","",DATEDIF($G104,'بيانات ص 1'!$O$6,"y")),"") ->  | R104: =IFERROR(VLOOKUP(MID($E104,8,2)*1,[3]ورقة1!$A$2:$B$29,2,0),"") ->  | S104: 3 | T104: =IF(ISNUMBER(SEARCH('قوائم 1'!$C$1,$S$8:$S$105)),MAX($T$8:T103)+1,0) -> 0 | U104: 3 | V104: =IF($D104="","",Salim_Split_Name($D104,COLUMNS($D104:E104))) ->  | W104: =IF($D104="","",Salim_Split_Name($D104,COLUMNS($D104:F104))) ->  | X104: =IF($D104="","",Salim_Split_Name($D104,COLUMNS($D104:G104))) ->  | Y104: =IF($D104="","",Salim_Split_Name($D104,COLUMNS($D104:H104))) ->  | AB104: 0 | AC104: 0 | AD104: =IFERROR(VLOOKUP(S104,ورقة1!$AT$1:$AV$8,3),"") -> 1/1ب
A105: =IF('بيانات ص 1'!C105="","",SUBTOTAL(3,'بيانات ص 1'!$C$8:C105)) ->  | B105: ='بيانات ص 1'!T105 -> 0 | I105: مسلم | J105: =IFERROR(IF(ISODD(MID(E105,13,1)),"ذكر","انثي"),"") ->  | K105: مستجد | O105: =IFERROR(IF($G105="","",DATEDIF($G105,'بيانات ص 1'!$O$6,"md")),"") ->  | P105: =IFERROR(IF($G105="","",DATEDIF($G105,'بيانات ص 1'!$O$6,"ym")),"") ->  | Q105: =IFERROR(IF($G105="","",DATEDIF($G105,'بيانات ص 1'!$O$6,"y")),"") ->  | R105: =IFERROR(VLOOKUP(MID($E105,8,2)*1,[3]ورقة1!$A$2:$B$29,2,0),"") ->  | S105: 4 | T105: =IF(ISNUMBER(SEARCH('قوائم 1'!$C$1,$S$8:$S$105)),MAX($T$8:T104)+1,0) -> 0 | U105: 4 | V105: =IF($D105="","",Salim_Split_Name($D105,COLUMNS($D105:E105))) ->  | W105: =IF($D105="","",Salim_Split_Name($D105,COLUMNS($D105:F105))) ->  | X105: =IF($D105="","",Salim_Split_Name($D105,COLUMNS($D105:G105))) ->  | Y105: =IF($D105="","",Salim_Split_Name($D105,COLUMNS($D105:H105))) ->  | AB105: 0 | AC105: 0 | AD105: =IFERROR(VLOOKUP(S105,ورقة1!$AT$1:$AV$8,3),"") -> 2/1ب
A106: =IF('بيانات ص 1'!C106="","",SUBTOTAL(3,'بيانات ص 1'!$C$8:C106)) ->  | B106: =T106 -> 0 | O106: =IFERROR(IF($G106="","",DATEDIF($G106,$O$6,"md")),"") ->  | P106: =IFERROR(IF($G106="","",DATEDIF($G106,$O$6,"ym")),"") ->  | Q106: =IFERROR(IF($G106="","",DATEDIF($G106,$O$6,"y")),"") ->  | R106: =IFERROR(VLOOKUP(MID($E106,8,2)*1,[3]ورقة1!$A$2:$B$29,2,0),"") ->  | T106: =IF(ISNUMBER(SEARCH('قوائم 1'!$C$1,$S$106:$S$301)),MAX($T$7:T105)+1,0) -> 0 | U106: 1 | V106: =IF($D106="","",Salim_Split_Name($D106,COLUMNS($D106:E106))) ->  | W106: =IF($D106="","",Salim_Split_Name($D106,COLUMNS($D106:F106))) ->  | X106: =IF($D106="","",Salim_Split_Name($D106,COLUMNS($D106:G106))) ->  | Y106: =IF($D106="","",Salim_Split_Name($D106,COLUMNS($D106:H106))) ->  | AB106: 0 | AC106: 0 | AD106: =IFERROR(VLOOKUP(S106,ورقة1!$AT$1:$AV$8,3),"") -> 
A107: =IF('بيانات ص 1'!C107="","",SUBTOTAL(3,'بيانات ص 1'!$C$8:C107)) ->  | B107: 0 | R107: =IFERROR(VLOOKUP(MID($E107,8,2)*1,[3]ورقة1!$A$2:$B$29,2,0),"") ->  | T107: =IF(ISNUMBER(SEARCH('قوائم 1'!$C$1,$S$106:$S$301)),MAX($T$7:T106)+1,0) -> 0 | U107: 2 | V107: =IF($D107="","",Salim_Split_Name($D107,COLUMNS($D107:E107))) ->  | W107: =IF($D107="","",Salim_Split_Name($D107,COLUMNS($D107:F107))) ->  | X107: =IF($D107="","",Salim_Split_Name($D107,COLUMNS($D107:G107))) ->  | Y107: =IF($D107="","",Salim_Split_Name($D107,COLUMNS($D107:H107))) ->  | AB107: 0 | AC107: 0 | AD107: =IFERROR(VLOOKUP(S107,ورقة1!$AT$1:$AV$8,3),"") -> 
A108: =IF('بيانات ص 1'!C108="","",SUBTOTAL(3,'بيانات ص 1'!$C$8:C108)) ->  | B108: 0 | R108: =IFERROR(VLOOKUP(MID($E108,8,2)*1,[3]ورقة1!$A$2:$B$29,2,0),"") ->  | T108: =IF(ISNUMBER(SEARCH('قوائم 1'!$C$1,$S$106:$S$301)),MAX($T$7:T107)+1,0) -> 0 | U108: 3 | V108: =IF($D108="","",Salim_Split_Name($D108,COLUMNS($D108:E108))) ->  | W108: =IF($D108="","",Salim_Split_Name($D108,COLUMNS($D108:F108))) ->  | X108: =IF($D108="","",Salim_Split_Name($D108,COLUMNS($D108:G108))) ->  | Y108: =IF($D108="","",Salim_Split_Name($D108,COLUMNS($D108:H108))) ->  | AB108: 0 | AC108: 0 | AD108: =IFERROR(VLOOKUP(S108,ورقة1!$AT$1:$AV$8,3),"") -> 
A109: =IF('بيانات ص 1'!C109="","",SUBTOTAL(3,'بيانات ص 1'!$C$8:C109)) ->  | B109: 0 | R109: =IFERROR(VLOOKUP(MID($E109,8,2)*1,[3]ورقة1!$A$2:$B$29,2,0),"") ->  | T109: =IF(ISNUMBER(SEARCH('قوائم 1'!$C$1,$S$106:$S$301)),MAX($T$7:T108)+1,0) -> 0 | V109: =IF($D109="","",Salim_Split_Name($D109,COLUMNS($D109:E109))) ->  | W109: =IF($D109="","",Salim_Split_Name($D109,COLUMNS($D109:F109))) ->  | X109: =IF($D109="","",Salim_Split_Name($D109,COLUMNS($D109:G109))) ->  | Y109: =IF($D109="","",Salim_Split_Name($D109,COLUMNS($D109:H109))) ->  | AB109: 0 | AC109: 0 | AD109: =IFERROR(VLOOKUP(S109,ورقة1!$AT$1:$AV$8,3),"") -> 
A110: =IF('بيانات ص 1'!C110="","",SUBTOTAL(3,'بيانات ص 1'!$C$8:C110)) ->  | B110: 0 | R110: =IFERROR(VLOOKUP(MID($E110,8,2)*1,[3]ورقة1!$A$2:$B$29,2,0),"") ->  | T110: =IF(ISNUMBER(SEARCH('قوائم 1'!$C$1,$S$106:$S$301)),MAX($T$7:T109)+1,0) -> 0 | V110: =IF($D110="","",Salim_Split_Name($D110,COLUMNS($D110:E110))) ->  | W110: =IF($D110="","",Salim_Split_Name($D110,COLUMNS($D110:F110))) ->  | X110: =IF($D110="","",Salim_Split_Name($D110,COLUMNS($D110:G110))) ->  | Y110: =IF($D110="","",Salim_Split_Name($D110,COLUMNS($D110:H110))) ->  | AB110: 0 | AC110: 0 | AD110: =IFERROR(VLOOKUP(S110,ورقة1!$AT$1:$AV$8,3),"") -> 
A111: =IF('بيانات ص 1'!C111="","",SUBTOTAL(3,'بيانات ص 1'!$C$8:C111)) ->  | B111: 0 | R111: =IFERROR(VLOOKUP(MID($E111,8,2)*1,[3]ورقة1!$A$2:$B$29,2,0),"") ->  | T111: =IF(ISNUMBER(SEARCH('قوائم 1'!$C$1,$S$106:$S$301)),MAX($T$7:T110)+1,0) -> 0 | V111: =IF($D111="","",Salim_Split_Name($D111,COLUMNS($D111:E111))) ->  | W111: =IF($D111="","",Salim_Split_Name($D111,COLUMNS($D111:F111))) ->  | X111: =IF($D111="","",Salim_Split_Name($D111,COLUMNS($D111:G111))) ->  | Y111: =IF($D111="","",Salim_Split_Name($D111,COLUMNS($D111:H111))) ->  | AB111: 0 | AC111: 0 | AD111: =IFERROR(VLOOKUP(S111,ورقة1!$AT$1:$AV$8,3),"") -> 
A112: =IF('بيانات ص 1'!C112="","",SUBTOTAL(3,'بيانات ص 1'!$C$8:C112)) ->  | B112: 0 | R112: =IFERROR(VLOOKUP(MID($E112,8,2)*1,[3]ورقة1!$A$2:$B$29,2,0),"") ->  | T112: =IF(ISNUMBER(SEARCH('قوائم 1'!$C$1,$S$106:$S$301)),MAX($T$7:T111)+1,0) -> 0 | V112: =IF($D112="","",Salim_Split_Name($D112,COLUMNS($D112:E112))) ->  | W112: =IF($D112="","",Salim_Split_Name($D112,COLUMNS($D112:F112))) ->  | X112: =IF($D112="","",Salim_Split_Name($D112,COLUMNS($D112:G112))) ->  | Y112: =IF($D112="","",Salim_Split_Name($D112,COLUMNS($D112:H112))) ->  | AB112: 0 | AC112: 0 | AD112: =IFERROR(VLOOKUP(S112,ورقة1!$AT$1:$AV$8,3),"") -> 
A113: =IF('بيانات ص 1'!C113="","",SUBTOTAL(3,'بيانات ص 1'!$C$8:C113)) ->  | B113: 0 | R113: =IFERROR(VLOOKUP(MID($E113,8,2)*1,[3]ورقة1!$A$2:$B$29,2,0),"") ->  | T113: =IF(ISNUMBER(SEARCH('قوائم 1'!$C$1,$S$106:$S$301)),MAX($T$7:T112)+1,0) -> 0 | V113: =IF($D113="","",Salim_Split_Name($D113,COLUMNS($D113:E113))) ->  | W113: =IF($D113="","",Salim_Split_Name($D113,COLUMNS($D113:F113))) ->  | X113: =IF($D113="","",Salim_Split_Name($D113,COLUMNS($D113:G113))) ->  | Y113: =IF($D113="","",Salim_Split_Name($D113,COLUMNS($D113:H113))) ->  | AB113: 0 | AC113: 0 | AD113: =IFERROR(VLOOKUP(S113,ورقة1!$AT$1:$AV$8,3),"") -> 
A114: =IF('بيانات ص 1'!C114="","",SUBTOTAL(3,'بيانات ص 1'!$C$8:C114)) ->  | B114: 0 | R114: =IFERROR(VLOOKUP(MID($E114,8,2)*1,[3]ورقة1!$A$2:$B$29,2,0),"") ->  | T114: =IF(ISNUMBER(SEARCH('قوائم 1'!$C$1,$S$106:$S$301)),MAX($T$7:T113)+1,0) -> 0 | V114: =IF($D114="","",Salim_Split_Name($D114,COLUMNS($D114:E114))) ->  | W114: =IF($D114="","",Salim_Split_Name($D114,COLUMNS($D114:F114))) ->  | X114: =IF($D114="","",Salim_Split_Name($D114,COLUMNS($D114:G114))) ->  | Y114: =IF($D114="","",Salim_Split_Name($D114,COLUMNS($D114:H114))) ->  | AB114: 0 | AC114: 0 | AD114: =IFERROR(VLOOKUP(S114,ورقة1!$AT$1:$AV$8,3),"") -> 
A115: =IF('بيانات ص 1'!C115="","",SUBTOTAL(3,'بيانات ص 1'!$C$8:C115)) ->  | B115: 0 | R115: =IFERROR(VLOOKUP(MID($E115,8,2)*1,[3]ورقة1!$A$2:$B$29,2,0),"") ->  | T115: =IF(ISNUMBER(SEARCH('قوائم 1'!$C$1,$S$106:$S$301)),MAX($T$7:T114)+1,0) -> 0 | V115: =IF($D115="","",Salim_Split_Name($D115,COLUMNS($D115:E115))) ->  | W115: =IF($D115="","",Salim_Split_Name($D115,COLUMNS($D115:F115))) ->  | X115: =IF($D115="","",Salim_Split_Name($D115,COLUMNS($D115:G115))) ->  | Y115: =IF($D115="","",Salim_Split_Name($D115,COLUMNS($D115:H115))) ->  | AB115: 0 | AC115: 0 | AD115: =IFERROR(VLOOKUP(S115,ورقة1!$AT$1:$AV$8,3),"") -> 
A116: =IF('بيانات ص 1'!C116="","",SUBTOTAL(3,'بيانات ص 1'!$C$8:C116)) ->  | B116: 0 | R116: =IFERROR(VLOOKUP(MID($E116,8,2)*1,[3]ورقة1!$A$2:$B$29,2,0),"") ->  | T116: =IF(ISNUMBER(SEARCH('قوائم 1'!$C$1,$S$106:$S$301)),MAX($T$7:T115)+1,0) -> 0 | V116: =IF($D116="","",Salim_Split_Name($D116,COLUMNS($D116:E116))) ->  | W116: =IF($D116="","",Salim_Split_Name($D116,COLUMNS($D116:F116))) ->  | X116: =IF($D116="","",Salim_Split_Name($D116,COLUMNS($D116:G116))) ->  | Y116: =IF($D116="","",Salim_Split_Name($D116,COLUMNS($D116:H116))) ->  | AB116: 0 | AC116: 0 | AD116: =IFERROR(VLOOKUP(S116,ورقة1!$AT$1:$AV$8,3),"") -> 
A117: =IF('بيانات ص 1'!C117="","",SUBTOTAL(3,'بيانات ص 1'!$C$8:C117)) ->  | B117: 0 | R117: =IFERROR(VLOOKUP(MID($E117,8,2)*1,[3]ورقة1!$A$2:$B$29,2,0),"") ->  | T117: =IF(ISNUMBER(SEARCH('قوائم 1'!$C$1,$S$106:$S$301)),MAX($T$7:T116)+1,0) -> 0 | V117: =IF($D117="","",Salim_Split_Name($D117,COLUMNS($D117:E117))) ->  | W117: =IF($D117="","",Salim_Split_Name($D117,COLUMNS($D117:F117))) ->  | X117: =IF($D117="","",Salim_Split_Name($D117,COLUMNS($D117:G117))) ->  | Y117: =IF($D117="","",Salim_Split_Name($D117,COLUMNS($D117:H117))) ->  | AB117: 0 | AC117: 0 | AD117: =IFERROR(VLOOKUP(S117,ورقة1!$AT$1:$AV$8,3),"") -> 
A118: =IF('بيانات ص 1'!C118="","",SUBTOTAL(3,'بيانات ص 1'!$C$8:C118)) ->  | B118: 0 | R118: =IFERROR(VLOOKUP(MID($E118,8,2)*1,[3]ورقة1!$A$2:$B$29,2,0),"") ->  | T118: =IF(ISNUMBER(SEARCH('قوائم 1'!$C$1,$S$106:$S$301)),MAX($T$7:T117)+1,0) -> 0 | V118: =IF($D118="","",Salim_Split_Name($D118,COLUMNS($D118:E118))) ->  | W118: =IF($D118="","",Salim_Split_Name($D118,COLUMNS($D118:F118))) ->  | X118: =IF($D118="","",Salim_Split_Name($D118,COLUMNS($D118:G118))) ->  | Y118: =IF($D118="","",Salim_Split_Name($D118,COLUMNS($D118:H118))) ->  | AB118: 0 | AC118: 0 | AD118: =IFERROR(VLOOKUP(S118,ورقة1!$AT$1:$AV$8,3),"") -> 
A119: =IF('بيانات ص 1'!C119="","",SUBTOTAL(3,'بيانات ص 1'!$C$8:C119)) ->  | B119: 0 | R119: =IFERROR(VLOOKUP(MID($E119,8,2)*1,[3]ورقة1!$A$2:$B$29,2,0),"") ->  | T119: =IF(ISNUMBER(SEARCH('قوائم 1'!$C$1,$S$106:$S$301)),MAX($T$7:T118)+1,0) -> 0 | V119: =IF($D119="","",Salim_Split_Name($D119,COLUMNS($D119:E119))) ->  | W119: =IF($D119="","",Salim_Split_Name($D119,COLUMNS($D119:F119))) ->  | X119: =IF($D119="","",Salim_Split_Name($D119,COLUMNS($D119:G119))) ->  | Y119: =IF($D119="","",Salim_Split_Name($D119,COLUMNS($D119:H119))) ->  | AB119: 0 | AC119: 0 | AD119: =IFERROR(VLOOKUP(S119,ورقة1!$AT$1:$AV$8,3),"") -> 
A120: =IF('بيانات ص 1'!C120="","",SUBTOTAL(3,'بيانات ص 1'!$C$8:C120)) ->  | B120: 0 | R120: =IFERROR(VLOOKUP(MID($E120,8,2)*1,[3]ورقة1!$A$2:$B$29,2,0),"") ->  | T120: =IF(ISNUMBER(SEARCH('قوائم 1'!$C$1,$S$106:$S$301)),MAX($T$7:T119)+1,0) -> 0 | V120: =IF($D120="","",Salim_Split_Name($D120,COLUMNS($D120:E120))) ->  | W120: =IF($D120="","",Salim_Split_Name($D120,COLUMNS($D120:F120))) ->  | X120: =IF($D120="","",Salim_Split_Name($D120,COLUMNS($D120:G120))) ->  | Y120: =IF($D120="","",Salim_Split_Name($D120,COLUMNS($D120:H120))) ->  | AB120: 0 | AC120: 0 | AD120: =IFERROR(VLOOKUP(S120,ورقة1!$AT$1:$AV$8,3),"") -> 
A121: =IF('بيانات ص 1'!C121="","",SUBTOTAL(3,'بيانات ص 1'!$C$8:C121)) ->  | B121: 0 | R121: =IFERROR(VLOOKUP(MID($E121,8,2)*1,[3]ورقة1!$A$2:$B$29,2,0),"") ->  | T121: =IF(ISNUMBER(SEARCH('قوائم 1'!$C$1,$S$106:$S$301)),MAX($T$7:T120)+1,0) -> 0 | V121: =IF($D121="","",Salim_Split_Name($D121,COLUMNS($D121:E121))) ->  | W121: =IF($D121="","",Salim_Split_Name($D121,COLUMNS($D121:F121))) ->  | X121: =IF($D121="","",Salim_Split_Name($D121,COLUMNS($D121:G121))) ->  | Y121: =IF($D121="","",Salim_Split_Name($D121,COLUMNS($D121:H121))) ->  | AB121: 0 | AC121: 0 | AD121: =IFERROR(VLOOKUP(S121,ورقة1!$AT$1:$AV$8,3),"") -> 
A122: =IF('بيانات ص 1'!C122="","",SUBTOTAL(3,'بيانات ص 1'!$C$8:C122)) ->  | B122: 0 | R122: =IFERROR(VLOOKUP(MID($E122,8,2)*1,[3]ورقة1!$A$2:$B$29,2,0),"") ->  | T122: =IF(ISNUMBER(SEARCH('قوائم 1'!$C$1,$S$106:$S$301)),MAX($T$7:T121)+1,0) -> 0 | V122: =IF($D122="","",Salim_Split_Name($D122,COLUMNS($D122:E122))) ->  | W122: =IF($D122="","",Salim_Split_Name($D122,COLUMNS($D122:F122))) ->  | X122: =IF($D122="","",Salim_Split_Name($D122,COLUMNS($D122:G122))) ->  | Y122: =IF($D122="","",Salim_Split_Name($D122,COLUMNS($D122:H122))) ->  | AB122: 0 | AC122: 0 | AD122: =IFERROR(VLOOKUP(S122,ورقة1!$AT$1:$AV$8,3),"") -> 
A123: =IF('بيانات ص 1'!C123="","",SUBTOTAL(3,'بيانات ص 1'!$C$8:C123)) ->  | B123: 0 | R123: =IFERROR(VLOOKUP(MID($E123,8,2)*1,[3]ورقة1!$A$2:$B$29,2,0),"") ->  | T123: =IF(ISNUMBER(SEARCH('قوائم 1'!$C$1,$S$106:$S$301)),MAX($T$7:T122)+1,0) -> 0 | V123: =IF($D123="","",Salim_Split_Name($D123,COLUMNS($D123:E123))) ->  | W123: =IF($D123="","",Salim_Split_Name($D123,COLUMNS($D123:F123))) ->  | X123: =IF($D123="","",Salim_Split_Name($D123,COLUMNS($D123:G123))) ->  | Y123: =IF($D123="","",Salim_Split_Name($D123,COLUMNS($D123:H123))) ->  | AB123: 0 | AC123: 0 | AD123: =IFERROR(VLOOKUP(S123,ورقة1!$AT$1:$AV$8,3),"") -> 
A124: =IF('بيانات ص 1'!C124="","",SUBTOTAL(3,'بيانات ص 1'!$C$8:C124)) ->  | B124: 0 | R124: =IFERROR(VLOOKUP(MID($E124,8,2)*1,[3]ورقة1!$A$2:$B$29,2,0),"") ->  | T124: =IF(ISNUMBER(SEARCH('قوائم 1'!$C$1,$S$106:$S$301)),MAX($T$7:T123)+1,0) -> 0 | V124: =IF($D124="","",Salim_Split_Name($D124,COLUMNS($D124:E124))) ->  | W124: =IF($D124="","",Salim_Split_Name($D124,COLUMNS($D124:F124))) ->  | X124: =IF($D124="","",Salim_Split_Name($D124,COLUMNS($D124:G124))) ->  | Y124: =IF($D124="","",Salim_Split_Name($D124,COLUMNS($D124:H124))) ->  | AB124: 0 | AC124: 0 | AD124: =IFERROR(VLOOKUP(S124,ورقة1!$AT$1:$AV$8,3),"") -> 
A125: =IF('بيانات ص 1'!C125="","",SUBTOTAL(3,'بيانات ص 1'!$C$8:C125)) ->  | B125: 0 | R125: =IFERROR(VLOOKUP(MID($E125,8,2)*1,[3]ورقة1!$A$2:$B$29,2,0),"") ->  | T125: =IF(ISNUMBER(SEARCH('قوائم 1'!$C$1,$S$106:$S$301)),MAX($T$7:T124)+1,0) -> 0 | V125: =IF($D125="","",Salim_Split_Name($D125,COLUMNS($D125:E125))) ->  | W125: =IF($D125="","",Salim_Split_Name($D125,COLUMNS($D125:F125))) ->  | X125: =IF($D125="","",Salim_Split_Name($D125,COLUMNS($D125:G125))) ->  | Y125: =IF($D125="","",Salim_Split_Name($D125,COLUMNS($D125:H125))) ->  | AB125: 0 | AC125: 0 | AD125: =IFERROR(VLOOKUP(S125,ورقة1!$AT$1:$AV$8,3),"") -> 
A126: =IF('بيانات ص 1'!C126="","",SUBTOTAL(3,'بيانات ص 1'!$C$8:C126)) ->  | B126: 0 | R126: =IFERROR(VLOOKUP(MID($E126,8,2)*1,[3]ورقة1!$A$2:$B$29,2,0),"") ->  | T126: =IF(ISNUMBER(SEARCH('قوائم 1'!$C$1,$S$106:$S$301)),MAX($T$7:T125)+1,0) -> 0 | V126: =IF($D126="","",Salim_Split_Name($D126,COLUMNS($D126:E126))) ->  | W126: =IF($D126="","",Salim_Split_Name($D126,COLUMNS($D126:F126))) ->  | X126: =IF($D126="","",Salim_Split_Name($D126,COLUMNS($D126:G126))) ->  | Y126: =IF($D126="","",Salim_Split_Name($D126,COLUMNS($D126:H126))) ->  | AB126: 0 | AC126: 0 | AD126: =IFERROR(VLOOKUP(S126,ورقة1!$AT$1:$AV$8,3),"") -> 
A127: =IF('بيانات ص 1'!C127="","",SUBTOTAL(3,'بيانات ص 1'!$C$8:C127)) ->  | B127: 0 | R127: =IFERROR(VLOOKUP(MID($E127,8,2)*1,[3]ورقة1!$A$2:$B$29,2,0),"") ->  | T127: =IF(ISNUMBER(SEARCH('قوائم 1'!$C$1,$S$106:$S$301)),MAX($T$7:T126)+1,0) -> 0 | V127: =IF($D127="","",Salim_Split_Name($D127,COLUMNS($D127:E127))) ->  | W127: =IF($D127="","",Salim_Split_Name($D127,COLUMNS($D127:F127))) ->  | X127: =IF($D127="","",Salim_Split_Name($D127,COLUMNS($D127:G127))) ->  | Y127: =IF($D127="","",Salim_Split_Name($D127,COLUMNS($D127:H127))) ->  | AB127: 0 | AC127: 0 | AD127: =IFERROR(VLOOKUP(S127,ورقة1!$AT$1:$AV$8,3),"") -> 
A128: =IF('بيانات ص 1'!C128="","",SUBTOTAL(3,'بيانات ص 1'!$C$8:C128)) ->  | B128: 0 | R128: =IFERROR(VLOOKUP(MID($E128,8,2)*1,[3]ورقة1!$A$2:$B$29,2,0),"") ->  | T128: =IF(ISNUMBER(SEARCH('قوائم 1'!$C$1,$S$106:$S$301)),MAX($T$7:T127)+1,0) -> 0 | V128: =IF($D128="","",Salim_Split_Name($D128,COLUMNS($D128:E128))) ->  | W128: =IF($D128="","",Salim_Split_Name($D128,COLUMNS($D128:F128))) ->  | X128: =IF($D128="","",Salim_Split_Name($D128,COLUMNS($D128:G128))) ->  | Y128: =IF($D128="","",Salim_Split_Name($D128,COLUMNS($D128:H128))) ->  | AB128: 0 | AC128: 0 | AD128: =IFERROR(VLOOKUP(S128,ورقة1!$AT$1:$AV$8,3),"") -> 
A129: =IF('بيانات ص 1'!C129="","",SUBTOTAL(3,'بيانات ص 1'!$C$8:C129)) ->  | B129: 0 | R129: =IFERROR(VLOOKUP(MID($E129,8,2)*1,[3]ورقة1!$A$2:$B$29,2,0),"") ->  | T129: =IF(ISNUMBER(SEARCH('قوائم 1'!$C$1,$S$106:$S$301)),MAX($T$7:T128)+1,0) -> 0 | V129: =IF($D129="","",Salim_Split_Name($D129,COLUMNS($D129:E129))) ->  | W129: =IF($D129="","",Salim_Split_Name($D129,COLUMNS($D129:F129))) ->  | X129: =IF($D129="","",Salim_Split_Name($D129,COLUMNS($D129:G129))) ->  | Y129: =IF($D129="","",Salim_Split_Name($D129,COLUMNS($D129:H129))) ->  | Z129: =V129&" "&W129&" "&X129&" "&Y129 ->  | AB129: 0 | AC129: 0 | AD129: =IFERROR(VLOOKUP(S129,ورقة1!$AT$1:$AV$8,3),"") -> 
A130: =IF('بيانات ص 1'!C130="","",SUBTOTAL(3,'بيانات ص 1'!$C$8:C130)) ->  | B130: 0 | L130: =IF(E130="","",RIGHT(LEFT(E130,7),2)) ->  | M130: =IF(E130="","",RIGHT(LEFT(E130,5),2)) ->  | N130: =IF(E130="","",RIGHT(LEFT(E130,3),2)+2000) ->  | R130: =IFERROR(VLOOKUP(MID($E130,8,2)*1,[3]ورقة1!$A$2:$B$29,2,0),"") ->  | T130: =IF(ISNUMBER(SEARCH('قوائم 1'!$C$1,$S$106:$S$301)),MAX($T$7:T129)+1,0) -> 0 | V130: =IF($D130="","",Salim_Split_Name($D130,COLUMNS($D130:E130))) ->  | W130: =IF($D130="","",Salim_Split_Name($D130,COLUMNS($D130:F130))) ->  | X130: =IF($D130="","",Salim_Split_Name($D130,COLUMNS($D130:G130))) ->  | Y130: =IF($D130="","",Salim_Split_Name($D130,COLUMNS($D130:H130))) ->  | Z130: =V130&" "&W130&" "&X130&" "&Y130 ->  | AA130: =RIGHT(E130,4) ->  | AB130: =C130 -> 0 | AC130: =AB130&AA130 -> 0 | AD130: =IFERROR(VLOOKUP(S130,ورقة1!$AT$1:$AV$8,3),"") -> 
A131: =IF('بيانات ص 1'!C131="","",SUBTOTAL(3,'بيانات ص 1'!$C$8:C131)) ->  | B131: =T131 -> 0 | G131: =IFERROR(DATE(IF(LEFT($E131,1)*1=3,20,19)&MID($E131,2,2),MID($E131,4,2),MID($E131,6,2)),"") ->  | H131: =IF(J131="","",IF(J131="ذكر","مصري","مصرية")) ->  | J131: =IFERROR(IF(ISODD(MID(E131,13,1)),"ذكر","انثي"),"") ->  | R131: =IFERROR(VLOOKUP(MID($E131,8,2)*1,[3]ورقة1!$A$2:$B$29,2,0),"") ->  | T131: =IF(ISNUMBER(SEARCH('قوائم 1'!$C$1,$S$106:$S$301)),MAX($T$7:T130)+1,0) -> 0 | V131: =IF($D131="","",Salim_Split_Name($D131,COLUMNS($D131:E131))) ->  | W131: =IF($D131="","",Salim_Split_Name($D131,COLUMNS($D131:F131))) ->  | X131: =IF($D131="","",Salim_Split_Name($D131,COLUMNS($D131:G131))) ->  | Y131: =IF($D131="","",Salim_Split_Name($D131,COLUMNS($D131:H131))) ->  | AB131: 0 | AC131: 0 | AD131: =IFERROR(VLOOKUP(S131,ورقة1!$AT$1:$AV$8,3),"") ->  | AE131: =RIGHT(E131,13) ->  | AF131: =IF(C131="","",C131&"@minia2.moe.edu.eg") ->  | AG131: =IF(AE131="","","Std#"&LEFT(AE131,6)) -> 
A132: =IF('بيانات ص 1'!C132="","",SUBTOTAL(3,'بيانات ص 1'!$C$8:C132)) ->  | B132: 0 | R132: =IFERROR(VLOOKUP(MID($E132,8,2)*1,[3]ورقة1!$A$2:$B$29,2,0),"") ->  | T132: =IF(ISNUMBER(SEARCH('قوائم 1'!$C$1,$S$106:$S$301)),MAX($T$7:T131)+1,0) -> 0 | V132: =IF($D132="","",Salim_Split_Name($D132,COLUMNS($D132:E132))) ->  | W132: =IF($D132="","",Salim_Split_Name($D132,COLUMNS($D132:F132))) ->  | X132: =IF($D132="","",Salim_Split_Name($D132,COLUMNS($D132:G132))) ->  | Y132: =IF($D132="","",Salim_Split_Name($D132,COLUMNS($D132:H132))) ->  | AB132: 0 | AC132: 0 | AD132: =IFERROR(VLOOKUP(S132,ورقة1!$AT$1:$AV$8,3),"") -> 
A133: =IF('بيانات ص 1'!C133="","",SUBTOTAL(3,'بيانات ص 1'!$C$8:C133)) ->  | B133: 0 | R133: =IFERROR(VLOOKUP(MID($E133,8,2)*1,[3]ورقة1!$A$2:$B$29,2,0),"") ->  | T133: =IF(ISNUMBER(SEARCH('قوائم 1'!$C$1,$S$106:$S$301)),MAX($T$7:T132)+1,0) -> 0 | V133: =IF($D133="","",Salim_Split_Name($D133,COLUMNS($D133:E133))) ->  | W133: =IF($D133="","",Salim_Split_Name($D133,COLUMNS($D133:F133))) ->  | X133: =IF($D133="","",Salim_Split_Name($D133,COLUMNS($D133:G133))) ->  | Y133: =IF($D133="","",Salim_Split_Name($D133,COLUMNS($D133:H133))) ->  | AB133: 0 | AC133: 0 | AD133: =IFERROR(VLOOKUP(S133,ورقة1!$AT$1:$AV$8,3),"") -> 
A134: =IF('بيانات ص 1'!C134="","",SUBTOTAL(3,'بيانات ص 1'!$C$8:C134)) ->  | B134: 0 | R134: =IFERROR(VLOOKUP(MID($E134,8,2)*1,[3]ورقة1!$A$2:$B$29,2,0),"") ->  | T134: =IF(ISNUMBER(SEARCH('قوائم 1'!$C$1,$S$106:$S$301)),MAX($T$7:T133)+1,0) -> 0 | V134: =IF($D134="","",Salim_Split_Name($D134,COLUMNS($D134:E134))) ->  | W134: =IF($D134="","",Salim_Split_Name($D134,COLUMNS($D134:F134))) ->  | X134: =IF($D134="","",Salim_Split_Name($D134,COLUMNS($D134:G134))) ->  | Y134: =IF($D134="","",Salim_Split_Name($D134,COLUMNS($D134:H134))) ->  | AB134: 0 | AC134: 0 | AD134: =IFERROR(VLOOKUP(S134,ورقة1!$AT$1:$AV$8,3),"") -> 
A135: =IF('بيانات ص 1'!C135="","",SUBTOTAL(3,'بيانات ص 1'!$C$8:C135)) ->  | B135: 0 | O135: =IFERROR(IF($G135="","",DATEDIF($G135,$O$6,"md")),"") ->  | P135: =IFERROR(IF($G135="","",DATEDIF($G135,$O$6,"ym")),"") ->  | Q135: =IFERROR(IF($G135="","",DATEDIF($G135,$O$6,"y")),"") ->  | R135: =IFERROR(VLOOKUP(MID($E135,8,2)*1,[3]ورقة1!$A$2:$B$29,2,0),"") ->  | T135: =IF(ISNUMBER(SEARCH('قوائم 1'!$C$1,$S$106:$S$301)),MAX($T$7:T134)+1,0) -> 0 | V135: =IF($D135="","",Salim_Split_Name($D135,COLUMNS($D135:E135))) ->  | W135: =IF($D135="","",Salim_Split_Name($D135,COLUMNS($D135:F135))) ->  | X135: =IF($D135="","",Salim_Split_Name($D135,COLUMNS($D135:G135))) ->  | Y135: =IF($D135="","",Salim_Split_Name($D135,COLUMNS($D135:H135))) ->  | AB135: 0 | AC135: 0 | AD135: =IFERROR(VLOOKUP(S135,ورقة1!$AT$1:$AV$8,3),"") -> 
A136: =IF('بيانات ص 1'!C136="","",SUBTOTAL(3,'بيانات ص 1'!$C$8:C136)) ->  | B136: 0 | R136: =IFERROR(VLOOKUP(MID($E136,8,2)*1,[3]ورقة1!$A$2:$B$29,2,0),"") ->  | T136: =IF(ISNUMBER(SEARCH('قوائم 1'!$C$1,$S$106:$S$301)),MAX($T$7:T135)+1,0) -> 0 | V136: =IF($D136="","",Salim_Split_Name($D136,COLUMNS($D136:E136))) ->  | W136: =IF($D136="","",Salim_Split_Name($D136,COLUMNS($D136:F136))) ->  | X136: =IF($D136="","",Salim_Split_Name($D136,COLUMNS($D136:G136))) ->  | Y136: =IF($D136="","",Salim_Split_Name($D136,COLUMNS($D136:H136))) ->  | AB136: 0 | AC136: 0 | AD136: =IFERROR(VLOOKUP(S136,ورقة1!$AT$1:$AV$8,3),"") -> 
A137: =IF('بيانات ص 1'!C137="","",SUBTOTAL(3,'بيانات ص 1'!$C$8:C137)) ->  | B137: 0 | R137: =IFERROR(VLOOKUP(MID($E137,8,2)*1,[3]ورقة1!$A$2:$B$29,2,0),"") ->  | T137: =IF(ISNUMBER(SEARCH('قوائم 1'!$C$1,$S$106:$S$301)),MAX($T$7:T136)+1,0) -> 0 | V137: =IF($D137="","",Salim_Split_Name($D137,COLUMNS($D137:E137))) ->  | W137: =IF($D137="","",Salim_Split_Name($D137,COLUMNS($D137:F137))) ->  | X137: =IF($D137="","",Salim_Split_Name($D137,COLUMNS($D137:G137))) ->  | Y137: =IF($D137="","",Salim_Split_Name($D137,COLUMNS($D137:H137))) ->  | AB137: 0 | AC137: 0 | AD137: =IFERROR(VLOOKUP(S137,ورقة1!$AT$1:$AV$8,3),"") -> 
A138: =IF('بيانات ص 1'!C138="","",SUBTOTAL(3,'بيانات ص 1'!$C$8:C138)) ->  | B138: 0 | R138: =IFERROR(VLOOKUP(MID($E138,8,2)*1,[3]ورقة1!$A$2:$B$29,2,0),"") ->  | T138: =IF(ISNUMBER(SEARCH('قوائم 1'!$C$1,$S$106:$S$301)),MAX($T$7:T137)+1,0) -> 0 | V138: =IF($D138="","",Salim_Split_Name($D138,COLUMNS($D138:E138))) ->  | W138: =IF($D138="","",Salim_Split_Name($D138,COLUMNS($D138:F138))) ->  | X138: =IF($D138="","",Salim_Split_Name($D138,COLUMNS($D138:G138))) ->  | Y138: =IF($D138="","",Salim_Split_Name($D138,COLUMNS($D138:H138))) ->  | AB138: 0 | AC138: 0 | AD138: =IFERROR(VLOOKUP(S138,ورقة1!$AT$1:$AV$8,3),"") -> 
A139: =IF('بيانات ص 1'!C139="","",SUBTOTAL(3,'بيانات ص 1'!$C$8:C139)) ->  | B139: 0 | R139: =IFERROR(VLOOKUP(MID($E139,8,2)*1,[3]ورقة1!$A$2:$B$29,2,0),"") ->  | T139: =IF(ISNUMBER(SEARCH('قوائم 1'!$C$1,$S$106:$S$301)),MAX($T$7:T138)+1,0) -> 0 | V139: =IF($D139="","",Salim_Split_Name($D139,COLUMNS($D139:E139))) ->  | W139: =IF($D139="","",Salim_Split_Name($D139,COLUMNS($D139:F139))) ->  | X139: =IF($D139="","",Salim_Split_Name($D139,COLUMNS($D139:G139))) ->  | Y139: =IF($D139="","",Salim_Split_Name($D139,COLUMNS($D139:H139))) ->  | AB139: 0 | AC139: 0 | AD139: =IFERROR(VLOOKUP(S139,ورقة1!$AT$1:$AV$8,3),"") -> 
A140: =IF('بيانات ص 1'!C140="","",SUBTOTAL(3,'بيانات ص 1'!$C$8:C140)) ->  | B140: 0 | R140: =IFERROR(VLOOKUP(MID($E140,8,2)*1,[3]ورقة1!$A$2:$B$29,2,0),"") ->  | T140: =IF(ISNUMBER(SEARCH('قوائم 1'!$C$1,$S$106:$S$301)),MAX($T$7:T139)+1,0) -> 0 | V140: =IF($D140="","",Salim_Split_Name($D140,COLUMNS($D140:E140))) ->  | W140: =IF($D140="","",Salim_Split_Name($D140,COLUMNS($D140:F140))) ->  | X140: =IF($D140="","",Salim_Split_Name($D140,COLUMNS($D140:G140))) ->  | Y140: =IF($D140="","",Salim_Split_Name($D140,COLUMNS($D140:H140))) ->  | AB140: 0 | AC140: 0 | AD140: =IFERROR(VLOOKUP(S140,ورقة1!$AT$1:$AV$8,3),"") -> 
A141: =IF('بيانات ص 1'!C141="","",SUBTOTAL(3,'بيانات ص 1'!$C$8:C141)) ->  | B141: 0 | R141: =IFERROR(VLOOKUP(MID($E141,8,2)*1,[3]ورقة1!$A$2:$B$29,2,0),"") ->  | T141: =IF(ISNUMBER(SEARCH('قوائم 1'!$C$1,$S$106:$S$301)),MAX($T$7:T140)+1,0) -> 0 | V141: =IF($D141="","",Salim_Split_Name($D141,COLUMNS($D141:E141))) ->  | W141: =IF($D141="","",Salim_Split_Name($D141,COLUMNS($D141:F141))) ->  | X141: =IF($D141="","",Salim_Split_Name($D141,COLUMNS($D141:G141))) ->  | Y141: =IF($D141="","",Salim_Split_Name($D141,COLUMNS($D141:H141))) ->  | AB141: 0 | AC141: 0 | AD141: =IFERROR(VLOOKUP(S141,ورقة1!$AT$1:$AV$8,3),"") -> 
A142: =IF('بيانات ص 1'!C142="","",SUBTOTAL(3,'بيانات ص 1'!$C$8:C142)) ->  | B142: 0 | R142: =IFERROR(VLOOKUP(MID($E142,8,2)*1,[3]ورقة1!$A$2:$B$29,2,0),"") ->  | T142: =IF(ISNUMBER(SEARCH('قوائم 1'!$C$1,$S$106:$S$301)),MAX($T$7:T141)+1,0) -> 0 | V142: =IF($D142="","",Salim_Split_Name($D142,COLUMNS($D142:E142))) ->  | W142: =IF($D142="","",Salim_Split_Name($D142,COLUMNS($D142:F142))) ->  | X142: =IF($D142="","",Salim_Split_Name($D142,COLUMNS($D142:G142))) ->  | Y142: =IF($D142="","",Salim_Split_Name($D142,COLUMNS($D142:H142))) ->  | AB142: 0 | AC142: 0 | AD142: =IFERROR(VLOOKUP(S142,ورقة1!$AT$1:$AV$8,3),"") -> 
A143: =IF('بيانات ص 1'!C143="","",SUBTOTAL(3,'بيانات ص 1'!$C$8:C143)) ->  | B143: 0 | R143: =IFERROR(VLOOKUP(MID($E143,8,2)*1,[3]ورقة1!$A$2:$B$29,2,0),"") ->  | T143: =IF(ISNUMBER(SEARCH('قوائم 1'!$C$1,$S$106:$S$301)),MAX($T$7:T142)+1,0) -> 0 | V143: =IF($D143="","",Salim_Split_Name($D143,COLUMNS($D143:E143))) ->  | W143: =IF($D143="","",Salim_Split_Name($D143,COLUMNS($D143:F143))) ->  | X143: =IF($D143="","",Salim_Split_Name($D143,COLUMNS($D143:G143))) ->  | Y143: =IF($D143="","",Salim_Split_Name($D143,COLUMNS($D143:H143))) ->  | AB143: 0 | AC143: 0 | AD143: =IFERROR(VLOOKUP(S143,ورقة1!$AT$1:$AV$8,3),"") -> 
A144: =IF('بيانات ص 1'!C144="","",SUBTOTAL(3,'بيانات ص 1'!$C$8:C144)) ->  | B144: 0 | R144: =IFERROR(VLOOKUP(MID($E144,8,2)*1,[3]ورقة1!$A$2:$B$29,2,0),"") ->  | T144: =IF(ISNUMBER(SEARCH('قوائم 1'!$C$1,$S$106:$S$301)),MAX($T$7:T143)+1,0) -> 0 | V144: =IF($D144="","",Salim_Split_Name($D144,COLUMNS($D144:E144))) ->  | W144: =IF($D144="","",Salim_Split_Name($D144,COLUMNS($D144:F144))) ->  | X144: =IF($D144="","",Salim_Split_Name($D144,COLUMNS($D144:G144))) ->  | Y144: =IF($D144="","",Salim_Split_Name($D144,COLUMNS($D144:H144))) ->  | AB144: 0 | AC144: 0 | AD144: =IFERROR(VLOOKUP(S144,ورقة1!$AT$1:$AV$8,3),"") -> 
A145: =IF('بيانات ص 1'!C145="","",SUBTOTAL(3,'بيانات ص 1'!$C$8:C145)) ->  | B145: 0 | R145: =IFERROR(VLOOKUP(MID($E145,8,2)*1,[3]ورقة1!$A$2:$B$29,2,0),"") ->  | T145: =IF(ISNUMBER(SEARCH('قوائم 1'!$C$1,$S$106:$S$301)),MAX($T$7:T144)+1,0) -> 0 | V145: =IF($D145="","",Salim_Split_Name($D145,COLUMNS($D145:E145))) ->  | W145: =IF($D145="","",Salim_Split_Name($D145,COLUMNS($D145:F145))) ->  | X145: =IF($D145="","",Salim_Split_Name($D145,COLUMNS($D145:G145))) ->  | Y145: =IF($D145="","",Salim_Split_Name($D145,COLUMNS($D145:H145))) ->  | AB145: 0 | AC145: 0 | AD145: =IFERROR(VLOOKUP(S145,ورقة1!$AT$1:$AV$8,3),"") -> 
A146: =IF('بيانات ص 1'!C146="","",SUBTOTAL(3,'بيانات ص 1'!$C$8:C146)) ->  | B146: 0 | R146: =IFERROR(VLOOKUP(MID($E146,8,2)*1,[3]ورقة1!$A$2:$B$29,2,0),"") ->  | T146: =IF(ISNUMBER(SEARCH('قوائم 1'!$C$1,$S$106:$S$301)),MAX($T$7:T145)+1,0) -> 0 | V146: =IF($D146="","",Salim_Split_Name($D146,COLUMNS($D146:E146))) ->  | W146: =IF($D146="","",Salim_Split_Name($D146,COLUMNS($D146:F146))) ->  | X146: =IF($D146="","",Salim_Split_Name($D146,COLUMNS($D146:G146))) ->  | Y146: =IF($D146="","",Salim_Split_Name($D146,COLUMNS($D146:H146))) ->  | AB146: 0 | AC146: 0 | AD146: =IFERROR(VLOOKUP(S146,ورقة1!$AT$1:$AV$8,3),"") -> 
A147: =IF('بيانات ص 1'!C147="","",SUBTOTAL(3,'بيانات ص 1'!$C$8:C147)) ->  | B147: 0 | R147: =IFERROR(VLOOKUP(MID($E147,8,2)*1,[3]ورقة1!$A$2:$B$29,2,0),"") ->  | T147: =IF(ISNUMBER(SEARCH('قوائم 1'!$C$1,$S$106:$S$301)),MAX($T$7:T146)+1,0) -> 0 | V147: =IF($D147="","",Salim_Split_Name($D147,COLUMNS($D147:E147))) ->  | W147: =IF($D147="","",Salim_Split_Name($D147,COLUMNS($D147:F147))) ->  | X147: =IF($D147="","",Salim_Split_Name($D147,COLUMNS($D147:G147))) ->  | Y147: =IF($D147="","",Salim_Split_Name($D147,COLUMNS($D147:H147))) ->  | AB147: 0 | AC147: 0 | AD147: =IFERROR(VLOOKUP(S147,ورقة1!$AT$1:$AV$8,3),"") -> 
A148: =IF('بيانات ص 1'!C148="","",SUBTOTAL(3,'بيانات ص 1'!$C$8:C148)) ->  | B148: 0 | R148: =IFERROR(VLOOKUP(MID($E148,8,2)*1,[3]ورقة1!$A$2:$B$29,2,0),"") ->  | T148: =IF(ISNUMBER(SEARCH('قوائم 1'!$C$1,$S$106:$S$301)),MAX($T$7:T147)+1,0) -> 0 | V148: =IF($D148="","",Salim_Split_Name($D148,COLUMNS($D148:E148))) ->  | W148: =IF($D148="","",Salim_Split_Name($D148,COLUMNS($D148:F148))) ->  | X148: =IF($D148="","",Salim_Split_Name($D148,COLUMNS($D148:G148))) ->  | Y148: =IF($D148="","",Salim_Split_Name($D148,COLUMNS($D148:H148))) ->  | AB148: 0 | AC148: 0 | AD148: =IFERROR(VLOOKUP(S148,ورقة1!$AT$1:$AV$8,3),"") -> 
A149: =IF('بيانات ص 1'!C149="","",SUBTOTAL(3,'بيانات ص 1'!$C$8:C149)) ->  | B149: 0 | R149: =IFERROR(VLOOKUP(MID($E149,8,2)*1,[3]ورقة1!$A$2:$B$29,2,0),"") ->  | T149: =IF(ISNUMBER(SEARCH('قوائم 1'!$C$1,$S$106:$S$301)),MAX($T$7:T148)+1,0) -> 0 | V149: =IF($D149="","",Salim_Split_Name($D149,COLUMNS($D149:E149))) ->  | W149: =IF($D149="","",Salim_Split_Name($D149,COLUMNS($D149:F149))) ->  | X149: =IF($D149="","",Salim_Split_Name($D149,COLUMNS($D149:G149))) ->  | Y149: =IF($D149="","",Salim_Split_Name($D149,COLUMNS($D149:H149))) ->  | AB149: 0 | AC149: 0 | AD149: =IFERROR(VLOOKUP(S149,ورقة1!$AT$1:$AV$8,3),"") -> 
A150: =IF('بيانات ص 1'!C150="","",SUBTOTAL(3,'بيانات ص 1'!$C$8:C150)) ->  | B150: 0 | R150: =IFERROR(VLOOKUP(MID($E150,8,2)*1,[3]ورقة1!$A$2:$B$29,2,0),"") ->  | T150: =IF(ISNUMBER(SEARCH('قوائم 1'!$C$1,$S$106:$S$301)),MAX($T$7:T149)+1,0) -> 0 | V150: =IF($D150="","",Salim_Split_Name($D150,COLUMNS($D150:E150))) ->  | W150: =IF($D150="","",Salim_Split_Name($D150,COLUMNS($D150:F150))) ->  | X150: =IF($D150="","",Salim_Split_Name($D150,COLUMNS($D150:G150))) ->  | Y150: =IF($D150="","",Salim_Split_Name($D150,COLUMNS($D150:H150))) ->  | AB150: 0 | AC150: 0 | AD150: =IFERROR(VLOOKUP(S150,ورقة1!$AT$1:$AV$8,3),"") -> 
A151: =IF('بيانات ص 1'!C151="","",SUBTOTAL(3,'بيانات ص 1'!$C$8:C151)) ->  | B151: 0 | R151: =IFERROR(VLOOKUP(MID($E151,8,2)*1,[3]ورقة1!$A$2:$B$29,2,0),"") ->  | T151: =IF(ISNUMBER(SEARCH('قوائم 1'!$C$1,$S$106:$S$301)),MAX($T$7:T150)+1,0) -> 0 | V151: =IF($D151="","",Salim_Split_Name($D151,COLUMNS($D151:E151))) ->  | W151: =IF($D151="","",Salim_Split_Name($D151,COLUMNS($D151:F151))) ->  | X151: =IF($D151="","",Salim_Split_Name($D151,COLUMNS($D151:G151))) ->  | Y151: =IF($D151="","",Salim_Split_Name($D151,COLUMNS($D151:H151))) ->  | AB151: 0 | AC151: 0 | AD151: =IFERROR(VLOOKUP(S151,ورقة1!$AT$1:$AV$8,3),"") -> 
A152: =IF('بيانات ص 1'!C152="","",SUBTOTAL(3,'بيانات ص 1'!$C$8:C152)) ->  | B152: 0 | R152: =IFERROR(VLOOKUP(MID($E152,8,2)*1,[3]ورقة1!$A$2:$B$29,2,0),"") ->  | T152: =IF(ISNUMBER(SEARCH('قوائم 1'!$C$1,$S$106:$S$301)),MAX($T$7:T151)+1,0) -> 0 | V152: =IF($D152="","",Salim_Split_Name($D152,COLUMNS($D152:E152))) ->  | W152: =IF($D152="","",Salim_Split_Name($D152,COLUMNS($D152:F152))) ->  | X152: =IF($D152="","",Salim_Split_Name($D152,COLUMNS($D152:G152))) ->  | Y152: =IF($D152="","",Salim_Split_Name($D152,COLUMNS($D152:H152))) ->  | AB152: 0 | AC152: 0 | AD152: =IFERROR(VLOOKUP(S152,ورقة1!$AT$1:$AV$8,3),"") -> 
A153: =IF('بيانات ص 1'!C153="","",SUBTOTAL(3,'بيانات ص 1'!$C$8:C153)) ->  | B153: 0 | R153: =IFERROR(VLOOKUP(MID($E153,8,2)*1,[3]ورقة1!$A$2:$B$29,2,0),"") ->  | T153: =IF(ISNUMBER(SEARCH('قوائم 1'!$C$1,$S$106:$S$301)),MAX($T$7:T152)+1,0) -> 0 | V153: =IF($D153="","",Salim_Split_Name($D153,COLUMNS($D153:E153))) ->  | W153: =IF($D153="","",Salim_Split_Name($D153,COLUMNS($D153:F153))) ->  | X153: =IF($D153="","",Salim_Split_Name($D153,COLUMNS($D153:G153))) ->  | Y153: =IF($D153="","",Salim_Split_Name($D153,COLUMNS($D153:H153))) ->  | AB153: 0 | AC153: 0 | AD153: =IFERROR(VLOOKUP(S153,ورقة1!$AT$1:$AV$8,3),"") -> 
A154: =IF('بيانات ص 1'!C154="","",SUBTOTAL(3,'بيانات ص 1'!$C$8:C154)) ->  | B154: 0 | R154: =IFERROR(VLOOKUP(MID($E154,8,2)*1,[3]ورقة1!$A$2:$B$29,2,0),"") ->  | T154: =IF(ISNUMBER(SEARCH('قوائم 1'!$C$1,$S$106:$S$301)),MAX($T$7:T153)+1,0) -> 0 | V154: =IF($D154="","",Salim_Split_Name($D154,COLUMNS($D154:E154))) ->  | W154: =IF($D154="","",Salim_Split_Name($D154,COLUMNS($D154:F154))) ->  | X154: =IF($D154="","",Salim_Split_Name($D154,COLUMNS($D154:G154))) ->  | Y154: =IF($D154="","",Salim_Split_Name($D154,COLUMNS($D154:H154))) ->  | AB154: 0 | AC154: 0 | AD154: =IFERROR(VLOOKUP(S154,ورقة1!$AT$1:$AV$8,3),"") -> 
A155: =IF('بيانات ص 1'!C155="","",SUBTOTAL(3,'بيانات ص 1'!$C$8:C155)) ->  | B155: 0 | R155: =IFERROR(VLOOKUP(MID($E155,8,2)*1,[3]ورقة1!$A$2:$B$29,2,0),"") ->  | T155: =IF(ISNUMBER(SEARCH('قوائم 1'!$C$1,$S$106:$S$301)),MAX($T$7:T154)+1,0) -> 0 | V155: =IF($D155="","",Salim_Split_Name($D155,COLUMNS($D155:E155))) ->  | W155: =IF($D155="","",Salim_Split_Name($D155,COLUMNS($D155:F155))) ->  | X155: =IF($D155="","",Salim_Split_Name($D155,COLUMNS($D155:G155))) ->  | Y155: =IF($D155="","",Salim_Split_Name($D155,COLUMNS($D155:H155))) ->  | AB155: 0 | AC155: 0 | AD155: =IFERROR(VLOOKUP(S155,ورقة1!$AT$1:$AV$8,3),"") -> 
A156: =IF('بيانات ص 1'!C156="","",SUBTOTAL(3,'بيانات ص 1'!$C$8:C156)) ->  | B156: 0 | R156: =IFERROR(VLOOKUP(MID($E156,8,2)*1,[3]ورقة1!$A$2:$B$29,2,0),"") ->  | T156: =IF(ISNUMBER(SEARCH('قوائم 1'!$C$1,$S$106:$S$301)),MAX($T$7:T155)+1,0) -> 0 | V156: =IF($D156="","",Salim_Split_Name($D156,COLUMNS($D156:E156))) ->  | W156: =IF($D156="","",Salim_Split_Name($D156,COLUMNS($D156:F156))) ->  | X156: =IF($D156="","",Salim_Split_Name($D156,COLUMNS($D156:G156))) ->  | Y156: =IF($D156="","",Salim_Split_Name($D156,COLUMNS($D156:H156))) ->  | AB156: 0 | AC156: 0 | AD156: =IFERROR(VLOOKUP(S156,ورقة1!$AT$1:$AV$8,3),"") -> 
A157: =IF('بيانات ص 1'!C157="","",SUBTOTAL(3,'بيانات ص 1'!$C$8:C157)) ->  | B157: 0 | R157: =IFERROR(VLOOKUP(MID($E157,8,2)*1,[3]ورقة1!$A$2:$B$29,2,0),"") ->  | T157: =IF(ISNUMBER(SEARCH('قوائم 1'!$C$1,$S$106:$S$301)),MAX($T$7:T156)+1,0) -> 0 | V157: =IF($D157="","",Salim_Split_Name($D157,COLUMNS($D157:E157))) ->  | W157: =IF($D157="","",Salim_Split_Name($D157,COLUMNS($D157:F157))) ->  | X157: =IF($D157="","",Salim_Split_Name($D157,COLUMNS($D157:G157))) ->  | Y157: =IF($D157="","",Salim_Split_Name($D157,COLUMNS($D157:H157))) ->  | AB157: 0 | AC157: 0 | AD157: =IFERROR(VLOOKUP(S157,ورقة1!$AT$1:$AV$8,3),"") -> 
A158: =IF('بيانات ص 1'!C158="","",SUBTOTAL(3,'بيانات ص 1'!$C$8:C158)) ->  | B158: 0 | R158: =IFERROR(VLOOKUP(MID($E158,8,2)*1,[3]ورقة1!$A$2:$B$29,2,0),"") ->  | T158: =IF(ISNUMBER(SEARCH('قوائم 1'!$C$1,$S$106:$S$301)),MAX($T$7:T157)+1,0) -> 0 | V158: =IF($D158="","",Salim_Split_Name($D158,COLUMNS($D158:E158))) ->  | W158: =IF($D158="","",Salim_Split_Name($D158,COLUMNS($D158:F158))) ->  | X158: =IF($D158="","",Salim_Split_Name($D158,COLUMNS($D158:G158))) ->  | Y158: =IF($D158="","",Salim_Split_Name($D158,COLUMNS($D158:H158))) ->  | AB158: 0 | AC158: 0 | AD158: =IFERROR(VLOOKUP(S158,ورقة1!$AT$1:$AV$8,3),"") -> 
A159: =IF('بيانات ص 1'!C159="","",SUBTOTAL(3,'بيانات ص 1'!$C$8:C159)) ->  | B159: 0 | R159: =IFERROR(VLOOKUP(MID($E159,8,2)*1,[3]ورقة1!$A$2:$B$29,2,0),"") ->  | T159: =IF(ISNUMBER(SEARCH('قوائم 1'!$C$1,$S$106:$S$301)),MAX($T$7:T158)+1,0) -> 0 | V159: =IF($D159="","",Salim_Split_Name($D159,COLUMNS($D159:E159))) ->  | W159: =IF($D159="","",Salim_Split_Name($D159,COLUMNS($D159:F159))) ->  | X159: =IF($D159="","",Salim_Split_Name($D159,COLUMNS($D159:G159))) ->  | Y159: =IF($D159="","",Salim_Split_Name($D159,COLUMNS($D159:H159))) ->  | AB159: 0 | AC159: 0 | AD159: =IFERROR(VLOOKUP(S159,ورقة1!$AT$1:$AV$8,3),"") -> 
A160: =IF('بيانات ص 1'!C160="","",SUBTOTAL(3,'بيانات ص 1'!$C$8:C160)) ->  | B160: 0 | R160: =IFERROR(VLOOKUP(MID($E160,8,2)*1,[3]ورقة1!$A$2:$B$29,2,0),"") ->  | T160: =IF(ISNUMBER(SEARCH('قوائم 1'!$C$1,$S$106:$S$301)),MAX($T$7:T159)+1,0) -> 0 | V160: =IF($D160="","",Salim_Split_Name($D160,COLUMNS($D160:E160))) ->  | W160: =IF($D160="","",Salim_Split_Name($D160,COLUMNS($D160:F160))) ->  | X160: =IF($D160="","",Salim_Split_Name($D160,COLUMNS($D160:G160))) ->  | Y160: =IF($D160="","",Salim_Split_Name($D160,COLUMNS($D160:H160))) ->  | AB160: 0 | AC160: 0 | AD160: =IFERROR(VLOOKUP(S160,ورقة1!$AT$1:$AV$8,3),"") -> 
A161: =IF('بيانات ص 1'!C161="","",SUBTOTAL(3,'بيانات ص 1'!$C$8:C161)) ->  | B161: 0 | R161: =IFERROR(VLOOKUP(MID($E161,8,2)*1,[3]ورقة1!$A$2:$B$29,2,0),"") ->  | T161: =IF(ISNUMBER(SEARCH('قوائم 1'!$C$1,$S$106:$S$301)),MAX($T$7:T160)+1,0) -> 0 | V161: =IF($D161="","",Salim_Split_Name($D161,COLUMNS($D161:E161))) ->  | W161: =IF($D161="","",Salim_Split_Name($D161,COLUMNS($D161:F161))) ->  | X161: =IF($D161="","",Salim_Split_Name($D161,COLUMNS($D161:G161))) ->  | Y161: =IF($D161="","",Salim_Split_Name($D161,COLUMNS($D161:H161))) ->  | AB161: 0 | AC161: 0 | AD161: =IFERROR(VLOOKUP(S161,ورقة1!$AT$1:$AV$8,3),"") -> 
A162: =IF('بيانات ص 1'!C162="","",SUBTOTAL(3,'بيانات ص 1'!$C$8:C162)) ->  | B162: 0 | R162: =IFERROR(VLOOKUP(MID($E162,8,2)*1,[3]ورقة1!$A$2:$B$29,2,0),"") ->  | T162: =IF(ISNUMBER(SEARCH('قوائم 1'!$C$1,$S$106:$S$301)),MAX($T$7:T161)+1,0) -> 0 | V162: =IF($D162="","",Salim_Split_Name($D162,COLUMNS($D162:E162))) ->  | W162: =IF($D162="","",Salim_Split_Name($D162,COLUMNS($D162:F162))) ->  | X162: =IF($D162="","",Salim_Split_Name($D162,COLUMNS($D162:G162))) ->  | Y162: =IF($D162="","",Salim_Split_Name($D162,COLUMNS($D162:H162))) ->  | AB162: 0 | AC162: 0 | AD162: =IFERROR(VLOOKUP(S162,ورقة1!$AT$1:$AV$8,3),"") -> 
A163: =IF('بيانات ص 1'!C163="","",SUBTOTAL(3,'بيانات ص 1'!$C$8:C163)) ->  | B163: 0 | R163: =IFERROR(VLOOKUP(MID($E163,8,2)*1,[3]ورقة1!$A$2:$B$29,2,0),"") ->  | T163: =IF(ISNUMBER(SEARCH('قوائم 1'!$C$1,$S$106:$S$301)),MAX($T$7:T162)+1,0) -> 0 | V163: =IF($D163="","",Salim_Split_Name($D163,COLUMNS($D163:E163))) ->  | W163: =IF($D163="","",Salim_Split_Name($D163,COLUMNS($D163:F163))) ->  | X163: =IF($D163="","",Salim_Split_Name($D163,COLUMNS($D163:G163))) ->  | Y163: =IF($D163="","",Salim_Split_Name($D163,COLUMNS($D163:H163))) ->  | AB163: 0 | AC163: 0 | AD163: =IFERROR(VLOOKUP(S163,ورقة1!$AT$1:$AV$8,3),"") -> 
A164: =IF('بيانات ص 1'!C164="","",SUBTOTAL(3,'بيانات ص 1'!$C$8:C164)) ->  | B164: 0 | R164: =IFERROR(VLOOKUP(MID($E164,8,2)*1,[3]ورقة1!$A$2:$B$29,2,0),"") ->  | T164: =IF(ISNUMBER(SEARCH('قوائم 1'!$C$1,$S$106:$S$301)),MAX($T$7:T163)+1,0) -> 0 | V164: =IF($D164="","",Salim_Split_Name($D164,COLUMNS($D164:E164))) ->  | W164: =IF($D164="","",Salim_Split_Name($D164,COLUMNS($D164:F164))) ->  | X164: =IF($D164="","",Salim_Split_Name($D164,COLUMNS($D164:G164))) ->  | Y164: =IF($D164="","",Salim_Split_Name($D164,COLUMNS($D164:H164))) ->  | AB164: 0 | AC164: 0 | AD164: =IFERROR(VLOOKUP(S164,ورقة1!$AT$1:$AV$8,3),"") -> 
A165: =IF('بيانات ص 1'!C165="","",SUBTOTAL(3,'بيانات ص 1'!$C$8:C165)) ->  | B165: 0 | R165: =IFERROR(VLOOKUP(MID($E165,8,2)*1,[3]ورقة1!$A$2:$B$29,2,0),"") ->  | T165: =IF(ISNUMBER(SEARCH('قوائم 1'!$C$1,$S$106:$S$301)),MAX($T$7:T164)+1,0) -> 0 | V165: =IF($D165="","",Salim_Split_Name($D165,COLUMNS($D165:E165))) ->  | W165: =IF($D165="","",Salim_Split_Name($D165,COLUMNS($D165:F165))) ->  | X165: =IF($D165="","",Salim_Split_Name($D165,COLUMNS($D165:G165))) ->  | Y165: =IF($D165="","",Salim_Split_Name($D165,COLUMNS($D165:H165))) ->  | AB165: 0 | AC165: 0 | AD165: =IFERROR(VLOOKUP(S165,ورقة1!$AT$1:$AV$8,3),"") -> 
A166: =IF('بيانات ص 1'!C166="","",SUBTOTAL(3,'بيانات ص 1'!$C$8:C166)) ->  | B166: 0 | R166: =IFERROR(VLOOKUP(MID($E166,8,2)*1,[3]ورقة1!$A$2:$B$29,2,0),"") ->  | T166: =IF(ISNUMBER(SEARCH('قوائم 1'!$C$1,$S$106:$S$301)),MAX($T$7:T165)+1,0) -> 0 | V166: =IF($D166="","",Salim_Split_Name($D166,COLUMNS($D166:E166))) ->  | W166: =IF($D166="","",Salim_Split_Name($D166,COLUMNS($D166:F166))) ->  | X166: =IF($D166="","",Salim_Split_Name($D166,COLUMNS($D166:G166))) ->  | Y166: =IF($D166="","",Salim_Split_Name($D166,COLUMNS($D166:H166))) ->  | AB166: 0 | AC166: 0 | AD166: =IFERROR(VLOOKUP(S166,ورقة1!$AT$1:$AV$8,3),"") -> 
A167: =IF('بيانات ص 1'!C167="","",SUBTOTAL(3,'بيانات ص 1'!$C$8:C167)) ->  | B167: 0 | O167: =IFERROR(IF($G167="","",DATEDIF($G167,$O$6,"md")),"") ->  | P167: =IFERROR(IF($G167="","",DATEDIF($G167,$O$6,"ym")),"") ->  | Q167: =IFERROR(IF($G167="","",DATEDIF($G167,$O$6,"y")),"") ->  | R167: =IFERROR(VLOOKUP(MID($E167,8,2)*1,[3]ورقة1!$A$2:$B$29,2,0),"") ->  | T167: =IF(ISNUMBER(SEARCH('قوائم 1'!$C$1,$S$106:$S$301)),MAX($T$7:T166)+1,0) -> 0 | V167: =IF($D167="","",Salim_Split_Name($D167,COLUMNS($D167:E167))) ->  | W167: =IF($D167="","",Salim_Split_Name($D167,COLUMNS($D167:F167))) ->  | X167: =IF($D167="","",Salim_Split_Name($D167,COLUMNS($D167:G167))) ->  | Y167: =IF($D167="","",Salim_Split_Name($D167,COLUMNS($D167:H167))) ->  | AB167: 0 | AC167: 0 | AD167: =IFERROR(VLOOKUP(S167,ورقة1!$AT$1:$AV$8,3),"") -> 
A168: =IF('بيانات ص 1'!C168="","",SUBTOTAL(3,'بيانات ص 1'!$C$8:C168)) ->  | B168: 0 | R168: =IFERROR(VLOOKUP(MID($E168,8,2)*1,[3]ورقة1!$A$2:$B$29,2,0),"") ->  | T168: =IF(ISNUMBER(SEARCH('قوائم 1'!$C$1,$S$106:$S$301)),MAX($T$7:T167)+1,0) -> 0 | V168: =IF($D168="","",Salim_Split_Name($D168,COLUMNS($D168:E168))) ->  | W168: =IF($D168="","",Salim_Split_Name($D168,COLUMNS($D168:F168))) ->  | X168: =IF($D168="","",Salim_Split_Name($D168,COLUMNS($D168:G168))) ->  | Y168: =IF($D168="","",Salim_Split_Name($D168,COLUMNS($D168:H168))) ->  | AB168: 0 | AC168: 0 | AD168: =IFERROR(VLOOKUP(S168,ورقة1!$AT$1:$AV$8,3),"") -> 
A169: =IF('بيانات ص 1'!C169="","",SUBTOTAL(3,'بيانات ص 1'!$C$8:C169)) ->  | B169: 0 | R169: =IFERROR(VLOOKUP(MID($E169,8,2)*1,[3]ورقة1!$A$2:$B$29,2,0),"") ->  | T169: =IF(ISNUMBER(SEARCH('قوائم 1'!$C$1,$S$106:$S$301)),MAX($T$7:T168)+1,0) -> 0 | V169: =IF($D169="","",Salim_Split_Name($D169,COLUMNS($D169:E169))) ->  | W169: =IF($D169="","",Salim_Split_Name($D169,COLUMNS($D169:F169))) ->  | X169: =IF($D169="","",Salim_Split_Name($D169,COLUMNS($D169:G169))) ->  | Y169: =IF($D169="","",Salim_Split_Name($D169,COLUMNS($D169:H169))) ->  | AB169: 0 | AC169: 0 | AD169: =IFERROR(VLOOKUP(S169,ورقة1!$AT$1:$AV$8,3),"") -> 
A170: =IF('بيانات ص 1'!C170="","",SUBTOTAL(3,'بيانات ص 1'!$C$8:C170)) ->  | B170: 0 | R170: =IFERROR(VLOOKUP(MID($E170,8,2)*1,[3]ورقة1!$A$2:$B$29,2,0),"") ->  | T170: =IF(ISNUMBER(SEARCH('قوائم 1'!$C$1,$S$106:$S$301)),MAX($T$7:T169)+1,0) -> 0 | V170: =IF($D170="","",Salim_Split_Name($D170,COLUMNS($D170:E170))) ->  | W170: =IF($D170="","",Salim_Split_Name($D170,COLUMNS($D170:F170))) ->  | X170: =IF($D170="","",Salim_Split_Name($D170,COLUMNS($D170:G170))) ->  | Y170: =IF($D170="","",Salim_Split_Name($D170,COLUMNS($D170:H170))) ->  | AB170: 0 | AC170: 0 | AD170: =IFERROR(VLOOKUP(S170,ورقة1!$AT$1:$AV$8,3),"") -> 
A171: =IF('بيانات ص 1'!C171="","",SUBTOTAL(3,'بيانات ص 1'!$C$8:C171)) ->  | B171: 0 | R171: =IFERROR(VLOOKUP(MID($E171,8,2)*1,[3]ورقة1!$A$2:$B$29,2,0),"") ->  | T171: =IF(ISNUMBER(SEARCH('قوائم 1'!$C$1,$S$106:$S$301)),MAX($T$7:T170)+1,0) -> 0 | V171: =IF($D171="","",Salim_Split_Name($D171,COLUMNS($D171:E171))) ->  | W171: =IF($D171="","",Salim_Split_Name($D171,COLUMNS($D171:F171))) ->  | X171: =IF($D171="","",Salim_Split_Name($D171,COLUMNS($D171:G171))) ->  | Y171: =IF($D171="","",Salim_Split_Name($D171,COLUMNS($D171:H171))) ->  | AB171: 0 | AC171: 0 | AD171: =IFERROR(VLOOKUP(S171,ورقة1!$AT$1:$AV$8,3),"") -> 
A172: =IF('بيانات ص 1'!C172="","",SUBTOTAL(3,'بيانات ص 1'!$C$8:C172)) ->  | B172: 0 | R172: =IFERROR(VLOOKUP(MID($E172,8,2)*1,[3]ورقة1!$A$2:$B$29,2,0),"") ->  | T172: =IF(ISNUMBER(SEARCH('قوائم 1'!$C$1,$S$106:$S$301)),MAX($T$7:T171)+1,0) -> 0 | V172: =IF($D172="","",Salim_Split_Name($D172,COLUMNS($D172:E172))) ->  | W172: =IF($D172="","",Salim_Split_Name($D172,COLUMNS($D172:F172))) ->  | X172: =IF($D172="","",Salim_Split_Name($D172,COLUMNS($D172:G172))) ->  | Y172: =IF($D172="","",Salim_Split_Name($D172,COLUMNS($D172:H172))) ->  | AB172: 0 | AC172: 0 | AD172: =IFERROR(VLOOKUP(S172,ورقة1!$AT$1:$AV$8,3),"") -> 
A173: =IF('بيانات ص 1'!C173="","",SUBTOTAL(3,'بيانات ص 1'!$C$8:C173)) ->  | B173: 0 | R173: =IFERROR(VLOOKUP(MID($E173,8,2)*1,[3]ورقة1!$A$2:$B$29,2,0),"") ->  | T173: =IF(ISNUMBER(SEARCH('قوائم 1'!$C$1,$S$106:$S$301)),MAX($T$7:T172)+1,0) -> 0 | V173: =IF($D173="","",Salim_Split_Name($D173,COLUMNS($D173:E173))) ->  | W173: =IF($D173="","",Salim_Split_Name($D173,COLUMNS($D173:F173))) ->  | X173: =IF($D173="","",Salim_Split_Name($D173,COLUMNS($D173:G173))) ->  | Y173: =IF($D173="","",Salim_Split_Name($D173,COLUMNS($D173:H173))) ->  | AB173: 0 | AC173: 0 | AD173: =IFERROR(VLOOKUP(S173,ورقة1!$AT$1:$AV$8,3),"") -> 
A174: =IF('بيانات ص 1'!C174="","",SUBTOTAL(3,'بيانات ص 1'!$C$8:C174)) ->  | B174: 0 | R174: =IFERROR(VLOOKUP(MID($E174,8,2)*1,[3]ورقة1!$A$2:$B$29,2,0),"") ->  | T174: =IF(ISNUMBER(SEARCH('قوائم 1'!$C$1,$S$106:$S$301)),MAX($T$7:T173)+1,0) -> 0 | V174: =IF($D174="","",Salim_Split_Name($D174,COLUMNS($D174:E174))) ->  | W174: =IF($D174="","",Salim_Split_Name($D174,COLUMNS($D174:F174))) ->  | X174: =IF($D174="","",Salim_Split_Name($D174,COLUMNS($D174:G174))) ->  | Y174: =IF($D174="","",Salim_Split_Name($D174,COLUMNS($D174:H174))) ->  | AB174: 0 | AC174: 0 | AD174: =IFERROR(VLOOKUP(S174,ورقة1!$AT$1:$AV$8,3),"") -> 
A175: =IF('بيانات ص 1'!C175="","",SUBTOTAL(3,'بيانات ص 1'!$C$8:C175)) ->  | B175: 0 | R175: =IFERROR(VLOOKUP(MID($E175,8,2)*1,[3]ورقة1!$A$2:$B$29,2,0),"") ->  | T175: =IF(ISNUMBER(SEARCH('قوائم 1'!$C$1,$S$106:$S$301)),MAX($T$7:T174)+1,0) -> 0 | V175: =IF($D175="","",Salim_Split_Name($D175,COLUMNS($D175:E175))) ->  | W175: =IF($D175="","",Salim_Split_Name($D175,COLUMNS($D175:F175))) ->  | X175: =IF($D175="","",Salim_Split_Name($D175,COLUMNS($D175:G175))) ->  | Y175: =IF($D175="","",Salim_Split_Name($D175,COLUMNS($D175:H175))) ->  | AB175: 0 | AC175: 0 | AD175: =IFERROR(VLOOKUP(S175,ورقة1!$AT$1:$AV$8,3),"") -> 
A176: =IF('بيانات ص 1'!C176="","",SUBTOTAL(3,'بيانات ص 1'!$C$8:C176)) ->  | B176: 0 | R176: =IFERROR(VLOOKUP(MID($E176,8,2)*1,[3]ورقة1!$A$2:$B$29,2,0),"") ->  | T176: =IF(ISNUMBER(SEARCH('قوائم 1'!$C$1,$S$106:$S$301)),MAX($T$7:T175)+1,0) -> 0 | V176: =IF($D176="","",Salim_Split_Name($D176,COLUMNS($D176:E176))) ->  | W176: =IF($D176="","",Salim_Split_Name($D176,COLUMNS($D176:F176))) ->  | X176: =IF($D176="","",Salim_Split_Name($D176,COLUMNS($D176:G176))) ->  | Y176: =IF($D176="","",Salim_Split_Name($D176,COLUMNS($D176:H176))) ->  | AB176: 0 | AC176: 0 | AD176: =IFERROR(VLOOKUP(S176,ورقة1!$AT$1:$AV$8,3),"") -> 
A177: =IF('بيانات ص 1'!C177="","",SUBTOTAL(3,'بيانات ص 1'!$C$8:C177)) ->  | B177: 0 | R177: =IFERROR(VLOOKUP(MID($E177,8,2)*1,[3]ورقة1!$A$2:$B$29,2,0),"") ->  | T177: =IF(ISNUMBER(SEARCH('قوائم 1'!$C$1,$S$106:$S$301)),MAX($T$7:T176)+1,0) -> 0 | V177: =IF($D177="","",Salim_Split_Name($D177,COLUMNS($D177:E177))) ->  | W177: =IF($D177="","",Salim_Split_Name($D177,COLUMNS($D177:F177))) ->  | X177: =IF($D177="","",Salim_Split_Name($D177,COLUMNS($D177:G177))) ->  | Y177: =IF($D177="","",Salim_Split_Name($D177,COLUMNS($D177:H177))) ->  | AB177: 0 | AC177: 0 | AD177: =IFERROR(VLOOKUP(S177,ورقة1!$AT$1:$AV$8,3),"") -> 
A178: =IF('بيانات ص 1'!C178="","",SUBTOTAL(3,'بيانات ص 1'!$C$8:C178)) ->  | B178: 0 | R178: =IFERROR(VLOOKUP(MID($E178,8,2)*1,[3]ورقة1!$A$2:$B$29,2,0),"") ->  | T178: =IF(ISNUMBER(SEARCH('قوائم 1'!$C$1,$S$106:$S$301)),MAX($T$7:T177)+1,0) -> 0 | V178: =IF($D178="","",Salim_Split_Name($D178,COLUMNS($D178:E178))) ->  | W178: =IF($D178="","",Salim_Split_Name($D178,COLUMNS($D178:F178))) ->  | X178: =IF($D178="","",Salim_Split_Name($D178,COLUMNS($D178:G178))) ->  | Y178: =IF($D178="","",Salim_Split_Name($D178,COLUMNS($D178:H178))) ->  | AB178: 0 | AC178: 0 | AD178: =IFERROR(VLOOKUP(S178,ورقة1!$AT$1:$AV$8,3),"") -> 
A179: =IF('بيانات ص 1'!C179="","",SUBTOTAL(3,'بيانات ص 1'!$C$8:C179)) ->  | B179: 0 | R179: =IFERROR(VLOOKUP(MID($E179,8,2)*1,[3]ورقة1!$A$2:$B$29,2,0),"") ->  | T179: =IF(ISNUMBER(SEARCH('قوائم 1'!$C$1,$S$106:$S$301)),MAX($T$7:T178)+1,0) -> 0 | V179: =IF($D179="","",Salim_Split_Name($D179,COLUMNS($D179:E179))) ->  | W179: =IF($D179="","",Salim_Split_Name($D179,COLUMNS($D179:F179))) ->  | X179: =IF($D179="","",Salim_Split_Name($D179,COLUMNS($D179:G179))) ->  | Y179: =IF($D179="","",Salim_Split_Name($D179,COLUMNS($D179:H179))) ->  | AB179: 0 | AC179: 0 | AD179: =IFERROR(VLOOKUP(S179,ورقة1!$AT$1:$AV$8,3),"") -> 
A180: =IF('بيانات ص 1'!C180="","",SUBTOTAL(3,'بيانات ص 1'!$C$8:C180)) ->  | B180: 0 | R180: =IFERROR(VLOOKUP(MID($E180,8,2)*1,[3]ورقة1!$A$2:$B$29,2,0),"") ->  | T180: =IF(ISNUMBER(SEARCH('قوائم 1'!$C$1,$S$106:$S$301)),MAX($T$7:T179)+1,0) -> 0 | V180: =IF($D180="","",Salim_Split_Name($D180,COLUMNS($D180:E180))) ->  | W180: =IF($D180="","",Salim_Split_Name($D180,COLUMNS($D180:F180))) ->  | X180: =IF($D180="","",Salim_Split_Name($D180,COLUMNS($D180:G180))) ->  | Y180: =IF($D180="","",Salim_Split_Name($D180,COLUMNS($D180:H180))) ->  | AB180: 0 | AC180: 0 | AD180: =IFERROR(VLOOKUP(S180,ورقة1!$AT$1:$AV$8,3),"") -> 
A181: =IF('بيانات ص 1'!C181="","",SUBTOTAL(3,'بيانات ص 1'!$C$8:C181)) ->  | B181: 0 | R181: =IFERROR(VLOOKUP(MID($E181,8,2)*1,[3]ورقة1!$A$2:$B$29,2,0),"") ->  | T181: =IF(ISNUMBER(SEARCH('قوائم 1'!$C$1,$S$106:$S$301)),MAX($T$7:T180)+1,0) -> 0 | V181: =IF($D181="","",Salim_Split_Name($D181,COLUMNS($D181:E181))) ->  | W181: =IF($D181="","",Salim_Split_Name($D181,COLUMNS($D181:F181))) ->  | X181: =IF($D181="","",Salim_Split_Name($D181,COLUMNS($D181:G181))) ->  | Y181: =IF($D181="","",Salim_Split_Name($D181,COLUMNS($D181:H181))) ->  | AB181: 0 | AC181: 0 | AD181: =IFERROR(VLOOKUP(S181,ورقة1!$AT$1:$AV$8,3),"") -> 
A182: =IF('بيانات ص 1'!C182="","",SUBTOTAL(3,'بيانات ص 1'!$C$8:C182)) ->  | B182: 0 | R182: =IFERROR(VLOOKUP(MID($E182,8,2)*1,[3]ورقة1!$A$2:$B$29,2,0),"") ->  | T182: =IF(ISNUMBER(SEARCH('قوائم 1'!$C$1,$S$106:$S$301)),MAX($T$7:T181)+1,0) -> 0 | V182: =IF($D182="","",Salim_Split_Name($D182,COLUMNS($D182:E182))) ->  | W182: =IF($D182="","",Salim_Split_Name($D182,COLUMNS($D182:F182))) ->  | X182: =IF($D182="","",Salim_Split_Name($D182,COLUMNS($D182:G182))) ->  | Y182: =IF($D182="","",Salim_Split_Name($D182,COLUMNS($D182:H182))) ->  | AB182: 0 | AC182: 0 | AD182: =IFERROR(VLOOKUP(S182,ورقة1!$AT$1:$AV$8,3),"") -> 
A183: =IF('بيانات ص 1'!C183="","",SUBTOTAL(3,'بيانات ص 1'!$C$8:C183)) ->  | B183: 0 | R183: =IFERROR(VLOOKUP(MID($E183,8,2)*1,[3]ورقة1!$A$2:$B$29,2,0),"") ->  | T183: =IF(ISNUMBER(SEARCH('قوائم 1'!$C$1,$S$106:$S$301)),MAX($T$7:T182)+1,0) -> 0 | V183: =IF($D183="","",Salim_Split_Name($D183,COLUMNS($D183:E183))) ->  | W183: =IF($D183="","",Salim_Split_Name($D183,COLUMNS($D183:F183))) ->  | X183: =IF($D183="","",Salim_Split_Name($D183,COLUMNS($D183:G183))) ->  | Y183: =IF($D183="","",Salim_Split_Name($D183,COLUMNS($D183:H183))) ->  | AB183: 0 | AC183: 0 | AD183: =IFERROR(VLOOKUP(S183,ورقة1!$AT$1:$AV$8,3),"") -> 
A184: =IF('بيانات ص 1'!C184="","",SUBTOTAL(3,'بيانات ص 1'!$C$8:C184)) ->  | B184: 0 | R184: =IFERROR(VLOOKUP(MID($E184,8,2)*1,[3]ورقة1!$A$2:$B$29,2,0),"") ->  | T184: =IF(ISNUMBER(SEARCH('قوائم 1'!$C$1,$S$106:$S$301)),MAX($T$7:T183)+1,0) -> 0 | V184: =IF($D184="","",Salim_Split_Name($D184,COLUMNS($D184:E184))) ->  | W184: =IF($D184="","",Salim_Split_Name($D184,COLUMNS($D184:F184))) ->  | X184: =IF($D184="","",Salim_Split_Name($D184,COLUMNS($D184:G184))) ->  | Y184: =IF($D184="","",Salim_Split_Name($D184,COLUMNS($D184:H184))) ->  | AB184: 0 | AC184: 0 | AD184: =IFERROR(VLOOKUP(S184,ورقة1!$AT$1:$AV$8,3),"") -> 
A185: =IF('بيانات ص 1'!C185="","",SUBTOTAL(3,'بيانات ص 1'!$C$8:C185)) ->  | B185: 0 | R185: =IFERROR(VLOOKUP(MID($E185,8,2)*1,[3]ورقة1!$A$2:$B$29,2,0),"") ->  | T185: =IF(ISNUMBER(SEARCH('قوائم 1'!$C$1,$S$106:$S$301)),MAX($T$7:T184)+1,0) -> 0 | V185: =IF($D185="","",Salim_Split_Name($D185,COLUMNS($D185:E185))) ->  | W185: =IF($D185="","",Salim_Split_Name($D185,COLUMNS($D185:F185))) ->  | X185: =IF($D185="","",Salim_Split_Name($D185,COLUMNS($D185:G185))) ->  | Y185: =IF($D185="","",Salim_Split_Name($D185,COLUMNS($D185:H185))) ->  | AB185: 0 | AC185: 0 | AD185: =IFERROR(VLOOKUP(S185,ورقة1!$AT$1:$AV$8,3),"") -> 
A186: =IF('بيانات ص 1'!C186="","",SUBTOTAL(3,'بيانات ص 1'!$C$8:C186)) ->  | B186: 0 | R186: =IFERROR(VLOOKUP(MID($E186,8,2)*1,[3]ورقة1!$A$2:$B$29,2,0),"") ->  | T186: =IF(ISNUMBER(SEARCH('قوائم 1'!$C$1,$S$106:$S$301)),MAX($T$7:T185)+1,0) -> 0 | V186: =IF($D186="","",Salim_Split_Name($D186,COLUMNS($D186:E186))) ->  | W186: =IF($D186="","",Salim_Split_Name($D186,COLUMNS($D186:F186))) ->  | X186: =IF($D186="","",Salim_Split_Name($D186,COLUMNS($D186:G186))) ->  | Y186: =IF($D186="","",Salim_Split_Name($D186,COLUMNS($D186:H186))) ->  | AB186: 0 | AC186: 0 | AD186: =IFERROR(VLOOKUP(S186,ورقة1!$AT$1:$AV$8,3),"") -> 
A187: =IF('بيانات ص 1'!C187="","",SUBTOTAL(3,'بيانات ص 1'!$C$8:C187)) ->  | B187: 0 | R187: =IFERROR(VLOOKUP(MID($E187,8,2)*1,[3]ورقة1!$A$2:$B$29,2,0),"") ->  | T187: =IF(ISNUMBER(SEARCH('قوائم 1'!$C$1,$S$106:$S$301)),MAX($T$7:T186)+1,0) -> 0 | V187: =IF($D187="","",Salim_Split_Name($D187,COLUMNS($D187:E187))) ->  | W187: =IF($D187="","",Salim_Split_Name($D187,COLUMNS($D187:F187))) ->  | X187: =IF($D187="","",Salim_Split_Name($D187,COLUMNS($D187:G187))) ->  | Y187: =IF($D187="","",Salim_Split_Name($D187,COLUMNS($D187:H187))) ->  | AB187: 0 | AC187: 0 | AD187: =IFERROR(VLOOKUP(S187,ورقة1!$AT$1:$AV$8,3),"") -> 
A188: =IF('بيانات ص 1'!C188="","",SUBTOTAL(3,'بيانات ص 1'!$C$8:C188)) ->  | B188: 0 | R188: =IFERROR(VLOOKUP(MID($E188,8,2)*1,[3]ورقة1!$A$2:$B$29,2,0),"") ->  | T188: =IF(ISNUMBER(SEARCH('قوائم 1'!$C$1,$S$106:$S$301)),MAX($T$7:T187)+1,0) -> 0 | V188: =IF($D188="","",Salim_Split_Name($D188,COLUMNS($D188:E188))) ->  | W188: =IF($D188="","",Salim_Split_Name($D188,COLUMNS($D188:F188))) ->  | X188: =IF($D188="","",Salim_Split_Name($D188,COLUMNS($D188:G188))) ->  | Y188: =IF($D188="","",Salim_Split_Name($D188,COLUMNS($D188:H188))) ->  | AB188: 0 | AC188: 0 | AD188: =IFERROR(VLOOKUP(S188,ورقة1!$AT$1:$AV$8,3),"") -> 
A189: =IF('بيانات ص 1'!C189="","",SUBTOTAL(3,'بيانات ص 1'!$C$8:C189)) ->  | B189: 0 | R189: =IFERROR(VLOOKUP(MID($E189,8,2)*1,[3]ورقة1!$A$2:$B$29,2,0),"") ->  | T189: =IF(ISNUMBER(SEARCH('قوائم 1'!$C$1,$S$106:$S$301)),MAX($T$7:T188)+1,0) -> 0 | V189: =IF($D189="","",Salim_Split_Name($D189,COLUMNS($D189:E189))) ->  | W189: =IF($D189="","",Salim_Split_Name($D189,COLUMNS($D189:F189))) ->  | X189: =IF($D189="","",Salim_Split_Name($D189,COLUMNS($D189:G189))) ->  | Y189: =IF($D189="","",Salim_Split_Name($D189,COLUMNS($D189:H189))) ->  | AB189: 0 | AC189: 0 | AD189: =IFERROR(VLOOKUP(S189,ورقة1!$AT$1:$AV$8,3),"") -> 
A190: =IF('بيانات ص 1'!C190="","",SUBTOTAL(3,'بيانات ص 1'!$C$8:C190)) ->  | B190: 0 | R190: =IFERROR(VLOOKUP(MID($E190,8,2)*1,[3]ورقة1!$A$2:$B$29,2,0),"") ->  | T190: =IF(ISNUMBER(SEARCH('قوائم 1'!$C$1,$S$106:$S$301)),MAX($T$7:T189)+1,0) -> 0 | V190: =IF($D190="","",Salim_Split_Name($D190,COLUMNS($D190:E190))) ->  | W190: =IF($D190="","",Salim_Split_Name($D190,COLUMNS($D190:F190))) ->  | X190: =IF($D190="","",Salim_Split_Name($D190,COLUMNS($D190:G190))) ->  | Y190: =IF($D190="","",Salim_Split_Name($D190,COLUMNS($D190:H190))) ->  | AB190: 0 | AC190: 0 | AD190: =IFERROR(VLOOKUP(S190,ورقة1!$AT$1:$AV$8,3),"") -> 
A191: =IF('بيانات ص 1'!C191="","",SUBTOTAL(3,'بيانات ص 1'!$C$8:C191)) ->  | B191: 0 | R191: =IFERROR(VLOOKUP(MID($E191,8,2)*1,[3]ورقة1!$A$2:$B$29,2,0),"") ->  | T191: =IF(ISNUMBER(SEARCH('قوائم 1'!$C$1,$S$106:$S$301)),MAX($T$7:T190)+1,0) -> 0 | V191: =IF($D191="","",Salim_Split_Name($D191,COLUMNS($D191:E191))) ->  | W191: =IF($D191="","",Salim_Split_Name($D191,COLUMNS($D191:F191))) ->  | X191: =IF($D191="","",Salim_Split_Name($D191,COLUMNS($D191:G191))) ->  | Y191: =IF($D191="","",Salim_Split_Name($D191,COLUMNS($D191:H191))) ->  | AB191: 0 | AC191: 0 | AD191: =IFERROR(VLOOKUP(S191,ورقة1!$AT$1:$AV$8,3),"") -> 
A192: =IF('بيانات ص 1'!C192="","",SUBTOTAL(3,'بيانات ص 1'!$C$8:C192)) ->  | B192: 0 | R192: =IFERROR(VLOOKUP(MID($E192,8,2)*1,[3]ورقة1!$A$2:$B$29,2,0),"") ->  | T192: =IF(ISNUMBER(SEARCH('قوائم 1'!$C$1,$S$106:$S$301)),MAX($T$7:T191)+1,0) -> 0 | V192: =IF($D192="","",Salim_Split_Name($D192,COLUMNS($D192:E192))) ->  | W192: =IF($D192="","",Salim_Split_Name($D192,COLUMNS($D192:F192))) ->  | X192: =IF($D192="","",Salim_Split_Name($D192,COLUMNS($D192:G192))) ->  | Y192: =IF($D192="","",Salim_Split_Name($D192,COLUMNS($D192:H192))) ->  | AB192: 0 | AC192: 0 | AD192: =IFERROR(VLOOKUP(S192,ورقة1!$AT$1:$AV$8,3),"") -> 
A193: =IF('بيانات ص 1'!C193="","",SUBTOTAL(3,'بيانات ص 1'!$C$8:C193)) ->  | B193: 0 | R193: =IFERROR(VLOOKUP(MID($E193,8,2)*1,[3]ورقة1!$A$2:$B$29,2,0),"") ->  | T193: =IF(ISNUMBER(SEARCH('قوائم 1'!$C$1,$S$106:$S$301)),MAX($T$7:T192)+1,0) -> 0 | V193: =IF($D193="","",Salim_Split_Name($D193,COLUMNS($D193:E193))) ->  | W193: =IF($D193="","",Salim_Split_Name($D193,COLUMNS($D193:F193))) ->  | X193: =IF($D193="","",Salim_Split_Name($D193,COLUMNS($D193:G193))) ->  | Y193: =IF($D193="","",Salim_Split_Name($D193,COLUMNS($D193:H193))) ->  | AB193: 0 | AC193: 0 | AD193: =IFERROR(VLOOKUP(S193,ورقة1!$AT$1:$AV$8,3),"") -> 
A194: =IF('بيانات ص 1'!C194="","",SUBTOTAL(3,'بيانات ص 1'!$C$8:C194)) ->  | B194: 0 | L194: =IF(E194="","",RIGHT(LEFT(E194,7),2)) ->  | M194: =IF(E194="","",RIGHT(LEFT(E194,5),2)) ->  | N194: =IF(E194="","",RIGHT(LEFT(E194,3),2)+2000) ->  | R194: =IFERROR(VLOOKUP(MID($E194,8,2)*1,[3]ورقة1!$A$2:$B$29,2,0),"") ->  | T194: =IF(ISNUMBER(SEARCH('قوائم 1'!$C$1,$S$106:$S$301)),MAX($T$7:T193)+1,0) -> 0 | V194: =IF($D194="","",Salim_Split_Name($D194,COLUMNS($D194:E194))) ->  | W194: =IF($D194="","",Salim_Split_Name($D194,COLUMNS($D194:F194))) ->  | X194: =IF($D194="","",Salim_Split_Name($D194,COLUMNS($D194:G194))) ->  | Y194: =IF($D194="","",Salim_Split_Name($D194,COLUMNS($D194:H194))) ->  | Z194: =V194&" "&W194&" "&X194&" "&Y194 ->  | AA194: =RIGHT(E194,4) ->  | AB194: =C194 -> 0 | AC194: =AB194&AA194 -> 0 | AD194: =IFERROR(VLOOKUP(S194,ورقة1!$AT$1:$AV$8,3),"") -> 
A195: =IF('بيانات ص 1'!C195="","",SUBTOTAL(3,'بيانات ص 1'!$C$8:C195)) ->  | B195: =T195 -> 0 | G195: =IFERROR(DATE(IF(LEFT($E195,1)*1=3,20,19)&MID($E195,2,2),MID($E195,4,2),MID($E195,6,2)),"") ->  | H195: =IF(J195="","",IF(J195="ذكر","مصري","مصرية")) ->  | J195: =IFERROR(IF(ISODD(MID(E195,13,1)),"ذكر","انثي"),"") ->  | R195: =IFERROR(VLOOKUP(MID($E195,8,2)*1,[3]ورقة1!$A$2:$B$29,2,0),"") ->  | T195: =IF(ISNUMBER(SEARCH('قوائم 1'!$C$1,$S$106:$S$301)),MAX($T$7:T194)+1,0) -> 0 | V195: =IF($D195="","",Salim_Split_Name($D195,COLUMNS($D195:E195))) ->  | W195: =IF($D195="","",Salim_Split_Name($D195,COLUMNS($D195:F195))) ->  | X195: =IF($D195="","",Salim_Split_Name($D195,COLUMNS($D195:G195))) ->  | Y195: =IF($D195="","",Salim_Split_Name($D195,COLUMNS($D195:H195))) ->  | AB195: 0 | AC195: 0 | AD195: =IFERROR(VLOOKUP(S195,ورقة1!$AT$1:$AV$8,3),"") ->  | AE195: =RIGHT(E195,13) ->  | AF195: =IF(C195="","",C195&"@minia2.moe.edu.eg") ->  | AG195: =IF(AE195="","","Std#"&LEFT(AE195,6)) -> 
A196: =IF('بيانات ص 1'!C196="","",SUBTOTAL(3,'بيانات ص 1'!$C$8:C196)) ->  | B196: 0 | R196: =IFERROR(VLOOKUP(MID($E196,8,2)*1,[3]ورقة1!$A$2:$B$29,2,0),"") ->  | T196: =IF(ISNUMBER(SEARCH('قوائم 1'!$C$1,$S$106:$S$301)),MAX($T$7:T195)+1,0) -> 0 | V196: =IF($D196="","",Salim_Split_Name($D196,COLUMNS($D196:E196))) ->  | W196: =IF($D196="","",Salim_Split_Name($D196,COLUMNS($D196:F196))) ->  | X196: =IF($D196="","",Salim_Split_Name($D196,COLUMNS($D196:G196))) ->  | Y196: =IF($D196="","",Salim_Split_Name($D196,COLUMNS($D196:H196))) ->  | AB196: 0 | AC196: 0 | AD196: =IFERROR(VLOOKUP(S196,ورقة1!$AT$1:$AV$8,3),"") -> 
A197: =IF('بيانات ص 1'!C197="","",SUBTOTAL(3,'بيانات ص 1'!$C$8:C197)) ->  | B197: 0 | R197: =IFERROR(VLOOKUP(MID($E197,8,2)*1,[3]ورقة1!$A$2:$B$29,2,0),"") ->  | T197: =IF(ISNUMBER(SEARCH('قوائم 1'!$C$1,$S$106:$S$301)),MAX($T$7:T196)+1,0) -> 0 | V197: =IF($D197="","",Salim_Split_Name($D197,COLUMNS($D197:E197))) ->  | W197: =IF($D197="","",Salim_Split_Name($D197,COLUMNS($D197:F197))) ->  | X197: =IF($D197="","",Salim_Split_Name($D197,COLUMNS($D197:G197))) ->  | Y197: =IF($D197="","",Salim_Split_Name($D197,COLUMNS($D197:H197))) ->  | AB197: 0 | AC197: 0 | AD197: =IFERROR(VLOOKUP(S197,ورقة1!$AT$1:$AV$8,3),"") -> 
A198: =IF('بيانات ص 1'!C198="","",SUBTOTAL(3,'بيانات ص 1'!$C$8:C198)) ->  | B198: 0 | R198: =IFERROR(VLOOKUP(MID($E198,8,2)*1,[3]ورقة1!$A$2:$B$29,2,0),"") ->  | T198: =IF(ISNUMBER(SEARCH('قوائم 1'!$C$1,$S$106:$S$301)),MAX($T$7:T197)+1,0) -> 0 | V198: =IF($D198="","",Salim_Split_Name($D198,COLUMNS($D198:E198))) ->  | W198: =IF($D198="","",Salim_Split_Name($D198,COLUMNS($D198:F198))) ->  | X198: =IF($D198="","",Salim_Split_Name($D198,COLUMNS($D198:G198))) ->  | Y198: =IF($D198="","",Salim_Split_Name($D198,COLUMNS($D198:H198))) ->  | AB198: 0 | AC198: 0 | AD198: =IFERROR(VLOOKUP(S198,ورقة1!$AT$1:$AV$8,3),"") -> 
A199: =IF('بيانات ص 1'!C199="","",SUBTOTAL(3,'بيانات ص 1'!$C$8:C199)) ->  | B199: 0 | O199: =IFERROR(IF($G199="","",DATEDIF($G199,$O$6,"md")),"") ->  | P199: =IFERROR(IF($G199="","",DATEDIF($G199,$O$6,"ym")),"") ->  | Q199: =IFERROR(IF($G199="","",DATEDIF($G199,$O$6,"y")),"") ->  | R199: =IFERROR(VLOOKUP(MID($E199,8,2)*1,[3]ورقة1!$A$2:$B$29,2,0),"") ->  | T199: =IF(ISNUMBER(SEARCH('قوائم 1'!$C$1,$S$106:$S$301)),MAX($T$7:T198)+1,0) -> 0 | V199: =IF($D199="","",Salim_Split_Name($D199,COLUMNS($D199:E199))) ->  | W199: =IF($D199="","",Salim_Split_Name($D199,COLUMNS($D199:F199))) ->  | X199: =IF($D199="","",Salim_Split_Name($D199,COLUMNS($D199:G199))) ->  | Y199: =IF($D199="","",Salim_Split_Name($D199,COLUMNS($D199:H199))) ->  | AB199: 0 | AC199: 0 | AD199: =IFERROR(VLOOKUP(S199,ورقة1!$AT$1:$AV$8,3),"") -> 
A200: =IF('بيانات ص 1'!C200="","",SUBTOTAL(3,'بيانات ص 1'!$C$8:C200)) ->  | B200: 0 | R200: =IFERROR(VLOOKUP(MID($E200,8,2)*1,[3]ورقة1!$A$2:$B$29,2,0),"") ->  | T200: =IF(ISNUMBER(SEARCH('قوائم 1'!$C$1,$S$106:$S$301)),MAX($T$7:T199)+1,0) -> 0 | V200: =IF($D200="","",Salim_Split_Name($D200,COLUMNS($D200:E200))) ->  | W200: =IF($D200="","",Salim_Split_Name($D200,COLUMNS($D200:F200))) ->  | X200: =IF($D200="","",Salim_Split_Name($D200,COLUMNS($D200:G200))) ->  | Y200: =IF($D200="","",Salim_Split_Name($D200,COLUMNS($D200:H200))) ->  | AB200: 0 | AC200: 0 | AD200: =IFERROR(VLOOKUP(S200,ورقة1!$AT$1:$AV$8,3),"") -> 
A201: =IF('بيانات ص 1'!C201="","",SUBTOTAL(3,'بيانات ص 1'!$C$8:C201)) ->  | B201: 0 | R201: =IFERROR(VLOOKUP(MID($E201,8,2)*1,[3]ورقة1!$A$2:$B$29,2,0),"") ->  | T201: =IF(ISNUMBER(SEARCH('قوائم 1'!$C$1,$S$106:$S$301)),MAX($T$7:T200)+1,0) -> 0 | V201: =IF($D201="","",Salim_Split_Name($D201,COLUMNS($D201:E201))) ->  | W201: =IF($D201="","",Salim_Split_Name($D201,COLUMNS($D201:F201))) ->  | X201: =IF($D201="","",Salim_Split_Name($D201,COLUMNS($D201:G201))) ->  | Y201: =IF($D201="","",Salim_Split_Name($D201,COLUMNS($D201:H201))) ->  | AB201: 0 | AC201: 0 | AD201: =IFERROR(VLOOKUP(S201,ورقة1!$AT$1:$AV$8,3),"") -> 
... 101 more rows

Sheet بيانات ص 2
AQ1: كود الطالب | AR1: رقم الصف
A2: ادارة بني مزار التعليمية | AB2: حساب ادمود | AE2: الحساب المدرسي الموحد | AQ2: 484363839 | AR2: =MATCH($AQ$2,C:C,0) -> 
A3: ='البيانات الاساسية للمدرسة '!F5 -> 0
A4: بيانات تلاميذ الصف الثاني
D5: اجمالي التلاميذ | E5: =COUNT(C8:C304) -> 0 | O5: السن اول اكتوبر
L6: تاريخ ميلاد الطالب | O6: 2020-10-01
A7: م | C7: كود الطالب | D7: اسم الطالب | E7: الرقم القومي | F7: اسم الام رباعيا | G7: تاريخ الميلاد | H7: الجنسية | I7: الديانة | J7: النوع | K7: حالة القيد | L7: يوم | M7: شهر | N7: سنة | O7: يوم | P7: شهر | Q7: سنة | R7: المحافظة | S7: الفصل | Z7: اسم ولي الامر | AB7: اسم المستخدم | AC7: كلمة السر | AD7: الفصل | AF7: اسم المستخدم | AG7: كلمة السر
A8: =IF(C8="","",SUBTOTAL(3,$C$8:C8)) ->  | B8: =T8 -> 0 | G8: =IFERROR(DATE(IF(LEFT($E8,1)*1=3,20,19)&MID($E8,2,2),MID($E8,4,2),MID($E8,6,2)),"") ->  | H8: =IF(J8="","",IF(J8="ذكر","مصري","مصرية")) ->  | I8: مسلم | J8: =IFERROR(IF(ISODD(MID(E8,13,1)),"ذكر","انثي"),"") ->  | K8: ناجح ومنقول | L8: =IF(E8="","",RIGHT(LEFT(E8,7),2)) ->  | M8: =IF(E8="","",RIGHT(LEFT(E8,5),2)) ->  | N8: =IF(E8="","",RIGHT(LEFT(E8,3),2)+2000) ->  | O8: =IFERROR(IF($G8="","",DATEDIF($G8,$O$6,"md")),"") ->  | P8: =IFERROR(IF($G8="","",DATEDIF($G8,$O$6,"ym")),"") ->  | Q8: =IFERROR(IF($G8="","",DATEDIF($G8,$O$6,"y")),"") ->  | R8: =IFERROR(VLOOKUP(MID($E8,8,2)*1,[3]ورقة1!$A$2:$B$29,2,0),"") ->  | S8: 1 | T8: =IF(ISNUMBER(SEARCH('قوائم (2)'!$C$1,'بيانات ص 2'!$S$8:$S$303)),MAX($T$7:T7)+1,0) -> 0 | U8: 1 | V8: =IF($D8="","",Salim_Split_Name($D8,COLUMNS($D8:E8))) ->  | W8: =IF($D8="","",Salim_Split_Name($D8,COLUMNS($D8:F8))) ->  | X8: =IF($D8="","",Salim_Split_Name($D8,COLUMNS($D8:G8))) ->  | Y8: =IF($D8="","",Salim_Split_Name($D8,COLUMNS($D8:H8))) ->  | Z8: =V8&" "&W8&" "&X8&" "&Y8 ->  | AA8: =RIGHT(E8,4) ->  | AB8: =C8 -> 0 | AC8: =AB8&AA8 -> 0 | AD8: =IFERROR(VLOOKUP(S8,ورقة1!$AT$9:$AV$16,3),"") -> 1/2أ | AE8: =RIGHT(E8,13) ->  | AF8: =IF(C8="","",C8&"@minia2.moe.edu.eg") ->  | AG8: =IF(AE8="","","Std#"&LEFT(AE8,6)) -> 
A9: =IF(C9="","",SUBTOTAL(3,$C$8:C9)) ->  | B9: =T9 -> 1 | G9: =IFERROR(DATE(IF(LEFT($E9,1)*1=3,20,19)&MID($E9,2,2),MID($E9,4,2),MID($E9,6,2)),"") ->  | H9: =IF(J9="","",IF(J9="ذكر","مصري","مصرية")) ->  | I9: مسلم | J9: =IFERROR(IF(ISODD(MID(E9,13,1)),"ذكر","انثي"),"") ->  | K9: ناجح ومنقول | L9: =IF(E9="","",RIGHT(LEFT(E9,7),2)) ->  | M9: =IF(E9="","",RIGHT(LEFT(E9,5),2)) ->  | N9: =IF(E9="","",RIGHT(LEFT(E9,3),2)+2000) ->  | R9: =IFERROR(VLOOKUP(MID($E9,8,2)*1,[3]ورقة1!$A$2:$B$29,2,0),"") ->  | S9: 2 | T9: =IF(ISNUMBER(SEARCH('قوائم (2)'!$C$1,'بيانات ص 2'!$S$8:$S$303)),MAX($T$7:T8)+1,0) -> 1 | U9: 2 | V9: =IF($D9="","",Salim_Split_Name($D9,COLUMNS($D9:E9))) ->  | W9: =IF($D9="","",Salim_Split_Name($D9,COLUMNS($D9:F9))) ->  | X9: =IF($D9="","",Salim_Split_Name($D9,COLUMNS($D9:G9))) ->  | Y9: =IF($D9="","",Salim_Split_Name($D9,COLUMNS($D9:H9))) ->  | Z9: =V9&" "&W9&" "&X9&" "&Y9 ->  | AA9: =RIGHT(E9,4) ->  | AB9: =C9 -> 0 | AC9: =AB9&AA9 -> 0 | AD9: =IFERROR(VLOOKUP(S9,ورقة1!$AT$9:$AV$16,3),"") -> 2/2أ | AE9: =RIGHT(E9,13) ->  | AF9: =IF(C9="","",C9&"@minia2.moe.edu.eg") ->  | AG9: =IF(AE9="","","Std#"&LEFT(AE9,6)) -> 
A10: =IF(C10="","",SUBTOTAL(3,$C$8:C10)) ->  | B10: 0 | I10: مسلم | K10: ناجح ومنقول | R10: =IFERROR(VLOOKUP(MID($E10,8,2)*1,[3]ورقة1!$A$2:$B$29,2,0),"") ->  | S10: 3 | T10: =IF(ISNUMBER(SEARCH('قوائم (2)'!$C$1,'بيانات ص 2'!$S$8:$S$303)),MAX($T$7:T9)+1,0) -> 0 | U10: 3 | V10: =IF($D10="","",Salim_Split_Name($D10,COLUMNS($D10:E10))) ->  | W10: =IF($D10="","",Salim_Split_Name($D10,COLUMNS($D10:F10))) ->  | X10: =IF($D10="","",Salim_Split_Name($D10,COLUMNS($D10:G10))) ->  | Y10: =IF($D10="","",Salim_Split_Name($D10,COLUMNS($D10:H10))) ->  | AB10: 0 | AC10: 0 | AD10: =IFERROR(VLOOKUP(S10,ورقة1!$AT$9:$AV$16,3),"") -> 1/2ب
A11: =IF(C11="","",SUBTOTAL(3,$C$8:C11)) ->  | B11: 0 | I11: مسلم | K11: ناجح ومنقول | R11: =IFERROR(VLOOKUP(MID($E11,8,2)*1,[3]ورقة1!$A$2:$B$29,2,0),"") ->  | S11: 4 | T11: =IF(ISNUMBER(SEARCH('قوائم (2)'!$C$1,'بيانات ص 2'!$S$8:$S$303)),MAX($T$7:T10)+1,0) -> 0 | U11: 4 | V11: =IF($D11="","",Salim_Split_Name($D11,COLUMNS($D11:E11))) ->  | W11: =IF($D11="","",Salim_Split_Name($D11,COLUMNS($D11:F11))) ->  | X11: =IF($D11="","",Salim_Split_Name($D11,COLUMNS($D11:G11))) ->  | Y11: =IF($D11="","",Salim_Split_Name($D11,COLUMNS($D11:H11))) ->  | AB11: 0 | AC11: 0 | AD11: =IFERROR(VLOOKUP(S11,ورقة1!$AT$9:$AV$16,3),"") -> 2/2ب
A12: =IF(C12="","",SUBTOTAL(3,$C$8:C12)) ->  | B12: 0 | I12: مسلم | K12: ناجح ومنقول | R12: =IFERROR(VLOOKUP(MID($E12,8,2)*1,[3]ورقة1!$A$2:$B$29,2,0),"") ->  | S12: 1 | T12: =IF(ISNUMBER(SEARCH('قوائم (2)'!$C$1,'بيانات ص 2'!$S$8:$S$303)),MAX($T$7:T11)+1,0) -> 0 | U12: 1 | V12: =IF($D12="","",Salim_Split_Name($D12,COLUMNS($D12:E12))) ->  | W12: =IF($D12="","",Salim_Split_Name($D12,COLUMNS($D12:F12))) ->  | X12: =IF($D12="","",Salim_Split_Name($D12,COLUMNS($D12:G12))) ->  | Y12: =IF($D12="","",Salim_Split_Name($D12,COLUMNS($D12:H12))) ->  | AB12: 0 | AC12: 0 | AD12: =IFERROR(VLOOKUP(S12,ورقة1!$AT$9:$AV$16,3),"") -> 1/2أ
A13: =IF(C13="","",SUBTOTAL(3,$C$8:C13)) ->  | B13: 2 | I13: ناجح ومنقول | K13: مسلم | R13: =IFERROR(VLOOKUP(MID($E13,8,2)*1,[3]ورقة1!$A$2:$B$29,2,0),"") ->  | S13: 2/2أ | T13: =IF(ISNUMBER(SEARCH('قوائم (2)'!$C$1,'بيانات ص 2'!$S$8:$S$303)),MAX($T$7:T12)+1,0) -> 2 | U13: 2 | V13: =IF($D13="","",Salim_Split_Name($D13,COLUMNS($D13:E13))) ->  | W13: =IF($D13="","",Salim_Split_Name($D13,COLUMNS($D13:F13))) ->  | X13: =IF($D13="","",Salim_Split_Name($D13,COLUMNS($D13:G13))) ->  | Y13: =IF($D13="","",Salim_Split_Name($D13,COLUMNS($D13:H13))) ->  | AB13: 0 | AC13: 0 | AD13: =IFERROR(VLOOKUP(S13,ورقة1!$AT$9:$AV$16,3),"") -> 
A14: =IF(C14="","",SUBTOTAL(3,$C$8:C14)) ->  | B14: 0 | I14: مسلم | K14: ناجح ومنقول | R14: =IFERROR(VLOOKUP(MID($E14,8,2)*1,[3]ورقة1!$A$2:$B$29,2,0),"") ->  | S14: 3 | T14: =IF(ISNUMBER(SEARCH('قوائم (2)'!$C$1,'بيانات ص 2'!$S$8:$S$303)),MAX($T$7:T13)+1,0) -> 0 | U14: 3 | V14: =IF($D14="","",Salim_Split_Name($D14,COLUMNS($D14:E14))) ->  | W14: =IF($D14="","",Salim_Split_Name($D14,COLUMNS($D14:F14))) ->  | X14: =IF($D14="","",Salim_Split_Name($D14,COLUMNS($D14:G14))) ->  | Y14: =IF($D14="","",Salim_Split_Name($D14,COLUMNS($D14:H14))) ->  | AB14: 0 | AC14: 0 | AD14: =IFERROR(VLOOKUP(S14,ورقة1!$AT$9:$AV$16,3),"") -> 1/2ب
A15: =IF(C15="","",SUBTOTAL(3,$C$8:C15)) ->  | B15: 0 | I15: مسلم | K15: ناجح ومنقول | R15: =IFERROR(VLOOKUP(MID($E15,8,2)*1,[3]ورقة1!$A$2:$B$29,2,0),"") ->  | S15: 4 | T15: =IF(ISNUMBER(SEARCH('قوائم (2)'!$C$1,'بيانات ص 2'!$S$8:$S$303)),MAX($T$7:T14)+1,0) -> 0 | U15: 4 | V15: =IF($D15="","",Salim_Split_Name($D15,COLUMNS($D15:E15))) ->  | W15: =IF($D15="","",Salim_Split_Name($D15,COLUMNS($D15:F15))) ->  | X15: =IF($D15="","",Salim_Split_Name($D15,COLUMNS($D15:G15))) ->  | Y15: =IF($D15="","",Salim_Split_Name($D15,COLUMNS($D15:H15))) ->  | AB15: 0 | AC15: 0 | AD15: =IFERROR(VLOOKUP(S15,ورقة1!$AT$9:$AV$16,3),"") -> 2/2ب
A16: =IF(C16="","",SUBTOTAL(3,$C$8:C16)) ->  | B16: 0 | I16: مسلم | K16: ناجح ومنقول | R16: =IFERROR(VLOOKUP(MID($E16,8,2)*1,[3]ورقة1!$A$2:$B$29,2,0),"") ->  | S16: 1 | T16: =IF(ISNUMBER(SEARCH('قوائم (2)'!$C$1,'بيانات ص 2'!$S$8:$S$303)),MAX($T$7:T15)+1,0) -> 0 | U16: 1 | V16: =IF($D16="","",Salim_Split_Name($D16,COLUMNS($D16:E16))) ->  | W16: =IF($D16="","",Salim_Split_Name($D16,COLUMNS($D16:F16))) ->  | X16: =IF($D16="","",Salim_Split_Name($D16,COLUMNS($D16:G16))) ->  | Y16: =IF($D16="","",Salim_Split_Name($D16,COLUMNS($D16:H16))) ->  | AB16: 0 | AC16: 0 | AD16: =IFERROR(VLOOKUP(S16,ورقة1!$AT$9:$AV$16,3),"") -> 1/2أ
A17: =IF(C17="","",SUBTOTAL(3,$C$8:C17)) ->  | B17: 3 | I17: مسلم | K17: ناجح ومنقول | R17: =IFERROR(VLOOKUP(MID($E17,8,2)*1,[3]ورقة1!$A$2:$B$29,2,0),"") ->  | S17: 2 | T17: =IF(ISNUMBER(SEARCH('قوائم (2)'!$C$1,'بيانات ص 2'!$S$8:$S$303)),MAX($T$7:T16)+1,0) -> 3 | U17: 2 | V17: =IF($D17="","",Salim_Split_Name($D17,COLUMNS($D17:E17))) ->  | W17: =IF($D17="","",Salim_Split_Name($D17,COLUMNS($D17:F17))) ->  | X17: =IF($D17="","",Salim_Split_Name($D17,COLUMNS($D17:G17))) ->  | Y17: =IF($D17="","",Salim_Split_Name($D17,COLUMNS($D17:H17))) ->  | AB17: 0 | AC17: 0 | AD17: =IFERROR(VLOOKUP(S17,ورقة1!$AT$9:$AV$16,3),"") -> 2/2أ
A18: =IF(C18="","",SUBTOTAL(3,$C$8:C18)) ->  | B18: 0 | I18: مسلم | K18: ناجح ومنقول | R18: =IFERROR(VLOOKUP(MID($E18,8,2)*1,[3]ورقة1!$A$2:$B$29,2,0),"") ->  | S18: 3 | T18: =IF(ISNUMBER(SEARCH('قوائم (2)'!$C$1,'بيانات ص 2'!$S$8:$S$303)),MAX($T$7:T17)+1,0) -> 0 | U18: 3 | V18: =IF($D18="","",Salim_Split_Name($D18,COLUMNS($D18:E18))) ->  | W18: =IF($D18="","",Salim_Split_Name($D18,COLUMNS($D18:F18))) ->  | X18: =IF($D18="","",Salim_Split_Name($D18,COLUMNS($D18:G18))) ->  | Y18: =IF($D18="","",Salim_Split_Name($D18,COLUMNS($D18:H18))) ->  | AB18: 0 | AC18: 0 | AD18: =IFERROR(VLOOKUP(S18,ورقة1!$AT$9:$AV$16,3),"") -> 1/2ب
A19: =IF(C19="","",SUBTOTAL(3,$C$8:C19)) ->  | B19: 0 | I19: مسلم | K19: ناجح ومنقول | R19: =IFERROR(VLOOKUP(MID($E19,8,2)*1,[3]ورقة1!$A$2:$B$29,2,0),"") ->  | S19: 4 | T19: =IF(ISNUMBER(SEARCH('قوائم (2)'!$C$1,'بيانات ص 2'!$S$8:$S$303)),MAX($T$7:T18)+1,0) -> 0 | U19: 4 | V19: =IF($D19="","",Salim_Split_Name($D19,COLUMNS($D19:E19))) ->  | W19: =IF($D19="","",Salim_Split_Name($D19,COLUMNS($D19:F19))) ->  | X19: =IF($D19="","",Salim_Split_Name($D19,COLUMNS($D19:G19))) ->  | Y19: =IF($D19="","",Salim_Split_Name($D19,COLUMNS($D19:H19))) ->  | AB19: 0 | AC19: 0 | AD19: =IFERROR(VLOOKUP(S19,ورقة1!$AT$9:$AV$16,3),"") -> 2/2ب
A20: =IF(C20="","",SUBTOTAL(3,$C$8:C20)) ->  | B20: 0 | I20: مسلم | K20: ناجح ومنقول | R20: =IFERROR(VLOOKUP(MID($E20,8,2)*1,[3]ورقة1!$A$2:$B$29,2,0),"") ->  | S20: 1 | T20: =IF(ISNUMBER(SEARCH('قوائم (2)'!$C$1,'بيانات ص 2'!$S$8:$S$303)),MAX($T$7:T19)+1,0) -> 0 | U20: 1 | V20: =IF($D20="","",Salim_Split_Name($D20,COLUMNS($D20:E20))) ->  | W20: =IF($D20="","",Salim_Split_Name($D20,COLUMNS($D20:F20))) ->  | X20: =IF($D20="","",Salim_Split_Name($D20,COLUMNS($D20:G20))) ->  | Y20: =IF($D20="","",Salim_Split_Name($D20,COLUMNS($D20:H20))) ->  | AB20: 0 | AC20: 0 | AD20: =IFERROR(VLOOKUP(S20,ورقة1!$AT$9:$AV$16,3),"") -> 1/2أ
A21: =IF(C21="","",SUBTOTAL(3,$C$8:C21)) ->  | B21: 4 | I21: مسلم | K21: ناجح ومنقول | R21: =IFERROR(VLOOKUP(MID($E21,8,2)*1,[3]ورقة1!$A$2:$B$29,2,0),"") ->  | S21: 2 | T21: =IF(ISNUMBER(SEARCH('قوائم (2)'!$C$1,'بيانات ص 2'!$S$8:$S$303)),MAX($T$7:T20)+1,0) -> 4 | U21: 2 | V21: =IF($D21="","",Salim_Split_Name($D21,COLUMNS($D21:E21))) ->  | W21: =IF($D21="","",Salim_Split_Name($D21,COLUMNS($D21:F21))) ->  | X21: =IF($D21="","",Salim_Split_Name($D21,COLUMNS($D21:G21))) ->  | Y21: =IF($D21="","",Salim_Split_Name($D21,COLUMNS($D21:H21))) ->  | AB21: 0 | AC21: 0 | AD21: =IFERROR(VLOOKUP(S21,ورقة1!$AT$9:$AV$16,3),"") -> 2/2أ
A22: =IF(C22="","",SUBTOTAL(3,$C$8:C22)) ->  | B22: 0 | I22: مسلم | K22: ناجح ومنقول | R22: =IFERROR(VLOOKUP(MID($E22,8,2)*1,[3]ورقة1!$A$2:$B$29,2,0),"") ->  | S22: 3 | T22: =IF(ISNUMBER(SEARCH('قوائم (2)'!$C$1,'بيانات ص 2'!$S$8:$S$303)),MAX($T$7:T21)+1,0) -> 0 | U22: 3 | V22: =IF($D22="","",Salim_Split_Name($D22,COLUMNS($D22:E22))) ->  | W22: =IF($D22="","",Salim_Split_Name($D22,COLUMNS($D22:F22))) ->  | X22: =IF($D22="","",Salim_Split_Name($D22,COLUMNS($D22:G22))) ->  | Y22: =IF($D22="","",Salim_Split_Name($D22,COLUMNS($D22:H22))) ->  | AB22: 0 | AC22: 0 | AD22: =IFERROR(VLOOKUP(S22,ورقة1!$AT$9:$AV$16,3),"") -> 1/2ب
A23: =IF(C23="","",SUBTOTAL(3,$C$8:C23)) ->  | B23: 0 | I23: مسلم | K23: ناجح ومنقول | R23: =IFERROR(VLOOKUP(MID($E23,8,2)*1,[3]ورقة1!$A$2:$B$29,2,0),"") ->  | S23: 4 | T23: =IF(ISNUMBER(SEARCH('قوائم (2)'!$C$1,'بيانات ص 2'!$S$8:$S$303)),MAX($T$7:T22)+1,0) -> 0 | U23: 4 | V23: =IF($D23="","",Salim_Split_Name($D23,COLUMNS($D23:E23))) ->  | W23: =IF($D23="","",Salim_Split_Name($D23,COLUMNS($D23:F23))) ->  | X23: =IF($D23="","",Salim_Split_Name($D23,COLUMNS($D23:G23))) ->  | Y23: =IF($D23="","",Salim_Split_Name($D23,COLUMNS($D23:H23))) ->  | AB23: 0 | AC23: 0 | AD23: =IFERROR(VLOOKUP(S23,ورقة1!$AT$9:$AV$16,3),"") -> 2/2ب
A24: =IF(C24="","",SUBTOTAL(3,$C$8:C24)) ->  | B24: 0 | I24: مسلم | K24: ناجح ومنقول | R24: =IFERROR(VLOOKUP(MID($E24,8,2)*1,[3]ورقة1!$A$2:$B$29,2,0),"") ->  | S24: 1 | T24: =IF(ISNUMBER(SEARCH('قوائم (2)'!$C$1,'بيانات ص 2'!$S$8:$S$303)),MAX($T$7:T23)+1,0) -> 0 | U24: 1 | V24: =IF($D24="","",Salim_Split_Name($D24,COLUMNS($D24:E24))) ->  | W24: =IF($D24="","",Salim_Split_Name($D24,COLUMNS($D24:F24))) ->  | X24: =IF($D24="","",Salim_Split_Name($D24,COLUMNS($D24:G24))) ->  | Y24: =IF($D24="","",Salim_Split_Name($D24,COLUMNS($D24:H24))) ->  | AB24: 0 | AC24: 0 | AD24: =IFERROR(VLOOKUP(S24,ورقة1!$AT$9:$AV$16,3),"") -> 1/2أ
A25: =IF(C25="","",SUBTOTAL(3,$C$8:C25)) ->  | B25: 5 | I25: مسلم | K25: ناجح ومنقول | R25: =IFERROR(VLOOKUP(MID($E25,8,2)*1,[3]ورقة1!$A$2:$B$29,2,0),"") ->  | S25: 2 | T25: =IF(ISNUMBER(SEARCH('قوائم (2)'!$C$1,'بيانات ص 2'!$S$8:$S$303)),MAX($T$7:T24)+1,0) -> 5 | U25: 2 | V25: =IF($D25="","",Salim_Split_Name($D25,COLUMNS($D25:E25))) ->  | W25: =IF($D25="","",Salim_Split_Name($D25,COLUMNS($D25:F25))) ->  | X25: =IF($D25="","",Salim_Split_Name($D25,COLUMNS($D25:G25))) ->  | Y25: =IF($D25="","",Salim_Split_Name($D25,COLUMNS($D25:H25))) ->  | AB25: 0 | AC25: 0 | AD25: =IFERROR(VLOOKUP(S25,ورقة1!$AT$9:$AV$16,3),"") -> 2/2أ
A26: =IF(C26="","",SUBTOTAL(3,$C$8:C26)) ->  | B26: 0 | I26: مسلم | K26: ناجح ومنقول | R26: =IFERROR(VLOOKUP(MID($E26,8,2)*1,[3]ورقة1!$A$2:$B$29,2,0),"") ->  | S26: 3 | T26: =IF(ISNUMBER(SEARCH('قوائم (2)'!$C$1,'بيانات ص 2'!$S$8:$S$303)),MAX($T$7:T25)+1,0) -> 0 | U26: 3 | V26: =IF($D26="","",Salim_Split_Name($D26,COLUMNS($D26:E26))) ->  | W26: =IF($D26="","",Salim_Split_Name($D26,COLUMNS($D26:F26))) ->  | X26: =IF($D26="","",Salim_Split_Name($D26,COLUMNS($D26:G26))) ->  | Y26: =IF($D26="","",Salim_Split_Name($D26,COLUMNS($D26:H26))) ->  | AB26: 0 | AC26: 0 | AD26: =IFERROR(VLOOKUP(S26,ورقة1!$AT$9:$AV$16,3),"") -> 1/2ب
A27: =IF(C27="","",SUBTOTAL(3,$C$8:C27)) ->  | B27: 0 | I27: مسلم | K27: ناجح ومنقول | R27: =IFERROR(VLOOKUP(MID($E27,8,2)*1,[3]ورقة1!$A$2:$B$29,2,0),"") ->  | S27: 4 | T27: =IF(ISNUMBER(SEARCH('قوائم (2)'!$C$1,'بيانات ص 2'!$S$8:$S$303)),MAX($T$7:T26)+1,0) -> 0 | U27: 4 | V27: =IF($D27="","",Salim_Split_Name($D27,COLUMNS($D27:E27))) ->  | W27: =IF($D27="","",Salim_Split_Name($D27,COLUMNS($D27:F27))) ->  | X27: =IF($D27="","",Salim_Split_Name($D27,COLUMNS($D27:G27))) ->  | Y27: =IF($D27="","",Salim_Split_Name($D27,COLUMNS($D27:H27))) ->  | AB27: 0 | AC27: 0 | AD27: =IFERROR(VLOOKUP(S27,ورقة1!$AT$9:$AV$16,3),"") -> 2/2ب
A28: =IF(C28="","",SUBTOTAL(3,$C$8:C28)) ->  | B28: 0 | I28: مسلم | K28: ناجح ومنقول | R28: =IFERROR(VLOOKUP(MID($E28,8,2)*1,[3]ورقة1!$A$2:$B$29,2,0),"") ->  | S28: 1 | T28: =IF(ISNUMBER(SEARCH('قوائم (2)'!$C$1,'بيانات ص 2'!$S$8:$S$303)),MAX($T$7:T27)+1,0) -> 0 | U28: 1 | V28: =IF($D28="","",Salim_Split_Name($D28,COLUMNS($D28:E28))) ->  | W28: =IF($D28="","",Salim_Split_Name($D28,COLUMNS($D28:F28))) ->  | X28: =IF($D28="","",Salim_Split_Name($D28,COLUMNS($D28:G28))) ->  | Y28: =IF($D28="","",Salim_Split_Name($D28,COLUMNS($D28:H28))) ->  | AB28: 0 | AC28: 0 | AD28: =IFERROR(VLOOKUP(S28,ورقة1!$AT$9:$AV$16,3),"") -> 1/2أ
A29: =IF(C29="","",SUBTOTAL(3,$C$8:C29)) ->  | B29: 6 | I29: مسلم | K29: ناجح ومنقول | R29: =IFERROR(VLOOKUP(MID($E29,8,2)*1,[3]ورقة1!$A$2:$B$29,2,0),"") ->  | S29: 2 | T29: =IF(ISNUMBER(SEARCH('قوائم (2)'!$C$1,'بيانات ص 2'!$S$8:$S$303)),MAX($T$7:T28)+1,0) -> 6 | U29: 2 | V29: =IF($D29="","",Salim_Split_Name($D29,COLUMNS($D29:E29))) ->  | W29: =IF($D29="","",Salim_Split_Name($D29,COLUMNS($D29:F29))) ->  | X29: =IF($D29="","",Salim_Split_Name($D29,COLUMNS($D29:G29))) ->  | Y29: =IF($D29="","",Salim_Split_Name($D29,COLUMNS($D29:H29))) ->  | AB29: 0 | AC29: 0 | AD29: =IFERROR(VLOOKUP(S29,ورقة1!$AT$9:$AV$16,3),"") -> 2/2أ
A30: =IF(C30="","",SUBTOTAL(3,$C$8:C30)) ->  | B30: 0 | I30: مسلم | K30: ناجح ومنقول | R30: =IFERROR(VLOOKUP(MID($E30,8,2)*1,[3]ورقة1!$A$2:$B$29,2,0),"") ->  | S30: 3 | T30: =IF(ISNUMBER(SEARCH('قوائم (2)'!$C$1,'بيانات ص 2'!$S$8:$S$303)),MAX($T$7:T29)+1,0) -> 0 | U30: 3 | V30: =IF($D30="","",Salim_Split_Name($D30,COLUMNS($D30:E30))) ->  | W30: =IF($D30="","",Salim_Split_Name($D30,COLUMNS($D30:F30))) ->  | X30: =IF($D30="","",Salim_Split_Name($D30,COLUMNS($D30:G30))) ->  | Y30: =IF($D30="","",Salim_Split_Name($D30,COLUMNS($D30:H30))) ->  | AB30: 0 | AC30: 0 | AD30: =IFERROR(VLOOKUP(S30,ورقة1!$AT$9:$AV$16,3),"") -> 1/2ب
A31: =IF(C31="","",SUBTOTAL(3,$C$8:C31)) ->  | B31: 0 | I31: مسلم | K31: ناجح ومنقول | R31: =IFERROR(VLOOKUP(MID($E31,8,2)*1,[3]ورقة1!$A$2:$B$29,2,0),"") ->  | S31: 1 | T31: =IF(ISNUMBER(SEARCH('قوائم (2)'!$C$1,'بيانات ص 2'!$S$8:$S$303)),MAX($T$7:T30)+1,0) -> 0 | U31: 1 | V31: =IF($D31="","",Salim_Split_Name($D31,COLUMNS($D31:E31))) ->  | W31: =IF($D31="","",Salim_Split_Name($D31,COLUMNS($D31:F31))) ->  | X31: =IF($D31="","",Salim_Split_Name($D31,COLUMNS($D31:G31))) ->  | Y31: =IF($D31="","",Salim_Split_Name($D31,COLUMNS($D31:H31))) ->  | AB31: 0 | AC31: 0 | AD31: =IFERROR(VLOOKUP(S31,ورقة1!$AT$9:$AV$16,3),"") -> 1/2أ
A32: =IF(C32="","",SUBTOTAL(3,$C$8:C32)) ->  | B32: 7 | I32: مسلم | K32: ناجح ومنقول | R32: =IFERROR(VLOOKUP(MID($E32,8,2)*1,[3]ورقة1!$A$2:$B$29,2,0),"") ->  | S32: 2 | T32: =IF(ISNUMBER(SEARCH('قوائم (2)'!$C$1,'بيانات ص 2'!$S$8:$S$303)),MAX($T$7:T31)+1,0) -> 7 | U32: 2 | V32: =IF($D32="","",Salim_Split_Name($D32,COLUMNS($D32:E32))) ->  | W32: =IF($D32="","",Salim_Split_Name($D32,COLUMNS($D32:F32))) ->  | X32: =IF($D32="","",Salim_Split_Name($D32,COLUMNS($D32:G32))) ->  | Y32: =IF($D32="","",Salim_Split_Name($D32,COLUMNS($D32:H32))) ->  | AB32: 0 | AC32: 0 | AD32: =IFERROR(VLOOKUP(S32,ورقة1!$AT$9:$AV$16,3),"") -> 2/2أ
A33: =IF(C33="","",SUBTOTAL(3,$C$8:C33)) ->  | B33: 0 | I33: مسلم | K33: ناجح ومنقول | R33: =IFERROR(VLOOKUP(MID($E33,8,2)*1,[3]ورقة1!$A$2:$B$29,2,0),"") ->  | S33: 3 | T33: =IF(ISNUMBER(SEARCH('قوائم (2)'!$C$1,'بيانات ص 2'!$S$8:$S$303)),MAX($T$7:T32)+1,0) -> 0 | U33: 3 | V33: =IF($D33="","",Salim_Split_Name($D33,COLUMNS($D33:E33))) ->  | W33: =IF($D33="","",Salim_Split_Name($D33,COLUMNS($D33:F33))) ->  | X33: =IF($D33="","",Salim_Split_Name($D33,COLUMNS($D33:G33))) ->  | Y33: =IF($D33="","",Salim_Split_Name($D33,COLUMNS($D33:H33))) ->  | AB33: 0 | AC33: 0 | AD33: =IFERROR(VLOOKUP(S33,ورقة1!$AT$9:$AV$16,3),"") -> 1/2ب
A34: =IF(C34="","",SUBTOTAL(3,$C$8:C34)) ->  | B34: 0 | I34: مسلم | K34: ناجح ومنقول | R34: =IFERROR(VLOOKUP(MID($E34,8,2)*1,[3]ورقة1!$A$2:$B$29,2,0),"") ->  | S34: 4 | T34: =IF(ISNUMBER(SEARCH('قوائم (2)'!$C$1,'بيانات ص 2'!$S$8:$S$303)),MAX($T$7:T33)+1,0) -> 0 | U34: 4 | V34: =IF($D34="","",Salim_Split_Name($D34,COLUMNS($D34:E34))) ->  | W34: =IF($D34="","",Salim_Split_Name($D34,COLUMNS($D34:F34))) ->  | X34: =IF($D34="","",Salim_Split_Name($D34,COLUMNS($D34:G34))) ->  | Y34: =IF($D34="","",Salim_Split_Name($D34,COLUMNS($D34:H34))) ->  | AB34: 0 | AC34: 0 | AD34: =IFERROR(VLOOKUP(S34,ورقة1!$AT$9:$AV$16,3),"") -> 2/2ب
A35: =IF(C35="","",SUBTOTAL(3,$C$8:C35)) ->  | B35: 0 | I35: مسلم | K35: ناجح ومنقول | R35: =IFERROR(VLOOKUP(MID($E35,8,2)*1,[3]ورقة1!$A$2:$B$29,2,0),"") ->  | S35: 1 | T35: =IF(ISNUMBER(SEARCH('قوائم (2)'!$C$1,'بيانات ص 2'!$S$8:$S$303)),MAX($T$7:T34)+1,0) -> 0 | U35: 1 | V35: =IF($D35="","",Salim_Split_Name($D35,COLUMNS($D35:E35))) ->  | W35: =IF($D35="","",Salim_Split_Name($D35,COLUMNS($D35:F35))) ->  | X35: =IF($D35="","",Salim_Split_Name($D35,COLUMNS($D35:G35))) ->  | Y35: =IF($D35="","",Salim_Split_Name($D35,COLUMNS($D35:H35))) ->  | AB35: 0 | AC35: 0 | AD35: =IFERROR(VLOOKUP(S35,ورقة1!$AT$9:$AV$16,3),"") -> 1/2أ
A36: =IF(C36="","",SUBTOTAL(3,$C$8:C36)) ->  | B36: 8 | I36: مسلم | K36: ناجح ومنقول | R36: =IFERROR(VLOOKUP(MID($E36,8,2)*1,[3]ورقة1!$A$2:$B$29,2,0),"") ->  | S36: 2 | T36: =IF(ISNUMBER(SEARCH('قوائم (2)'!$C$1,'بيانات ص 2'!$S$8:$S$303)),MAX($T$7:T35)+1,0) -> 8 | U36: 2 | V36: =IF($D36="","",Salim_Split_Name($D36,COLUMNS($D36:E36))) ->  | W36: =IF($D36="","",Salim_Split_Name($D36,COLUMNS($D36:F36))) ->  | X36: =IF($D36="","",Salim_Split_Name($D36,COLUMNS($D36:G36))) ->  | Y36: =IF($D36="","",Salim_Split_Name($D36,COLUMNS($D36:H36))) ->  | AB36: 0 | AC36: 0 | AD36: =IFERROR(VLOOKUP(S36,ورقة1!$AT$9:$AV$16,3),"") -> 2/2أ
A37: =IF(C37="","",SUBTOTAL(3,$C$8:C37)) ->  | B37: 0 | I37: مسلم | K37: ناجح ومنقول | R37: =IFERROR(VLOOKUP(MID($E37,8,2)*1,[3]ورقة1!$A$2:$B$29,2,0),"") ->  | S37: 3 | T37: =IF(ISNUMBER(SEARCH('قوائم (2)'!$C$1,'بيانات ص 2'!$S$8:$S$303)),MAX($T$7:T36)+1,0) -> 0 | U37: 3 | V37: =IF($D37="","",Salim_Split_Name($D37,COLUMNS($D37:E37))) ->  | W37: =IF($D37="","",Salim_Split_Name($D37,COLUMNS($D37:F37))) ->  | X37: =IF($D37="","",Salim_Split_Name($D37,COLUMNS($D37:G37))) ->  | Y37: =IF($D37="","",Salim_Split_Name($D37,COLUMNS($D37:H37))) ->  | AB37: 0 | AC37: 0 | AD37: =IFERROR(VLOOKUP(S37,ورقة1!$AT$9:$AV$16,3),"") -> 1/2ب
A38: =IF(C38="","",SUBTOTAL(3,$C$8:C38)) ->  | B38: 0 | I38: مسلم | K38: ناجح ومنقول | R38: =IFERROR(VLOOKUP(MID($E38,8,2)*1,[3]ورقة1!$A$2:$B$29,2,0),"") ->  | S38: 4 | T38: =IF(ISNUMBER(SEARCH('قوائم (2)'!$C$1,'بيانات ص 2'!$S$8:$S$303)),MAX($T$7:T37)+1,0) -> 0 | U38: 4 | V38: =IF($D38="","",Salim_Split_Name($D38,COLUMNS($D38:E38))) ->  | W38: =IF($D38="","",Salim_Split_Name($D38,COLUMNS($D38:F38))) ->  | X38: =IF($D38="","",Salim_Split_Name($D38,COLUMNS($D38:G38))) ->  | Y38: =IF($D38="","",Salim_Split_Name($D38,COLUMNS($D38:H38))) ->  | AB38: 0 | AC38: 0 | AD38: =IFERROR(VLOOKUP(S38,ورقة1!$AT$9:$AV$16,3),"") -> 2/2ب
A39: =IF(C39="","",SUBTOTAL(3,$C$8:C39)) ->  | B39: 0 | I39: مسلم | K39: ناجح ومنقول | R39: =IFERROR(VLOOKUP(MID($E39,8,2)*1,[3]ورقة1!$A$2:$B$29,2,0),"") ->  | S39: 1 | T39: =IF(ISNUMBER(SEARCH('قوائم (2)'!$C$1,'بيانات ص 2'!$S$8:$S$303)),MAX($T$7:T38)+1,0) -> 0 | U39: 1 | V39: =IF($D39="","",Salim_Split_Name($D39,COLUMNS($D39:E39))) ->  | W39: =IF($D39="","",Salim_Split_Name($D39,COLUMNS($D39:F39))) ->  | X39: =IF($D39="","",Salim_Split_Name($D39,COLUMNS($D39:G39))) ->  | Y39: =IF($D39="","",Salim_Split_Name($D39,COLUMNS($D39:H39))) ->  | AB39: 0 | AC39: 0 | AD39: =IFERROR(VLOOKUP(S39,ورقة1!$AT$9:$AV$16,3),"") -> 1/2أ
A40: =IF(C40="","",SUBTOTAL(3,$C$8:C40)) ->  | B40: 9 | I40: مسلم | K40: ناجح ومنقول | R40: =IFERROR(VLOOKUP(MID($E40,8,2)*1,[3]ورقة1!$A$2:$B$29,2,0),"") ->  | S40: 2 | T40: =IF(ISNUMBER(SEARCH('قوائم (2)'!$C$1,'بيانات ص 2'!$S$8:$S$303)),MAX($T$7:T39)+1,0) -> 9 | U40: 2 | V40: =IF($D40="","",Salim_Split_Name($D40,COLUMNS($D40:E40))) ->  | W40: =IF($D40="","",Salim_Split_Name($D40,COLUMNS($D40:F40))) ->  | X40: =IF($D40="","",Salim_Split_Name($D40,COLUMNS($D40:G40))) ->  | Y40: =IF($D40="","",Salim_Split_Name($D40,COLUMNS($D40:H40))) ->  | AB40: 0 | AC40: 0 | AD40: =IFERROR(VLOOKUP(S40,ورقة1!$AT$9:$AV$16,3),"") -> 2/2أ
A41: =IF(C41="","",SUBTOTAL(3,$C$8:C41)) ->  | B41: 0 | I41: مسلم | K41: ناجح ومنقول | R41: =IFERROR(VLOOKUP(MID($E41,8,2)*1,[3]ورقة1!$A$2:$B$29,2,0),"") ->  | S41: 3 | T41: =IF(ISNUMBER(SEARCH('قوائم (2)'!$C$1,'بيانات ص 2'!$S$8:$S$303)),MAX($T$7:T40)+1,0) -> 0 | U41: 3 | V41: =IF($D41="","",Salim_Split_Name($D41,COLUMNS($D41:E41))) ->  | W41: =IF($D41="","",Salim_Split_Name($D41,COLUMNS($D41:F41))) ->  | X41: =IF($D41="","",Salim_Split_Name($D41,COLUMNS($D41:G41))) ->  | Y41: =IF($D41="","",Salim_Split_Name($D41,COLUMNS($D41:H41))) ->  | AB41: 0 | AC41: 0 | AD41: =IFERROR(VLOOKUP(S41,ورقة1!$AT$9:$AV$16,3),"") -> 1/2ب
A42: =IF(C42="","",SUBTOTAL(3,$C$8:C42)) ->  | B42: 0 | I42: مسلم | K42: ناجح ومنقول | R42: =IFERROR(VLOOKUP(MID($E42,8,2)*1,[3]ورقة1!$A$2:$B$29,2,0),"") ->  | S42: 4 | T42: =IF(ISNUMBER(SEARCH('قوائم (2)'!$C$1,'بيانات ص 2'!$S$8:$S$303)),MAX($T$7:T41)+1,0) -> 0 | U42: 4 | V42: =IF($D42="","",Salim_Split_Name($D42,COLUMNS($D42:E42))) ->  | W42: =IF($D42="","",Salim_Split_Name($D42,COLUMNS($D42:F42))) ->  | X42: =IF($D42="","",Salim_Split_Name($D42,COLUMNS($D42:G42))) ->  | Y42: =IF($D42="","",Salim_Split_Name($D42,COLUMNS($D42:H42))) ->  | AB42: 0 | AC42: 0 | AD42: =IFERROR(VLOOKUP(S42,ورقة1!$AT$9:$AV$16,3),"") -> 2/2ب
A43: =IF(C43="","",SUBTOTAL(3,$C$8:C43)) ->  | B43: 0 | I43: مسلم | K43: ناجح ومنقول | R43: =IFERROR(VLOOKUP(MID($E43,8,2)*1,[3]ورقة1!$A$2:$B$29,2,0),"") ->  | S43: 1 | T43: =IF(ISNUMBER(SEARCH('قوائم (2)'!$C$1,'بيانات ص 2'!$S$8:$S$303)),MAX($T$7:T42)+1,0) -> 0 | U43: 1 | V43: =IF($D43="","",Salim_Split_Name($D43,COLUMNS($D43:E43))) ->  | W43: =IF($D43="","",Salim_Split_Name($D43,COLUMNS($D43:F43))) ->  | X43: =IF($D43="","",Salim_Split_Name($D43,COLUMNS($D43:G43))) ->  | Y43: =IF($D43="","",Salim_Split_Name($D43,COLUMNS($D43:H43))) ->  | AB43: 0 | AC43: 0 | AD43: =IFERROR(VLOOKUP(S43,ورقة1!$AT$9:$AV$16,3),"") -> 1/2أ
A44: =IF(C44="","",SUBTOTAL(3,$C$8:C44)) ->  | B44: 10 | I44: مسلم | K44: ناجح ومنقول | R44: =IFERROR(VLOOKUP(MID($E44,8,2)*1,[3]ورقة1!$A$2:$B$29,2,0),"") ->  | S44: 2 | T44: =IF(ISNUMBER(SEARCH('قوائم (2)'!$C$1,'بيانات ص 2'!$S$8:$S$303)),MAX($T$7:T43)+1,0) -> 10 | U44: 2 | V44: =IF($D44="","",Salim_Split_Name($D44,COLUMNS($D44:E44))) ->  | W44: =IF($D44="","",Salim_Split_Name($D44,COLUMNS($D44:F44))) ->  | X44: =IF($D44="","",Salim_Split_Name($D44,COLUMNS($D44:G44))) ->  | Y44: =IF($D44="","",Salim_Split_Name($D44,COLUMNS($D44:H44))) ->  | AB44: 0 | AC44: 0 | AD44: =IFERROR(VLOOKUP(S44,ورقة1!$AT$9:$AV$16,3),"") -> 2/2أ
A45: =IF(C45="","",SUBTOTAL(3,$C$8:C45)) ->  | B45: 0 | I45: مسلم | K45: ناجح ومنقول | R45: =IFERROR(VLOOKUP(MID($E45,8,2)*1,[3]ورقة1!$A$2:$B$29,2,0),"") ->  | S45: 3 | T45: =IF(ISNUMBER(SEARCH('قوائم (2)'!$C$1,'بيانات ص 2'!$S$8:$S$303)),MAX($T$7:T44)+1,0) -> 0 | U45: 3 | V45: =IF($D45="","",Salim_Split_Name($D45,COLUMNS($D45:E45))) ->  | W45: =IF($D45="","",Salim_Split_Name($D45,COLUMNS($D45:F45))) ->  | X45: =IF($D45="","",Salim_Split_Name($D45,COLUMNS($D45:G45))) ->  | Y45: =IF($D45="","",Salim_Split_Name($D45,COLUMNS($D45:H45))) ->  | AB45: 0 | AC45: 0 | AD45: =IFERROR(VLOOKUP(S45,ورقة1!$AT$9:$AV$16,3),"") -> 1/2ب
A46: =IF(C46="","",SUBTOTAL(3,$C$8:C46)) ->  | B46: 0 | I46: مسلم | K46: ناجح ومنقول | R46: =IFERROR(VLOOKUP(MID($E46,8,2)*1,[3]ورقة1!$A$2:$B$29,2,0),"") ->  | S46: 4 | T46: =IF(ISNUMBER(SEARCH('قوائم (2)'!$C$1,'بيانات ص 2'!$S$8:$S$303)),MAX($T$7:T45)+1,0) -> 0 | U46: 4 | V46: =IF($D46="","",Salim_Split_Name($D46,COLUMNS($D46:E46))) ->  | W46: =IF($D46="","",Salim_Split_Name($D46,COLUMNS($D46:F46))) ->  | X46: =IF($D46="","",Salim_Split_Name($D46,COLUMNS($D46:G46))) ->  | Y46: =IF($D46="","",Salim_Split_Name($D46,COLUMNS($D46:H46))) ->  | AB46: 0 | AC46: 0 | AD46: =IFERROR(VLOOKUP(S46,ورقة1!$AT$9:$AV$16,3),"") -> 2/2ب
A47: =IF(C47="","",SUBTOTAL(3,$C$8:C47)) ->  | B47: 0 | I47: مسلم | K47: ناجح ومنقول | R47: =IFERROR(VLOOKUP(MID($E47,8,2)*1,[3]ورقة1!$A$2:$B$29,2,0),"") ->  | S47: 1 | T47: =IF(ISNUMBER(SEARCH('قوائم (2)'!$C$1,'بيانات ص 2'!$S$8:$S$303)),MAX($T$7:T46)+1,0) -> 0 | U47: 1 | V47: =IF($D47="","",Salim_Split_Name($D47,COLUMNS($D47:E47))) ->  | W47: =IF($D47="","",Salim_Split_Name($D47,COLUMNS($D47:F47))) ->  | X47: =IF($D47="","",Salim_Split_Name($D47,COLUMNS($D47:G47))) ->  | Y47: =IF($D47="","",Salim_Split_Name($D47,COLUMNS($D47:H47))) ->  | AB47: 0 | AC47: 0 | AD47: =IFERROR(VLOOKUP(S47,ورقة1!$AT$9:$AV$16,3),"") -> 1/2أ
A48: =IF(C48="","",SUBTOTAL(3,$C$8:C48)) ->  | B48: 11 | I48: مسلم | K48: ناجح ومنقول | R48: =IFERROR(VLOOKUP(MID($E48,8,2)*1,[3]ورقة1!$A$2:$B$29,2,0),"") ->  | S48: 2 | T48: =IF(ISNUMBER(SEARCH('قوائم (2)'!$C$1,'بيانات ص 2'!$S$8:$S$303)),MAX($T$7:T47)+1,0) -> 11 | U48: 2 | V48: =IF($D48="","",Salim_Split_Name($D48,COLUMNS($D48:E48))) ->  | W48: =IF($D48="","",Salim_Split_Name($D48,COLUMNS($D48:F48))) ->  | X48: =IF($D48="","",Salim_Split_Name($D48,COLUMNS($D48:G48))) ->  | Y48: =IF($D48="","",Salim_Split_Name($D48,COLUMNS($D48:H48))) ->  | AB48: 0 | AC48: 0 | AD48: =IFERROR(VLOOKUP(S48,ورقة1!$AT$9:$AV$16,3),"") -> 2/2أ
A49: =IF(C49="","",SUBTOTAL(3,$C$8:C49)) ->  | B49: 0 | I49: مسلم | K49: ناجح ومنقول | R49: =IFERROR(VLOOKUP(MID($E49,8,2)*1,[3]ورقة1!$A$2:$B$29,2,0),"") ->  | S49: 3 | T49: =IF(ISNUMBER(SEARCH('قوائم (2)'!$C$1,'بيانات ص 2'!$S$8:$S$303)),MAX($T$7:T48)+1,0) -> 0 | U49: 3 | V49: =IF($D49="","",Salim_Split_Name($D49,COLUMNS($D49:E49))) ->  | W49: =IF($D49="","",Salim_Split_Name($D49,COLUMNS($D49:F49))) ->  | X49: =IF($D49="","",Salim_Split_Name($D49,COLUMNS($D49:G49))) ->  | Y49: =IF($D49="","",Salim_Split_Name($D49,COLUMNS($D49:H49))) ->  | AB49: 0 | AC49: 0 | AD49: =IFERROR(VLOOKUP(S49,ورقة1!$AT$9:$AV$16,3),"") -> 1/2ب
A50: =IF(C50="","",SUBTOTAL(3,$C$8:C50)) ->  | B50: 0 | I50: مسلم | K50: ناجح ومنقول | R50: =IFERROR(VLOOKUP(MID($E50,8,2)*1,[3]ورقة1!$A$2:$B$29,2,0),"") ->  | S50: 4 | T50: =IF(ISNUMBER(SEARCH('قوائم (2)'!$C$1,'بيانات ص 2'!$S$8:$S$303)),MAX($T$7:T49)+1,0) -> 0 | U50: 4 | V50: =IF($D50="","",Salim_Split_Name($D50,COLUMNS($D50:E50))) ->  | W50: =IF($D50="","",Salim_Split_Name($D50,COLUMNS($D50:F50))) ->  | X50: =IF($D50="","",Salim_Split_Name($D50,COLUMNS($D50:G50))) ->  | Y50: =IF($D50="","",Salim_Split_Name($D50,COLUMNS($D50:H50))) ->  | AB50: 0 | AC50: 0 | AD50: =IFERROR(VLOOKUP(S50,ورقة1!$AT$9:$AV$16,3),"") -> 2/2ب
A51: =IF(C51="","",SUBTOTAL(3,$C$8:C51)) ->  | B51: 0 | I51: مسلم | K51: ناجح ومنقول | R51: =IFERROR(VLOOKUP(MID($E51,8,2)*1,[3]ورقة1!$A$2:$B$29,2,0),"") ->  | S51: 1 | T51: =IF(ISNUMBER(SEARCH('قوائم (2)'!$C$1,'بيانات ص 2'!$S$8:$S$303)),MAX($T$7:T50)+1,0) -> 0 | U51: 1 | V51: =IF($D51="","",Salim_Split_Name($D51,COLUMNS($D51:E51))) ->  | W51: =IF($D51="","",Salim_Split_Name($D51,COLUMNS($D51:F51))) ->  | X51: =IF($D51="","",Salim_Split_Name($D51,COLUMNS($D51:G51))) ->  | Y51: =IF($D51="","",Salim_Split_Name($D51,COLUMNS($D51:H51))) ->  | AB51: 0 | AC51: 0 | AD51: =IFERROR(VLOOKUP(S51,ورقة1!$AT$9:$AV$16,3),"") -> 1/2أ
A52: =IF(C52="","",SUBTOTAL(3,$C$8:C52)) ->  | B52: 12 | I52: مسلم | K52: ناجح ومنقول | R52: =IFERROR(VLOOKUP(MID($E52,8,2)*1,[3]ورقة1!$A$2:$B$29,2,0),"") ->  | S52: 2 | T52: =IF(ISNUMBER(SEARCH('قوائم (2)'!$C$1,'بيانات ص 2'!$S$8:$S$303)),MAX($T$7:T51)+1,0) -> 12 | U52: 2 | V52: =IF($D52="","",Salim_Split_Name($D52,COLUMNS($D52:E52))) ->  | W52: =IF($D52="","",Salim_Split_Name($D52,COLUMNS($D52:F52))) ->  | X52: =IF($D52="","",Salim_Split_Name($D52,COLUMNS($D52:G52))) ->  | Y52: =IF($D52="","",Salim_Split_Name($D52,COLUMNS($D52:H52))) ->  | AB52: 0 | AC52: 0 | AD52: =IFERROR(VLOOKUP(S52,ورقة1!$AT$9:$AV$16,3),"") -> 2/2أ
A53: =IF(C53="","",SUBTOTAL(3,$C$8:C53)) ->  | B53: 0 | I53: مسلم | K53: ناجح ومنقول | R53: =IFERROR(VLOOKUP(MID($E53,8,2)*1,[3]ورقة1!$A$2:$B$29,2,0),"") ->  | S53: 3 | T53: =IF(ISNUMBER(SEARCH('قوائم (2)'!$C$1,'بيانات ص 2'!$S$8:$S$303)),MAX($T$7:T52)+1,0) -> 0 | U53: 3 | V53: =IF($D53="","",Salim_Split_Name($D53,COLUMNS($D53:E53))) ->  | W53: =IF($D53="","",Salim_Split_Name($D53,COLUMNS($D53:F53))) ->  | X53: =IF($D53="","",Salim_Split_Name($D53,COLUMNS($D53:G53))) ->  | Y53: =IF($D53="","",Salim_Split_Name($D53,COLUMNS($D53:H53))) ->  | AB53: 0 | AC53: 0 | AD53: =IFERROR(VLOOKUP(S53,ورقة1!$AT$9:$AV$16,3),"") -> 1/2ب
A54: =IF(C54="","",SUBTOTAL(3,$C$8:C54)) ->  | B54: 0 | I54: مسلم | K54: ناجح ومنقول | R54: =IFERROR(VLOOKUP(MID($E54,8,2)*1,[3]ورقة1!$A$2:$B$29,2,0),"") ->  | S54: 1 | T54: =IF(ISNUMBER(SEARCH('قوائم (2)'!$C$1,'بيانات ص 2'!$S$8:$S$303)),MAX($T$7:T53)+1,0) -> 0 | U54: 4 | V54: =IF($D54="","",Salim_Split_Name($D54,COLUMNS($D54:E54))) ->  | W54: =IF($D54="","",Salim_Split_Name($D54,COLUMNS($D54:F54))) ->  | X54: =IF($D54="","",Salim_Split_Name($D54,COLUMNS($D54:G54))) ->  | Y54: =IF($D54="","",Salim_Split_Name($D54,COLUMNS($D54:H54))) ->  | AB54: 0 | AC54: 0 | AD54: =IFERROR(VLOOKUP(S54,ورقة1!$AT$9:$AV$16,3),"") -> 1/2أ
A55: =IF(C55="","",SUBTOTAL(3,$C$8:C55)) ->  | B55: 0 | I55: مسلم | K55: ناجح ومنقول | R55: =IFERROR(VLOOKUP(MID($E55,8,2)*1,[3]ورقة1!$A$2:$B$29,2,0),"") ->  | S55: 1 | T55: =IF(ISNUMBER(SEARCH('قوائم (2)'!$C$1,'بيانات ص 2'!$S$8:$S$303)),MAX($T$7:T54)+1,0) -> 0 | U55: 1 | V55: =IF($D55="","",Salim_Split_Name($D55,COLUMNS($D55:E55))) ->  | W55: =IF($D55="","",Salim_Split_Name($D55,COLUMNS($D55:F55))) ->  | X55: =IF($D55="","",Salim_Split_Name($D55,COLUMNS($D55:G55))) ->  | Y55: =IF($D55="","",Salim_Split_Name($D55,COLUMNS($D55:H55))) ->  | AB55: 0 | AC55: 0 | AD55: =IFERROR(VLOOKUP(S55,ورقة1!$AT$9:$AV$16,3),"") -> 1/2أ
A56: =IF(C56="","",SUBTOTAL(3,$C$8:C56)) ->  | B56: 13 | I56: مسلم | K56: ناجح ومنقول | R56: =IFERROR(VLOOKUP(MID($E56,8,2)*1,[3]ورقة1!$A$2:$B$29,2,0),"") ->  | S56: 2 | T56: =IF(ISNUMBER(SEARCH('قوائم (2)'!$C$1,'بيانات ص 2'!$S$8:$S$303)),MAX($T$7:T55)+1,0) -> 13 | U56: 2 | V56: =IF($D56="","",Salim_Split_Name($D56,COLUMNS($D56:E56))) ->  | W56: =IF($D56="","",Salim_Split_Name($D56,COLUMNS($D56:F56))) ->  | X56: =IF($D56="","",Salim_Split_Name($D56,COLUMNS($D56:G56))) ->  | Y56: =IF($D56="","",Salim_Split_Name($D56,COLUMNS($D56:H56))) ->  | AB56: 0 | AC56: 0 | AD56: =IFERROR(VLOOKUP(S56,ورقة1!$AT$9:$AV$16,3),"") -> 2/2أ
A57: =IF(C57="","",SUBTOTAL(3,$C$8:C57)) ->  | B57: 0 | I57: مسلم | K57: ناجح ومنقول | R57: =IFERROR(VLOOKUP(MID($E57,8,2)*1,[3]ورقة1!$A$2:$B$29,2,0),"") ->  | S57: 3 | T57: =IF(ISNUMBER(SEARCH('قوائم (2)'!$C$1,'بيانات ص 2'!$S$8:$S$303)),MAX($T$7:T56)+1,0) -> 0 | U57: 3 | V57: =IF($D57="","",Salim_Split_Name($D57,COLUMNS($D57:E57))) ->  | W57: =IF($D57="","",Salim_Split_Name($D57,COLUMNS($D57:F57))) ->  | X57: =IF($D57="","",Salim_Split_Name($D57,COLUMNS($D57:G57))) ->  | Y57: =IF($D57="","",Salim_Split_Name($D57,COLUMNS($D57:H57))) ->  | AB57: 0 | AC57: 0 | AD57: =IFERROR(VLOOKUP(S57,ورقة1!$AT$9:$AV$16,3),"") -> 1/2ب
A58: =IF(C58="","",SUBTOTAL(3,$C$8:C58)) ->  | B58: 0 | I58: مسلم | K58: ناجح ومنقول | R58: =IFERROR(VLOOKUP(MID($E58,8,2)*1,[3]ورقة1!$A$2:$B$29,2,0),"") ->  | S58: 4 | T58: =IF(ISNUMBER(SEARCH('قوائم (2)'!$C$1,'بيانات ص 2'!$S$8:$S$303)),MAX($T$7:T57)+1,0) -> 0 | U58: 4 | V58: =IF($D58="","",Salim_Split_Name($D58,COLUMNS($D58:E58))) ->  | W58: =IF($D58="","",Salim_Split_Name($D58,COLUMNS($D58:F58))) ->  | X58: =IF($D58="","",Salim_Split_Name($D58,COLUMNS($D58:G58))) ->  | Y58: =IF($D58="","",Salim_Split_Name($D58,COLUMNS($D58:H58))) ->  | AB58: 0 | AC58: 0 | AD58: =IFERROR(VLOOKUP(S58,ورقة1!$AT$9:$AV$16,3),"") -> 2/2ب
A59: =IF(C59="","",SUBTOTAL(3,$C$8:C59)) ->  | B59: 0 | I59: مسلم | K59: ناجح ومنقول | R59: =IFERROR(VLOOKUP(MID($E59,8,2)*1,[3]ورقة1!$A$2:$B$29,2,0),"") ->  | S59: 1 | T59: =IF(ISNUMBER(SEARCH('قوائم (2)'!$C$1,'بيانات ص 2'!$S$8:$S$303)),MAX($T$7:T58)+1,0) -> 0 | U59: 1 | V59: =IF($D59="","",Salim_Split_Name($D59,COLUMNS($D59:E59))) ->  | W59: =IF($D59="","",Salim_Split_Name($D59,COLUMNS($D59:F59))) ->  | X59: =IF($D59="","",Salim_Split_Name($D59,COLUMNS($D59:G59))) ->  | Y59: =IF($D59="","",Salim_Split_Name($D59,COLUMNS($D59:H59))) ->  | AB59: 0 | AC59: 0 | AD59: =IFERROR(VLOOKUP(S59,ورقة1!$AT$9:$AV$16,3),"") -> 1/2أ
A60: =IF(C60="","",SUBTOTAL(3,$C$8:C60)) ->  | B60: 14 | I60: مسلم | K60: ناجح ومنقول | R60: =IFERROR(VLOOKUP(MID($E60,8,2)*1,[3]ورقة1!$A$2:$B$29,2,0),"") ->  | S60: 2 | T60: =IF(ISNUMBER(SEARCH('قوائم (2)'!$C$1,'بيانات ص 2'!$S$8:$S$303)),MAX($T$7:T59)+1,0) -> 14 | U60: 2 | V60: =IF($D60="","",Salim_Split_Name($D60,COLUMNS($D60:E60))) ->  | W60: =IF($D60="","",Salim_Split_Name($D60,COLUMNS($D60:F60))) ->  | X60: =IF($D60="","",Salim_Split_Name($D60,COLUMNS($D60:G60))) ->  | Y60: =IF($D60="","",Salim_Split_Name($D60,COLUMNS($D60:H60))) ->  | AB60: 0 | AC60: 0 | AD60: =IFERROR(VLOOKUP(S60,ورقة1!$AT$9:$AV$16,3),"") -> 2/2أ
A61: =IF(C61="","",SUBTOTAL(3,$C$8:C61)) ->  | B61: 0 | I61: مسلم | K61: ناجح ومنقول | R61: =IFERROR(VLOOKUP(MID($E61,8,2)*1,[3]ورقة1!$A$2:$B$29,2,0),"") ->  | S61: 3 | T61: =IF(ISNUMBER(SEARCH('قوائم (2)'!$C$1,'بيانات ص 2'!$S$8:$S$303)),MAX($T$7:T60)+1,0) -> 0 | U61: 3 | V61: =IF($D61="","",Salim_Split_Name($D61,COLUMNS($D61:E61))) ->  | W61: =IF($D61="","",Salim_Split_Name($D61,COLUMNS($D61:F61))) ->  | X61: =IF($D61="","",Salim_Split_Name($D61,COLUMNS($D61:G61))) ->  | Y61: =IF($D61="","",Salim_Split_Name($D61,COLUMNS($D61:H61))) ->  | AB61: 0 | AC61: 0 | AD61: =IFERROR(VLOOKUP(S61,ورقة1!$AT$9:$AV$16,3),"") -> 1/2ب
A62: =IF(C62="","",SUBTOTAL(3,$C$8:C62)) ->  | B62: 0 | I62: مسلم | K62: ناجح ومنقول | R62: =IFERROR(VLOOKUP(MID($E62,8,2)*1,[3]ورقة1!$A$2:$B$29,2,0),"") ->  | S62: 4 | T62: =IF(ISNUMBER(SEARCH('قوائم (2)'!$C$1,'بيانات ص 2'!$S$8:$S$303)),MAX($T$7:T61)+1,0) -> 0 | U62: 4 | V62: =IF($D62="","",Salim_Split_Name($D62,COLUMNS($D62:E62))) ->  | W62: =IF($D62="","",Salim_Split_Name($D62,COLUMNS($D62:F62))) ->  | X62: =IF($D62="","",Salim_Split_Name($D62,COLUMNS($D62:G62))) ->  | Y62: =IF($D62="","",Salim_Split_Name($D62,COLUMNS($D62:H62))) ->  | AB62: 0 | AC62: 0 | AD62: =IFERROR(VLOOKUP(S62,ورقة1!$AT$9:$AV$16,3),"") -> 2/2ب
A63: =IF(C63="","",SUBTOTAL(3,$C$8:C63)) ->  | B63: 0 | I63: مسلم | K63: ناجح ومنقول | R63: =IFERROR(VLOOKUP(MID($E63,8,2)*1,[3]ورقة1!$A$2:$B$29,2,0),"") ->  | S63: 1 | T63: =IF(ISNUMBER(SEARCH('قوائم (2)'!$C$1,'بيانات ص 2'!$S$8:$S$303)),MAX($T$7:T62)+1,0) -> 0 | U63: 1 | V63: =IF($D63="","",Salim_Split_Name($D63,COLUMNS($D63:E63))) ->  | W63: =IF($D63="","",Salim_Split_Name($D63,COLUMNS($D63:F63))) ->  | X63: =IF($D63="","",Salim_Split_Name($D63,COLUMNS($D63:G63))) ->  | Y63: =IF($D63="","",Salim_Split_Name($D63,COLUMNS($D63:H63))) ->  | AB63: 0 | AC63: 0 | AD63: =IFERROR(VLOOKUP(S63,ورقة1!$AT$9:$AV$16,3),"") -> 1/2أ
A64: =IF(C64="","",SUBTOTAL(3,$C$8:C64)) ->  | B64: 15 | I64: مسلم | K64: ناجح ومنقول | R64: =IFERROR(VLOOKUP(MID($E64,8,2)*1,[3]ورقة1!$A$2:$B$29,2,0),"") ->  | S64: 2 | T64: =IF(ISNUMBER(SEARCH('قوائم (2)'!$C$1,'بيانات ص 2'!$S$8:$S$303)),MAX($T$7:T63)+1,0) -> 15 | U64: 2 | V64: =IF($D64="","",Salim_Split_Name($D64,COLUMNS($D64:E64))) ->  | W64: =IF($D64="","",Salim_Split_Name($D64,COLUMNS($D64:F64))) ->  | X64: =IF($D64="","",Salim_Split_Name($D64,COLUMNS($D64:G64))) ->  | Y64: =IF($D64="","",Salim_Split_Name($D64,COLUMNS($D64:H64))) ->  | AB64: 0 | AC64: 0 | AD64: =IFERROR(VLOOKUP(S64,ورقة1!$AT$9:$AV$16,3),"") -> 2/2أ
A65: =IF(C65="","",SUBTOTAL(3,$C$8:C65)) ->  | B65: 0 | I65: مسلم | K65: ناجح ومنقول | R65: =IFERROR(VLOOKUP(MID($E65,8,2)*1,[3]ورقة1!$A$2:$B$29,2,0),"") ->  | S65: 3 | T65: =IF(ISNUMBER(SEARCH('قوائم (2)'!$C$1,'بيانات ص 2'!$S$8:$S$303)),MAX($T$7:T64)+1,0) -> 0 | U65: 3 | V65: =IF($D65="","",Salim_Split_Name($D65,COLUMNS($D65:E65))) ->  | W65: =IF($D65="","",Salim_Split_Name($D65,COLUMNS($D65:F65))) ->  | X65: =IF($D65="","",Salim_Split_Name($D65,COLUMNS($D65:G65))) ->  | Y65: =IF($D65="","",Salim_Split_Name($D65,COLUMNS($D65:H65))) ->  | AB65: 0 | AC65: 0 | AD65: =IFERROR(VLOOKUP(S65,ورقة1!$AT$9:$AV$16,3),"") -> 1/2ب
A66: =IF(C66="","",SUBTOTAL(3,$C$8:C66)) ->  | B66: 0 | I66: مسلم | K66: ناجح ومنقول | R66: =IFERROR(VLOOKUP(MID($E66,8,2)*1,[3]ورقة1!$A$2:$B$29,2,0),"") ->  | S66: 4 | T66: =IF(ISNUMBER(SEARCH('قوائم (2)'!$C$1,'بيانات ص 2'!$S$8:$S$303)),MAX($T$7:T65)+1,0) -> 0 | U66: 4 | V66: =IF($D66="","",Salim_Split_Name($D66,COLUMNS($D66:E66))) ->  | W66: =IF($D66="","",Salim_Split_Name($D66,COLUMNS($D66:F66))) ->  | X66: =IF($D66="","",Salim_Split_Name($D66,COLUMNS($D66:G66))) ->  | Y66: =IF($D66="","",Salim_Split_Name($D66,COLUMNS($D66:H66))) ->  | AB66: 0 | AC66: 0 | AD66: =IFERROR(VLOOKUP(S66,ورقة1!$AT$9:$AV$16,3),"") -> 2/2ب
A67: =IF(C67="","",SUBTOTAL(3,$C$8:C67)) ->  | B67: 0 | I67: مسلم | K67: ناجح ومنقول | R67: =IFERROR(VLOOKUP(MID($E67,8,2)*1,[3]ورقة1!$A$2:$B$29,2,0),"") ->  | S67: 1 | T67: =IF(ISNUMBER(SEARCH('قوائم (2)'!$C$1,'بيانات ص 2'!$S$8:$S$303)),MAX($T$7:T66)+1,0) -> 0 | U67: 1 | V67: =IF($D67="","",Salim_Split_Name($D67,COLUMNS($D67:E67))) ->  | W67: =IF($D67="","",Salim_Split_Name($D67,COLUMNS($D67:F67))) ->  | X67: =IF($D67="","",Salim_Split_Name($D67,COLUMNS($D67:G67))) ->  | Y67: =IF($D67="","",Salim_Split_Name($D67,COLUMNS($D67:H67))) ->  | AB67: 0 | AC67: 0 | AD67: =IFERROR(VLOOKUP(S67,ورقة1!$AT$9:$AV$16,3),"") -> 1/2أ
A68: =IF(C68="","",SUBTOTAL(3,$C$8:C68)) ->  | B68: 16 | I68: مسلم | K68: ناجح ومنقول | R68: =IFERROR(VLOOKUP(MID($E68,8,2)*1,[3]ورقة1!$A$2:$B$29,2,0),"") ->  | S68: 2 | T68: =IF(ISNUMBER(SEARCH('قوائم (2)'!$C$1,'بيانات ص 2'!$S$8:$S$303)),MAX($T$7:T67)+1,0) -> 16 | U68: 2 | V68: =IF($D68="","",Salim_Split_Name($D68,COLUMNS($D68:E68))) ->  | W68: =IF($D68="","",Salim_Split_Name($D68,COLUMNS($D68:F68))) ->  | X68: =IF($D68="","",Salim_Split_Name($D68,COLUMNS($D68:G68))) ->  | Y68: =IF($D68="","",Salim_Split_Name($D68,COLUMNS($D68:H68))) ->  | AB68: 0 | AC68: 0 | AD68: =IFERROR(VLOOKUP(S68,ورقة1!$AT$9:$AV$16,3),"") -> 2/2أ
A69: =IF(C69="","",SUBTOTAL(3,$C$8:C69)) ->  | B69: 0 | I69: مسلم | K69: ناجح ومنقول | R69: =IFERROR(VLOOKUP(MID($E69,8,2)*1,[3]ورقة1!$A$2:$B$29,2,0),"") ->  | S69: 3 | T69: =IF(ISNUMBER(SEARCH('قوائم (2)'!$C$1,'بيانات ص 2'!$S$8:$S$303)),MAX($T$7:T68)+1,0) -> 0 | U69: 3 | V69: =IF($D69="","",Salim_Split_Name($D69,COLUMNS($D69:E69))) ->  | W69: =IF($D69="","",Salim_Split_Name($D69,COLUMNS($D69:F69))) ->  | X69: =IF($D69="","",Salim_Split_Name($D69,COLUMNS($D69:G69))) ->  | Y69: =IF($D69="","",Salim_Split_Name($D69,COLUMNS($D69:H69))) ->  | AB69: 0 | AC69: 0 | AD69: =IFERROR(VLOOKUP(S69,ورقة1!$AT$9:$AV$16,3),"") -> 1/2ب
A70: =IF(C70="","",SUBTOTAL(3,$C$8:C70)) ->  | B70: 0 | I70: مسلم | K70: ناجح ومنقول | R70: =IFERROR(VLOOKUP(MID($E70,8,2)*1,[3]ورقة1!$A$2:$B$29,2,0),"") ->  | S70: 4 | T70: =IF(ISNUMBER(SEARCH('قوائم (2)'!$C$1,'بيانات ص 2'!$S$8:$S$303)),MAX($T$7:T69)+1,0) -> 0 | U70: 4 | V70: =IF($D70="","",Salim_Split_Name($D70,COLUMNS($D70:E70))) ->  | W70: =IF($D70="","",Salim_Split_Name($D70,COLUMNS($D70:F70))) ->  | X70: =IF($D70="","",Salim_Split_Name($D70,COLUMNS($D70:G70))) ->  | Y70: =IF($D70="","",Salim_Split_Name($D70,COLUMNS($D70:H70))) ->  | AB70: 0 | AC70: 0 | AD70: =IFERROR(VLOOKUP(S70,ورقة1!$AT$9:$AV$16,3),"") -> 2/2ب
A71: =IF(C71="","",SUBTOTAL(3,$C$8:C71)) ->  | B71: =T71 -> 17 | G71: =IFERROR(DATE(IF(LEFT($E71,1)*1=3,20,19)&MID($E71,2,2),MID($E71,4,2),MID($E71,6,2)),"") ->  | H71: =IF(J71="","",IF(J71="ذكر","مصري","مصرية")) ->  | I71: مسلم | J71: =IFERROR(IF(ISODD(MID(E71,13,1)),"ذكر","انثي"),"") ->  | K71: ناجح ومنقول | L71: =IF(E71="","",RIGHT(LEFT(E71,7),2)) ->  | M71: =IF(E71="","",RIGHT(LEFT(E71,5),2)) ->  | N71: =IF(E71="","",RIGHT(LEFT(E71,3),2)+2000) ->  | O71: =IFERROR(IF($G71="","",DATEDIF($G71,$O$6,"md")),"") ->  | P71: =IFERROR(IF($G71="","",DATEDIF($G71,$O$6,"ym")),"") ->  | Q71: =IFERROR(IF($G71="","",DATEDIF($G71,$O$6,"y")),"") ->  | R71: =IFERROR(VLOOKUP(MID($E71,8,2)*1,[3]ورقة1!$A$2:$B$29,2,0),"") ->  | S71: 2 | T71: =IF(ISNUMBER(SEARCH('قوائم (2)'!$C$1,'بيانات ص 2'!$S$8:$S$303)),MAX($T$7:T70)+1,0) -> 17 | U71: 2 | V71: =IF($D71="","",Salim_Split_Name($D71,COLUMNS($D71:E71))) ->  | W71: =IF($D71="","",Salim_Split_Name($D71,COLUMNS($D71:F71))) ->  | X71: =IF($D71="","",Salim_Split_Name($D71,COLUMNS($D71:G71))) ->  | Y71: =IF($D71="","",Salim_Split_Name($D71,COLUMNS($D71:H71))) ->  | Z71: =V71&" "&W71&" "&X71&" "&Y71 ->  | AB71: 0 | AC71: 0 | AD71: =IFERROR(VLOOKUP(S71,ورقة1!$AT$9:$AV$16,3),"") -> 2/2أ
A72: =IF(C72="","",SUBTOTAL(3,$C$8:C72)) ->  | B72: 0 | I72: مسلم | K72: ناجح ومنقول | R72: =IFERROR(VLOOKUP(MID($E72,8,2)*1,[3]ورقة1!$A$2:$B$29,2,0),"") ->  | S72: 3 | T72: =IF(ISNUMBER(SEARCH('قوائم (2)'!$C$1,'بيانات ص 2'!$S$8:$S$303)),MAX($T$7:T71)+1,0) -> 0 | U72: 3 | V72: =IF($D72="","",Salim_Split_Name($D72,COLUMNS($D72:E72))) ->  | W72: =IF($D72="","",Salim_Split_Name($D72,COLUMNS($D72:F72))) ->  | X72: =IF($D72="","",Salim_Split_Name($D72,COLUMNS($D72:G72))) ->  | Y72: =IF($D72="","",Salim_Split_Name($D72,COLUMNS($D72:H72))) ->  | AA72: =RIGHT(E72,4) ->  | AB72: =C72 -> 0 | AC72: =AB72&AA72 -> 0 | AD72: =IFERROR(VLOOKUP(S72,ورقة1!$AT$9:$AV$16,3),"") -> 1/2ب
A73: =IF(C73="","",SUBTOTAL(3,$C$8:C73)) ->  | B73: 0 | I73: مسلم | K73: ناجح ومنقول | R73: =IFERROR(VLOOKUP(MID($E73,8,2)*1,[3]ورقة1!$A$2:$B$29,2,0),"") ->  | S73: 4 | T73: =IF(ISNUMBER(SEARCH('قوائم (2)'!$C$1,'بيانات ص 2'!$S$8:$S$303)),MAX($T$7:T72)+1,0) -> 0 | U73: 4 | V73: =IF($D73="","",Salim_Split_Name($D73,COLUMNS($D73:E73))) ->  | W73: =IF($D73="","",Salim_Split_Name($D73,COLUMNS($D73:F73))) ->  | X73: =IF($D73="","",Salim_Split_Name($D73,COLUMNS($D73:G73))) ->  | Y73: =IF($D73="","",Salim_Split_Name($D73,COLUMNS($D73:H73))) ->  | AB73: 0 | AC73: 0 | AD73: =IFERROR(VLOOKUP(S73,ورقة1!$AT$9:$AV$16,3),"") -> 2/2ب | AE73: =RIGHT(E73,13) ->  | AF73: =IF(C73="","",C73&"@minia2.moe.edu.eg") ->  | AG73: =IF(AE73="","","Std#"&LEFT(AE73,6)) -> 
A74: =IF(C74="","",SUBTOTAL(3,$C$8:C74)) ->  | B74: 0 | I74: مسلم | K74: ناجح ومنقول | R74: =IFERROR(VLOOKUP(MID($E74,8,2)*1,[3]ورقة1!$A$2:$B$29,2,0),"") ->  | S74: 1 | T74: =IF(ISNUMBER(SEARCH('قوائم (2)'!$C$1,'بيانات ص 2'!$S$8:$S$303)),MAX($T$7:T73)+1,0) -> 0 | U74: 1 | V74: =IF($D74="","",Salim_Split_Name($D74,COLUMNS($D74:E74))) ->  | W74: =IF($D74="","",Salim_Split_Name($D74,COLUMNS($D74:F74))) ->  | X74: =IF($D74="","",Salim_Split_Name($D74,COLUMNS($D74:G74))) ->  | Y74: =IF($D74="","",Salim_Split_Name($D74,COLUMNS($D74:H74))) ->  | AB74: 0 | AC74: 0 | AD74: =IFERROR(VLOOKUP(S74,ورقة1!$AT$9:$AV$16,3),"") -> 1/2أ
A75: =IF(C75="","",SUBTOTAL(3,$C$8:C75)) ->  | B75: 18 | I75: مسلم | K75: ناجح ومنقول | R75: =IFERROR(VLOOKUP(MID($E75,8,2)*1,[3]ورقة1!$A$2:$B$29,2,0),"") ->  | S75: 2 | T75: =IF(ISNUMBER(SEARCH('قوائم (2)'!$C$1,'بيانات ص 2'!$S$8:$S$303)),MAX($T$7:T74)+1,0) -> 18 | U75: 2 | V75: =IF($D75="","",Salim_Split_Name($D75,COLUMNS($D75:E75))) ->  | W75: =IF($D75="","",Salim_Split_Name($D75,COLUMNS($D75:F75))) ->  | X75: =IF($D75="","",Salim_Split_Name($D75,COLUMNS($D75:G75))) ->  | Y75: =IF($D75="","",Salim_Split_Name($D75,COLUMNS($D75:H75))) ->  | AB75: 0 | AC75: 0 | AD75: =IFERROR(VLOOKUP(S75,ورقة1!$AT$9:$AV$16,3),"") -> 2/2أ
A76: =IF(C76="","",SUBTOTAL(3,$C$8:C76)) ->  | B76: 0 | I76: مسلم | K76: ناجح ومنقول | R76: =IFERROR(VLOOKUP(MID($E76,8,2)*1,[3]ورقة1!$A$2:$B$29,2,0),"") ->  | S76: 3 | T76: =IF(ISNUMBER(SEARCH('قوائم (2)'!$C$1,'بيانات ص 2'!$S$8:$S$303)),MAX($T$7:T75)+1,0) -> 0 | U76: 3 | V76: =IF($D76="","",Salim_Split_Name($D76,COLUMNS($D76:E76))) ->  | W76: =IF($D76="","",Salim_Split_Name($D76,COLUMNS($D76:F76))) ->  | X76: =IF($D76="","",Salim_Split_Name($D76,COLUMNS($D76:G76))) ->  | Y76: =IF($D76="","",Salim_Split_Name($D76,COLUMNS($D76:H76))) ->  | AB76: 0 | AC76: 0 | AD76: =IFERROR(VLOOKUP(S76,ورقة1!$AT$9:$AV$16,3),"") -> 1/2ب
A77: =IF(C77="","",SUBTOTAL(3,$C$8:C77)) ->  | B77: 0 | I77: مسلم | K77: ناجح ومنقول | R77: =IFERROR(VLOOKUP(MID($E77,8,2)*1,[3]ورقة1!$A$2:$B$29,2,0),"") ->  | S77: 4 | T77: =IF(ISNUMBER(SEARCH('قوائم (2)'!$C$1,'بيانات ص 2'!$S$8:$S$303)),MAX($T$7:T76)+1,0) -> 0 | U77: 4 | V77: =IF($D77="","",Salim_Split_Name($D77,COLUMNS($D77:E77))) ->  | W77: =IF($D77="","",Salim_Split_Name($D77,COLUMNS($D77:F77))) ->  | X77: =IF($D77="","",Salim_Split_Name($D77,COLUMNS($D77:G77))) ->  | Y77: =IF($D77="","",Salim_Split_Name($D77,COLUMNS($D77:H77))) ->  | AB77: 0 | AC77: 0 | AD77: =IFERROR(VLOOKUP(S77,ورقة1!$AT$9:$AV$16,3),"") -> 2/2ب
A78: =IF(C78="","",SUBTOTAL(3,$C$8:C78)) ->  | B78: 0 | I78: مسلم | K78: ناجح ومنقول | R78: =IFERROR(VLOOKUP(MID($E78,8,2)*1,[3]ورقة1!$A$2:$B$29,2,0),"") ->  | S78: 1 | T78: =IF(ISNUMBER(SEARCH('قوائم (2)'!$C$1,'بيانات ص 2'!$S$8:$S$303)),MAX($T$7:T77)+1,0) -> 0 | U78: 1 | V78: =IF($D78="","",Salim_Split_Name($D78,COLUMNS($D78:E78))) ->  | W78: =IF($D78="","",Salim_Split_Name($D78,COLUMNS($D78:F78))) ->  | X78: =IF($D78="","",Salim_Split_Name($D78,COLUMNS($D78:G78))) ->  | Y78: =IF($D78="","",Salim_Split_Name($D78,COLUMNS($D78:H78))) ->  | AB78: 0 | AC78: 0 | AD78: =IFERROR(VLOOKUP(S78,ورقة1!$AT$9:$AV$16,3),"") -> 1/2أ
